Workbook

Sheet Contents
A1: .
H4: Gas Distribution Regulatory Information Notice
H5: Regulatory templates
H7: =CONCATENATE("For ",dms_TradingName) -> For ActewAGL Distribution
H8: for access arrangement period
H9: =CONCATENATE(FRCP_y1," to ",FRCP_y5) -> 2016-17 to 2020-21
H10: Table of Contents

Sheet Instructions
D7: INSTRUCTIONS
D9: The pro formas in this spreadsheet must be filled out as part of an access arrangement proposal
D10: Please follow the instructions below when completing the pro formas in this spreadsheet:
D11: 1 | E11: Complete the Business Details pro forma first.
D12: 2 | E12: Only input data into the yellow input cells.
D13: 3 | E13: Check all pre-entered formulas to ensure they are operating correctly and as intended.
D14: 4 | E14: Ensure all links within each worksheet and between worksheets are correct.
D15: 5 | E15: As stated in the notice, further information must be provided in the accompanying proposal.
D16: 6 | E16: The service provider is encouraged to add extra rows in a regulatory template if it considers that this is necessary to fully complete the regulatory template in question.

Sheet Business & other details
B1: =(LOOKUP(dms_Model,J15:J22,K15:K22)) -> REGULATORY REPORTING STATEMENT | J1: Data is in this column used for data validation and database purposes.
B2: =dms_TradingName -> ActewAGL Distribution
B3: =CONCATENATE(FRCP_y1," to ",FRCP_y5) -> 2016-17 to 2020-21 | C3: =CONCATENATE(LEFT(FRCP_y1,4),"-",LEFT(FRCP_y5,2),RIGHT(FRCP_y5,2)) -> 2016-2021
B4: BUSINESS & OTHER DETAILS
B7: Instructions
B8: Complete the following business details regulatory template before entering data or values in any other regulatory template. This regulatory template is linked to other cells within the spreadsheet and automatically generates column headings.
B10: SUBMISSION PARTICULARS INPUT SHEETS
B12: Entity details
B14: Trading name | C14: ActewAGL Distribution
B15: ACN / ABN | C15: =INDEX(dms_ABN_List,MATCH(dms_TradingName,dms_TradingName_List)) -> 76670568688 | J15: CA | K15: CATEGORY ANALYSIS
J16: CAM/Service change Backcast | K16: REGULATORY REPORTING STATEMENT
J17: CPI | K17: CPI
B18: Business address | C18: Address 1 | E18: ActewAGL House | J18: EB | K18: ECONOMIC BENCHMARKING
D19: Address 2 | E19: 40 Bunda St | J19: PTRM | K19: POST TAX REVENUE MODEL
C20: Suburb | E20: Canberra | J20: Reset | K20: REGULATORY REPORTING STATEMENT
D21: State | E21: ACT | G21: 2600 | J21: RFM | K21: ROLL FORWARD MODEL
J22: WACC | K22: WEIGHTED AVERAGE COST OF CAPITAL
B23: Postal address | C23: Address 1 | E23: GPO Box 366
D24: Address 2
C25: Suburb | E25: Canberra
D26: State | E26: ACT | F26: p/code | G26: 2601
J27: ActewAGL Distribution | K27: 76670568688
J28: Ausgrid | K28: 67505337385
B29: Contact name/s | C29: Philip Deamer | J29: AusNet (D) | K29: 91064651118
B30: Contact phone/s | C30: 02 6248 3438 | J30: AusNet (T) | K30: 78079798173
B31: Contact email address/s | C31: GasAAReview @actewagl.com.au | J31: Citipower | K31: 76064651056
J32: Electranet | K32: 41094482416
B33: Regulatory control period details | J33: Endeavour Energy | K33: 59253130878
J34: Energex | K34: 40078849055
B35: Forthcoming regulatory control period | C35: =CONCATENATE(IF(dms_RPT="Calendar",H38+1,(LEFT(H38,4)+1&"-"&IF(MID(H38,6,2)<"09","0"&RIGHT(H38,1)+1,RIGHT(H38,2)+1)))) -> 2016-17 | D35: =CONCATENATE(IF(dms_RPT="Calendar",C35+1,(LEFT(C35,4)+1&"-"&IF(MID(C35,6,2)<"09","0"&RIGHT(C35,1)+1,RIGHT(C35,2)+1)))) -> 2017-18 | E35: =CONCATENATE(IF(dms_RPT="Calendar",D35+1,(LEFT(D35,4)+1&"-"&IF(MID(D35,6,2)<"09","0"&RIGHT(D35,1)+1,RIGHT(D35,2)+1)))) -> 2018-19 | F35: =CONCATENATE(IF(dms_RPT="Calendar",E35+1,(LEFT(E35,4)+1&"-"&IF(MID(E35,6,2)<"09","0"&RIGHT(E35,1)+1,RIGHT(E35,2)+1)))) -> 2019-20 | G35: =CONCATENATE(IF(dms_RPT="Calendar",F35+1,(LEFT(F35,4)+1&"-"&IF(MID(F35,6,2)<"09","0"&RIGHT(F35,1)+1,RIGHT(F35,2)+1)))) -> 2020-21 | J35: Ergon Energy | K35: 50087646062
J36: Essential Energy | K36: 37428185226
J37: Jemena Electricity | K37: 82064651083
B38: Current regulatory control period | C38: 2010-11 | D38: =CONCATENATE(IF(dms_RPT="Calendar",C38+1,(LEFT(C38,4)+1&"-"&IF(MID(C38,6,2)<"09","0"&RIGHT(C38,1)+1,RIGHT(C38,2)+1)))) -> 2011-12 | E38: =CONCATENATE(IF(dms_RPT="Calendar",D38+1,(LEFT(D38,4)+1&"-"&IF(MID(D38,6,2)<"09","0"&RIGHT(D38,1)+1,RIGHT(D38,2)+1)))) -> 2012-13 | F38: =CONCATENATE(IF(dms_RPT="Calendar",E38+1,(LEFT(E38,4)+1&"-"&IF(MID(E38,6,2)<"09","0"&RIGHT(E38,1)+1,RIGHT(E38,2)+1)))) -> 2013-14 | G38: =CONCATENATE(IF(dms_RPT="Calendar",F38+1,(LEFT(F38,4)+1&"-"&IF(MID(F38,6,2)<"09","0"&RIGHT(F38,1)+1,RIGHT(F38,2)+1)))) -> 2014-15 | H38: =CONCATENATE(IF(dms_RPT="Calendar",G38+1,(LEFT(G38,4)+1&"-"&IF(MID(G38,6,2)<"09","0"&RIGHT(G38,1)+1,RIGHT(G38,2)+1)))) -> 2015-16 | J38: Powercor Australia | K38: 89064651109
J39: Powerlink | K39: 82078849233
J40: Qld,SA &ACT Gas Reset | K40: 22222222222
B41: Previous regulatory control period | C41: =CONCATENATE(IF(dms_RPT="Calendar",D41-1,(LEFT(D41,4)-1&"-"&IF(MID(D41,3,1)="0","0"&RIGHT(D41,2)-1,RIGHT(D41,2)-1)))) -> 2005-06 | D41: =CONCATENATE(IF(dms_RPT="Calendar",E41-1,(LEFT(E41,4)-1&"-"&IF(MID(E41,3,1)="0","0"&RIGHT(E41,2)-1,RIGHT(E41,2)-1)))) -> 2006-07 | E41: =CONCATENATE(IF(dms_RPT="Calendar",F41-1,(LEFT(F41,4)-1&"-"&IF(MID(F41,3,1)="0","0"&RIGHT(F41,2)-1,RIGHT(F41,2)-1)))) -> 2007-08 | F41: =CONCATENATE(IF(dms_RPT="Calendar",G41-1,(LEFT(G41,4)-1&"-"&IF(MID(G41,3,1)="0","0"&RIGHT(G41,2)-1,RIGHT(G41,2)-1)))) -> 2008-09 | G41: =CONCATENATE(IF(dms_RPT="Calendar",C38-1,(LEFT(C38,4)-1&"-"&IF(MID(C38,3,1)="0","0"&RIGHT(C38,2)-1,RIGHT(C38,2)-1)))) -> 2009-10 | J41: SA Power Networks | K41: 13332330749
J42: TasNetworks (D) | K42: 24167357299
J43: TasNetworks (T) | K43: 24167357299
B44: Sector | C44: Gas | J44: TransGrid | K44: 19622755774
B45: Segment | C45: Distribution | J45: United Energy | K45: 70064651029
B46: Source | C46: Regulatory proposal | J46: Victorian DNSP Backcasting | K46: 33333333666
B47: Regulatory Year Ending | C47: =CONCATENATE(LEFT(H38, 2) &IF(H38>"2009-10",,"") &RIGHT(H38,2)) -> 2016 | J47: Victorian DNSP Reset | K47: 33333333333
B48: Reporting Period Type | C48: Financial
B49: Model or RIN Type | C49: Reset
B50: Security Classification | C50: Confidential
B51: Data quality (actual, estimate, public, consolidated) | C51: Consolidated
B52: RIN response - version no. | C52: 1
B53: Amended RIN submission - amendment reason
B54: Template - version no. | C54: 1
B55: $ real (the last month before the FRCP_y1) | C55: =CONCATENATE(IF(dms_RPT="Financial","June ","December "),(IF(dms_RPT="Financial",LEFT(CRCP_y6,2),LEFT(CRCP_y6,2))&(RIGHT(CRCP_y6,2)))) -> June 2016
B56: Previous $ real - End Year 5 | C56: =CONCATENATE(IF(C48="Financial","June ","December "),(IF(C48="Financial",LEFT(G41,2),LEFT(H38,2))&(RIGHT(G41,2)))) -> June 2010
B57: Previous $ real - Beginning Year 1 | C57: =CONCATENATE(IF(C48="Financial","July ","January "),(LEFT(C41,4))) -> July 2005
B58: EBSS - First application of scheme in forthcoming period? | C58: No
B59: Form of control | C59: Revenue Cap

Sheet 1. CPI
C1: =SheetHeader -> REGULATORY REPORTING STATEMENT
C2: =dms_TradingName -> ActewAGL Distribution
C3: =CONCATENATE(FRCP_y1," to ",FRCP_y5) -> 2016-17 to 2020-21
C4: 1. CPI ESCALATION
C7: Instructions
C8: SERVICE PROVIDERS ARE NOT TO MAKE ANY CHANGES TO THIS TEMPLATE EXCEPT AS INDICATED
C10: Service providers should insert inflation forecasts (yellow cells)
C12: Table 1.1 provides CPI index figures used to calculate CPI escalators to be used in the RIN
C14: Tables 1.2 provide the CPI escalators for converting nominal values to real values.
C17: Table 1 - CPI ESCALATION
C18: Table 1.1 - CPI (historical/estimated)
D21: CPI Index | E21: ABS series ID A2325846C, 25/1/12 release | F21: ABS series ID A2325846C, 22/1/14 release | G21: Annual CPI
C22: Actual | D22: 1997-12-01 | E22: 120 | F22: 66.8
C23: Actual | D23: 1998-12-01 | E23: 121.9 | F23: 67.8 | G23: =E23/E22-1 -> 0.01583333333
C24: Actual | D24: 1999-12-01 | E24: 124.1 | F24: 69.1 | G24: 0.01804757998
C25: Actual | D25: 2000-12-01 | E25: 131.3 | F25: 73.1 | G25: 0.05801772764
C26: Actual | D26: 2001-12-01 | E26: 135.4 | F26: 75.4 | G26: 0.03122619954
C27: Actual | D27: 2002-12-01 | E27: 139.5 | F27: 77.6 | G27: 0.03028064993
C28: Actual | D28: 2003-12-01 | E28: 142.8 | F28: 79.5 | G28: 0.02365591398
C29: Actual | D29: 2004-12-01 | E29: 146.5 | F29: 81.5 | G29: 0.02591036415
C30: Actual | D30: 2005-12-01 | E30: 150.6 | F30: 83.8 | G30: 0.02798634812
C31: Actual | D31: 2006-12-01 | E31: 155.5 | F31: 86.6 | G31: 0.03253652058
C32: Actual | D32: 2007-12-01 | E32: 160.1 | F32: 89.1 | G32: 0.02958199357
C33: Actual | D33: 2008-12-01 | E33: 166 | F33: 92.4 | G33: 0.03685196752
C34: Actual | D34: 2009-12-01 | E34: 169.5 | F34: 94.3 | G34: 0.02108433735
C35: Actual | D35: 2010-12-01 | E35: 174 | F35: 96.9 | G35: =E35/E34-1 -> 0.02654867257
C36: Actual | D36: 2011-12-01 | E36: 179.4 | F36: 99.8 | G36: 0.03103448276
C37: Actual | D37: 2012-12-01 | F37: 102 | G37: =F37/F36-1 -> 0.02204408818
C38: Actual | D38: 2013-12-01 | F38: 104.8 | G38: =F38/F37-1 -> 0.02745098039
C39: Actual | D39: 2014-12-01 | F39: 106.6 | G39: =F39/F38-1 -> 0.01717557252
C40: Estimated | D40: 2015-12-01
C41: Estimated | D41: 2016-12-01
C42: Estimated | D42: 2017-12-01
C43: Estimated | D43: 2018-12-01
C44: Estimated | D44: 2019-12-01
C45: Estimated | D45: 2020-12-01
C47: Table 1.2 - CPI p.a.
E48: 1999-00 | F48: 2000-01 | G48: 2001-02 | H48: 2002-03 | I48: 2003-04 | J48: 2004-05 | K48: 2005-06 | L48: 2006-07 | M48: 2007-08 | N48: 2008-09 | O48: 2009-10 | P48: 2010-11 | Q48: 2011-12 | R48: 2012-13 | S48: 2013-14 | T48: 2014-15 | U48: 2015-16 | V48: 2016-17 | W48: 2017-18 | X48: 2018-19 | Y48: 2019-20
E49: =$G24 -> 0.01804757998 | F49: =$G25 -> 0.05801772764 | G49: =$G26 -> 0.03122619954 | H49: =$G27 -> 0.03028064993 | I49: 0.02732595966 | J49: 0.02343255225 | K49: 0.02691831683 | L49: 0.03555287737 | M49: 0.02327611289 | N49: 0.0435029855 | O49: 0.01771117166 | P49: 0.02918340027 | Q49: 0.03303850156 | R49: 0.01762780156 | S49: 0.02449888641 | T49: 0.02487922705 | U49: 0.0275 | V49: 0.0275 | W49: 0.02548112191 | X49: 0.02548112191 | Y49: 0.02548112191
C50: =CONCATENATE("Escalator : Nominal $ to Real $ ", dms_DollarReal) -> Escalator : Nominal $ to Real $ June 2016 | E50: =F50*(1+E49) -> 1.541228318 | F50: 1.513905979 | G50: 1.430889048 | H50: 1.387560797 | I50: =J50*(1+I49) -> 1.34677944 | J50: 1.310956301 | K50: 1.280940594 | L50: 1.247363664 | M50: 1.204538842 | N50: 1.177139608 | O50: 1.128065395 | P50: 1.108433735 | Q50: 1.077003122 | R50: 1.042558549 | S50: =T50*(1+S49) -> 1.024498886 | T50: 1 | U50: =T50/(1+T49) -> 0.9757247231 | V50: =U50/(1+U49) -> 0.9496104361 | W50: =V50/(1+V49) -> 0.9241950716 | X50: =W50/(1+W49) -> 0.9012307022 | Y50: =X50/(1+X49) -> 0.8788369507
C52: Example
C53: Costs ($nominal) | E53: 75 | F53: 76 | G53: 77 | H53: 78 | I53: 79 | J53: 80 | K53: 80 | L53: 80 | M53: 80 | N53: 80 | O53: 80 | P53: 80 | Q53: 123 | R53: 70 | S53: 120 | T53: 200 | U53: 145 | V53: 150 | W53: 100 | X53: 55 | Y53: 135
C54: Costs (real $2015) | E54: =E53*E$50 -> 115.5921238 | F54: 115.0568544 | G54: 110.1784567 | H54: 108.2297422 | I54: 106.3955758 | J54: 104.8765041 | K54: 102.4752475 | L54: 99.7890931 | M54: 96.36310736 | N54: 94.17116861 | O54: 90.24523161 | P54: 88.6746988 | Q54: 132.471384 | R54: 72.97909846 | S54: 122.9398664 | T54: 200 | U54: 141.4800848 | V54: 142.4415654 | W54: 92.41950716 | X54: 49.56768862 | Y54: 118.6429883

Sheet 2. Escalators
B1: REGULATORY REPORTING STATEMENT
B2: ActewAGL Distribution
B3: 2016-17 to 2020-21 | C3: 2016-2021
B4: 2. REAL COST ESCALATORS
B7: Instructions This template asks for real cost escalators used to escalate unit costs. Please identify the unit used in this sheet.
B8: =CONCATENATE("In Tables 2.1 and 2.2 enter the current access arrangement period data and, subject to cl.6.1 of the ", dms_TradingName, ", enter the next access arrangement period data via link from the ", dms_TradingName, " capex model.") -> In Tables 2.1 and 2.2 enter the current access arrangement period data and, subject to cl.6.1 of the ActewAGL Distribution, enter the next access arrangement period data via link from the ActewAGL Distribution capex model.
B9: =CONCATENATE("If linked/adjustable escalation is not provided in the ", dms_TradingName, " capex model, ensure the escalation in table 2.2 is linked through to all capex categories/subcategories and projects.") -> If linked/adjustable escalation is not provided in the ActewAGL Distribution capex model, ensure the escalation in table 2.2 is linked through to all capex categories/subcategories and projects.
B11: Table 2 - REAL COST ESCALATORS
B12: Table 2.1 - Real cost escalators ( % )
C13: Current access arrangement | J13: Next access arrangement
C14: 0
C15: Approved | J15: Forecast
C16: 2009-10 | D16: =CRCP_y1 -> 2010-11 | E16: =CRCP_y2 -> 2011-12 | F16: =CRCP_y3 -> 2012-13 | G16: =CRCP_y4 -> 2013-14 | H16: =CRCP_y5 -> 2014-15 | I16: =CRCP_y6 -> 2015-16 | J16: =CRCP_y5 -> 2014-15 | K16: =CRCP_y6 -> 2015-16 | L16: =FRCP -> 2016-17 | M16: 2017-18 | N16: 2018-19 | O16: 2019-20 | P16: 2020-21
B17: EBA EGW labour | C17: 0.012 | D17: 0.019 | E17: 0.013 | F17: 0.015 | G17: 0.019 | H17: 0.023
B18: Contract EGW labour | C18: 0.009 | D18: 0.012 | E18: 0.015 | F18: 0.027 | G18: 0.038 | H18: 0.037
B19: EBA ACT (Construction WPI (ACT)) | J19: 0.01155476807 | K19: 0.006732642738 | L19: 0.01242156274 | M19: 0.01306599446 | N19: 0.01203361053 | O19: 0.0147349404 | P19: 0.0169109557
B20: EBA NSW / Other (Construction WPI (NSW)) | J20: 0.01155476807 | K20: 0.009732642738 | L20: 0.01442156274 | M20: 0.01706599446 | N20: 0.01603361053 | O20: 0.0177349404 | P20: 0.01885564831
B21: Non-EBA ACT EGWWS WPI (ACT) | J21: 0.01059187791 | K21: 0.004300300844 | L21: 0.008825794651 | M21: 0.01143214774 | N21: 0.0141983453 | O21: 0.0146675149 | P21: 0.013
B22: Non-EBA NSW / Other (EGWWS WPI (NSW)) | J22: 0.01459187791 | K22: 0.008300300844 | L22: 0.01082579465 | M22: 0.01643214774 | N22: 0.0191983453 | O22: 0.0196675149 | P22: 0.01906886897
B23: Concrete
B24: Steel | C24: -0.285 | D24: 0.456 | E24: 0.17 | F24: 0.017 | G24: -0.024 | H24: -0.019 | J24: 0.02128969501 | K24: 0.09193480724 | L24: -0.01259851763 | M24: 0.0372985281 | N24: 0.03723664964 | O24: -0.1114430648 | P24: -0.03917371931
B25: Plastic | C25: 0 | D25: 0 | E25: 0 | F25: 0 | G25: 0 | H25: 0 | J25: -0.09038403564 | K25: 0.001615253512 | L25: 0.01447653589 | M25: 0.04185783571 | N25: 0.03142393974 | O25: -0.07569148541 | P25: -0.03512695013
B26: Aluminium | C26: -0.167 | D26: 0.467 | E26: 0.119 | F26: 0.014 | G26: 0.002 | H26: 0.004 | J26: 0.1325142908 | K26: 0.1655030544 | L26: 0.01913826284 | M26: 0.05068173267 | N26: 0.03732239663 | O26: -0.1101500806 | P26: -0.04778580336
B27: Brass | J27: 0.1012435705 | K27: 0.1265176719 | L27: 0.005047928953 | M27: 0.02857942058 | N27: 0.01996221194 | O27: -0.1195238925 | P27: -0.05962723961
B28: Other | J28: 0 | K28: 0 | L28: 0 | M28: 0 | N28: 0 | O28: 0 | P28: 0
B29: General | J29: 0 | K29: 0 | L29: 0 | M29: 0 | N29: 0 | O29: 0 | P29: 0
C30: =SUM(C17:C29) -> -0.431 | D30: =SUM(D17:D29) -> 0.954 | E30: 0.317 | F30: 0.073 | G30: 0.035 | H30: 0.045 | I30: 0 | J30: 0.2129568126 | K30: 0.4146366742 | L30: 0.07255892483 | M30: 0.2164138015 | N30: 0.1874091096 | O30: -0.3500036127 | P30: -0.1138782394
B31: Source(s) of data: | C31: Source: AER, Annexure to the AER's final decision 1 July 2010 to 30 Jun 2015, Table 3.3 of Addendum to access arrangement information | J31: Source: AAD - Capex Forecast Model - v18 - 19 May 15.xlsb, Input|Escalators
B33: Table 2.2 - Input / Cost Mix (Weights)
C34: Forecast | N34: Forecast
C35: 0 | N35: Cumulative Factor
C36: Labour | G36: Materials
C37: EBA ACT | D37: EBA NSW/Other | E37: Non-EBA ACT | F37: Non-EBA NSW/Other | G37: =B23 -> Concrete | H37: =B24 -> Steel | I37: =B25 -> Plastic | J37: =B26 -> Aluminium | K37: =B27 -> Brass | L37: =B28 -> Other | M37: Total | N37: =CRCP_y3 -> 2012-13 | O37: =CRCP_y4 -> 2013-14 | P37: =CRCP_y5 -> 2014-15 | Q37: =CRCP_y6 -> 2015-16 | R37: =FRCP -> 2016-17 | S37: 2017-18 | T37: 2018-19 | U37: 2019-20 | V37: 2020-21
B38: CAPEX
B39: Mains
B40: Mains - E to G | C40: 0.7224742085 | D40: 0 | E40: 0 | F40: 0 | H40: 0 | I40: 0.2306058442 | J40: 0 | K40: 0 | L40: 0.04691994734 | M40: 1 | O40: 1 | P40: 0.9875049351 | Q40: 0.9926761505 | R40: 1.004898607 | S40: 1.024084639 | T40: 1.040409078 | U40: 1.033324637 | V40: 1.037579092
B41: Mains - New Estates | C41: 0.7294006056 | D41: 0 | E41: 0 | F41: 0 | H41: 0 | I41: 0.2554292391 | J41: 0 | K41: 0 | L41: 0.01517015534 | M41: 1 | O41: 1 | P41: 0.9853413294 | Q41: 0.9905866724 | R41: 1.003224603 | S41: 1.02351187 | T41: 1.040710878 | U41: 1.031775184 | V41: 1.035244437
B42: Mains - I&C Contract | C42: 0.6878934334 | D42: 0 | E42: 0 | F42: 0 | H42: 0.2740529226 | I42: 0 | J42: 0 | K42: 0 | L42: 0.03805364405 | M42: 1 | O42: 1 | P42: 1.013782952 | Q42: 1.044020391 | R42: 1.049336596 | S42: 1.069494123 | T42: 1.089261213 | U42: 1.067034589 | V42: 1.067992
B43: Mains - I&C Tariff | C43: 0.853896419 | D43: 0 | E43: 0 | F43: 0 | H43: 0 | I43: 0.09754640443 | J43: 0 | K43: 0 | L43: 0.04855717655 | M43: 1 | O43: 1 | P43: 1.001049937 | Q43: 1.006962681 | R43: 1.019065226 | S43: 1.034595869 | T43: 1.048398153 | U43: 1.05384844 | V43: 1.065455207
B44: Mains - Medium Density | C44: 0.8240410456 | D44: 0 | E44: 0 | F44: 0 | H44: 0 | I44: 0.1366553823 | J44: 0 | K44: 0 | L44: 0.03930357214 | M44: 1 | O44: 1 | P44: 0.9971701382 | Q44: 1.002922521 | R44: 1.015172391 | S44: 1.031909553 | T44: 1.046573441 | U44: 1.048455752 | V44: 1.058033432
B46: Services
B47: Connections - E to G | C47: 0.7117842197 | D47: 0 | E47: 0 | F47: 0 | H47: 0 | I47: 0.2400769195 | J47: 0 | K47: 0 | L47: 0.04813886079 | M47: 1 | O47: 1 | P47: 0.9865253807 | Q47: 0.9916355565 | R47: 1.003849487 | S47: 1.02327324 | T47: 1.039757657 | U47: 1.031768491 | V47: 1.03548676
B48: Connections - New Estates | C48: 0.5552971335 | D48: 0 | E48: 0 | F48: 0 | H48: 0 | I48: 0.4392974345 | J48: 0 | K48: 0 | L48: 0.005405431979 | M48: 1 | O48: 1 | P48: 0.9667108546 | Q48: 0.971010972 | R48: 0.983883823 | S48: 1.009114096 | T48: 1.029787499 | U48: 1.003971957 | V48: 0.9979073903
B49: Connections - I&C Contract | C49: 0.7047440409 | D49: 0 | E49: 0 | F49: 0.008396642657 | H49: 0.210378325 | I49: 0 | J49: 0 | K49: 0 | L49: 0.07648099138 | M49: 1 | O49: 1 | P49: 1.012744567 | Q49: 1.037207995 | R49: 1.043632946 | S49: 1.061576084 | T49: 1.079066188 | U49: 1.065150871 | V49: 1.069237544
B50: Connections - I&C Tariff | C50: 0.824138615 | D50: 0 | E50: 0 | F50: 0 | H50: 0 | I50: 0.1679574562 | J50: 0 | K50: 0 | L50: 0.00790392888 | M50: 1 | O50: 1 | P50: 0.9943420579 | Q50: 1.000129054 | R50: 1.01279922 | S50: 1.030825554 | T50: 1.046489204 | U50: 1.045893421 | V50: 1.054299411
B51: Connections - Medium Density | C51: 0.5666017089 | D51: 0 | E51: 0 | F51: 0 | H51: 0 | I51: 0.4169841035 | J51: 0 | K51: 0 | L51: 0.01641418764 | M51: 1 | O51: 1 | P51: 0.9688582453 | Q51: 0.9732067348 | R51: 0.9859309886 | S51: 1.010438538 | T51: 1.030568038 | U51: 1.006645149 | V51: 1.001545884
B53: Meters
B54: New Meter - E to G | C54: 0.07800096587 | D54: 0 | E54: 0 | F54: 0 | H54: 0 | I54: 0 | J54: 0.9095421958 | K54: 0 | L54: 0.01245683838 | M54: 1 | O54: 1 | P54: 1.121428622 | Q54: 1.290828449 | R54: 1.31454865 | S54: 1.376485365 | T54: 1.424503957 | U54: 1.283425634 | V54: 1.229336773
B55: New Meter - New Estates | C55: 0.07800096587 | D55: 0 | E55: 0 | F55: 0 | H55: 0 | I55: 0 | J55: 0.9095421958 | K55: 0 | L55: 0.01245683838 | M55: 1 | O55: 1 | P55: 1.121428622 | Q55: 1.290828449 | R55: 1.31454865 | S55: 1.376485365 | T55: 1.424503957 | U55: 1.283425634 | V55: 1.229336773
B56: New Meter - I&C Contract | C56: 0.3586697298 | D56: 0 | E56: 0 | F56: 0 | H56: 0.5612879239 | I56: 0 | J56: 0 | K56: 0 | L56: 0.08004234635 | M56: 1 | O56: 1 | P56: 1.016093994 | Q56: 1.070980031 | R56: 1.068178179 | S56: 1.095546602 | T56: 1.123172534 | U56: 1.058852183 | V56: 1.041992834
B57: New Meter - I&C Tariff | C57: 0.5381730975 | D57: 0 | E57: 0 | F57: 0 | H57: 0.4543014828 | I57: 0 | J57: 0 | K57: 0 | L57: 0.007525419674 | M57: 1 | O57: 1 | P57: 1.015890405 | Q57: 1.062001108 | R57: 1.063022144 | S57: 1.08850974 | T57: 1.113973064 | U57: 1.06640775 | V57: 1.057134633
B58: New Meter - Medium Density | C58: 0.02204450139 | D58: 0 | E58: 0 | F58: 0 | H58: 0 | I58: 0 | J58: 0.40404936 | K58: 0.5695635557 | L58: 0.004342582879 | M58: 1 | O58: 1 | P58: 1.111461681 | Q58: 1.266043412 | R58: 1.279820175 | S58: 1.327229516 | T58: 1.362686603 | U58: 1.209714542 | V58: 1.145724837
B59: New - Meter Data Loggers & Metreteks | C59: 0.770959307 | D59: 0 | E59: 0 | F59: 0 | H59: 0 | I59: 0 | J59: 0 | K59: 0 | L59: 0.229040693 | M59: 1 | O59: 1 | P59: 1.008908256 | Q59: 1.014145089 | R59: 1.023857069 | S59: 1.034170739 | T59: 1.04376518 | U59: 1.055622394 | V59: 1.069385238
B61: Growth Capex
B62: Growth Capacity Development-GNCDM Medium Pressure | C62: 0.8222418131 | D62: 0 | E62: 0 | F62: 0 | H62: 0 | I62: 0.1657065497 | J62: 0 | K62: 0 | L62: 0.01205163719 | M62: 1 | O62: 1 | P62: 0.9945235868 | Q62: 1.000295323 | R62: 1.012911433 | S62: 1.030819225 | T62: 1.046386338 | U62: 1.045939645 | V62: 1.054395156
B63: Growth Capacity Development-GNCDM High Pressure | C63: 0.7047440409 | D63: 0 | E63: 0 | F63: 0.008396642657 | H63: 0.210378325 | I63: 0 | J63: 0 | K63: 0 | L63: 0.07648099138 | M63: 1 | O63: 1 | P63: 1.012744567 | Q63: 1.037207995 | R63: 1.043632946 | S63: 1.061576084 | T63: 1.079066188 | U63: 1.065150871 | V63: 1.069237544
B64: Growth Capacity Development-GNCDF Medium Pressure | C64: 0.5230669286 | D64: 0 | E64: 0 | F64: 0 | H64: 0.4440492476 | I64: 0 | J64: 0 | K64: 0 | L64: 0.03288382386 | M64: 1 | O64: 1 | P64: 1.01549759 | Q64: 1.060530039 | R64: 1.06148764 | S64: 1.086323026 | T64: 1.111123009 | U64: 1.064701569 | V64: 1.055598904
B65: Growth Capacity Development-GNCDF High Pressure | C65: 0.3943221721 | D65: 0 | E65: 0 | F65: 0.02744483912 | H65: 0.3062573818 | I65: 0 | J65: 0 | K65: 0 | L65: 0.271975607 | M65: 1 | O65: 1 | P65: 1.011476899 | Q65: 1.042871467 | R65: 1.0442656 | S65: 1.06204541 | T65: 1.079756094 | U65: 1.04976028 | V65: 1.044715621
B67: Stay in Business (SIB)
B68: Mains and Services Renewal | C68: 0.8222418131 | D68: 0 | E68: 0 | F68: 0 | H68: 0 | I68: 0.1657065497 | J68: 0 | K68: 0 | L68: 0.01205163719 | M68: 1 | O68: 1 | P68: 0.9945235868 | Q68: 1.000295323 | R68: 1.012911433 | S68: 1.030819225 | T68: 1.046386338 | U68: 1.045939645 | V68: 1.054395156
B69: SIB Facilities and SCADA | C69: 0.3943221721 | D69: 0 | E69: 0 | F69: 0.02744483912 | H69: 0.3062573818 | I69: 0 | J69: 0 | K69: 0 | L69: 0.271975607 | M69: 1 | O69: 1 | P69: 1.011476899 | Q69: 1.042871467 | R69: 1.0442656 | S69: 1.06204541 | T69: 1.079756094 | U69: 1.04976028 | V69: 1.044715621
B70: Meter Renewal and Upgrades | C70: 0.3586697298 | D70: 0 | E70: 0 | F70: 0 | H70: 0.1086444411 | I70: 0 | J70: 0.3224443029 | K70: 0.1301991799 | L70: 0.08004234635 | M70: 1 | O70: 1 | P70: 1.062367661 | Q70: 1.149737855 | R70: 1.161137207 | S70: 1.194579941 | T70: 1.222049432 | U70: 1.151290483 | V70: 1.126696343
B71: Third Party Relocations | C71: 0.8222418131 | D71: 0 | E71: 0 | F71: 0 | H71: 0 | I71: 0.1657065497 | J71: 0 | K71: 0 | L71: 0.01205163719 | M71: 1 | O71: 1 | P71: 0.9945235868 | Q71: 1.000295323 | R71: 1.012911433 | S71: 1.030819225 | T71: 1.046386338 | U71: 1.045939645 | V71: 1.054395156
B73: Non-Distribution Capital
B74: Non-Network | C74: 0 | D74: 0 | E74: 0.67 | F74: 0 | H74: 0 | I74: 0 | J74: 0 | K74: 0 | L74: 0.33 | M74: 1 | O74: 1 | P74: 1.007096558 | Q74: 1.009998206 | R74: 1.015970611 | S74: 1.023752478 | T74: 1.033491324 | U74: 1.043647686 | V74: 1.052737857
B76: Management Fee
B77: Construction Management Fee & Margin | C77: 0.04239270919 | D77: 0 | E77: 0.5614080304 | F77: 0.00109271824 | H77: 0 | I77: 0 | J77: 0 | K77: 0 | L77: 0.3951065421 | M77: 1 | O77: 1 | P77: 1.006452148 | Q77: 1.009178333 | R77: 1.014722038 | S77: 1.021814902 | T77: 1.030502557 | U77: 1.039654044 | V77: 1.048008748
B79: Overheads
B80: Cost Allocation Methodology | C80: 0 | D80: 0 | E80: 1 | F80: 0 | H80: 0 | I80: 0 | J80: 0 | K80: 0 | L80: 0 | M80: 1 | O80: 1 | P80: 1 | Q80: 1 | R80: 1 | S80: 1 | T80: 1 | U80: 1 | V80: 1
B84: Source(s) of data: | C84: Source: AAD - Capex Forecast Model - v18 - 19 May 15.xlsb, Input|Escalators | N84: Source: AAD - Capex Forecast Model - v18 - 19 May 15.xlsb, Input|Escalators

Sheet 3 - Capex summary (hidden)
B1: =SheetHeader -> REGULATORY REPORTING STATEMENT
B2: =dms_TradingName -> ActewAGL Distribution
B3: =CONCATENATE(FRCP_y1," to ",FRCP_y5) -> 2016-17 to 2020-21
B4: 4. CAPITAL EXPENDITURE SUMMARY
B6: Instructions This template aggregates information relating to capital expenditure inclusive of related party margins from tabs 4 to 15. No input is required. Please check that the forecast capex aligns with the AAI proposed totals and the capex totals in the PTRM and RFM models.
B9: Table 3 - CAPTIAL EXPENDITURE SUMMARY
B10: Table 3.1 - Capex by driver (actual/forecast)
C11: Previous access arrangement period | H11: Current access arrangement period | N11: Next access arrangement period
C12: $0's, nominal | L12: =CONCATENATE("$0's, real ",dms_DollarReal) -> $0's, real June 2016 | N12: =CONCATENATE("Real, $ ",dms_DollarReal) -> Real, $ June 2016
C13: Actual | L13: Forecast
C14: =PRCP_y1 -> 2005-06 | D14: =PRCP_y2 -> 2006-07 | E14: =PRCP_y3 -> 2007-08 | F14: =PRCP_y4 -> 2008-09 | G14: =PRCP_y5 -> 2009-10 | H14: =CRCP_y1 -> 2010-11 | I14: =CRCP_y2 -> 2011-12 | J14: =CRCP_y3 -> 2012-13 | K14: =CRCP_y4 -> 2013-14 | L14: =CRCP_y5 -> 2014-15 | M14: =CRCP_y6 -> 2015-16 | N14: =FRCP -> 2016-17 | O14: 2017-18 | P14: 2018-19 | Q14: 2019-20 | R14: 2020-21
B15: Connections/ Market expansion
B16: Total direct expenditure (excl escalation) | C16: ='4. Connections market expansn'!C243 -> 0 | D16: ='4. Connections market expansn'!D243 -> 0 | E16: ='4. Connections market expansn'!E243 -> 0 | F16: ='4. Connections market expansn'!F243 -> 0 | G16: ='4. Connections market expansn'!G243 -> 0 | H16: ='4. Connections market expansn'!H243 -> 0 | I16: ='4. Connections market expansn'!I243 -> 0 | J16: ='4. Connections market expansn'!K243 -> 0 | K16: ='4. Connections market expansn'!L243 -> 0 | L16: ='4. Connections market expansn'!M243 -> 0 | M16: ='4. Connections market expansn'!N243 -> 0 | N16: ='4. Connections market expansn'!O243 -> 0 | O16: ='4. Connections market expansn'!P243 -> 0 | P16: ='4. Connections market expansn'!Q243 -> 0 | Q16: ='4. Connections market expansn'!R243 -> 0 | R16: ='4. Connections market expansn'!T243 -> 0
B17: Escalation | C17: ='4. Connections market expansn'!#REF! ->  | D17: ='4. Connections market expansn'!#REF! ->  | E17: ='4. Connections market expansn'!#REF! ->  | F17: ='4. Connections market expansn'!#REF! ->  | G17: ='4. Connections market expansn'!#REF! ->  | H17: ='4. Connections market expansn'!#REF! ->  | I17: ='4. Connections market expansn'!#REF! ->  | J17: ='4. Connections market expansn'!#REF! ->  | K17: ='4. Connections market expansn'!#REF! ->  | L17: ='4. Connections market expansn'!#REF! ->  | M17: ='4. Connections market expansn'!#REF! ->  | N17: ='4. Connections market expansn'!#REF! ->  | O17: ='4. Connections market expansn'!#REF! ->  | P17: ='4. Connections market expansn'!#REF! ->  | Q17: ='4. Connections market expansn'!#REF! ->  | R17: ='4. Connections market expansn'!#REF! -> 
B18: Total direct expenditure (incl escalation) | C18: ='4. Connections market expansn'!#REF! ->  | D18: ='4. Connections market expansn'!#REF! ->  | E18: ='4. Connections market expansn'!#REF! ->  | F18: ='4. Connections market expansn'!#REF! ->  | G18: ='4. Connections market expansn'!#REF! ->  | H18: ='4. Connections market expansn'!#REF! ->  | I18: ='4. Connections market expansn'!#REF! ->  | J18: ='4. Connections market expansn'!#REF! ->  | K18: ='4. Connections market expansn'!#REF! ->  | L18: ='4. Connections market expansn'!#REF! ->  | M18: ='4. Connections market expansn'!#REF! ->  | N18: ='4. Connections market expansn'!#REF! ->  | O18: ='4. Connections market expansn'!#REF! ->  | P18: ='4. Connections market expansn'!#REF! ->  | Q18: ='4. Connections market expansn'!#REF! ->  | R18: ='4. Connections market expansn'!#REF! -> 
B19: Augmentation/ Growth capacity development
B20: Total direct expenditure (excl escalation) | C20: ='5. Augmentation growth capacity'!G1189 -> 0 | D20: ='5. Augmentation growth capacity'!H1189 -> 0 | E20: ='5. Augmentation growth capacity'!I1189 -> 0 | F20: ='5. Augmentation growth capacity'!J1189 -> 0 | G20: ='5. Augmentation growth capacity'!K1189 -> 0 | H20: ='5. Augmentation growth capacity'!L1189 -> 0 | I20: ='5. Augmentation growth capacity'!M1189 -> 0 | J20: ='5. Augmentation growth capacity'!O1189 -> 7606774.93 | K20: ='5. Augmentation growth capacity'!P1189 -> 10551142.58 | L20: ='5. Augmentation growth capacity'!Q1189 -> 11032488.69 | M20: ='5. Augmentation growth capacity'!S1189 -> 2919866.928 | N20: ='5. Augmentation growth capacity'!T1189 -> 4961608.595 | O20: ='5. Augmentation growth capacity'!U1189 -> 2588238.287 | P20: ='5. Augmentation growth capacity'!V1189 -> 6200525.833 | Q20: ='5. Augmentation growth capacity'!W1189 -> 1076250.583 | R20: ='5. Augmentation growth capacity'!X1189 -> 0
B21: Escalation | C21: ='5. Augmentation growth capacity'!#REF! ->  | D21: ='5. Augmentation growth capacity'!#REF! ->  | E21: ='5. Augmentation growth capacity'!#REF! ->  | F21: ='5. Augmentation growth capacity'!#REF! ->  | G21: ='5. Augmentation growth capacity'!#REF! ->  | H21: ='5. Augmentation growth capacity'!#REF! ->  | I21: ='5. Augmentation growth capacity'!#REF! ->  | J21: ='5. Augmentation growth capacity'!#REF! ->  | K21: ='5. Augmentation growth capacity'!#REF! ->  | L21: ='5. Augmentation growth capacity'!#REF! ->  | M21: ='5. Augmentation growth capacity'!#REF! ->  | N21: ='5. Augmentation growth capacity'!#REF! ->  | O21: ='5. Augmentation growth capacity'!#REF! ->  | P21: ='5. Augmentation growth capacity'!#REF! ->  | Q21: ='5. Augmentation growth capacity'!#REF! ->  | R21: ='5. Augmentation growth capacity'!#REF! -> 
B22: Total direct expenditure (incl escalation) | C22: ='5. Augmentation growth capacity'!#REF! ->  | D22: ='5. Augmentation growth capacity'!#REF! ->  | E22: ='5. Augmentation growth capacity'!#REF! ->  | F22: ='5. Augmentation growth capacity'!#REF! ->  | G22: ='5. Augmentation growth capacity'!#REF! ->  | H22: ='5. Augmentation growth capacity'!#REF! ->  | I22: ='5. Augmentation growth capacity'!#REF! ->  | J22: ='5. Augmentation growth capacity'!#REF! ->  | K22: ='5. Augmentation growth capacity'!#REF! ->  | L22: ='5. Augmentation growth capacity'!#REF! ->  | M22: ='5. Augmentation growth capacity'!#REF! ->  | N22: ='5. Augmentation growth capacity'!#REF! ->  | O22: ='5. Augmentation growth capacity'!#REF! ->  | P22: ='5. Augmentation growth capacity'!#REF! ->  | Q22: ='5. Augmentation growth capacity'!#REF! ->  | R22: ='5. Augmentation growth capacity'!#REF! -> 
B23: Mains and service renewal
B24: Total direct expenditure (excl escalation) | C24: ='6. Mains & services renewal'!G131 -> 0 | D24: ='6. Mains & services renewal'!H131 -> 0 | E24: ='6. Mains & services renewal'!I131 -> 20728 | F24: ='6. Mains & services renewal'!J131 -> 0 | G24: ='6. Mains & services renewal'!K131 -> 15453.1 | H24: ='6. Mains & services renewal'!L131 -> 0 | I24: ='6. Mains & services renewal'!M131 -> 0 | J24: ='6. Mains & services renewal'!O131 -> 0 | K24: ='6. Mains & services renewal'!P131 -> 4751.653322 | L24: ='6. Mains & services renewal'!Q131 -> 15341.12408 | M24: ='6. Mains & services renewal'!R131 -> 0 | N24: ='6. Mains & services renewal'!S131 -> 15352.97484 | O24: ='6. Mains & services renewal'!T131 -> 0 | P24: ='6. Mains & services renewal'!U131 -> 15160.85584 | Q24: ='6. Mains & services renewal'!V131 -> 0 | R24: ='6. Mains & services renewal'!X131 -> 0
B25: Escalation | C25: ='6. Mains & services renewal'!#REF! ->  | D25: ='6. Mains & services renewal'!#REF! ->  | E25: ='6. Mains & services renewal'!#REF! ->  | F25: ='6. Mains & services renewal'!#REF! ->  | G25: ='6. Mains & services renewal'!#REF! ->  | H25: ='6. Mains & services renewal'!#REF! ->  | I25: ='6. Mains & services renewal'!#REF! ->  | J25: ='6. Mains & services renewal'!#REF! ->  | K25: ='6. Mains & services renewal'!#REF! ->  | L25: ='6. Mains & services renewal'!#REF! ->  | M25: ='6. Mains & services renewal'!#REF! ->  | N25: ='6. Mains & services renewal'!#REF! ->  | O25: ='6. Mains & services renewal'!#REF! ->  | P25: ='6. Mains & services renewal'!#REF! ->  | Q25: ='6. Mains & services renewal'!#REF! ->  | R25: ='6. Mains & services renewal'!#REF! -> 
B26: Total direct expenditure (incl escalation) | C26: ='6. Mains & services renewal'!G135 -> 0 | D26: ='6. Mains & services renewal'!H135 -> 0 | E26: ='6. Mains & services renewal'!I135 -> 0 | F26: ='6. Mains & services renewal'!J135 -> 0 | G26: ='6. Mains & services renewal'!K135 -> 0 | H26: ='6. Mains & services renewal'!L135 -> 0 | I26: ='6. Mains & services renewal'!M135 -> 0 | J26: ='6. Mains & services renewal'!O135 -> 0 | K26: ='6. Mains & services renewal'!P135 -> 0 | L26: ='6. Mains & services renewal'!Q135 -> 0 | M26: ='6. Mains & services renewal'!R135 -> 0 | N26: ='6. Mains & services renewal'!S135 -> 0 | O26: ='6. Mains & services renewal'!T135 -> 0 | P26: ='6. Mains & services renewal'!U135 -> 0 | Q26: ='6. Mains & services renewal'!V135 -> 0 | R26: ='6. Mains & services renewal'!X135 -> 0
B27: Facilities renewal and upgrade
B28: Total direct expenditure (excl escalation)
B29: Escalation
B30: Total direct expenditure (incl escalation)
B31: Meter renewal and upgrade
B32: Total direct expenditure (excl escalation) | C32: ='8. Meter renewal & upgrade'!D55 -> 0 | D32: ='8. Meter renewal & upgrade'!E55 -> 0 | E32: ='8. Meter renewal & upgrade'!F55 -> 0 | F32: ='8. Meter renewal & upgrade'!G55 -> 0 | G32: ='8. Meter renewal & upgrade'!H55 -> 0 | H32: ='8. Meter renewal & upgrade'!I55 -> 0 | I32: ='8. Meter renewal & upgrade'!K55 -> 0 | J32: ='8. Meter renewal & upgrade'!L55 -> 0 | K32: ='8. Meter renewal & upgrade'!M55 -> 0 | L32: ='8. Meter renewal & upgrade'!N55 -> 0 | M32: ='8. Meter renewal & upgrade'!O55 -> 0 | N32: ='8. Meter renewal & upgrade'!P55 -> 0 | O32: ='8. Meter renewal & upgrade'!Q55 -> 0 | P32: ='8. Meter renewal & upgrade'!R55 -> 0 | Q32: ='8. Meter renewal & upgrade'!S55 -> 0
B33: Escalation | C33: ='8. Meter renewal & upgrade'!#REF! ->  | D33: ='8. Meter renewal & upgrade'!#REF! ->  | E33: ='8. Meter renewal & upgrade'!#REF! ->  | F33: ='8. Meter renewal & upgrade'!#REF! ->  | G33: ='8. Meter renewal & upgrade'!#REF! ->  | H33: ='8. Meter renewal & upgrade'!#REF! ->  | I33: ='8. Meter renewal & upgrade'!#REF! ->  | J33: ='8. Meter renewal & upgrade'!#REF! ->  | K33: ='8. Meter renewal & upgrade'!#REF! ->  | L33: ='8. Meter renewal & upgrade'!#REF! ->  | M33: ='8. Meter renewal & upgrade'!#REF! ->  | N33: ='8. Meter renewal & upgrade'!#REF! ->  | O33: ='8. Meter renewal & upgrade'!#REF! ->  | P33: ='8. Meter renewal & upgrade'!#REF! ->  | Q33: ='8. Meter renewal & upgrade'!#REF! -> 
B34: Total direct expenditure (incl escalation) | C34: ='8. Meter renewal & upgrade'!#REF! ->  | D34: ='8. Meter renewal & upgrade'!#REF! ->  | E34: ='8. Meter renewal & upgrade'!#REF! ->  | F34: ='8. Meter renewal & upgrade'!#REF! ->  | G34: ='8. Meter renewal & upgrade'!#REF! ->  | H34: ='8. Meter renewal & upgrade'!#REF! ->  | I34: ='8. Meter renewal & upgrade'!#REF! ->  | J34: ='8. Meter renewal & upgrade'!#REF! ->  | K34: ='8. Meter renewal & upgrade'!#REF! ->  | L34: ='8. Meter renewal & upgrade'!#REF! ->  | M34: ='8. Meter renewal & upgrade'!#REF! ->  | N34: ='8. Meter renewal & upgrade'!#REF! ->  | O34: ='8. Meter renewal & upgrade'!#REF! ->  | P34: ='8. Meter renewal & upgrade'!#REF! ->  | Q34: ='8. Meter renewal & upgrade'!#REF! -> 
B35: IT system
B36: Total direct expenditure (excl escalation)
B37: Escalation
B38: Total direct expenditure (incl escalation)
B39: Capitalised regulatory expenditure
B40: Total direct expenditure (excl escalation) | C40: ='9. Captlised regulatory exp.'!G54 -> 0 | D40: ='9. Captlised regulatory exp.'!H54 -> 0 | E40: ='9. Captlised regulatory exp.'!I54 -> 0 | F40: ='9. Captlised regulatory exp.'!J54 -> 458174.25 | G40: ='9. Captlised regulatory exp.'!K54 -> 584712.29 | H40: ='9. Captlised regulatory exp.'!M54 -> 0 | I40: ='9. Captlised regulatory exp.'!N54 -> 0 | J40: ='9. Captlised regulatory exp.'!O54 -> 0 | K40: ='9. Captlised regulatory exp.'!P54 -> 0 | L40: ='9. Captlised regulatory exp.'!Q54 -> 0 | M40: ='9. Captlised regulatory exp.'!R54 -> 0 | N40: ='9. Captlised regulatory exp.'!S54 -> 0 | O40: ='9. Captlised regulatory exp.'!T54 -> 0 | P40: ='9. Captlised regulatory exp.'!U54 -> 0 | Q40: ='9. Captlised regulatory exp.'!V54 -> 0 | R40: ='9. Captlised regulatory exp.'!W54 -> 0
B41: Escalation | C41: ='9. Captlised regulatory exp.'!#REF! ->  | D41: ='9. Captlised regulatory exp.'!#REF! ->  | E41: ='9. Captlised regulatory exp.'!#REF! ->  | F41: ='9. Captlised regulatory exp.'!#REF! ->  | G41: ='9. Captlised regulatory exp.'!#REF! ->  | H41: ='9. Captlised regulatory exp.'!#REF! ->  | I41: ='9. Captlised regulatory exp.'!#REF! ->  | J41: ='9. Captlised regulatory exp.'!#REF! ->  | K41: ='9. Captlised regulatory exp.'!#REF! ->  | L41: ='9. Captlised regulatory exp.'!#REF! ->  | M41: ='9. Captlised regulatory exp.'!#REF! ->  | N41: ='9. Captlised regulatory exp.'!#REF! ->  | O41: ='9. Captlised regulatory exp.'!#REF! ->  | P41: ='9. Captlised regulatory exp.'!#REF! ->  | Q41: ='9. Captlised regulatory exp.'!#REF! ->  | R41: ='9. Captlised regulatory exp.'!#REF! -> 
B42: Total direct costs (incl escalation) | C42: ='9. Captlised regulatory exp.'!#REF! ->  | D42: ='9. Captlised regulatory exp.'!#REF! ->  | E42: ='9. Captlised regulatory exp.'!#REF! ->  | F42: ='9. Captlised regulatory exp.'!#REF! ->  | G42: ='9. Captlised regulatory exp.'!#REF! ->  | H42: ='9. Captlised regulatory exp.'!#REF! ->  | I42: ='9. Captlised regulatory exp.'!#REF! ->  | J42: ='9. Captlised regulatory exp.'!#REF! ->  | K42: ='9. Captlised regulatory exp.'!#REF! ->  | L42: ='9. Captlised regulatory exp.'!#REF! ->  | M42: ='9. Captlised regulatory exp.'!#REF! ->  | N42: ='9. Captlised regulatory exp.'!#REF! ->  | O42: ='9. Captlised regulatory exp.'!#REF! ->  | P42: ='9. Captlised regulatory exp.'!#REF! ->  | Q42: ='9. Captlised regulatory exp.'!#REF! ->  | R42: ='9. Captlised regulatory exp.'!#REF! -> 
B43: Other
B44: Total direct costs (excl escalation) | C44: ='11. Other non-distb'!H114 -> 0 | D44: ='11. Other non-distb'!I114 -> 0 | E44: ='11. Other non-distb'!J114 -> 0 | F44: ='11. Other non-distb'!K114 -> 0 | G44: ='11. Other non-distb'!L114 -> 0 | H44: ='11. Other non-distb'!M114 -> 0 | I44: ='11. Other non-distb'!N114 -> 0 | J44: ='11. Other non-distb'!O114 -> 0 | K44: ='11. Other non-distb'!P114 -> 0 | L44: ='11. Other non-distb'!Q114 -> 0 | M44: ='11. Other non-distb'!R114 -> 0 | N44: ='11. Other non-distb'!S114 -> 0 | O44: ='11. Other non-distb'!T114 -> 0 | P44: ='11. Other non-distb'!U114 -> 0 | Q44: ='11. Other non-distb'!V114 -> 0 | R44: ='11. Other non-distb'!W114 -> 0
B45: Escalation | C45: ='11. Other non-distb'!#REF! ->  | D45: ='11. Other non-distb'!#REF! ->  | E45: ='11. Other non-distb'!#REF! ->  | F45: ='11. Other non-distb'!#REF! ->  | G45: ='11. Other non-distb'!#REF! ->  | H45: ='11. Other non-distb'!#REF! ->  | I45: ='11. Other non-distb'!#REF! ->  | J45: ='11. Other non-distb'!#REF! ->  | K45: ='11. Other non-distb'!#REF! ->  | L45: ='11. Other non-distb'!#REF! ->  | M45: ='11. Other non-distb'!#REF! ->  | N45: ='11. Other non-distb'!#REF! ->  | O45: ='11. Other non-distb'!#REF! ->  | P45: ='11. Other non-distb'!#REF! ->  | Q45: ='11. Other non-distb'!#REF! ->  | R45: ='11. Other non-distb'!#REF! -> 
B46: Total direct costs (incl escalation) | C46: ='11. Other non-distb'!#REF! ->  | D46: ='11. Other non-distb'!#REF! ->  | E46: ='11. Other non-distb'!#REF! ->  | F46: ='11. Other non-distb'!#REF! ->  | G46: ='11. Other non-distb'!#REF! ->  | H46: ='11. Other non-distb'!#REF! ->  | I46: ='11. Other non-distb'!#REF! ->  | J46: ='11. Other non-distb'!#REF! ->  | K46: ='11. Other non-distb'!#REF! ->  | L46: ='11. Other non-distb'!#REF! ->  | M46: ='11. Other non-distb'!#REF! ->  | N46: ='11. Other non-distb'!#REF! ->  | O46: ='11. Other non-distb'!#REF! ->  | P46: ='11. Other non-distb'!#REF! ->  | Q46: ='11. Other non-distb'!#REF! ->  | R46: ='11. Other non-distb'!#REF! -> 
B47: Overheads
B48: Total costs | C48: ='14. Overheads'!C120 -> 0 | D48: ='14. Overheads'!D120 -> 0 | E48: ='14. Overheads'!E120 -> 0 | F48: ='14. Overheads'!F120 -> 0 | G48: ='14. Overheads'!G120 -> 0 | H48: ='14. Overheads'!I120 -> 0 | I48: ='14. Overheads'!J120 -> 0 | J48: ='14. Overheads'!K120 -> 0 | K48: ='14. Overheads'!L120 -> 0 | L48: ='14. Overheads'!M120 -> 1932094.664 | M48: ='14. Overheads'!N120 -> 1272105.194 | N48: ='14. Overheads'!O120 -> 1508634.847 | O48: ='14. Overheads'!P120 -> 1394575.909 | P48: ='14. Overheads'!Q120 -> 1369704.469 | Q48: ='14. Overheads'!R120 -> 1030808.236
B49: Related party margin
B50: Total cost | C50: ='15. Related party transactions'!C115 -> 7188327.68 | D50: ='15. Related party transactions'!D115 -> 11150869.76 | E50: ='15. Related party transactions'!E115 -> 8746841.66 | F50: ='15. Related party transactions'!F115 -> 7904597.2 | G50: ='15. Related party transactions'!G115 -> 10142526.47 | H50: ='15. Related party transactions'!H115 -> 12458785.11 | I50: ='15. Related party transactions'!I115 -> 14066765.07 | J50: ='15. Related party transactions'!K115 -> 17979339.96 | K50: ='15. Related party transactions'!L115 -> 24334205.94 | L50: ='15. Related party transactions'!M115 -> 34133673.95 | M50: ='15. Related party transactions'!N115 -> 22473858.49 | N50: ='15. Related party transactions'!O115 -> 26652550.65 | O50: ='15. Related party transactions'!P115 -> 24637506.35 | P50: ='15. Related party transactions'!Q115 -> 24198113.22 | Q50: ='15. Related party transactions'!R115 -> 18210946.1 | R50: ='15. Related party transactions'!S115 -> 0
B51: Gross total capex (excl escalation) | C51: =SUM(C16,C20,C24,C28,C40,C32,C36,C44,C48,C50) -> 7188327.68 | D51: =SUM(D16,D20,D24,D28,D40,D32,D36,D44,D48,D50) -> 11150869.76 | E51: 8767569.66 | F51: 8362771.45 | G51: 10742691.86 | H51: 12458785.11 | I51: 14066765.07 | J51: 25586114.89 | K51: 34890100.17 | L51: 47113598.43 | M51: 26665830.61 | N51: 33138147.06 | O51: 28620320.55 | P51: 31783504.38 | Q51: 20318004.92 | R51: =SUM(R16,R20,R24,R28,R40,R32,R36,R44,R48,R50) -> 0
B52: Total escalation | C52: =SUM(C17,C21,C25,C29,C41,C33,C37,C45) ->  | D52: =SUM(D17,D21,D25,D29,D41,D33,D37,D45) ->  | R52: =SUM(R17,R21,R25,R29,R41,R33,R37,R45) -> 
B53: Gross total capex (incl escalation) | C53: =SUM(C18,C22,C26,C30,C42,C34,C38,C46,C48,C50) ->  | D53: =SUM(D18,D22,D26,D30,D42,D34,D38,D46,D48,D50) ->  | R53: =SUM(R18,R22,R26,R30,R42,R34,R38,R46,R48,R50) -> 
B54: Less: Contributions
B55: Net total capex (excl escalation) | C55: =C51-C54 -> 7188327.68 | D55: =D51-D54 -> 11150869.76 | E55: 8767569.66 | F55: 8362771.45 | G55: 10742691.86 | H55: 12458785.11 | I55: 14066765.07 | J55: 25586114.89 | K55: 34890100.17 | L55: 47113598.43 | M55: =M51-M54 -> 26665830.61 | N55: 33138147.06 | O55: 28620320.55 | P55: 31783504.38 | Q55: 20318004.92 | R55: 0
B56: Net total capex (incl escalation) | C56: =C53-C54 ->  | D56: =D53-D54 ->  | M56: =M53-M54 ->  | R56: =R53-R54 -> 
B59: Table 3.2 - Capex by driver (approved)
C60: Previous access arrangement period | H60: Current access arrangement period
C61: $0's, nominal
C62: Approved
C63: =PRCP_y1 -> 2005-06 | D63: =PRCP_y2 -> 2006-07 | E63: =PRCP_y3 -> 2007-08 | F63: =PRCP_y4 -> 2008-09 | G63: =PRCP_y5 -> 2009-10 | H63: =CRCP_y1 -> 2010-11 | I63: =CRCP_y2 -> 2011-12 | J63: =CRCP_y3 -> 2012-13 | K63: =CRCP_y4 -> 2013-14 | L63: =CRCP_y5 -> 2014-15 | M63: =CRCP_y6 -> 2015-16
B64: Connections/ Market expansion
B65: Total direct costs (excl escalation) | C65: ='4. Connections market expansn'!T243 -> 0 | D65: ='4. Connections market expansn'!U243 -> 0 | E65: ='4. Connections market expansn'!V243 -> 0 | F65: ='4. Connections market expansn'!W243 -> 0 | G65: ='4. Connections market expansn'!X243 -> 0 | H65: ='4. Connections market expansn'!Z243 -> 0 | I65: ='4. Connections market expansn'!AB243 -> 0 | J65: ='4. Connections market expansn'!AC243 -> 0 | K65: ='4. Connections market expansn'!AD243 -> 0 | L65: ='4. Connections market expansn'!AE243 -> 0
B66: Escalation | C66: ='4. Connections market expansn'!#REF! ->  | D66: ='4. Connections market expansn'!#REF! ->  | E66: ='4. Connections market expansn'!#REF! ->  | F66: ='4. Connections market expansn'!#REF! ->  | G66: ='4. Connections market expansn'!#REF! ->  | H66: ='4. Connections market expansn'!#REF! ->  | I66: ='4. Connections market expansn'!#REF! ->  | J66: ='4. Connections market expansn'!#REF! ->  | K66: ='4. Connections market expansn'!#REF! ->  | L66: ='4. Connections market expansn'!#REF! -> 
B67: Total direct costs (incl escalation) | C67: ='4. Connections market expansn'!#REF! ->  | D67: ='4. Connections market expansn'!#REF! ->  | E67: ='4. Connections market expansn'!#REF! ->  | F67: ='4. Connections market expansn'!#REF! ->  | G67: ='4. Connections market expansn'!#REF! ->  | H67: ='4. Connections market expansn'!#REF! ->  | I67: ='4. Connections market expansn'!#REF! ->  | J67: ='4. Connections market expansn'!#REF! ->  | K67: ='4. Connections market expansn'!#REF! ->  | L67: ='4. Connections market expansn'!#REF! -> 
B68: Augmentation/ Growth capacity development
B69: Total direct costs (excl escalation) | C69: ='5. Augmentation growth capacity'!G1228 -> 0 | D69: ='5. Augmentation growth capacity'!H1228 -> 0 | E69: ='5. Augmentation growth capacity'!I1228 -> 0 | F69: ='5. Augmentation growth capacity'!J1228 -> 0 | G69: ='5. Augmentation growth capacity'!K1228 -> 0 | H69: ='5. Augmentation growth capacity'!L1228 -> 0 | I69: ='5. Augmentation growth capacity'!M1228 -> 0 | J69: ='5. Augmentation growth capacity'!O1228 -> 0 | K69: ='5. Augmentation growth capacity'!P1228 -> 0 | L69: ='5. Augmentation growth capacity'!Q1228 -> 0 | M69: ='5. Augmentation growth capacity'!R1228 -> 0
B70: Escalation | C70: ='5. Augmentation growth capacity'!#REF! ->  | D70: ='5. Augmentation growth capacity'!#REF! ->  | E70: ='5. Augmentation growth capacity'!#REF! ->  | F70: ='5. Augmentation growth capacity'!#REF! ->  | G70: ='5. Augmentation growth capacity'!#REF! ->  | H70: ='5. Augmentation growth capacity'!#REF! ->  | I70: ='5. Augmentation growth capacity'!#REF! ->  | J70: ='5. Augmentation growth capacity'!#REF! ->  | K70: ='5. Augmentation growth capacity'!#REF! ->  | L70: ='5. Augmentation growth capacity'!#REF! ->  | M70: ='5. Augmentation growth capacity'!#REF! -> 
B71: Total direct costs (incl escalation) | C71: ='5. Augmentation growth capacity'!#REF! ->  | D71: ='5. Augmentation growth capacity'!#REF! ->  | E71: ='5. Augmentation growth capacity'!#REF! ->  | F71: ='5. Augmentation growth capacity'!#REF! ->  | G71: ='5. Augmentation growth capacity'!#REF! ->  | H71: ='5. Augmentation growth capacity'!#REF! ->  | I71: ='5. Augmentation growth capacity'!#REF! ->  | J71: ='5. Augmentation growth capacity'!#REF! ->  | K71: ='5. Augmentation growth capacity'!#REF! ->  | L71: ='5. Augmentation growth capacity'!#REF! ->  | M71: ='5. Augmentation growth capacity'!#REF! -> 
B72: Mains and service renewal
B73: Total direct costs (excl escalation) | C73: ='6. Mains & services renewal'!X131 -> 0 | D73: ='6. Mains & services renewal'!Y131 -> 0 | E73: ='6. Mains & services renewal'!Z131 -> 0 | F73: ='6. Mains & services renewal'!AA131 -> 0 | G73: ='6. Mains & services renewal'!AB131 -> 0 | H73: ='6. Mains & services renewal'!AD131 -> 0 | I73: ='6. Mains & services renewal'!AE131 -> 0 | J73: ='6. Mains & services renewal'!AF131 -> 0 | K73: ='6. Mains & services renewal'!AH131 -> 0 | L73: ='6. Mains & services renewal'!AI131 -> 0
B74: Escalation | C74: ='6. Mains & services renewal'!#REF! ->  | D74: ='6. Mains & services renewal'!#REF! ->  | E74: ='6. Mains & services renewal'!#REF! ->  | F74: ='6. Mains & services renewal'!#REF! ->  | G74: ='6. Mains & services renewal'!#REF! ->  | H74: ='6. Mains & services renewal'!#REF! ->  | I74: ='6. Mains & services renewal'!#REF! ->  | J74: ='6. Mains & services renewal'!#REF! ->  | K74: ='6. Mains & services renewal'!#REF! ->  | L74: ='6. Mains & services renewal'!#REF! -> 
B75: Total direct costs (incl escalation) | C75: ='6. Mains & services renewal'!X135 -> 0 | D75: ='6. Mains & services renewal'!Y135 -> 0 | E75: ='6. Mains & services renewal'!Z135 -> 0 | F75: ='6. Mains & services renewal'!AA135 -> 0 | G75: ='6. Mains & services renewal'!AB135 -> 0 | H75: ='6. Mains & services renewal'!AD135 -> 0 | I75: ='6. Mains & services renewal'!AE135 -> 0 | J75: ='6. Mains & services renewal'!AF135 -> 0 | K75: ='6. Mains & services renewal'!AH135 -> 0 | L75: ='6. Mains & services renewal'!AI135 -> 0
B76: Facilities renewal and upgrade
B77: Total direct costs (excl escalation)
B78: Escalation
B79: Total direct costs (incl escalation)
B80: Meter renewal and upgrade
B81: Total direct costs (excl escalation) | C81: ='8. Meter renewal & upgrade'!D168 -> 0 | D81: ='8. Meter renewal & upgrade'!E168 -> 0 | E81: ='8. Meter renewal & upgrade'!F168 -> 0 | F81: ='8. Meter renewal & upgrade'!G168 -> 0 | G81: ='8. Meter renewal & upgrade'!H168 -> 0 | H81: ='8. Meter renewal & upgrade'!I168 -> 0 | I81: ='8. Meter renewal & upgrade'!K168 -> 0 | J81: ='8. Meter renewal & upgrade'!L168 -> 0 | K81: ='8. Meter renewal & upgrade'!M168 -> 0 | L81: ='8. Meter renewal & upgrade'!N168 -> 0 | M81: ='8. Meter renewal & upgrade'!O168 -> 0
B82: Escalation | C82: ='8. Meter renewal & upgrade'!#REF! ->  | D82: ='8. Meter renewal & upgrade'!#REF! ->  | E82: ='8. Meter renewal & upgrade'!#REF! ->  | F82: ='8. Meter renewal & upgrade'!#REF! ->  | G82: ='8. Meter renewal & upgrade'!#REF! ->  | H82: ='8. Meter renewal & upgrade'!#REF! ->  | I82: ='8. Meter renewal & upgrade'!#REF! ->  | J82: ='8. Meter renewal & upgrade'!#REF! ->  | K82: ='8. Meter renewal & upgrade'!#REF! ->  | L82: ='8. Meter renewal & upgrade'!#REF! ->  | M82: ='8. Meter renewal & upgrade'!#REF! -> 
B83: Total direct costs (incl escalation) | C83: ='8. Meter renewal & upgrade'!#REF! ->  | D83: ='8. Meter renewal & upgrade'!#REF! ->  | E83: ='8. Meter renewal & upgrade'!#REF! ->  | F83: ='8. Meter renewal & upgrade'!#REF! ->  | G83: ='8. Meter renewal & upgrade'!#REF! ->  | H83: ='8. Meter renewal & upgrade'!#REF! ->  | I83: ='8. Meter renewal & upgrade'!#REF! ->  | J83: ='8. Meter renewal & upgrade'!#REF! ->  | K83: ='8. Meter renewal & upgrade'!#REF! ->  | L83: ='8. Meter renewal & upgrade'!#REF! ->  | M83: ='8. Meter renewal & upgrade'!#REF! -> 
B84: IT
B85: Total direct costs (excl escalation)
B86: Escalation
B87: Total direct costs (incl escalation)
B88: Capitalised regulatory costs
B89: Total direct costs (excl escalation) | C89: ='9. Captlised regulatory exp.'!G89 -> 0 | D89: ='9. Captlised regulatory exp.'!H89 -> 0 | E89: ='9. Captlised regulatory exp.'!I89 -> 0 | F89: ='9. Captlised regulatory exp.'!J89 -> 0 | G89: ='9. Captlised regulatory exp.'!K89 -> 0 | H89: ='9. Captlised regulatory exp.'!M89 -> 0 | I89: ='9. Captlised regulatory exp.'!N89 -> 0 | J89: ='9. Captlised regulatory exp.'!O89 -> 0 | K89: ='9. Captlised regulatory exp.'!P89 -> 0 | L89: ='9. Captlised regulatory exp.'!Q89 -> 0 | M89: ='9. Captlised regulatory exp.'!R89 -> 0
B90: Escalation | C90: ='9. Captlised regulatory exp.'!#REF! ->  | D90: ='9. Captlised regulatory exp.'!#REF! ->  | E90: ='9. Captlised regulatory exp.'!#REF! ->  | F90: ='9. Captlised regulatory exp.'!#REF! ->  | G90: ='9. Captlised regulatory exp.'!#REF! ->  | H90: ='9. Captlised regulatory exp.'!#REF! ->  | I90: ='9. Captlised regulatory exp.'!#REF! ->  | J90: ='9. Captlised regulatory exp.'!#REF! ->  | K90: ='9. Captlised regulatory exp.'!#REF! ->  | L90: ='9. Captlised regulatory exp.'!#REF! ->  | M90: ='9. Captlised regulatory exp.'!#REF! -> 
B91: Total direct costs (incl escalation) | C91: ='9. Captlised regulatory exp.'!#REF! ->  | D91: ='9. Captlised regulatory exp.'!#REF! ->  | E91: ='9. Captlised regulatory exp.'!#REF! ->  | F91: ='9. Captlised regulatory exp.'!#REF! ->  | G91: ='9. Captlised regulatory exp.'!#REF! ->  | H91: ='9. Captlised regulatory exp.'!#REF! ->  | I91: ='9. Captlised regulatory exp.'!#REF! ->  | J91: ='9. Captlised regulatory exp.'!#REF! ->  | K91: ='9. Captlised regulatory exp.'!#REF! ->  | L91: ='9. Captlised regulatory exp.'!#REF! ->  | M91: ='9. Captlised regulatory exp.'!#REF! -> 
B92: Other
B93: Total direct costs (excl escalation) | C93: ='11. Other non-distb'!G190 -> 0 | D93: ='11. Other non-distb'!H190 -> 0 | E93: ='11. Other non-distb'!I190 -> 0 | F93: ='11. Other non-distb'!J190 -> 0 | G93: ='11. Other non-distb'!K190 -> 0 | H93: ='11. Other non-distb'!L190 -> 0 | I93: ='11. Other non-distb'!N190 -> 0 | J93: ='11. Other non-distb'!O190 -> 0 | K93: ='11. Other non-distb'!P190 -> 0 | L93: ='11. Other non-distb'!Q190 -> 0 | M93: ='11. Other non-distb'!R190 -> 0
B94: Escalation | C94: ='11. Other non-distb'!#REF! ->  | D94: ='11. Other non-distb'!#REF! ->  | E94: ='11. Other non-distb'!#REF! ->  | F94: ='11. Other non-distb'!#REF! ->  | G94: ='11. Other non-distb'!#REF! ->  | H94: ='11. Other non-distb'!#REF! ->  | I94: ='11. Other non-distb'!#REF! ->  | J94: ='11. Other non-distb'!#REF! ->  | K94: ='11. Other non-distb'!#REF! ->  | L94: ='11. Other non-distb'!#REF! ->  | M94: ='11. Other non-distb'!#REF! -> 
B95: Total direct costs (incl escalation) | C95: ='11. Other non-distb'!#REF! ->  | D95: ='11. Other non-distb'!#REF! ->  | E95: ='11. Other non-distb'!#REF! ->  | F95: ='11. Other non-distb'!#REF! ->  | G95: ='11. Other non-distb'!#REF! ->  | H95: ='11. Other non-distb'!#REF! ->  | I95: ='11. Other non-distb'!#REF! ->  | J95: ='11. Other non-distb'!#REF! ->  | K95: ='11. Other non-distb'!#REF! ->  | L95: ='11. Other non-distb'!#REF! ->  | M95: ='11. Other non-distb'!#REF! -> 
B96: Overheads
B97: Total costs | C97: ='14. Overheads'!C138 -> 0 | D97: ='14. Overheads'!D138 -> 0 | E97: ='14. Overheads'!E138 -> 0 | F97: ='14. Overheads'!F138 -> 0 | G97: ='14. Overheads'!G138 -> 0 | H97: ='14. Overheads'!I138 -> 0 | I97: ='14. Overheads'!J138 -> 0 | J97: ='14. Overheads'!K138 -> 0 | K97: ='14. Overheads'!L138 -> 0 | L97: ='14. Overheads'!M138 -> 0
B98: Related party margin
B99: Total cost | C99: ='15. Related party transactions'!C132 -> 0 | D99: ='15. Related party transactions'!D132 -> 0 | E99: ='15. Related party transactions'!E132 -> 0 | F99: ='15. Related party transactions'!F132 -> 0 | G99: ='15. Related party transactions'!G132 -> 0 | H99: ='15. Related party transactions'!H132 -> 0 | I99: ='15. Related party transactions'!I132 -> 0 | J99: ='15. Related party transactions'!K132 -> 0 | K99: ='15. Related party transactions'!L132 -> 0 | L99: ='15. Related party transactions'!M132 -> 0 | M99: ='15. Related party transactions'!N132 -> 0
B100: Gross total capex (excl escalation) excluding overheads and RPM | C100: =SUM(C65,C69,C73,C77,C88,C81,C85,C93) -> 0 | D100: =SUM(D65,D69,D73,D77,D88,D81,D85,D93) -> 0 | E100: 0 | F100: 0 | G100: 0 | H100: 0 | I100: 0 | J100: 0 | K100: 0 | L100: 0 | M100: =SUM(M65,M69,M73,M77,M88,M81,M85,M93) -> 0
B101: Total escalation | C101: =SUM(C66,C70,C74,C78,C89,C82,C86,C94) ->  | D101: =SUM(D66,D70,D74,D78,D89,D82,D86,D94) ->  | M101: =SUM(M66,M70,M74,M78,M89,M82,M86,M94) -> 
B102: Gross total capex (incl escalation) excluding overheads and RPM | C102: =SUM(C67,C71,C75,C79,C90,C83,C91,C95) ->  | D102: =SUM(D67,D71,D75,D79,D90,D83,D91,D95) ->  | M102: =SUM(M67,M71,M75,M79,M90,M83,M91,M95) -> 
B103: Gross total capex (incl escalation) including overheads, excluding RPM | C103: =C102+C97 ->  | D103: =D102+D97 ->  | E103: =E102+E97 ->  | F103: =F102+F97 ->  | G103: =G102+G97 ->  | H103: =H102+H97 ->  | I103: =I102+I97 ->  | J103: =J102+J97 ->  | K103: =K102+K97 ->  | L103: =L102+L97 -> 
B104: Gross total capex (incl escalation) including overheads and RPM | C104: =C103+C99 ->  | D104: =D103+D99 ->  | E104: =E103+E99 ->  | F104: =F103+F99 ->  | G104: =G103+G99 ->  | H104: =H103+H99 ->  | I104: =I103+I99 ->  | J104: =J103+J99 ->  | K104: =K103+K99 ->  | L104: =L103+L99 -> 
B105: Less: Contributions
B106: Net total capex (incl escalation) including overheads and RPM | C106: =C104-C105 ->  | M106: =M104-M105 -> 

Sheet 4. Connections market expansn
B1: =SheetHeader -> REGULATORY REPORTING STATEMENT
B2: =dms_TradingName -> ActewAGL Distribution
B3: =CONCATENATE(FRCP_y1," to ",FRCP_y5) -> 2016-17 to 2020-21 | C3: =CONCATENATE(LEFT(FRCP_y1,4),"-",LEFT(FRCP_y5,2),RIGHT(FRCP_y5,2)) -> 2016-2021
B4: 4. NEW CUSTOMER CONNECTIONS / MARKET EXPANSION CAPTIAL EXPENDITURE
B7: Instructions This template asks for information relating to new connections/ market expansion capital expenditure. This does not include expenditure relating to network capacity expansion, which should be included at tab 5 relating to augmentation.
B8: =CONCATENATE("As set out in cl.6.1 of the ",dms_TradingName," RIN, for tables 4.1 to 4.10, where the requested data is captured in the ",dms_TradingName," capex model it is not required to be reentered in the RIN template tables. If the requested data has not been provided in the ActewAGL RIN please enter into the tables. This may require the insertion of new lines in each table.") -> As set out in cl.6.1 of the ActewAGL Distribution RIN, for tables 4.1 to 4.10, where the requested data is captured in the ActewAGL Distribution capex model it is not required to be reentered in the RIN template tables. If the requested data has not been provided in the ActewAGL RIN please enter into the tables. This may require the insertion of new lines in each table.
B9: Reported expenditure is to be entered EXCLUSIVE of any profit margins or management fees paid pursuant to arrangements or contracts with any related parties. Include any related party margins or management fees in the separate 'Related party margin' line item.
B10: Subject to cl.6.1 of the ActewAGL RIN, where linked/adjustable overhead expenditure and related party margin expenditure is not provided in the ActewAGL capex model, overhead expenditure and related party margin expenditure should be linked to allocations derived in tabs '12 - Overheads' and '13 - Related party transactions'.
B11: Capital expenditure amounts entered should be GROSS of customer contributions. There is a separate line item for customer contributions from which net capital expenditure is derived. If the expenditure is not split by the line items specified, provide assumptions on how the expenditure is split between line items. This can be provided as a note to this template or in the written RIN submission.
B15: TABLE 4 - NEW CUSTOMER CONNECTIONS / MARKET EXPANSION CAPITAL EXPENDITURE
B16: TABLE 4.1 - NEW CUSTOMER CONNECTIONS
C17: Previous access arrangement period | H17: Current access arrangement period | N17: Next access arrangement period | T17: Previous access arrangement period | Z17: Current access arrangement period
C18: 0's | T18: 0's
C19: Actual | L19: Forecast | T19: Approved
C20: =PRCP -> 2005-06 | D20: 2006-07 | E20: 2007-08 | F20: 2008-09 | G20: 2009-10 | H20: =CRCP_y1 -> 2010-11 | I20: =CRCP_y2 -> 2011-12 | J20: =CRCP_y3 -> 2012-13 | K20: =CRCP_y4 -> 2013-14 | L20: =CRCP_y5 -> 2014-15 | M20: =CRCP_y6 -> 2015-16 | N20: =FRCP -> 2016-17 | O20: 2017-18 | P20: 2018-19 | Q20: 2019-20 | R20: 2020-21 | T20: =PRCP -> 2005-06 | U20: 2006-07 | V20: 2007-08 | W20: 2008-09 | X20: 2009-10 | Y20: Variance (Actual vs Approved) % | Z20: =CRCP_y1 -> 2010-11 | AA20: =CRCP_y2 -> 2011-12 | AB20: =CRCP_y3 -> 2012-13 | AC20: =CRCP_y4 -> 2013-14 | AD20: =CRCP_y5 -> 2014-15 | AE20: =CRCP_y6 -> 2015-16 | AF20: Variance (Actual vs Approved) %
B22: Table 4.1.1 - Number of new customer connections
B23: Electricity to gas | C23: 1034 | D23: 931 | E23: 946 | F23: 1014 | G23: 877 | H23: 948 | I23: 802 | J23: 861 | K23: 624 | L23: 628 | M23: 781 | N23: 781 | O23: 781 | P23: 781 | Q23: 781 | R23: 781 | AF23: =SUM(H23:M23)/SUM(Z23:AE23)-1 -> 
B24: New homes | C24: 1102 | D24: 1175 | E24: 1036 | F24: 1186 | G24: 1893 | H24: 1917 | I24: 1691 | J24: 1931 | K24: 1642 | L24: 1763 | M24: 1856 | N24: 2106 | O24: 2081 | P24: 2081 | Q24: 2081 | R24: 1876 | Y24: =SUM(C24:G24)/SUM(T24:X24)-1 -> 
B25: New medium density/high rise | C25: 139 | D25: 287 | E25: 192 | F25: 351 | G25: 319 | H25: 720 | I25: 553 | J25: 892 | K25: 1360 | L25: 923 | M25: 1512 | N25: 1543 | O25: 1853 | P25: 1853 | Q25: 1853 | R25: 1751
B26: I&C tariff | C26: 36 | D26: 36 | E26: 61 | F26: 51 | G26: 66 | H26: 59 | I26: 71 | J26: 114 | K26: 102 | L26: 65 | M26: 122 | N26: 125 | O26: 128 | P26: 132 | Q26: 135 | R26: 139
B27: I&C contract | C27: 0 | D27: 0 | E27: 7 | F27: 6 | G27: 2 | H27: 6 | I27: 2 | J27: 4 | K27: 4 | L27: 0 | M27: 1 | N27: 1 | O27: 1 | P27: 1 | Q27: 1 | R27: 1
B28: Total number of new connections | C28: =SUM(C23:C27) -> 2311 | D28: =SUM(D23:D27) -> 2429 | E28: 2242 | F28: 2608 | G28: 3157 | H28: 3650 | I28: 3119 | J28: =SUM(J23:J27) -> 3802 | K28: 3732 | L28: 3379 | M28: 4272 | N28: 4556 | O28: 4844 | P28: 4848 | Q28: 4851 | R28: 4548 | T28: =SUM(T23:T27) -> 0 | U28: 0 | V28: 0 | W28: 0 | X28: 0 | Z28: =SUM(Z23:Z27) -> 0 | AA28: 0 | AB28: 0 | AC28: 0 | AD28: 0 | AE28: 0
B29: Total number of new connections (from tab 27 - Customer numbers)
B30: Difference | C30: =C28-C29 -> 2311 | D30: 2429 | E30: 2242 | F30: 2608 | G30: 3157 | H30: 3650 | I30: 3119 | J30: =J28-J29 -> 3802 | K30: 3732 | L30: 3379 | M30: 4272 | N30: 4556 | O30: 4844 | P30: 4848 | Q30: 4851 | R30: 4548 | T30: 0 | U30: 0 | V30: 0 | W30: 0 | X30: 0 | Z30: =Z28-Z29 -> 0 | AA30: 0 | AB30: 0 | AC30: 0 | AD30: 0 | AE30: 0
B31: Source(s) of data:
B33: Table 4.1.2 - Volume of mains / services / metres per connection
B34: Number of mains metres per connection
B35: Electricity to gas | C35: 0.8 | D35: 0.7 | E35: 1 | F35: 0.7 | G35: 3.5 | H35: 2 | I35: 0.1 | J35: 1.3 | K35: 0.9 | L35: 0.8 | M35: 0.8 | N35: 0.8 | O35: 0.8 | P35: 0.8 | Q35: 0.8 | R35: 0.8 | Y35: =SUM(C35:G35)/SUM(T35:X35)-1 ->  | AF35: =SUM(H35:M35)/SUM(Z35:AE35)-1 -> 
B36: New estates | C36: 30.4 | D36: 26 | E36: 21.5 | F36: 42.3 | G36: 21.8 | H36: 22.9 | I36: 36.8 | J36: 13.5 | K36: 27.4 | L36: 18.9 | M36: 25.8 | N36: 25.8 | O36: 25.8 | P36: 25.8 | Q36: 25.8 | R36: 25.8 | Y36: =SUM(C36:G36)/SUM(T36:X36)-1 ->  | AF36: =SUM(H36:M36)/SUM(Z36:AE36)-1 -> 
B37: Medium density/high rise | C37: 0.8 | D37: 1.1 | E37: 3.3 | F37: 2.5 | G37: 4.5 | H37: 3.1 | I37: 19.1 | J37: 59.8 | K37: 21.9 | L37: 17 | M37: 9.4 | N37: 9.4 | O37: 9.4 | P37: 9.4 | Q37: 9.4 | R37: 9.4 | Y37: =SUM(C37:G37)/SUM(T37:X37)-1 ->  | AF37: =SUM(H37:M37)/SUM(Z37:AE37)-1 -> 
B38: I&C tariff | C38: 33.9 | D38: 25 | E38: 41.3 | G38: 1062.2 | H38: 326.9 | I38: 11 | J38: 10.1 | K38: 7.2 | L38: 22.4 | M38: 33.6 | N38: 33.6 | O38: 33.6 | P38: 33.6 | Q38: 33.6 | R38: 33.6 | Y38: =SUM(C38:G38)/SUM(T38:X38)-1 ->  | AF38: =SUM(H38:M38)/SUM(Z38:AE38)-1 -> 
B39: I&C contract | D39: - | E39: - | G39: - | H39: 500 | I39: - | L39: na | M39: na | N39: na | O39: na | P39: na | Q39: na | R39: na | Y39: =SUM(C39:G39)/SUM(T39:X39)-1 ->  | AF39: =SUM(H39:M39)/SUM(Z39:AE39)-1 -> 
B40: Number of services per connection
B41: Electricity to gas | C41: 1 | D41: 1 | E41: 1.1 | F41: 0.8 | G41: 1.1 | H41: 1.2 | I41: 1.1 | J41: 0.9 | K41: 1 | L41: 1 | M41: 1 | N41: 1 | O41: 1 | P41: 1 | Q41: 1 | R41: 1 | Y41: =SUM(C41:G41)/SUM(T41:X41)-1 ->  | AF41: =SUM(H41:M41)/SUM(Z41:AE41)-1 -> 
B42: New estates | C42: 1 | D42: 1 | E42: 0.9 | F42: 0.8 | G42: 1 | H42: 1 | I42: 1 | J42: 0.9 | K42: 1 | L42: 1 | M42: 1 | N42: 1 | O42: 1 | P42: 1 | Q42: 1 | R42: 1 | Y42: =SUM(C42:G42)/SUM(T42:X42)-1 ->  | AF42: =SUM(H42:M42)/SUM(Z42:AE42)-1 -> 
B43: Medium density/high rise | C43: 0.2 | D43: 0.3 | E43: 0.3 | F43: 0.3 | G43: 0.3 | H43: 0.4 | I43: 0.9 | J43: 0.7 | K43: 0.8 | L43: 0.7 | M43: 0.7 | N43: 0.7 | O43: 0.7 | P43: 0.7 | Q43: 0.7 | R43: 0.7 | Y43: =SUM(C43:G43)/SUM(T43:X43)-1 ->  | AF43: =SUM(H43:M43)/SUM(Z43:AE43)-1 -> 
B44: I&C tariff | C44: 1 | D44: 1 | E44: 0.6 | G44: 33 | H44: 2.3 | I44: 0.9 | J44: 0.6 | K44: 0.5 | L44: 1.5 | M44: 0.8 | N44: 0.8 | O44: 0.8 | P44: 0.8 | Q44: 0.8 | R44: 0.8 | Y44: =SUM(C44:G44)/SUM(T44:X44)-1 ->  | AF44: =SUM(H44:M44)/SUM(Z44:AE44)-1 -> 
B45: I&C contract | D45: - | E45: 0.1 | G45: 2 | H45: 6 | I45: 1 | L45: na | M45: na | N45: na | O45: na | P45: na | Q45: na | R45: na | Y45: =SUM(C45:G45)/SUM(T45:X45)-1 ->  | AF45: =SUM(H45:M45)/SUM(Z45:AE45)-1 -> 
B46: Number of metres per connection
B47: Electricity to gas | C47: 1 | D47: 1 | E47: 1 | F47: 1 | G47: 1 | H47: 1 | I47: 1 | J47: 1 | K47: 1 | L47: 1 | M47: 1 | N47: 1 | O47: 1 | P47: 1 | Q47: 1 | R47: 1 | Y47: =SUM(C47:G47)/SUM(T47:X47)-1 ->  | AF47: =SUM(H47:M47)/SUM(Z47:AE47)-1 -> 
B48: New estates | C48: 1 | D48: 1 | E48: 1 | F48: 1 | G48: 1 | H48: 1 | I48: 1 | J48: 1 | K48: 1 | L48: 1 | M48: 1 | N48: 1 | O48: 1 | P48: 1 | Q48: 1 | R48: 1 | Y48: =SUM(C48:G48)/SUM(T48:X48)-1 ->  | AF48: =SUM(H48:M48)/SUM(Z48:AE48)-1 -> 
B49: Medium density/high rise | C49: 1 | D49: 1 | E49: 1 | F49: 1 | G49: 1 | H49: 1 | I49: 1 | J49: 1 | K49: 1 | L49: 1 | M49: 1 | N49: 1 | O49: 1 | P49: 1 | Q49: 1 | R49: 1 | Y49: =SUM(C49:G49)/SUM(T49:X49)-1 ->  | AF49: =SUM(H49:M49)/SUM(Z49:AE49)-1 -> 
B50: I&C tariff | C50: 1 | D50: 1 | E50: 1 | F50: 1 | G50: 1 | H50: 1 | I50: 1 | J50: 1 | K50: 1 | L50: 1 | M50: 1 | N50: 1 | O50: 1 | P50: 1 | Q50: 1 | R50: 1 | Y50: =SUM(C50:G50)/SUM(T50:X50)-1 ->  | AF50: =SUM(H50:M50)/SUM(Z50:AE50)-1 -> 
B51: I&C contract | C51: 1 | D51: 1 | E51: 1 | F51: 1 | G51: 1 | H51: 1 | I51: 1 | J51: 1 | K51: 1 | L51: 1 | M51: 1 | N51: 1 | O51: 1 | P51: 1 | Q51: 1 | R51: 1 | Y51: =SUM(C51:G51)/SUM(T51:X51)-1 ->  | AF51: =SUM(H51:M51)/SUM(Z51:AE51)-1 -> 
B53: Source(s) of data:
B55: TABLE 4.2 - NEW CUSTOMER CONNECTIONS EXPENDITURE | AJ55: REAL $ CONVERSION OF HISTORICAL DATA
C56: Previous access arrangement period | H56: Current access arrangement period | N56: Next access arrangement period | T56: Previous access arrangement period | Z56: Current access arrangement period | AJ56: Previous access arrangement period | AO56: Current access arrangement period
C57: $0's, nominal | L57: =CONCATENATE("$0's, real ",dms_DollarReal) -> $0's, real June 2016 | T57: $0's, nominal | Y57: Variance | Z57: $0's, nominal | AF57: Variance | AJ57: =CONCATENATE("$0's, real ",dms_DollarReal) -> $0's, real June 2016
C58: Actual | L58: Forecast | T58: Approved | Y58: Actual vs Approved | Z58: Approved | AF58: Actual vs Approved | AJ58: Actual
C59: =PRCP -> 2005-06 | D59: 2006-07 | E59: 2007-08 | F59: 2008-09 | G59: 2009-10 | H59: =CRCP_y1 -> 2010-11 | I59: =CRCP_y2 -> 2011-12 | J59: =CRCP_y3 -> 2012-13 | K59: =CRCP_y4 -> 2013-14 | L59: =CRCP_y5 -> 2014-15 | M59: =CRCP_y6 -> 2015-16 | N59: =FRCP -> 2016-17 | O59: 2017-18 | P59: 2018-19 | Q59: 2019-20 | R59: 2020-21 | T59: =PRCP -> 2005-06 | U59: 2006-07 | V59: 2007-08 | W59: 2008-09 | X59: 2009-10 | Y59: % | Z59: =CRCP_y1 -> 2010-11 | AA59: =CRCP_y2 -> 2011-12 | AB59: =CRCP_y3 -> 2012-13 | AC59: =CRCP_y4 -> 2013-14 | AD59: =CRCP_y5 -> 2014-15 | AE59: =CRCP_y6 -> 2015-16 | AF59: % | AJ59: =PRCP -> 2005-06 | AK59: 2006-07 | AL59: 2007-08 | AM59: 2008-09 | AN59: 2009-10 | AO59: =CRCP_y1 -> 2010-11 | AP59: =CRCP_y2 -> 2011-12 | AQ59: =CRCP_y3 -> 2012-13 | AR59: =CRCP_y4 -> 2013-14
B61: Table 4.2.1 - Unit rates - mains / services / meters (direct expenditure)
B62: Unit rates per metre of mains per connection
B63: Electricity to gas | Y63: =SUM(C63:G63)/SUM(T63:X63)-1 ->  | AF63: =SUM(H63:M63)/SUM(Z63:AE63)-1 -> 
B64: New estates | Y64: =SUM(C64:G64)/SUM(T64:X64)-1 ->  | AF64: =SUM(H64:M64)/SUM(Z64:AE64)-1 -> 
B65: Medium density/high rise | Y65: =SUM(C65:G65)/SUM(T65:X65)-1 ->  | AF65: =SUM(H65:M65)/SUM(Z65:AE65)-1 -> 
B66: I&C tariff | Y66: =SUM(C66:G66)/SUM(T66:X66)-1 ->  | AF66: =SUM(H66:M66)/SUM(Z66:AE66)-1 -> 
B67: I&C contract | Y67: =SUM(C67:G67)/SUM(T67:X67)-1 ->  | AF67: =SUM(H67:M67)/SUM(Z67:AE67)-1 -> 
B68: Unit rates per service per connection
B69: Electricity to gas | Y69: =SUM(C69:G69)/SUM(T69:X69)-1 ->  | AF69: =SUM(H69:M69)/SUM(Z69:AE69)-1 -> 
B70: New estates | Y70: =SUM(C70:G70)/SUM(T70:X70)-1 ->  | AF70: =SUM(H70:M70)/SUM(Z70:AE70)-1 -> 
B71: Medium density/high rise | Y71: =SUM(C71:G71)/SUM(T71:X71)-1 ->  | AF71: =SUM(H71:M71)/SUM(Z71:AE71)-1 -> 
B72: I&C tariff | Y72: =SUM(C72:G72)/SUM(T72:X72)-1 ->  | AF72: =SUM(H72:M72)/SUM(Z72:AE72)-1 -> 
B73: I&C contract | Y73: =SUM(C73:G73)/SUM(T73:X73)-1 ->  | AF73: =SUM(H73:M73)/SUM(Z73:AE73)-1 -> 
B74: Number of metres per connection
B75: Electricity to gas | Y75: =SUM(C75:G75)/SUM(T75:X75)-1 ->  | AF75: =SUM(H75:M75)/SUM(Z75:AE75)-1 -> 
B76: New estates | Y76: =SUM(C76:G76)/SUM(T76:X76)-1 ->  | AF76: =SUM(H76:M76)/SUM(Z76:AE76)-1 -> 
B77: Medium density/high rise | Y77: =SUM(C77:G77)/SUM(T77:X77)-1 ->  | AF77: =SUM(H77:M77)/SUM(Z77:AE77)-1 -> 
B78: I&C tariff | Y78: =SUM(C78:G78)/SUM(T78:X78)-1 ->  | AF78: =SUM(H78:M78)/SUM(Z78:AE78)-1 -> 
B79: I&C contract | Y79: =SUM(C79:G79)/SUM(T79:X79)-1 ->  | AF79: =SUM(H79:M79)/SUM(Z79:AE79)-1 -> 
B81: Source(s) of data:
C82: 0.1381630185 | D82: 0.00834639265 | E82: 0.3095906788 | F82: 0.38986706 | G82: 0.1594906938 | H82: 0.1564776719 | I82: 0.07154563481 | J82: 0 | K82: 0 | L82: 0
B83: Table 4.2.2 - Electricity to gas expenditure
B84: Number of new electricity to gas connections | T84: =T23 -> 0 | U84: 0 | V84: 0 | W84: 0 | X84: 0 | Z84: 0 | AA84: 0 | AB84: 0 | AC84: 0 | AD84: 0 | AE84: 0 | AF84: =SUM(H84:M84)/SUM(Z84:AE84)-1 ->  | AJ84: =AJ24 -> 0 | AK84: 0 | AL84: 0 | AM84: 0 | AN84: 0 | AO84: 0 | AP84: 0 | AQ84: 0 | AR84: 0
B85: Direct contractor expenditure (excl escalation)
B86: Distribution mains | Y86: =SUM(C86:G86)/SUM(T86:X86)-1 ->  | AF86: =SUM(H86:M86)/SUM(Z86:AE86)-1 -> 
B87: Service pipes | Y87: =SUM(C87:G87)/SUM(T87:X87)-1 ->  | AF87: =SUM(H87:M87)/SUM(Z87:AE87)-1 -> 
B88: Meters | Y88: =SUM(C88:G88)/SUM(T88:X88)-1 ->  | AF88: =SUM(H88:M88)/SUM(Z88:AE88)-1 -> 
B89: Total contractor expenditure (excl escalation) | T89: =SUM(T86:T88) -> 0 | U89: 0 | V89: 0 | W89: 0 | X89: 0 | Y89: =SUM(C89:G89)/SUM(T89:X89)-1 ->  | Z89: =SUM(Z86:Z88) -> 0 | AA89: 0 | AB89: 0 | AC89: 0 | AD89: 0 | AE89: 0 | AF89: =SUM(H89:M89)/SUM(Z89:AE89)-1 ->  | AJ89: =SUM(AJ86:AJ88) -> 0 | AK89: =SUM(AK86:AK88) -> 0 | AL89: 0 | AM89: 0 | AN89: 0 | AO89: 0 | AP89: 0 | AQ89: 0 | AR89: =SUM(AR86:AR88) -> 0
B90: Direct internal labour expenditure (excl escalation)
B91: Distribution mains | Y91: =SUM(C91:G91)/SUM(T91:X91)-1 ->  | AF91: =SUM(H91:M91)/SUM(Z91:AE91)-1 -> 
B92: Service pipes | Y92: =SUM(C92:G92)/SUM(T92:X92)-1 ->  | AF92: =SUM(H92:M92)/SUM(Z92:AE92)-1 -> 
B93: Meters | Y93: =SUM(C93:G93)/SUM(T93:X93)-1 ->  | AF93: =SUM(H93:M93)/SUM(Z93:AE93)-1 -> 
B94: Total labour expenditure (excl escalation) | T94: =SUM(T91:T93) -> 0 | U94: 0 | V94: 0 | W94: 0 | X94: 0 | Y94: =SUM(C94:G94)/SUM(T94:X94)-1 ->  | Z94: =SUM(Z91:Z93) -> 0 | AA94: 0 | AB94: 0 | AC94: 0 | AD94: 0 | AE94: 0 | AF94: =SUM(H94:M94)/SUM(Z94:AE94)-1 ->  | AJ94: =SUM(AJ91:AJ93) -> 0 | AK94: =SUM(AK91:AK93) -> 0 | AL94: 0 | AM94: 0 | AN94: 0 | AO94: 0 | AP94: 0 | AQ94: 0 | AR94: =SUM(AR91:AR93) -> 0
B95: Other internal direct expenditure (excl escalation)
B96: Distribution mains | Y96: =SUM(C96:G96)/SUM(T96:X96)-1 ->  | AF96: =SUM(H96:M96)/SUM(Z96:AE96)-1 -> 
B97: Service pipes | Y97: =SUM(C97:G97)/SUM(T97:X97)-1 ->  | AF97: =SUM(H97:M97)/SUM(Z97:AE97)-1 -> 
B98: Meters | Y98: =SUM(C98:G98)/SUM(T98:X98)-1 ->  | AF98: =SUM(H98:M98)/SUM(Z98:AE98)-1 -> 
B99: Total material expenditure (excl escalation) | T99: =SUM(T96:T98) -> 0 | U99: 0 | V99: 0 | W99: 0 | X99: 0 | Y99: =SUM(C99:G99)/SUM(T99:X99)-1 ->  | Z99: =SUM(Z96:Z98) -> 0 | AA99: 0 | AB99: 0 | AC99: 0 | AD99: 0 | AE99: 0 | AF99: =SUM(H99:M99)/SUM(Z99:AE99)-1 ->  | AJ99: =SUM(AJ96:AJ98) -> 0 | AK99: =SUM(AK96:AK98) -> 0 | AL99: 0 | AM99: 0 | AN99: 0 | AO99: 0 | AP99: 0 | AQ99: 0 | AR99: =SUM(AR96:AR98) -> 0
B100: Total direct expenditure (excl escalation)
B101: Distribution mains | T101: =T91+T86+T96 -> 0 | U101: 0 | V101: 0 | W101: 0 | X101: 0 | Y101: =SUM(C101:G101)/SUM(T101:X101)-1 ->  | Z101: =Z91+Z86+Z96 -> 0 | AA101: 0 | AB101: 0 | AC101: 0 | AD101: 0 | AE101: 0 | AF101: =SUM(H101:M101)/SUM(Z101:AE101)-1 ->  | AJ101: =AJ91+AJ86+AJ96 -> 0 | AK101: 0 | AL101: 0 | AM101: 0 | AN101: 0 | AO101: 0 | AP101: 0 | AQ101: 0 | AR101: =AR91+AR86+AR96 -> 0
B102: Service pipes | T102: =T92+T87+T97 -> 0 | U102: 0 | V102: 0 | W102: 0 | X102: 0 | Z102: 0 | AA102: 0 | AB102: 0 | AC102: 0 | AD102: 0 | AE102: 0 | AJ102: 0 | AK102: 0 | AL102: 0 | AM102: 0 | AN102: 0 | AO102: 0 | AP102: 0 | AQ102: 0 | AR102: =AR92+AR87+AR97 -> 0
B103: Meters | T103: =T93+T88+T98 -> 0 | U103: 0 | V103: 0 | W103: 0 | X103: 0 | Z103: 0 | AA103: 0 | AB103: 0 | AC103: 0 | AD103: 0 | AE103: 0 | AJ103: 0 | AK103: 0 | AL103: 0 | AM103: 0 | AN103: 0 | AO103: 0 | AP103: 0 | AQ103: 0 | AR103: =AR93+AR88+AR98 -> 0
B104: Total direct expenditure (excl escalation) | T104: =SUM(T101:T103) -> 0 | U104: 0 | V104: 0 | W104: 0 | X104: =SUM(X101:X103) -> 0 | Z104: =SUM(Z101:Z103) -> 0 | AA104: 0 | AB104: 0 | AC104: 0 | AD104: 0 | AE104: 0 | AJ104: =SUM(AJ101:AJ103) -> 0 | AK104: =SUM(AK101:AK103) -> 0 | AL104: 0 | AM104: 0 | AN104: 0 | AO104: 0 | AP104: 0 | AQ104: 0 | AR104: =SUM(AR101:AR103) -> 0
B105: Escalation
B106: Total direct expenditure (inc escalation)
B107: Total overhead expenditure
B108: Related party margin expenditure
B109: Total gross expenditure | T109: =SUM(T107,T108) -> 0 | U109: =SUM(U107,U108) -> 0 | V109: =SUM(V107,V108) -> 0 | W109: =SUM(W107,W108) -> 0 | X109: =SUM(X107,X108) -> 0 | Z109: =SUM(Z107,Z108) -> 0 | AA109: 0 | AB109: 0 | AC109: 0 | AD109: 0 | AE109: 0 | AJ109: =SUM(AJ104,AJ107,AJ108) -> 0 | AK109: 0 | AL109: 0 | AM109: 0 | AN109: 0 | AO109: 0 | AP109: 0 | AQ109: 0 | AR109: 0
B110: Less customer contributions
B111: Total net expenditure | T111: =T109-T110 -> 0 | U111: 0 | V111: 0 | W111: 0 | X111: =X109-X110 -> 0 | Y111: =SUM(C111:G111)/SUM(T111:X111)-1 ->  | Z111: =Z109-Z110 -> 0 | AA111: 0 | AB111: 0 | AC111: 0 | AD111: 0 | AE111: 0 | AF111: =SUM(H111:M111)/SUM(Z111:AE111)-1 ->  | AJ111: =AJ109-AJ110 -> 0 | AK111: =AK109-AK110 -> 0 | AL111: 0 | AM111: 0 | AN111: 0 | AO111: 0 | AP111: 0 | AQ111: 0 | AR111: =AR109-AR110 -> 0
B112: Source(s) of data:
B113: =C120/C115 ->  | C113: 0.1381630185 | D113: 0.00834639265 | E113: 0.3095906788 | F113: 0.38986706 | G113: 0.1594906938 | H113: 0.1564776719 | I113: 0.07154563481 | J113: 0 | K113: 0 | L113: 0 | M113: 0 | N113: 0 | O113: 0 | P113: 0 | Q113: 0 | R113: 0
B114: Table 4.2.3 - New homes
B115: Number of new estates connections | T115: =T24 -> 0 | U115: =U24 -> 0 | V115: =V24 -> 0 | W115: =W24 -> 0 | X115: =X24 -> 0 | Y115: =SUM(C115:G115)/SUM(T115:X115)-1 ->  | AF115: =SUM(H115:M115)/SUM(Z115:AE115)-1 ->  | AJ115: =AJ25 -> 0 | AK115: 0 | AL115: 0 | AM115: 0 | AN115: 0 | AO115: 0 | AP115: 0 | AQ115: 0 | AR115: 0
B116: Direct contractor expenditure (excl escalation)
B117: Distribution mains | Y117: =SUM(C117:G117)/SUM(T117:X117)-1 ->  | AF117: =SUM(H117:M117)/SUM(Z117:AE117)-1 -> 
B118: Service pipes | Y118: =SUM(C118:G118)/SUM(T118:X118)-1 ->  | AF118: =SUM(H118:M118)/SUM(Z118:AE118)-1 -> 
B119: Meters | Y119: =SUM(C119:G119)/SUM(T119:X119)-1 ->  | AF119: =SUM(H119:M119)/SUM(Z119:AE119)-1 -> 
B120: Total contractor expenditure (excl escalation) | T120: =SUM(T117:T119) -> 0 | U120: 0 | V120: 0 | W120: 0 | X120: 0 | Y120: =SUM(C120:G120)/SUM(T120:X120)-1 ->  | Z120: =SUM(Z117:Z119) -> 0 | AA120: 0 | AB120: 0 | AC120: 0 | AD120: 0 | AE120: 0 | AF120: =SUM(H120:M120)/SUM(Z120:AE120)-1 ->  | AJ120: =SUM(AJ117:AJ119) -> 0 | AK120: 0 | AL120: 0 | AM120: 0 | AN120: 0 | AO120: 0 | AP120: 0 | AQ120: 0 | AR120: =SUM(AR117:AR119) -> 0
B121: Direct internal labour expenditure (excl escalation)
B122: Distribution mains | Y122: =SUM(C122:G122)/SUM(T122:X122)-1 ->  | AF122: =SUM(H122:M122)/SUM(Z122:AE122)-1 -> 
B123: Service pipes | Y123: =SUM(C123:G123)/SUM(T123:X123)-1 ->  | AF123: =SUM(H123:M123)/SUM(Z123:AE123)-1 -> 
B124: Meters | Y124: =SUM(C124:G124)/SUM(T124:X124)-1 ->  | AF124: =SUM(H124:M124)/SUM(Z124:AE124)-1 -> 
B125: Total labour expenditure (excl escalation) | T125: =SUM(T122:T124) -> 0 | U125: 0 | V125: 0 | W125: 0 | X125: 0 | Y125: =SUM(C125:G125)/SUM(T125:X125)-1 ->  | Z125: =SUM(Z122:Z124) -> 0 | AA125: 0 | AB125: 0 | AC125: 0 | AD125: 0 | AE125: 0 | AF125: =SUM(H125:M125)/SUM(Z125:AE125)-1 ->  | AJ125: =SUM(AJ122:AJ124) -> 0 | AK125: 0 | AL125: 0 | AM125: 0 | AN125: 0 | AO125: 0 | AP125: 0 | AQ125: 0 | AR125: =SUM(AR122:AR124) -> 0
B126: Other internal direct expenditure (excl escalation)
B127: Distribution mains | Y127: =SUM(C127:G127)/SUM(T127:X127)-1 ->  | AF127: =SUM(H127:M127)/SUM(Z127:AE127)-1 -> 
B128: Service pipes | Y128: =SUM(C128:G128)/SUM(T128:X128)-1 ->  | AF128: =SUM(H128:M128)/SUM(Z128:AE128)-1 -> 
B129: Meters | Y129: =SUM(C129:G129)/SUM(T129:X129)-1 ->  | AF129: =SUM(H129:M129)/SUM(Z129:AE129)-1 -> 
B130: Total material expenditure (excl escalation) | T130: =SUM(T127:T129) -> 0 | U130: 0 | V130: 0 | W130: 0 | X130: 0 | Y130: =SUM(C130:G130)/SUM(T130:X130)-1 ->  | Z130: =SUM(Z127:Z129) -> 0 | AA130: 0 | AB130: 0 | AC130: 0 | AD130: 0 | AE130: 0 | AF130: =SUM(H130:M130)/SUM(Z130:AE130)-1 ->  | AJ130: =SUM(AJ127:AJ129) -> 0 | AK130: 0 | AL130: 0 | AM130: 0 | AN130: 0 | AO130: 0 | AP130: 0 | AQ130: 0 | AR130: =SUM(AR127:AR129) -> 0
B131: Total direct expenditure (excl escalation)
B132: Distribution mains | T132: =T122+T117+T127 -> 0 | U132: 0 | V132: 0 | W132: 0 | X132: 0 | Y132: =SUM(C132:G132)/SUM(T132:X132)-1 ->  | Z132: =Z122+Z117+Z127 -> 0 | AA132: 0 | AB132: 0 | AC132: 0 | AD132: 0 | AE132: 0 | AF132: =SUM(H132:M132)/SUM(Z132:AE132)-1 ->  | AJ132: =AJ122+AJ117+AJ127 -> 0 | AK132: 0 | AL132: 0 | AM132: 0 | AN132: 0 | AO132: 0 | AP132: 0 | AQ132: 0 | AR132: =AR122+AR117+AR127 -> 0
B133: Service pipes | T133: =T123+T118+T128 -> 0 | U133: 0 | V133: 0 | W133: 0 | X133: 0 | Z133: 0 | AA133: 0 | AB133: 0 | AC133: 0 | AD133: 0 | AE133: 0 | AJ133: 0 | AK133: 0 | AL133: 0 | AM133: 0 | AN133: 0 | AO133: 0 | AP133: 0 | AQ133: 0 | AR133: =AR123+AR118+AR128 -> 0
B134: Meters | T134: =T124+T119+T129 -> 0 | U134: 0 | V134: 0 | W134: 0 | X134: 0 | Z134: 0 | AA134: 0 | AB134: 0 | AC134: 0 | AD134: 0 | AE134: 0 | AJ134: 0 | AK134: 0 | AL134: 0 | AM134: 0 | AN134: 0 | AO134: 0 | AP134: 0 | AQ134: 0 | AR134: =AR124+AR119+AR129 -> 0
B135: Total direct expenditure (excl escalation) | T135: =SUM(T132:T134) -> 0 | U135: 0 | V135: 0 | W135: 0 | X135: =SUM(X132:X134) -> 0 | Z135: =SUM(Z132:Z134) -> 0 | AA135: 0 | AB135: 0 | AC135: 0 | AD135: 0 | AE135: 0 | AJ135: =SUM(AJ132:AJ134) -> 0 | AK135: =SUM(AK132:AK134) -> 0 | AL135: 0 | AM135: 0 | AN135: 0 | AO135: 0 | AP135: 0 | AQ135: 0 | AR135: =SUM(AR132:AR134) -> 0
B136: Escalation
B137: Total direct expenditure (inc escalation)
B138: Total overhead expenditure
B139: Related party margin expenditure
B140: Total gross expenditure | T140: =SUM(T138,T139) -> 0 | U140: 0 | V140: 0 | W140: 0 | X140: 0 | Z140: =SUM(Z138,Z139) -> 0 | AA140: =SUM(AA138,AA139) -> 0 | AB140: =SUM(AB138,AB139) -> 0 | AC140: =SUM(AC138,AC139) -> 0 | AD140: =SUM(AD138,AD139) -> 0 | AE140: =SUM(AE138,AE139) -> 0 | AJ140: =SUM(AJ135,AJ138,AJ139) -> 0 | AK140: =SUM(AK135,AK138,AK139) -> 0 | AL140: 0 | AM140: 0 | AN140: 0 | AO140: 0 | AP140: 0 | AQ140: 0 | AR140: =SUM(AR135,AR138,AR139) -> 0
B141: Less customer contributions
B142: Total net expenditure | T142: =T140-T141 -> 0 | U142: 0 | V142: 0 | W142: 0 | X142: =X140-X141 -> 0 | Y142: =SUM(C142:G142)/SUM(T142:X142)-1 ->  | Z142: =Z140-Z141 -> 0 | AA142: 0 | AB142: 0 | AC142: 0 | AD142: 0 | AE142: 0 | AF142: =SUM(H142:M142)/SUM(Z142:AE142)-1 ->  | AJ142: =AJ140-AJ141 -> 0 | AK142: =AK140-AK141 -> 0 | AL142: 0 | AM142: 0 | AN142: 0 | AO142: 0 | AP142: 0 | AQ142: 0 | AR142: =AR140-AR141 -> 0
B143: Source(s) of data:
C144: 0.1381630185 | D144: 0.00834639265 | E144: 0.3095906788 | F144: 0.38986706 | G144: 0.1594906938 | H144: 0.1564776719 | I144: 0.07154563481 | J144: 0 | K144: 0 | L144: 0
B145: Table 4.2.4 - Medium density / high rise
B146: Number of new medium density/high rise connections | T146: =T25 -> 0 | U146: 0 | V146: 0 | W146: 0 | X146: 0 | AF146: =SUM(H146:M146)/SUM(Z146:AE146)-1 ->  | AJ146: =AJ26 -> 0 | AK146: 0 | AL146: 0 | AM146: 0 | AN146: 0 | AO146: 0 | AP146: 0 | AQ146: 0 | AR146: 0
B147: Direct contractor expenditure (excl escalation)
B148: Distribution mains | Y148: =SUM(C148:G148)/SUM(T148:X148)-1 ->  | AF148: =SUM(H148:M148)/SUM(Z148:AE148)-1 -> 
B149: Service pipes | Y149: =SUM(C149:G149)/SUM(T149:X149)-1 ->  | AF149: =SUM(H149:M149)/SUM(Z149:AE149)-1 -> 
B150: Meters | Y150: =SUM(C150:G150)/SUM(T150:X150)-1 ->  | AF150: =SUM(H150:M150)/SUM(Z150:AE150)-1 -> 
B151: MDL
B152: Total contractor expenditure (excl escalation) | T152: =SUM(T148:T150) -> 0 | U152: 0 | V152: 0 | W152: 0 | X152: 0 | Y152: =SUM(C152:G152)/SUM(T152:X152)-1 ->  | Z152: =SUM(Z148:Z150) -> 0 | AA152: 0 | AB152: 0 | AC152: 0 | AD152: 0 | AE152: 0 | AF152: =SUM(H152:M152)/SUM(Z152:AE152)-1 ->  | AJ152: =SUM(AJ148:AJ150) -> 0 | AK152: 0 | AL152: 0 | AM152: 0 | AN152: 0 | AO152: 0 | AP152: 0 | AQ152: 0 | AR152: =SUM(AR148:AR150) -> 0
B153: Direct internal labour expenditure (excl escalation)
B154: Distribution mains | Y154: =SUM(C154:G154)/SUM(T154:X154)-1 ->  | AF154: =SUM(H154:M154)/SUM(Z154:AE154)-1 -> 
B155: Service pipes | Y155: =SUM(C155:G155)/SUM(T155:X155)-1 ->  | AF155: =SUM(H155:M155)/SUM(Z155:AE155)-1 -> 
B156: Meters | Y156: =SUM(C156:G156)/SUM(T156:X156)-1 ->  | AF156: =SUM(H156:M156)/SUM(Z156:AE156)-1 -> 
B157: MDL
B158: Total labour expenditure (excl escalation) | T158: =SUM(T154:T156) -> 0 | U158: 0 | V158: 0 | W158: 0 | X158: 0 | Y158: =SUM(C158:G158)/SUM(T158:X158)-1 ->  | Z158: =SUM(Z154:Z156) -> 0 | AA158: 0 | AB158: 0 | AC158: 0 | AD158: 0 | AE158: 0 | AF158: =SUM(H158:M158)/SUM(Z158:AE158)-1 ->  | AJ158: =SUM(AJ154:AJ156) -> 0 | AK158: 0 | AL158: 0 | AM158: 0 | AN158: 0 | AO158: 0 | AP158: 0 | AQ158: 0 | AR158: =SUM(AR154:AR156) -> 0
B159: Other internal direct expenditure (excl escalation)
B160: Distribution mains | Y160: =SUM(C160:G160)/SUM(T160:X160)-1 ->  | AF160: =SUM(H160:M160)/SUM(Z160:AE160)-1 -> 
B161: Service pipes | Y161: =SUM(C161:G161)/SUM(T161:X161)-1 ->  | AF161: =SUM(H161:M161)/SUM(Z161:AE161)-1 -> 
B162: Meters | Y162: =SUM(C162:G162)/SUM(T162:X162)-1 ->  | AF162: =SUM(H162:M162)/SUM(Z162:AE162)-1 -> 
B163: MDL
B164: Total material expenditure (excl escalation) | T164: =SUM(T160:T162) -> 0 | U164: 0 | V164: 0 | W164: 0 | X164: 0 | Y164: =SUM(C164:G164)/SUM(T164:X164)-1 ->  | Z164: =SUM(Z160:Z162) -> 0 | AA164: 0 | AB164: 0 | AC164: 0 | AD164: 0 | AE164: 0 | AF164: =SUM(H164:M164)/SUM(Z164:AE164)-1 ->  | AJ164: =SUM(AJ160:AJ162) -> 0 | AK164: 0 | AL164: 0 | AM164: 0 | AN164: 0 | AO164: 0 | AP164: 0 | AQ164: 0 | AR164: =SUM(AR160:AR162) -> 0
B165: Total direct expenditure (excl escalation)
B166: Distribution mains | T166: =T154+T148+T160 -> 0 | U166: 0 | V166: 0 | W166: 0 | X166: 0 | Y166: =SUM(C166:G166)/SUM(T166:X166)-1 ->  | Z166: =Z154+Z148+Z160 -> 0 | AA166: 0 | AB166: 0 | AC166: 0 | AD166: 0 | AE166: 0 | AF166: =SUM(H166:M166)/SUM(Z166:AE166)-1 ->  | AJ166: =AJ154+AJ148+AJ160 -> 0 | AK166: 0 | AL166: 0 | AM166: 0 | AN166: 0 | AO166: 0 | AP166: 0 | AQ166: 0 | AR166: =AR154+AR148+AR160 -> 0
B167: Service pipes | T167: =T155+T149+T161 -> 0 | U167: 0 | V167: 0 | W167: 0 | X167: 0 | Z167: 0 | AA167: 0 | AB167: 0 | AC167: 0 | AD167: 0 | AE167: 0 | AJ167: 0 | AK167: 0 | AL167: 0 | AM167: 0 | AN167: 0 | AO167: 0 | AP167: 0 | AQ167: 0 | AR167: =AR155+AR149+AR161 -> 0
B168: Meters | T168: =T156+T150+T162 -> 0 | U168: 0 | V168: 0 | W168: 0 | X168: 0 | Z168: 0 | AA168: 0 | AB168: 0 | AC168: 0 | AD168: 0 | AE168: 0 | AJ168: 0 | AK168: 0 | AL168: 0 | AM168: 0 | AN168: 0 | AO168: 0 | AP168: 0 | AQ168: 0 | AR168: =AR156+AR150+AR162 -> 0
B169: MDL
B170: Total direct expenditure (excl escalation) | T170: =SUM(T166:T168) -> 0 | U170: 0 | V170: 0 | W170: 0 | X170: =SUM(X166:X168) -> 0 | Z170: =SUM(Z166:Z168) -> 0 | AA170: 0 | AB170: 0 | AC170: 0 | AD170: 0 | AE170: 0 | AJ170: =SUM(AJ166:AJ168) -> 0 | AK170: =SUM(AK166:AK168) -> 0 | AL170: 0 | AM170: 0 | AN170: 0 | AO170: 0 | AP170: 0 | AQ170: 0 | AR170: =SUM(AR166:AR168) -> 0
B171: Escalation
B172: Total direct expenditure (inc escalation)
B173: Total overhead expenditure
B174: Related party margin expenditure
B175: Total gross expenditure | T175: =SUM(T173,T174) -> 0 | U175: =SUM(U173,U174) -> 0 | V175: =SUM(V173,V174) -> 0 | W175: =SUM(W173,W174) -> 0 | X175: =SUM(X173,X174) -> 0 | Z175: =SUM(Z173,Z174) -> 0 | AA175: =SUM(AA173,AA174) -> 0 | AB175: =SUM(AB173,AB174) -> 0 | AC175: =SUM(AC173,AC174) -> 0 | AD175: =SUM(AD173,AD174) -> 0 | AE175: =SUM(AE173,AE174) -> 0 | AJ175: =SUM(AJ170,AJ173,AJ174) -> 0 | AK175: =SUM(AK170,AK173,AK174) -> 0 | AL175: 0 | AM175: 0 | AN175: 0 | AO175: 0 | AP175: 0 | AQ175: 0 | AR175: =SUM(AR170,AR173,AR174) -> 0
B176: Less customer contributions
B177: Total net expenditure | T177: =T175-T176 -> 0 | U177: 0 | V177: 0 | W177: 0 | X177: =X175-X176 -> 0 | Y177: =SUM(C177:G177)/SUM(T177:X177)-1 ->  | Z177: =Z175-Z176 -> 0 | AA177: 0 | AB177: 0 | AC177: 0 | AD177: 0 | AE177: 0 | AF177: =SUM(H177:M177)/SUM(Z177:AE177)-1 ->  | AJ177: =AJ175-AJ176 -> 0 | AK177: =AK175-AK176 -> 0 | AL177: 0 | AM177: 0 | AN177: 0 | AO177: 0 | AP177: 0 | AQ177: 0 | AR177: =AR175-AR176 -> 0
B178: Source(s) of data:
C179: 0.1381630185 | D179: 0.00834639265 | E179: 0.3095906788 | F179: 0.38986706 | G179: 0.1594906938 | H179: 0.1564776719 | I179: 0.07154563481 | J179: 0 | K179: 0 | L179: 0
B180: Table 4.2.5 - I&C tariff
B181: Number of new I&C tariff connections | T181: =T26 -> 0 | U181: 0 | V181: 0 | W181: 0 | X181: 0 | Z181: 0 | AA181: 0 | AB181: 0 | AC181: 0 | AD181: 0 | AE181: 0 | AF181: =SUM(H181:M181)/SUM(Z181:AE181)-1 ->  | AJ181: =AJ27 -> 0 | AK181: 0 | AL181: 0 | AM181: 0 | AN181: 0 | AO181: 0 | AP181: 0 | AQ181: 0 | AR181: 0
B182: Direct contractor expenditure (excl escalation)
B183: Distribution mains | Y183: =SUM(C183:G183)/SUM(T183:X183)-1 ->  | AF183: =SUM(H183:M183)/SUM(Z183:AE183)-1 -> 
B184: Service pipes | Y184: =SUM(C184:G184)/SUM(T184:X184)-1 ->  | AF184: =SUM(H184:M184)/SUM(Z184:AE184)-1 -> 
B185: Meters | Y185: =SUM(C185:G185)/SUM(T185:X185)-1 ->  | AF185: =SUM(H185:M185)/SUM(Z185:AE185)-1 -> 
B186: Total contractor expenditure (excl escalation) | T186: =SUM(T183:T185) -> 0 | U186: 0 | V186: 0 | W186: 0 | X186: 0 | Y186: =SUM(C186:G186)/SUM(T186:X186)-1 ->  | Z186: =SUM(Z183:Z185) -> 0 | AA186: 0 | AB186: 0 | AC186: 0 | AD186: 0 | AE186: 0 | AF186: =SUM(H186:M186)/SUM(Z186:AE186)-1 ->  | AJ186: =SUM(AJ183:AJ185) -> 0 | AK186: 0 | AL186: 0 | AM186: 0 | AN186: 0 | AO186: 0 | AP186: 0 | AQ186: 0 | AR186: =SUM(AR183:AR185) -> 0
B187: Direct internal labour expenditure (excl escalation)
B188: Distribution mains | Y188: =SUM(C188:G188)/SUM(T188:X188)-1 ->  | AF188: =SUM(H188:M188)/SUM(Z188:AE188)-1 -> 
B189: Service pipes | Y189: =SUM(C189:G189)/SUM(T189:X189)-1 ->  | AF189: =SUM(H189:M189)/SUM(Z189:AE189)-1 -> 
B190: Meters | Y190: =SUM(C190:G190)/SUM(T190:X190)-1 ->  | AF190: =SUM(H190:M190)/SUM(Z190:AE190)-1 -> 
B191: Total labour expenditure (excl escalation) | T191: =SUM(T188:T190) -> 0 | U191: 0 | V191: 0 | W191: 0 | X191: 0 | Y191: =SUM(C191:G191)/SUM(T191:X191)-1 ->  | Z191: =SUM(Z188:Z190) -> 0 | AA191: 0 | AB191: 0 | AC191: 0 | AD191: 0 | AE191: 0 | AF191: =SUM(H191:M191)/SUM(Z191:AE191)-1 ->  | AJ191: =SUM(AJ188:AJ190) -> 0 | AK191: 0 | AL191: 0 | AM191: 0 | AN191: 0 | AO191: 0 | AP191: 0 | AQ191: 0 | AR191: =SUM(AR188:AR190) -> 0
B192: Other internal direct expenditure (excl escalation)
B193: Distribution mains | Y193: =SUM(C193:G193)/SUM(T193:X193)-1 ->  | AF193: =SUM(H193:M193)/SUM(Z193:AE193)-1 -> 
B194: Service pipes | Y194: =SUM(C194:G194)/SUM(T194:X194)-1 ->  | AF194: =SUM(H194:M194)/SUM(Z194:AE194)-1 -> 
B195: Meters | Y195: =SUM(C195:G195)/SUM(T195:X195)-1 ->  | AF195: =SUM(H195:M195)/SUM(Z195:AE195)-1 -> 
B196: Total material expenditure (excl escalation) | T196: =SUM(T193:T195) -> 0 | U196: 0 | V196: 0 | W196: 0 | X196: 0 | Y196: =SUM(C196:G196)/SUM(T196:X196)-1 ->  | Z196: =SUM(Z193:Z195) -> 0 | AA196: 0 | AB196: 0 | AC196: 0 | AD196: 0 | AE196: 0 | AF196: =SUM(H196:M196)/SUM(Z196:AE196)-1 ->  | AJ196: =SUM(AJ193:AJ195) -> 0 | AK196: 0 | AL196: 0 | AM196: 0 | AN196: 0 | AO196: 0 | AP196: 0 | AQ196: 0 | AR196: =SUM(AR193:AR195) -> 0
B197: Total direct expenditure (excl escalation)
B198: Distribution mains | T198: =T188+T183+T193 -> 0 | U198: 0 | V198: 0 | W198: 0 | X198: 0 | Y198: =SUM(C198:G198)/SUM(T198:X198)-1 ->  | Z198: =Z188+Z183+Z193 -> 0 | AA198: 0 | AB198: 0 | AC198: 0 | AD198: 0 | AE198: 0 | AF198: =SUM(H198:M198)/SUM(Z198:AE198)-1 ->  | AJ198: =AJ188+AJ183+AJ193 -> 0 | AK198: 0 | AL198: 0 | AM198: 0 | AN198: 0 | AO198: 0 | AP198: 0 | AQ198: 0 | AR198: =AR188+AR183+AR193 -> 0
B199: Service pipes | T199: =T189+T184+T194 -> 0 | U199: 0 | V199: 0 | W199: 0 | X199: 0 | Z199: 0 | AA199: 0 | AB199: 0 | AC199: 0 | AD199: 0 | AE199: 0 | AJ199: 0 | AK199: 0 | AL199: 0 | AM199: 0 | AN199: 0 | AO199: 0 | AP199: 0 | AQ199: 0 | AR199: =AR189+AR184+AR194 -> 0
B200: Meters | T200: =T190+T185+T195 -> 0 | U200: 0 | V200: 0 | W200: 0 | X200: 0 | Z200: 0 | AA200: 0 | AB200: 0 | AC200: 0 | AD200: 0 | AE200: 0 | AJ200: 0 | AK200: 0 | AL200: 0 | AM200: 0 | AN200: 0 | AO200: 0 | AP200: 0 | AQ200: 0 | AR200: =AR190+AR185+AR195 -> 0
B201: Total direct expenditure (excl escalation) | T201: =SUM(T198:T200) -> 0 | U201: 0 | V201: 0 | W201: 0 | X201: =SUM(X198:X200) -> 0 | Z201: =SUM(Z198:Z200) -> 0 | AA201: 0 | AB201: 0 | AC201: 0 | AD201: 0 | AE201: 0 | AJ201: =SUM(AJ198:AJ200) -> 0 | AK201: =SUM(AK198:AK200) -> 0 | AL201: 0 | AM201: 0 | AN201: 0 | AO201: 0 | AP201: 0 | AQ201: 0 | AR201: =SUM(AR198:AR200) -> 0
B202: Escalation
B203: Total direct expenditure (inc escalation)
B204: Total overhead expenditure
B205: Related party margin expenditure
B206: Total gross expenditure | T206: =SUM(T204,T205) -> 0 | U206: 0 | V206: 0 | W206: 0 | X206: 0 | Z206: =SUM(Z204,Z205) -> 0 | AA206: 0 | AB206: 0 | AC206: 0 | AD206: 0 | AE206: 0 | AJ206: =SUM(AJ201,AJ204,AJ205) -> 0 | AK206: =SUM(AK201,AK204,AK205) -> 0 | AL206: 0 | AM206: 0 | AN206: 0 | AO206: 0 | AP206: 0 | AQ206: 0 | AR206: =SUM(AR201,AR204,AR205) -> 0
B207: Less customer contributions
B208: Total net expenditure | T208: =T206-T207 -> 0 | U208: 0 | V208: 0 | W208: 0 | X208: =X206-X207 -> 0 | Y208: =SUM(C208:G208)/SUM(T208:X208)-1 ->  | Z208: =Z206-Z207 -> 0 | AA208: 0 | AB208: 0 | AC208: 0 | AD208: 0 | AE208: 0 | AF208: =SUM(H208:M208)/SUM(Z208:AE208)-1 ->  | AJ208: =AJ206-AJ207 -> 0 | AK208: =AK206-AK207 -> 0 | AL208: 0 | AM208: 0 | AN208: 0 | AO208: 0 | AP208: 0 | AQ208: 0 | AR208: =AR206-AR207 -> 0
B209: Source(s) of data:
C210: 0.1381630185 | D210: 0.00834639265 | E210: 0.3095906788 | F210: 0.38986706 | G210: 0.1594906938 | H210: 0.1564776719 | I210: 0.07154563481 | J210: 0 | K210: 0 | L210: 0
B211: Table 4.2.6 - I&C contract
... 75 more rows

Sheet 5. Augmentation growth capacity
E1: =SheetHeader -> REGULATORY REPORTING STATEMENT
E2: =dms_TradingName -> ActewAGL Distribution
E3: =CONCATENATE(FRCP_y1," to ",FRCP_y5) -> 2016-17 to 2020-21
E4: 5. AUGMENTATION/GROWTH CAPACITY CAPITAL EXPENDITURE
A6: Asset category
A7: HPM | B7: HP mains | E7: Instructions
A8: HPS | B8: HP services | E8: This template asks for information relating to augmentation capital expenditure
A9: MPM | B9: MP mains
A10: MPS | B10: MP services | E10: As set out in cl.6.1 of the ActewAGL RIN, for tables 5.1 to 5.2, where the requested data is captured in the ActewAGL capex model it is not required to be reentered in the RIN template tables. If the requested data has not been provided in the ActewAGL RIN please enter into the tables. This may require the insertion of new lines in each table.
A11: TRS | B11: TRS & DRS - valves & regulators | E11: Reported expenditure is to be entered EXCLUSIVE of any profit margins or management fees paid pursuant to arrangements or contracts with any related parties. Include any related party margins or management fees in the separate 'Related party margin' line item.
A12: TM | B12: Tariff meters | E12: Subject to cl.6.1 of the ActewAGL RIN, where linked/adjustable overhead expenditure and related party margin expenditure is not provided in the ActewAGL capex model, overhead expenditure and related party margin expenditure should be linked to allocations derived in tabs '12 - Overheads' and '13 - Related party transactions'.
A13: RC | B13: Regulatory expenditure | E13: Capital expenditure amounts entered should be GROSS of customer contributions. There is a separate line item for customer contributions from which net capital expenditure is derived.
A14: ITS | B14: IT System | E14: For the conversion of Tables 5.1 to 5.3 to real $2014-15 check the accuracy of the CPI escalation used.
G15: 0.1381630185 | H15: 0.00834639265 | I15: 0.3095906788 | J15: 0.38986706 | K15: 0.1594906938 | L15: 0.1564776719 | M15: 0.07154563481 | N15: 0 | O15: 0 | P15: 0
E16: Table 5 - AUGMENTATION / GROWTH CAPITAL EXPENDITURE | AA16: REAL $ CONVERSION OF HISTORICAL DATA
E17: Table 5.1 - Network Augmentation/ Growth capacity development (actual/forecast)
G18: Previous access arrangement period | L18: Current access arrangement period | R18: Next access arrangement period | X18: Supporting documentation (business case, costing spreadsheet, contracts) | AA18: Previous access arrangement period | AF18: Current access arrangement period
G19: $0's, nominal | P19: =CONCATENATE("$0's, real ",dms_DollarReal) -> $0's, real June 2016 | AA19: =CONCATENATE("$0's, real ",dms_DollarReal) -> $0's, real June 2016
A20: Internal identification code | B20: Asset category | C20: Percent allocation | G20: Actual | P20: Forecast | AA20: Actual
G21: =PRCP -> 2005-06 | H21: 2006-07 | I21: 2007-08 | J21: 2008-09 | K21: 2009-10 | L21: =CRCP_y1 -> 2010-11 | M21: =CRCP_y2 -> 2011-12 | N21: =CRCP_y3 -> 2012-13 | O21: =CRCP_y4 -> 2013-14 | P21: =CRCP_y5 -> 2014-15 | Q21: =CRCP_y6 -> 2015-16 | R21: Variance (actual vs approved) % | S21: =FRCP -> 2016-17 | T21: 2017-18 | U21: 2018-19 | V21: 2019-20 | W21: 2020-21 | AA21: =PRCP -> 2005-06 | AB21: 2006-07 | AC21: 2007-08 | AD21: 2008-09 | AE21: 2009-10 | AF21: =CRCP_y1 -> 2010-11 | AG21: =CRCP_y2 -> 2011-12 | AH21: =CRCP_y3 -> 2012-13 | AI21: =CRCP_y4 -> 2013-14
E22: 150236 - CD Facilities -Jerrabom SDRS 78 Upgd | F22: Direct internal labour expenditure | G22: 0 | H22: 0 | J22: 0 | K22: 0 | L22: 0 | M22: 0 | N22: 0 | O22: 0
F23: Direct contractor expenditure | G23: 0 | H23: 0 | J23: 0 | K23: 0 | L23: 0 | M23: 0 | N23: 0 | O23: 0
F24: Other internal direct expenditure | G24: 0 | H24: 0 | J24: 0 | K24: 0 | L24: 0 | M24: 0 | N24: 0 | O24: 0
F25: Total direct expenditure (excl escalation) | G25: =SUM(G22:G24) -> 0 | H25: =SUM(H22:H24) -> 0 | J25: 0 | K25: 0 | L25: 0 | M25: 0 | N25: 0 | O25: 0 | S25: =SUM(S22:S24) -> 0 | T25: =SUM(T22:T24) -> 0 | U25: =SUM(U22:U24) -> 0 | V25: =SUM(V22:V24) -> 0 | W25: =SUM(W22:W24) -> 0
F26: Escalation
F27: Total direct expenditure (inc escalation) | G27: =SUM(G25:G26) -> 0 | H27: =SUM(H25:H26) -> 0 | J27: 0 | K27: 0 | L27: 0 | M27: 0 | N27: 0 | O27: 0
F28: Total overhead expenditure
F29: Related party margin expenditure | G29: =G23*G$15 -> 0 | H29: =H23*H$15 -> 0 | J29: 0 | K29: 0 | L29: 0 | M29: 0 | N29: 0 | O29: 0
F30: Total gross expenditure | G30: =SUM(G27,G28:G29) -> 0 | H30: =SUM(H27,H28:H29) -> 0 | J30: 0 | K30: 0 | L30: 0 | M30: 0 | N30: 0 | O30: 0 | R30: =SUM(R28:R29) -> 0 | S30: 0 | T30: 0 | U30: 0 | V30: 0 | W30: 0 | AA30: =SUM(AA25:AA29) -> 0 | AB30: =SUM(AB25:AB29) -> 0 | AC30: 0 | AD30: 0 | AE30: 0 | AF30: 0 | AG30: 0 | AH30: 0 | AI30: 0
F31: Less customer contributions
F32: Total net expenditure | G32: =G30-G31 -> 0 | H32: =H30-H31 -> 0 | J32: 0 | K32: 0 | L32: 0 | M32: 0 | N32: 0 | O32: 0 | R32: =R30-R31 -> 0 | S32: =S30-S31 -> 0 | T32: 0 | U32: 0 | V32: 0 | W32: 0 | AA32: =AA30-AA31 -> 0 | AB32: =AB30-AB31 -> 0 | AC32: =AC30-AC31 -> 0 | AD32: =AD30-AD31 -> 0 | AE32: =AE30-AE31 -> 0 | AF32: =AF30-AF31 -> 0 | AG32: 0 | AH32: 0 | AI32: 0
E33: 160310 - DOWNER-DRS Phillip Ave & Antill St | F33: Direct internal labour expenditure | G33: 0 | H33: 0 | I33: 0 | J33: 0 | K33: 0 | L33: 0 | M33: 0 | N33: 0 | O33: 0
F34: Direct contractor expenditure | H34: 0 | I34: 0 | J34: 0 | K34: 0 | L34: 0 | M34: 0 | N34: 0 | O34: 0
F35: Other internal direct expenditure | H35: 0 | I35: 0 | J35: 0 | K35: 0 | L35: 0 | M35: 0 | N35: 0 | O35: 0
F36: Total direct expenditure (excl escalation) | H36: =SUM(H33:H35) -> 0 | I36: 0 | J36: 0 | K36: 0 | L36: 0 | M36: 0 | N36: 0 | O36: 0 | S36: =SUM(S33:S35) -> 0 | T36: =SUM(T33:T35) -> 0 | U36: =SUM(U33:U35) -> 0 | V36: =SUM(V33:V35) -> 0 | W36: =SUM(W33:W35) -> 0
F37: Escalation
F38: Total direct expenditure (inc escalation) | H38: =SUM(H36:H37) -> 0 | I38: 0 | J38: 0 | K38: 0 | L38: 0 | M38: 0 | N38: 0 | O38: 0
F39: Total overhead expenditure
F40: Related party margin expenditure | H40: =H34*H$15 -> 0 | I40: 0 | J40: 0 | K40: 0 | L40: 0 | M40: 0 | N40: 0 | O40: 0
F41: Total gross expenditure | H41: =SUM(H38,H39:H40) -> 0 | I41: 0 | J41: 0 | K41: 0 | L41: 0 | M41: 0 | N41: 0 | O41: 0 | R41: =SUM(R39:R40) -> 0 | S41: 0 | T41: 0 | U41: 0 | V41: 0 | W41: 0 | AA41: =SUM(AA36:AA40) -> 0 | AB41: =SUM(AB36:AB40) -> 0 | AC41: 0 | AD41: 0 | AE41: 0 | AF41: 0 | AG41: 0 | AH41: 0 | AI41: 0
F42: Less customer contributions
F43: Total net expenditure | H43: =H41-H42 -> 0 | I43: 0 | J43: 0 | K43: 0 | L43: 0 | M43: 0 | N43: 0 | O43: 0 | R43: =R41-R42 -> 0 | S43: =S41-S42 -> 0 | T43: =T41-T42 -> 0 | U43: 0 | V43: 0 | W43: 0 | AA43: =AA41-AA42 -> 0 | AB43: 0 | AC43: 0 | AD43: 0 | AE43: 0 | AF43: 0 | AG43: 0 | AH43: 0 | AI43: 0
E44: 160311 - Wanniassa-DRS Wheeler & Sternberg Cresent | F44: Direct internal labour expenditure | G44: 0 | H44: 0 | I44: 0 | J44: 0 | K44: 0 | L44: 0 | M44: 0 | N44: 0 | O44: 0
F45: Direct contractor expenditure | H45: 0 | I45: 0 | J45: 0 | K45: 0 | L45: 0 | M45: 0 | N45: 0 | O45: 0
F46: Other internal direct expenditure | H46: 0 | I46: 0 | J46: 0 | K46: 0 | L46: 0 | M46: 0 | N46: 0 | O46: 0
F47: Total direct expenditure (excl escalation) | H47: =SUM(H44:H46) -> 0 | I47: 0 | J47: 0 | K47: 0 | L47: 0 | M47: 0 | N47: 0 | O47: 0 | S47: =SUM(S44:S46) -> 0 | T47: =SUM(T44:T46) -> 0 | U47: =SUM(U44:U46) -> 0 | V47: =SUM(V44:V46) -> 0 | W47: =SUM(W44:W46) -> 0
F48: Escalation
F49: Total direct expenditure (inc escalation) | H49: =SUM(H47:H48) -> 0 | I49: 0 | J49: 0 | K49: 0 | L49: 0 | M49: 0 | N49: 0 | O49: 0
F50: Total overhead expenditure
F51: Related party margin expenditure | H51: =H45*H$15 -> 0 | I51: 0 | J51: 0 | K51: 0 | L51: 0 | M51: 0 | N51: 0 | O51: 0
F52: Total gross expenditure | H52: =SUM(H49,H50:H51) -> 0 | I52: 0 | J52: 0 | K52: 0 | L52: 0 | M52: 0 | N52: 0 | O52: 0 | R52: =SUM(R50:R51) -> 0 | S52: 0 | T52: 0 | U52: 0 | V52: 0 | W52: 0 | AA52: =SUM(AA47:AA51) -> 0 | AB52: =SUM(AB47:AB51) -> 0 | AC52: 0 | AD52: 0 | AE52: 0 | AF52: 0 | AG52: 0 | AH52: 0 | AI52: 0
F53: Less customer contributions
F54: Total net expenditure | H54: =H52-H53 -> 0 | I54: 0 | J54: 0 | K54: 0 | L54: 0 | M54: 0 | N54: 0 | O54: 0 | R54: =R52-R53 -> 0 | S54: =S52-S53 -> 0 | T54: =T52-T53 -> 0 | U54: 0 | V54: 0 | W54: 0 | AA54: =AA52-AA53 -> 0 | AB54: 0 | AC54: 0 | AD54: 0 | AE54: 0 | AF54: 0 | AG54: 0 | AH54: 0 | AI54: 0
E55: 160312 - City, SDRS Capacity Development 06-07 HP Rudd St | F55: Direct internal labour expenditure | G55: 0 | H55: 0 | I55: 0 | J55: 0 | K55: 0 | L55: 0 | M55: 0 | N55: 0 | O55: 0
F56: Direct contractor expenditure | G56: 0 | I56: 0 | J56: 0 | K56: 0 | L56: 0 | M56: 0 | N56: 0 | O56: 0
F57: Other internal direct expenditure | G57: 0 | I57: 0 | J57: 0 | K57: 0 | L57: 0 | M57: 0 | N57: 0 | O57: 0
F58: Total direct expenditure (excl escalation) | G58: =SUM(G55:G57) -> 0 | I58: =SUM(I55:I57) -> 0 | J58: 0 | K58: 0 | L58: 0 | M58: 0 | N58: 0 | O58: 0 | S58: =SUM(S55:S57) -> 0 | T58: =SUM(T55:T57) -> 0 | U58: =SUM(U55:U57) -> 0 | V58: =SUM(V55:V57) -> 0 | W58: =SUM(W55:W57) -> 0
F59: Escalation
F60: Total direct expenditure (inc escalation) | G60: =SUM(G58:G59) -> 0 | I60: =SUM(I58:I59) -> 0 | J60: 0 | K60: 0 | L60: 0 | M60: 0 | N60: 0 | O60: 0
F61: Total overhead expenditure
F62: Related party margin expenditure | G62: =G56*G$15 -> 0 | I62: =I56*I$15 -> 0 | J62: 0 | K62: 0 | L62: 0 | M62: 0 | N62: 0 | O62: 0
F63: Total gross expenditure | G63: =SUM(G60,G61:G62) -> 0 | I63: =SUM(I60,I61:I62) -> 0 | J63: 0 | K63: 0 | L63: 0 | M63: 0 | N63: 0 | O63: 0 | R63: =SUM(R61:R62) -> 0 | S63: 0 | T63: 0 | U63: 0 | V63: 0 | W63: 0 | AA63: =SUM(AA58:AA62) -> 0 | AB63: =SUM(AB58:AB62) -> 0 | AC63: 0 | AD63: 0 | AE63: 0 | AF63: 0 | AG63: 0 | AH63: 0 | AI63: 0
F64: Less customer contributions
F65: Total net expenditure | G65: =G63-G64 -> 0 | I65: =I63-I64 -> 0 | J65: 0 | K65: 0 | L65: 0 | M65: 0 | N65: 0 | O65: 0 | R65: =R63-R64 -> 0 | S65: =S63-S64 -> 0 | T65: =T63-T64 -> 0 | U65: 0 | V65: 0 | W65: 0 | AA65: =AA63-AA64 -> 0 | AB65: 0 | AC65: 0 | AD65: 0 | AE65: 0 | AF65: 0 | AG65: 0 | AH65: 0 | AI65: 0
E66: 160313 - Pialligo, Capacity Development 06-07 HP SDRS | F66: Direct internal labour expenditure | G66: 0 | H66: 0 | I66: 0 | J66: 0 | K66: 0 | L66: 0 | M66: 0 | N66: 0 | O66: 0
F67: Direct contractor expenditure | G67: 0 | I67: 0 | J67: 0 | K67: 0 | L67: 0 | M67: 0 | N67: 0 | O67: 0
F68: Other internal direct expenditure | G68: 0 | I68: 0 | J68: 0 | K68: 0 | L68: 0 | M68: 0 | N68: 0 | O68: 0
F69: Total direct expenditure (excl escalation) | G69: =SUM(G66:G68) -> 0 | I69: =SUM(I66:I68) -> 0 | J69: 0 | K69: 0 | L69: 0 | M69: 0 | N69: 0 | O69: 0 | S69: =SUM(S66:S68) -> 0 | T69: =SUM(T66:T68) -> 0 | U69: =SUM(U66:U68) -> 0 | V69: =SUM(V66:V68) -> 0 | W69: =SUM(W66:W68) -> 0
F70: Escalation
F71: Total direct expenditure (inc escalation) | G71: =SUM(G69:G70) -> 0 | I71: =SUM(I69:I70) -> 0 | J71: 0 | K71: 0 | L71: 0 | M71: 0 | N71: 0 | O71: 0
F72: Total overhead expenditure
F73: Related party margin expenditure | G73: =G67*G$15 -> 0 | I73: =I67*I$15 -> 0 | J73: 0 | K73: 0 | L73: 0 | M73: 0 | N73: 0 | O73: 0
F74: Total gross expenditure | G74: =SUM(G71,G72:G73) -> 0 | I74: =SUM(I71,I72:I73) -> 0 | J74: 0 | K74: 0 | L74: 0 | M74: 0 | N74: 0 | O74: 0 | R74: =SUM(R72:R73) -> 0 | S74: 0 | T74: 0 | U74: 0 | V74: 0 | W74: 0 | AA74: =SUM(AA69:AA73) -> 0 | AB74: =SUM(AB69:AB73) -> 0 | AC74: 0 | AD74: 0 | AE74: 0 | AF74: 0 | AG74: 0 | AH74: 0 | AI74: 0
F75: Less customer contributions
F76: Total net expenditure | G76: =G74-G75 -> 0 | I76: =I74-I75 -> 0 | J76: 0 | K76: 0 | L76: 0 | M76: 0 | N76: 0 | O76: 0 | R76: =R74-R75 -> 0 | S76: =S74-S75 -> 0 | T76: =T74-T75 -> 0 | U76: 0 | V76: 0 | W76: 0 | AA76: =AA74-AA75 -> 0 | AB76: 0 | AC76: 0 | AD76: 0 | AE76: 0 | AF76: 0 | AG76: 0 | AH76: 0 | AI76: 0
E77: 160314 - Fyshwick, SDRS Capacity Development 06-07 HP Newcastle St | F77: Direct internal labour expenditure | G77: 0 | H77: 0 | I77: 0 | J77: 0 | K77: 0 | L77: 0 | M77: 0 | N77: 0 | O77: 0
F78: Direct contractor expenditure | G78: 0 | I78: 0 | J78: 0 | K78: 0 | L78: 0 | M78: 0 | N78: 0 | O78: 0
F79: Other internal direct expenditure | G79: 0 | I79: 0 | J79: 0 | K79: 0 | L79: 0 | M79: 0 | N79: 0 | O79: 0
F80: Total direct expenditure (excl escalation) | G80: =SUM(G77:G79) -> 0 | I80: =SUM(I77:I79) -> 0 | J80: 0 | K80: 0 | L80: 0 | M80: 0 | N80: 0 | O80: 0 | S80: =SUM(S77:S79) -> 0 | T80: =SUM(T77:T79) -> 0 | U80: =SUM(U77:U79) -> 0 | V80: =SUM(V77:V79) -> 0 | W80: =SUM(W77:W79) -> 0
F81: Escalation
F82: Total direct expenditure (inc escalation) | G82: =SUM(G80:G81) -> 0 | I82: =SUM(I80:I81) -> 0 | J82: 0 | K82: 0 | L82: 0 | M82: 0 | N82: 0 | O82: 0
F83: Total overhead expenditure
F84: Related party margin expenditure | G84: =G78*G$15 -> 0 | I84: =I78*I$15 -> 0 | J84: 0 | K84: 0 | L84: 0 | M84: 0 | N84: 0 | O84: 0
F85: Total gross expenditure | G85: =SUM(G82,G83:G84) -> 0 | I85: =SUM(I82,I83:I84) -> 0 | J85: 0 | K85: 0 | L85: 0 | M85: 0 | N85: 0 | O85: 0 | R85: =SUM(R83:R84) -> 0 | S85: 0 | T85: 0 | U85: 0 | V85: 0 | W85: 0 | AA85: =SUM(AA80:AA84) -> 0 | AB85: =SUM(AB80:AB84) -> 0 | AC85: 0 | AD85: 0 | AE85: 0 | AF85: 0 | AG85: 0 | AH85: 0 | AI85: 0
F86: Less customer contributions
F87: Total net expenditure | G87: =G85-G86 -> 0 | I87: =I85-I86 -> 0 | J87: 0 | K87: 0 | L87: 0 | M87: 0 | N87: 0 | O87: 0 | R87: =R85-R86 -> 0 | S87: =S85-S86 -> 0 | T87: =T85-T86 -> 0 | U87: 0 | V87: 0 | W87: 0 | AA87: =AA85-AA86 -> 0 | AB87: 0 | AC87: 0 | AD87: 0 | AE87: 0 | AF87: 0 | AG87: 0 | AH87: 0 | AI87: 0
E88: 160315 - KAMBAH, SDRS Cdevelopment | F88: Direct internal labour expenditure | G88: 0 | H88: 0 | I88: 0 | J88: 0 | K88: 0 | L88: 0 | M88: 0 | N88: 0 | O88: 0
F89: Direct contractor expenditure | G89: 0 | I89: 0 | J89: 0 | K89: 0 | L89: 0 | M89: 0 | N89: 0 | O89: 0
F90: Other internal direct expenditure | G90: 0 | I90: 0 | J90: 0 | K90: 0 | L90: 0 | M90: 0 | N90: 0 | O90: 0
F91: Total direct expenditure (excl escalation) | G91: =SUM(G88:G90) -> 0 | I91: =SUM(I88:I90) -> 0 | J91: 0 | K91: 0 | L91: 0 | M91: 0 | N91: 0 | O91: 0 | S91: =SUM(S88:S90) -> 0 | T91: =SUM(T88:T90) -> 0 | U91: =SUM(U88:U90) -> 0 | V91: =SUM(V88:V90) -> 0 | W91: =SUM(W88:W90) -> 0
F92: Escalation
F93: Total direct expenditure (inc escalation) | G93: =SUM(G91:G92) -> 0 | I93: =SUM(I91:I92) -> 0 | J93: 0 | K93: 0 | L93: 0 | M93: 0 | N93: 0 | O93: 0
F94: Total overhead expenditure
F95: Related party margin expenditure | G95: =G89*G$15 -> 0 | I95: =I89*I$15 -> 0 | J95: 0 | K95: 0 | L95: 0 | M95: 0 | N95: 0 | O95: 0
F96: Total gross expenditure | G96: =SUM(G93,G94:G95) -> 0 | I96: =SUM(I93,I94:I95) -> 0 | J96: 0 | K96: 0 | L96: 0 | M96: 0 | N96: 0 | O96: 0 | R96: =SUM(R94:R95) -> 0 | S96: 0 | T96: 0 | U96: 0 | V96: 0 | W96: 0 | AA96: =SUM(AA91:AA95) -> 0 | AB96: =SUM(AB91:AB95) -> 0 | AC96: 0 | AD96: 0 | AE96: 0 | AF96: 0 | AG96: 0 | AH96: 0 | AI96: 0
F97: Less customer contributions
F98: Total net expenditure | G98: =G96-G97 -> 0 | I98: =I96-I97 -> 0 | J98: 0 | K98: 0 | L98: 0 | M98: 0 | N98: 0 | O98: 0 | R98: =R96-R97 -> 0 | S98: =S96-S97 -> 0 | T98: =T96-T97 -> 0 | U98: 0 | V98: 0 | W98: 0 | AA98: =AA96-AA97 -> 0 | AB98: 0 | AC98: 0 | AD98: 0 | AE98: 0 | AF98: 0 | AG98: 0 | AH98: 0 | AI98: 0
E99: 160316 - Bungendore (POTS), HP | F99: Direct internal labour expenditure | G99: 0 | H99: 0 | I99: 0 | J99: 0 | K99: 0 | L99: 0 | M99: 0 | N99: 0 | O99: 0
F100: Direct contractor expenditure | G100: 0 | I100: 0 | J100: 0 | K100: 0 | L100: 0 | M100: 0 | N100: 0 | O100: 0
F101: Other internal direct expenditure | G101: 0 | I101: 0 | J101: 0 | K101: 0 | L101: 0 | M101: 0 | N101: 0 | O101: 0
F102: Total direct expenditure (excl escalation) | G102: =SUM(G99:G101) -> 0 | I102: =SUM(I99:I101) -> 0 | J102: 0 | K102: 0 | L102: 0 | M102: 0 | N102: 0 | O102: 0 | S102: =SUM(S99:S101) -> 0 | T102: =SUM(T99:T101) -> 0 | U102: =SUM(U99:U101) -> 0 | V102: =SUM(V99:V101) -> 0 | W102: =SUM(W99:W101) -> 0
F103: Escalation
F104: Total direct expenditure (inc escalation) | G104: =SUM(G102:G103) -> 0 | I104: =SUM(I102:I103) -> 0 | J104: 0 | K104: 0 | L104: 0 | M104: 0 | N104: 0 | O104: 0
F105: Total overhead expenditure
F106: Related party margin expenditure | G106: =G100*G$15 -> 0 | I106: =I100*I$15 -> 0 | J106: 0 | K106: 0 | L106: 0 | M106: 0 | N106: 0 | O106: 0
F107: Total gross expenditure | G107: =SUM(G104,G105:G106) -> 0 | I107: =SUM(I104,I105:I106) -> 0 | J107: 0 | K107: 0 | L107: 0 | M107: 0 | N107: 0 | O107: 0 | R107: =SUM(R105:R106) -> 0 | S107: 0 | T107: 0 | U107: 0 | V107: 0 | W107: 0 | AA107: =SUM(AA102:AA106) -> 0 | AB107: =SUM(AB102:AB106) -> 0 | AC107: 0 | AD107: 0 | AE107: 0 | AF107: 0 | AG107: 0 | AH107: 0 | AI107: 0
F108: Less customer contributions
F109: Total net expenditure | G109: =G107-G108 -> 0 | I109: =I107-I108 -> 0 | J109: 0 | K109: 0 | L109: 0 | M109: 0 | N109: 0 | O109: 0 | R109: =R107-R108 -> 0 | S109: =S107-S108 -> 0 | T109: =T107-T108 -> 0 | U109: 0 | V109: 0 | W109: 0 | AA109: =AA107-AA108 -> 0 | AB109: 0 | AC109: 0 | AD109: 0 | AE109: 0 | AF109: 0 | AG109: 0 | AH109: 0 | AI109: 0
E110: 160317 - Hoskinsown Water Bath Heater Upgrade, HP | F110: Direct internal labour expenditure | G110: 0 | H110: 0 | I110: 0 | J110: 0 | K110: 0 | L110: 0 | M110: 0 | N110: 0 | O110: 0
F111: Direct contractor expenditure | G111: 0 | J111: 0 | K111: 0 | L111: 0 | M111: 0 | N111: 0 | O111: 0
F112: Other internal direct expenditure | G112: 0 | J112: 0 | K112: 0 | L112: 0 | M112: 0 | N112: 0 | O112: 0
F113: Total direct expenditure (excl escalation) | G113: =SUM(G110:G112) -> 0 | J113: =SUM(J110:J112) -> 0 | K113: 0 | L113: 0 | M113: 0 | N113: 0 | O113: 0 | S113: =SUM(S110:S112) -> 0 | T113: =SUM(T110:T112) -> 0 | U113: =SUM(U110:U112) -> 0 | V113: =SUM(V110:V112) -> 0 | W113: =SUM(W110:W112) -> 0
F114: Escalation
F115: Total direct expenditure (inc escalation) | G115: =SUM(G113:G114) -> 0 | J115: =SUM(J113:J114) -> 0 | K115: 0 | L115: 0 | M115: 0 | N115: 0 | O115: 0
F116: Total overhead expenditure
F117: Related party margin expenditure | G117: =G111*G$15 -> 0 | J117: =J111*J$15 -> 0 | K117: 0 | L117: 0 | M117: 0 | N117: 0 | O117: 0
F118: Total gross expenditure | G118: =SUM(G115,G116:G117) -> 0 | J118: =SUM(J115,J116:J117) -> 0 | K118: 0 | L118: 0 | M118: 0 | N118: 0 | O118: 0 | R118: =SUM(R116:R117) -> 0 | S118: 0 | T118: 0 | U118: 0 | V118: 0 | W118: 0 | AA118: =SUM(AA113:AA117) -> 0 | AB118: =SUM(AB113:AB117) -> 0 | AC118: 0 | AD118: 0 | AE118: 0 | AF118: 0 | AG118: 0 | AH118: 0 | AI118: 0
F119: Less customer contributions
F120: Total net expenditure | G120: =G118-G119 -> 0 | J120: =J118-J119 -> 0 | K120: 0 | L120: 0 | M120: 0 | N120: 0 | O120: 0 | R120: =R118-R119 -> 0 | S120: =S118-S119 -> 0 | T120: =T118-T119 -> 0 | U120: 0 | V120: 0 | W120: 0 | AA120: =AA118-AA119 -> 0 | AB120: 0 | AC120: 0 | AD120: 0 | AE120: 0 | AF120: 0 | AG120: 0 | AH120: 0 | AI120: 0
E121: 160318 - SDRS 13 Canberra City | F121: Direct internal labour expenditure | G121: 0 | H121: 0 | I121: 0 | J121: 0 | K121: 0 | L121: 0 | M121: 0 | N121: 0 | O121: 0
F122: Direct contractor expenditure | G122: 0 | I122: 0 | J122: 0 | K122: 0 | L122: 0 | M122: 0 | N122: 0 | O122: 0
F123: Other internal direct expenditure | G123: 0 | I123: 0 | J123: 0 | K123: 0 | L123: 0 | M123: 0 | N123: 0 | O123: 0
F124: Total direct expenditure (excl escalation) | G124: =SUM(G121:G123) -> 0 | I124: =SUM(I121:I123) -> 0 | J124: 0 | K124: 0 | L124: 0 | M124: 0 | N124: 0 | O124: 0 | S124: =SUM(S121:S123) -> 0 | T124: =SUM(T121:T123) -> 0 | U124: =SUM(U121:U123) -> 0 | V124: =SUM(V121:V123) -> 0 | W124: =SUM(W121:W123) -> 0
F125: Escalation
F126: Total direct expenditure (inc escalation) | G126: =SUM(G124:G125) -> 0 | I126: =SUM(I124:I125) -> 0 | J126: 0 | K126: 0 | L126: 0 | M126: 0 | N126: 0 | O126: 0
F127: Total overhead expenditure
F128: Related party margin expenditure | G128: =G122*G$15 -> 0 | I128: =I122*I$15 -> 0 | J128: 0 | K128: 0 | L128: 0 | M128: 0 | N128: 0 | O128: 0
F129: Total gross expenditure | G129: =SUM(G126,G127:G128) -> 0 | I129: =SUM(I126,I127:I128) -> 0 | J129: 0 | K129: 0 | L129: 0 | M129: 0 | N129: 0 | O129: 0 | R129: =SUM(R127:R128) -> 0 | S129: 0 | T129: 0 | U129: 0 | V129: 0 | W129: 0 | AA129: =SUM(AA124:AA128) -> 0 | AB129: =SUM(AB124:AB128) -> 0 | AC129: 0 | AD129: 0 | AE129: 0 | AF129: 0 | AG129: 0 | AH129: 0 | AI129: 0
F130: Less customer contributions
F131: Total net expenditure | G131: =G129-G130 -> 0 | I131: =I129-I130 -> 0 | J131: 0 | K131: 0 | L131: 0 | M131: 0 | N131: 0 | O131: 0 | R131: =R129-R130 -> 0 | S131: =S129-S130 -> 0 | T131: =T129-T130 -> 0 | U131: 0 | V131: 0 | W131: 0 | AA131: =AA129-AA130 -> 0 | AB131: 0 | AC131: 0 | AD131: 0 | AE131: 0 | AF131: 0 | AG131: 0 | AH131: 0 | AI131: 0
E132: 160319 - SDRS 55 Jerrabomberra | F132: Direct internal labour expenditure | G132: 0 | H132: 0 | I132: 0 | J132: 0 | K132: 0 | L132: 0 | M132: 0 | N132: 0 | O132: 0
F133: Direct contractor expenditure | G133: 0 | I133: 0 | J133: 0 | K133: 0 | L133: 0 | M133: 0 | N133: 0 | O133: 0
F134: Other internal direct expenditure | G134: 0 | I134: 0 | J134: 0 | K134: 0 | L134: 0 | M134: 0 | N134: 0 | O134: 0
F135: Total direct expenditure (excl escalation) | G135: =SUM(G132:G134) -> 0 | I135: =SUM(I132:I134) -> 0 | J135: 0 | K135: 0 | L135: 0 | M135: 0 | N135: 0 | O135: 0 | S135: =SUM(S132:S134) -> 0 | T135: =SUM(T132:T134) -> 0 | U135: =SUM(U132:U134) -> 0 | V135: =SUM(V132:V134) -> 0 | W135: =SUM(W132:W134) -> 0
F136: Escalation
F137: Total direct expenditure (inc escalation) | G137: =SUM(G135:G136) -> 0 | I137: =SUM(I135:I136) -> 0 | J137: 0 | K137: 0 | L137: 0 | M137: 0 | N137: 0 | O137: 0
F138: Total overhead expenditure
F139: Related party margin expenditure | G139: =G133*G$15 -> 0 | I139: =I133*I$15 -> 0 | J139: 0 | K139: 0 | L139: 0 | M139: 0 | N139: 0 | O139: 0
F140: Total gross expenditure | G140: =SUM(G137,G138:G139) -> 0 | I140: =SUM(I137,I138:I139) -> 0 | J140: 0 | K140: 0 | L140: 0 | M140: 0 | N140: 0 | O140: 0 | R140: =SUM(R138:R139) -> 0 | S140: 0 | T140: 0 | U140: 0 | V140: 0 | W140: 0 | AA140: =SUM(AA135:AA139) -> 0 | AB140: =SUM(AB135:AB139) -> 0 | AC140: 0 | AD140: 0 | AE140: 0 | AF140: 0 | AG140: 0 | AH140: 0 | AI140: 0
F141: Less customer contributions
F142: Total net expenditure | G142: =G140-G141 -> 0 | I142: =I140-I141 -> 0 | J142: 0 | K142: 0 | L142: 0 | M142: 0 | N142: 0 | O142: 0 | R142: =R140-R141 -> 0 | S142: =S140-S141 -> 0 | T142: =T140-T141 -> 0 | U142: 0 | V142: 0 | W142: 0 | AA142: =AA140-AA141 -> 0 | AB142: 0 | AC142: 0 | AD142: 0 | AE142: 0 | AF142: 0 | AG142: 0 | AH142: 0 | AI142: 0
E143: 160320 - SDRS 6 Latham | F143: Direct internal labour expenditure | G143: 0 | H143: 0 | I143: 0 | J143: 0 | K143: 0 | L143: 0 | M143: 0 | N143: 0 | O143: 0
F144: Direct contractor expenditure | G144: 0 | I144: 0 | J144: 0 | K144: 0 | L144: 0 | M144: 0 | N144: 0 | O144: 0
F145: Other internal direct expenditure | G145: 0 | I145: 0 | J145: 0 | K145: 0 | L145: 0 | M145: 0 | N145: 0 | O145: 0
F146: Total direct expenditure (excl escalation) | G146: =SUM(G143:G145) -> 0 | I146: =SUM(I143:I145) -> 0 | J146: 0 | K146: 0 | L146: 0 | M146: 0 | N146: 0 | O146: 0 | S146: =SUM(S143:S145) -> 0 | T146: =SUM(T143:T145) -> 0 | U146: =SUM(U143:U145) -> 0 | V146: =SUM(V143:V145) -> 0 | W146: =SUM(W143:W145) -> 0
F147: Escalation
F148: Total direct expenditure (inc escalation) | G148: =SUM(G146:G147) -> 0 | I148: =SUM(I146:I147) -> 0 | J148: 0 | K148: 0 | L148: 0 | M148: 0 | N148: 0 | O148: 0
F149: Total overhead expenditure
F150: Related party margin expenditure | G150: =G144*G$15 -> 0 | I150: =I144*I$15 -> 0 | J150: 0 | K150: 0 | L150: 0 | M150: 0 | N150: 0 | O150: 0
F151: Total gross expenditure | G151: =SUM(G148,G149:G150) -> 0 | I151: =SUM(I148,I149:I150) -> 0 | J151: 0 | K151: 0 | L151: 0 | M151: 0 | N151: 0 | O151: 0 | R151: =SUM(R149:R150) -> 0 | S151: 0 | T151: 0 | U151: 0 | V151: 0 | W151: 0 | AA151: =SUM(AA146:AA150) -> 0 | AB151: =SUM(AB146:AB150) -> 0 | AC151: 0 | AD151: 0 | AE151: 0 | AF151: 0 | AG151: 0 | AH151: 0 | AI151: 0
F152: Less customer contributions
F153: Total net expenditure | G153: =G151-G152 -> 0 | I153: =I151-I152 -> 0 | J153: 0 | K153: 0 | L153: 0 | M153: 0 | N153: 0 | O153: 0 | R153: =R151-R152 -> 0 | S153: =S151-S152 -> 0 | T153: =T151-T152 -> 0 | U153: 0 | V153: 0 | W153: 0 | AA153: =AA151-AA152 -> 0 | AB153: 0 | AC153: 0 | AD153: 0 | AE153: 0 | AF153: 0 | AG153: 0 | AH153: 0 | AI153: 0
E154: 160332 - Canberra Hospital&COCON | F154: Direct internal labour expenditure | G154: 0 | H154: 0 | I154: 0 | J154: 0 | K154: 0 | L154: 0 | M154: 0 | N154: 0 | O154: 0
F155: Direct contractor expenditure | G155: 0 | H155: 0 | J155: 0 | K155: 0 | L155: 0 | M155: 0 | N155: 0 | O155: 0
F156: Other internal direct expenditure | G156: 0 | H156: 0 | J156: 0 | K156: 0 | L156: 0 | M156: 0 | N156: 0 | O156: 0
F157: Total direct expenditure (excl escalation) | G157: =SUM(G154:G156) -> 0 | H157: =SUM(H154:H156) -> 0 | J157: 0 | K157: 0 | L157: 0 | M157: 0 | N157: 0 | O157: 0 | S157: =SUM(S154:S156) -> 0 | T157: =SUM(T154:T156) -> 0 | U157: =SUM(U154:U156) -> 0 | V157: =SUM(V154:V156) -> 0 | W157: =SUM(W154:W156) -> 0
F158: Escalation
F159: Total direct expenditure (inc escalation) | G159: =SUM(G157:G158) -> 0 | H159: =SUM(H157:H158) -> 0 | J159: 0 | K159: 0 | L159: 0 | M159: 0 | N159: 0 | O159: 0
F160: Total overhead expenditure
F161: Related party margin expenditure | G161: =G155*G$15 -> 0 | H161: =H155*H$15 -> 0 | J161: 0 | K161: 0 | L161: 0 | M161: 0 | N161: 0 | O161: 0
F162: Total gross expenditure | G162: =SUM(G159,G160:G161) -> 0 | H162: =SUM(H159,H160:H161) -> 0 | J162: 0 | K162: 0 | L162: 0 | M162: 0 | N162: 0 | O162: 0 | R162: =SUM(R160:R161) -> 0 | S162: 0 | T162: 0 | U162: 0 | V162: 0 | W162: 0 | AA162: =SUM(AA157:AA161) -> 0 | AB162: =SUM(AB157:AB161) -> 0 | AC162: 0 | AD162: 0 | AE162: 0 | AF162: 0 | AG162: 0 | AH162: 0 | AI162: 0
F163: Less customer contributions
F164: Total net expenditure | G164: =G162-G163 -> 0 | H164: =H162-H163 -> 0 | J164: 0 | K164: 0 | L164: 0 | M164: 0 | N164: 0 | O164: 0 | R164: =R162-R163 -> 0 | S164: =S162-S163 -> 0 | T164: =T162-T163 -> 0 | U164: 0 | V164: 0 | W164: 0 | AA164: =AA162-AA163 -> 0 | AB164: 0 | AC164: 0 | AD164: 0 | AE164: 0 | AF164: 0 | AG164: 0 | AH164: 0 | AI164: 0
E165: 160401 - New Hume Primary Regulating Station | F165: Direct internal labour expenditure | G165: 0 | H165: 0 | I165: 0 | J165: 0 | K165: 0 | L165: 0 | M165: 0 | N165: 0 | O165: 0
F166: Direct contractor expenditure | G166: 0 | H166: 0 | I166: 0 | J166: 0 | K166: 0 | L166: 0 | N166: 603299.38 | O166: 652966.1
F167: Other internal direct expenditure | G167: 0 | H167: 0 | I167: 0 | J167: 0 | K167: 0 | L167: 4275 | N167: 27110.61 | O167: 28104.7
F168: Total direct expenditure (excl escalation) | G168: =SUM(G165:G167) -> 0 | H168: =SUM(H165:H167) -> 0 | I168: 0 | J168: 0 | K168: 0 | L168: 4275 | N168: 630409.99 | O168: 681070.8 | P168: 3424346.635 | S168: =SUM(S165:S167) -> 0 | T168: =SUM(T165:T167) -> 0 | U168: =SUM(U165:U167) -> 0 | V168: =SUM(V165:V167) -> 0 | W168: =SUM(W165:W167) -> 0
F169: Escalation | P169: 39300.88129
F170: Total direct expenditure (inc escalation) | G170: =SUM(G168:G169) -> 0 | H170: =SUM(H168:H169) -> 0 | I170: 0 | J170: 0 | K170: 0 | L170: 4275 | N170: 630409.99 | O170: 681070.8 | P170: =SUM(P168:P169) -> 3463647.516
F171: Total overhead expenditure | P171: 0
F172: Related party margin expenditure | G172: =G166*G$15 -> 0 | H172: =H166*H$15 -> 0 | I172: 0 | J172: 0 | K172: 0 | L172: 0 | N172: 0 | O172: 0 | P172: 0
F173: Total gross expenditure | G173: =SUM(G170,G171:G172) -> 0 | H173: =SUM(H170,H171:H172) -> 0 | I173: 0 | J173: 0 | K173: 0 | L173: 4275 | N173: 630409.99 | O173: 681070.8 | P173: 3463647.516 | R173: =SUM(R171:R172) -> 0 | S173: 0 | T173: 0 | U173: 0 | V173: 0 | W173: 0 | AA173: =SUM(AA168:AA172) -> 0 | AB173: =SUM(AB168:AB172) -> 0 | AC173: 0 | AD173: 0 | AE173: 0 | AF173: 0 | AG173: 0 | AH173: 0 | AI173: 0
F174: Less customer contributions | P174: 0
F175: Total net expenditure | G175: =G173-G174 -> 0 | H175: =H173-H174 -> 0 | I175: 0 | J175: 0 | K175: 0 | L175: 4275 | N175: 630409.99 | O175: 681070.8 | P175: 3463647.516 | R175: =R173-R174 -> 0 | S175: =S173-S174 -> 0 | T175: =T173-T174 -> 0 | U175: 0 | V175: 0 | W175: 0 | AA175: =AA173-AA174 -> 0 | AB175: 0 | AC175: 0 | AD175: 0 | AE175: 0 | AF175: 0 | AG175: 0 | AH175: 0 | AI175: 0
E176: 160344 - ANU Unilodge, Childers Street, Canberra City | F176: Direct internal labour expenditure | G176: 0 | H176: 0 | I176: 0 | J176: 0 | K176: 0 | L176: 0 | M176: 0 | N176: 0 | O176: 0
F177: Direct contractor expenditure | G177: 0 | H177: 0 | I177: 0 | K177: 0 | L177: 0 | M177: 0 | N177: 0 | O177: 0
F178: Other internal direct expenditure | G178: 0 | H178: 0 | I178: 0 | K178: 0 | L178: 0 | M178: 0 | N178: 0 | O178: 0
F179: Total direct expenditure (excl escalation) | G179: =SUM(G176:G178) -> 0 | H179: =SUM(H176:H178) -> 0 | I179: 0 | K179: 0 | L179: 0 | M179: 0 | N179: 0 | O179: 0 | S179: =SUM(S176:S178) -> 0 | T179: =SUM(T176:T178) -> 0 | U179: =SUM(U176:U178) -> 0 | V179: =SUM(V176:V178) -> 0 | W179: =SUM(W176:W178) -> 0
F180: Escalation
F181: Total direct expenditure (inc escalation) | G181: =SUM(G179:G180) -> 0 | H181: =SUM(H179:H180) -> 0 | I181: 0 | K181: 0 | L181: 0 | M181: 0 | N181: 0 | O181: 0
F182: Total overhead expenditure
F183: Related party margin expenditure | G183: =G177*G$15 -> 0 | H183: =H177*H$15 -> 0 | I183: 0 | K183: 0 | L183: 0 | M183: 0 | N183: 0 | O183: 0
F184: Total gross expenditure | G184: =SUM(G181,G182:G183) -> 0 | H184: =SUM(H181,H182:H183) -> 0 | I184: 0 | K184: 0 | L184: 0 | M184: 0 | N184: 0 | O184: 0 | R184: =SUM(R182:R183) -> 0 | S184: 0 | T184: 0 | U184: 0 | V184: 0 | W184: 0 | AA184: =SUM(AA179:AA183) -> 0 | AB184: =SUM(AB179:AB183) -> 0 | AC184: 0 | AD184: 0 | AE184: 0 | AF184: 0 | AG184: 0 | AH184: 0 | AI184: 0
F185: Less customer contributions
F186: Total net expenditure | G186: =G184-G185 -> 0 | H186: =H184-H185 -> 0 | I186: 0 | K186: 0 | L186: 0 | M186: 0 | N186: 0 | O186: 0 | R186: =R184-R185 -> 0 | S186: =S184-S185 -> 0 | T186: =T184-T185 -> 0 | U186: 0 | V186: 0 | W186: 0 | AA186: =AA184-AA185 -> 0 | AB186: 0 | AC186: 0 | AD186: 0 | AE186: 0 | AF186: 0 | AG186: 0 | AH186: 0 | AI186: 0
E187: 160345 - Canberra Uni-Campus Living Villages | F187: Direct internal labour expenditure | G187: 0 | H187: 0 | I187: 0 | J187: 0 | K187: 0 | L187: 0 | M187: 0 | N187: 0 | O187: 0
F188: Direct contractor expenditure | G188: 0 | H188: 0 | I188: 0 | K188: 0 | L188: 0 | M188: 0 | N188: 0 | O188: 0
F189: Other internal direct expenditure | G189: 0 | H189: 0 | I189: 0 | K189: 0 | L189: 0 | M189: 0 | N189: 0 | O189: 0
F190: Total direct expenditure (excl escalation) | G190: =SUM(G187:G189) -> 0 | H190: =SUM(H187:H189) -> 0 | I190: 0 | K190: 0 | L190: 0 | M190: 0 | N190: 0 | O190: 0 | S190: =SUM(S187:S189) -> 0 | T190: =SUM(T187:T189) -> 0 | U190: =SUM(U187:U189) -> 0 | V190: =SUM(V187:V189) -> 0 | W190: =SUM(W187:W189) -> 0
F191: Escalation
F192: Total direct expenditure (inc escalation) | G192: =SUM(G190:G191) -> 0 | H192: =SUM(H190:H191) -> 0 | I192: 0 | K192: 0 | L192: 0 | M192: 0 | N192: 0 | O192: 0
F193: Total overhead expenditure
F194: Related party margin expenditure | G194: =G188*G$15 -> 0 | H194: =H188*H$15 -> 0 | I194: 0 | K194: 0 | L194: 0 | M194: 0 | N194: 0 | O194: 0
F195: Total gross expenditure | G195: =SUM(G192,G193:G194) -> 0 | H195: =SUM(H192,H193:H194) -> 0 | I195: 0 | K195: 0 | L195: 0 | M195: 0 | N195: 0 | O195: 0 | R195: =SUM(R193:R194) -> 0 | S195: 0 | T195: 0 | U195: 0 | V195: 0 | W195: 0 | AA195: =SUM(AA190:AA194) -> 0 | AB195: =SUM(AB190:AB194) -> 0 | AC195: 0 | AD195: 0 | AE195: 0 | AF195: 0 | AG195: 0 | AH195: 0 | AI195: 0
F196: Less customer contributions
F197: Total net expenditure | G197: =G195-G196 -> 0 | H197: =H195-H196 -> 0 | I197: 0 | K197: 0 | L197: 0 | M197: 0 | N197: 0 | O197: 0 | R197: =R195-R196 -> 0 | S197: =S195-S196 -> 0 | T197: =T195-T196 -> 0 | U197: 0 | V197: 0 | W197: 0 | AA197: =AA195-AA196 -> 0 | AB197: 0 | AC197: 0 | AD197: 0 | AE197: 0 | AF197: 0 | AG197: 0 | AH197: 0 | AI197: 0
E198: 160350 - 2008-2009 Capacity Development Project: Gowrie DR41 (1050-2210Kpa) Replacement | F198: Direct internal labour expenditure | G198: 0 | H198: 0 | I198: 0 | J198: 0 | K198: 0 | L198: 0 | M198: 0 | N198: 0 | O198: 0
F199: Direct contractor expenditure | G199: 0 | H199: 0 | I199: 0 | K199: 0 | L199: 0 | M199: 0 | N199: 0 | O199: 0
F200: Other internal direct expenditure | G200: 0 | H200: 0 | I200: 0 | K200: 0 | L200: 0 | M200: 0 | N200: 0 | O200: 0
F201: Total direct expenditure (excl escalation) | G201: =SUM(G198:G200) -> 0 | H201: =SUM(H198:H200) -> 0 | I201: 0 | K201: 0 | L201: 0 | M201: 0 | N201: 0 | O201: 0 | S201: =SUM(S198:S200) -> 0 | T201: =SUM(T198:T200) -> 0 | U201: =SUM(U198:U200) -> 0 | V201: =SUM(V198:V200) -> 0 | W201: =SUM(W198:W200) -> 0
... 1032 more rows

Sheet 6. Mains & services renewal
E1: =SheetHeader -> REGULATORY REPORTING STATEMENT
E2: =dms_TradingName -> ActewAGL Distribution
E3: =CONCATENATE(FRCP_y1," to ",FRCP_y5) -> 2016-17 to 2020-21 | F3: =CONCATENATE(LEFT(FRCP_y1,4),"-",LEFT(FRCP_y5,2),RIGHT(FRCP_y5,2)) -> 2016-2021
E4: 6. MAINS & SERVICES RENEWAL CAPITAL EXPENDITURE
A7: Asset category | E7: Instructions
A8: HPM | B8: HP mains | E8: This template asks for information relating to mains and services renewal capital expenditure.
A9: TRS | B9: TRS & DRS - valves & regulators | E9: =CONCATENATE("As set out in cl.7.1 of the ",dms_TradingName," RIN, for tables 6.1 to 6.3, where the requested data is captured in the ",dms_TradingName," capex model it is not required to be reentered in the RIN template tables. If the requested data has not been provided in the ",dms_TradingName," capex model please enter into the tables below. This may require the insertion of new lines in each table.") -> As set out in cl.7.1 of the ActewAGL Distribution RIN, for tables 6.1 to 6.3, where the requested data is captured in the ActewAGL Distribution capex model it is not required to be reentered in the RIN template tables. If the requested data has not been provided in the ActewAGL Distribution capex model please enter into the tables below. This may require the insertion of new lines in each table.
A10: CM | B10: Contract meters | E10: Reported expenditure is to be entered EXCLUSIVE of any profit margins or management fees paid pursuant to arrangements or contracts with any related parties. Include any related party margins or management fees in the separate 'Related party margin' line item.
A11: ITS | B11: IT System | E11: =CONCATENATE("Subject to cl.7.1 of the ",dms_TradingName," RIN, where linked/adjustable overhead expenditure and related party margin expenditure is not provided in the ",dms_TradingName," capex model, overhead expenditure and related party margin expenditure should be linked to allocations derived in tabs '14. Overheads' and '15. Related party transactions'.") -> Subject to cl.7.1 of the ActewAGL Distribution RIN, where linked/adjustable overhead expenditure and related party margin expenditure is not provided in the ActewAGL Distribution capex model, overhead expenditure and related party margin expenditure should be linked to allocations derived in tabs '14. Overheads' and '15. Related party transactions'.
A12: ERC | B12: Equity raising expenditure | E12: Capital expenditure amounts entered should be GROSS of customer contributions. There is a separate line item for customer contributions from which net capital expenditure is derived.
E13: For the conversion to real $ check the accuracy of the CPI escalation used.
G15: 0 | H15: 0 | I15: 0 | J15: 0 | K15: 0 | L15: 0 | M15: 0 | N15: 0 | O15: 0 | P15: 0
E16: Table 6 - MAINS & SERVICES RENEWAL CAPITAL EXPENDITURE | AM16: REAL $ CONVERSION OF HISTORICAL DATA
E17: Table 6.1 - Mains & services renewal expenditure (actual/forecast)
E18: Table 6.1.1 - Proactive mains replacement expenditure
G19: Previous access arrangement period | L19: Current access arrangement period | R19: Next access arrangement period | X19: Previous access arrangement period | AD19: Current access arrangement period | AM19: Previous access arrangement period | AR19: Current access arrangement period
G20: $0's, nominal | P20: =CONCATENATE("$0's, real ",dms_DollarReal) -> $0's, real June 2016 | X20: $0's, nominal | AM20: =CONCATENATE("$0's, real ",dms_DollarReal) -> $0's, real June 2016
G21: Actual | P21: Forecast | X21: Approved | AM21: Actual
G22: =PRCP -> 2005-06 | H22: 2006-07 | I22: 2007-08 | J22: 2008-09 | K22: 2009-10 | L22: =CRCP_y1 -> 2010-11 | M22: =CRCP_y2 -> 2011-12 | N22: =CRCP_y3 -> 2012-13 | O22: =CRCP_y4 -> 2013-14 | P22: =CRCP_y5 -> 2014-15 | Q22: =CRCP_y6 -> 2015-16 | R22: =FRCP -> 2016-17 | S22: 2017-18 | T22: 2018-19 | U22: 2019-20 | V22: 2020-21 | X22: =PRCP -> 2005-06 | Y22: 2006-07 | Z22: 2007-08 | AA22: 2008-09 | AB22: 2009-10 | AC22: Variance (actual v approved) % | AD22: =CRCP_y1 -> 2010-11 | AE22: =CRCP_y2 -> 2011-12 | AF22: =CRCP_y3 -> 2012-13 | AG22: =CRCP_y4 -> 2013-14 | AH22: =CRCP_y5 -> 2014-15 | AI22: =CRCP_y6 -> 2015-16 | AJ22: Variance (actual v approved) % | AM22: =PRCP -> 2005-06 | AN22: 2006-07 | AO22: 2007-08 | AP22: 2008-09 | AQ22: 2009-10 | AR22: =CRCP_y1 -> 2010-11 | AS22: =CRCP_y2 -> 2011-12 | AT22: =CRCP_y3 -> 2012-13 | AU22: =CRCP_y4 -> 2013-14
E23: [insert project name] | F23: Length of mains replaced (metres) | AC23: =SUM(G23:K23)/SUM(X23:AB23)-1 ->  | AJ23: =SUM(L23:Q23)/SUM(AD23:AI23)-1 -> 
F24: Low pressure - high pressure
F25: Low pressure - medium pressure
F26: Low pressure - low pressure
F27: Medium pressure - medium pressure
F28: Medium pressure - high pressure | L28: =SUM(L23:L27) -> 0 | M28: =SUM(M23:M27) -> 0 | N28: 0 | O28: 0 | P28: 0 | Q28: 0 | R28: 0 | S28: 0 | T28: 0 | U28: 0 | V28: 0 | X28: 0 | Y28: 0 | Z28: 0 | AA28: 0 | AB28: 0 | AD28: =SUM(AD23:AD27) -> 0 | AE28: 0 | AF28: 0 | AG28: 0 | AH28: 0 | AI28: 0 | AR28: =SUM(AR23:AR27) -> 0 | AS28: =SUM(AS23:AS27) -> 0 | AT28: 0 | AU28: =SUM(AU23:AU27) -> 0
F29: Total volume
F30: Direct expenditure
F31: Direct expenditure
F32: Direct internal labour expenditure
F33: Direct contractor expenditure
F34: Other internal direct expenditure | X34: =SUM(X31:X33) -> 0 | Y34: 0 | Z34: 0 | AA34: 0 | AB34: =SUM(AB31:AB33) -> 0 | AC34: =SUM(G34:K34)/SUM(X34:AB34)-1 ->  | AD34: =SUM(AD31:AD33) -> 0 | AE34: 0 | AF34: 0 | AG34: 0 | AH34: 0 | AI34: 0 | AJ34: =SUM(L34:Q34)/SUM(AD34:AI34)-1 ->  | AR34: =SUM(AR31:AR33) -> 0 | AS34: =SUM(AS31:AS33) -> 0 | AT34: 0 | AU34: =SUM(AU31:AU33) -> 0
F35: Total direct expenditure (excl escalation) | G35: =SUM(G32:G34) -> 0 | H35: =SUM(H32:H34) -> 0 | I35: 0 | J35: 0 | K35: 0 | L35: 0 | M35: 0 | N35: 0 | O35: 0 | P35: 0 | Q35: 0 | R35: 0 | S35: 0 | T35: 0 | U35: 0 | V35: 0
F36: Escalation
F37: Total direct expenditure (inc escalation) | G37: =SUM(G35:G36) -> 0 | H37: =SUM(H35:H36) -> 0 | I37: 0 | J37: 0 | K37: 0 | L37: 0 | M37: 0 | N37: 0 | O37: 0 | P37: 0 | Q37: 0 | R37: 0 | S37: 0 | T37: 0 | U37: 0 | V37: 0
F38: Total overhead expenditure | AC38: =SUM(G38:K38)/SUM(X38:AB38)-1 ->  | AJ38: =SUM(L38:Q38)/SUM(AD38:AI38)-1 -> 
F39: Related party margin expenditure
F40: Total gross expenditure | G40: =SUM(G37:G39) -> 0 | H40: =SUM(H37:H39) -> 0 | I40: 0 | J40: 0 | K40: 0 | L40: 0 | M40: 0 | N40: 0 | O40: 0 | P40: 0 | Q40: 0 | R40: 0 | S40: 0 | T40: 0 | U40: 0 | V40: 0 | X40: =SUM(X38:X39) -> 0 | Y40: =SUM(Y38:Y39) -> 0 | Z40: =SUM(Z38:Z39) -> 0 | AA40: =SUM(AA38:AA39) -> 0 | AB40: =SUM(AB38:AB39) -> 0 | AC40: =SUM(G40:K40)/SUM(X40:AB40)-1 ->  | AD40: =SUM(AD38:AD39) -> 0 | AE40: 0 | AF40: 0 | AG40: 0 | AH40: 0 | AI40: 0 | AJ40: =SUM(L40:Q40)/SUM(AD40:AI40)-1 ->  | AM40: =SUM(AM38:AM39) -> 0 | AN40: 0 | AO40: 0 | AP40: 0 | AQ40: 0 | AR40: 0 | AS40: 0 | AT40: 0 | AU40: =SUM(AU38:AU39) -> 0
F41: Less customer contributions
F42: Total net expenditure | G42: =G40-G41 -> 0 | H42: =H40-H41 -> 0 | I42: 0 | J42: 0 | K42: 0 | L42: 0 | M42: 0 | N42: 0 | O42: 0 | P42: 0 | Q42: 0 | R42: 0 | S42: 0 | T42: 0 | U42: 0 | V42: 0 | X42: =X40-X41 -> 0 | Y42: 0 | Z42: 0 | AA42: 0 | AB42: 0 | AC42: =SUM(G42:K42)/SUM(X42:AB42)-1 ->  | AD42: =AD40-AD41 -> 0 | AE42: 0 | AF42: 0 | AG42: 0 | AH42: 0 | AI42: 0 | AJ42: =SUM(L42:P42)/SUM(AD42:AI42)-1 ->  | AM42: =AM40-AM41 -> 0 | AN42: =AN40-AN41 -> 0 | AO42: 0 | AP42: 0 | AQ42: 0 | AR42: 0 | AS42: 0 | AT42: =#REF!-#REF! ->  | AU42: =#REF!-#REF! -> 
E44: TOTALS | F44: Length of mains replaced (metres) | L44: =SUMIF($F$43:$AJ$43,"Length of mains replaced (metres)",M43:M43) -> 0 | M44: =SUMIF($F$43:$AJ$43,"Length of mains replaced (metres)",M43:M43) -> 0 | N44: 0 | O44: 0 | P44: 0 | Q44: 0 | R44: 0 | S44: 0 | T44: 0 | U44: 0 | V44: 0 | X44: =SUMIF($F$43:$AJ$43,"Length of mains replaced (metres)",X43:X43) -> 0 | Y44: 0 | Z44: 0 | AA44: 0 | AB44: 0 | AC44: 0 | AD44: 0 | AE44: 0 | AF44: 0 | AG44: 0 | AH44: 0 | AI44: 0 | AJ44: 0 | AM44: =SUMIF(#REF!,"Length of mains replaced (metres)",AN43:AN43) ->  | AN44: =SUMIF(#REF!,"Length of mains replaced (metres)",AO43:AO43) ->  | AO44: =SUMIF(#REF!,"Length of mains replaced (metres)",AP43:AP43) ->  | AP44: =SUMIF(#REF!,"Length of mains replaced (metres)",AQ43:AQ43) ->  | AQ44: =SUMIF(#REF!,"Length of mains replaced (metres)",AR43:AR43) ->  | AR44: =SUMIF(#REF!,"Length of mains replaced (metres)",AS43:AS43) ->  | AS44: =SUMIF(#REF!,"Length of mains replaced (metres)",AS43:AS43) ->  | AT44: =SUMIF(#REF!,"Length of mains replaced (metres)",AT43:AT43) ->  | AU44: =SUMIF(#REF!,"Length of mains replaced (metres)",AU43:AU43) -> 
F45: Direct expenditure
F46: Direct internal labour expenditure | L46: =SUMIF($F$43:$AJ$43,"Direct contractor expenditure on mains replaced (excl. escalation)",M43:M43) -> 0 | M46: =SUMIF($F$43:$AJ$43,"Direct contractor expenditure on mains replaced (excl. escalation)",M43:M43) -> 0 | N46: 0 | O46: 0 | P46: 0 | Q46: 0 | R46: 0 | S46: 0 | T46: 0 | U46: 0 | V46: 0 | X46: =SUMIF($F$43:$AJ$43,"Direct contractor expenditure on mains replaced (excl. escalation)",X43:X43) -> 0 | Y46: 0 | Z46: 0 | AA46: 0 | AB46: 0 | AC46: 0 | AD46: 0 | AE46: 0 | AF46: 0 | AG46: 0 | AH46: 0 | AI46: 0 | AJ46: 0 | AR46: =SUMIF(#REF!,"Direct contractor expenditure (excl. escalation)",AS43:AS43) ->  | AS46: =SUMIF(#REF!,"Direct contractor expenditure (excl. escalation)",AS43:AS43) ->  | AT46: =SUMIF(#REF!,"Direct contractor expenditure (excl. escalation)",AT43:AT43) ->  | AU46: =SUMIF(#REF!,"Direct contractor expenditure (excl. escalation)",AU43:AU43) -> 
F47: Direct contractor expenditure | L47: =SUMIF($F$43:$AJ$43,"Direct internal labour expenditure on mains replaced (excl. escalation)",M43:M43) -> 0 | M47: =SUMIF($F$43:$AJ$43,"Direct internal labour expenditure on mains replaced (excl. escalation)",M43:M43) -> 0 | N47: 0 | O47: 0 | P47: 0 | Q47: 0 | R47: 0 | S47: 0 | T47: 0 | U47: 0 | V47: 0 | X47: =SUMIF($F$43:$AJ$43,"Direct internal labour expenditure on mains replaced (excl. escalation)",X43:X43) -> 0 | Y47: 0 | Z47: 0 | AA47: 0 | AB47: 0 | AC47: 0 | AD47: 0 | AE47: 0 | AF47: 0 | AG47: 0 | AH47: 0 | AI47: 0 | AJ47: 0 | AR47: =SUMIF(#REF!,"Direct internal labour expenditure (excl. escalation)",AS43:AS43) ->  | AS47: =SUMIF(#REF!,"Direct internal labour expenditure (excl. escalation)",AS43:AS43) ->  | AT47: =SUMIF(#REF!,"Direct internal labour expenditure (excl. escalation)",AT43:AT43) ->  | AU47: =SUMIF(#REF!,"Direct internal labour expenditure (excl. escalation)",AU43:AU43) -> 
F48: Other internal direct expenditure | L48: =SUMIF($F$43:$AJ$43,"Direct material expenditure on mains replaced (excl. escalation)",M43:M43) -> 0 | M48: =SUMIF($F$43:$AJ$43,"Direct material expenditure on mains replaced (excl. escalation)",M43:M43) -> 0 | N48: 0 | O48: 0 | P48: 0 | Q48: 0 | R48: 0 | S48: 0 | T48: 0 | U48: 0 | V48: 0 | X48: =SUMIF($F$43:$AJ$43,"Direct material expenditure on mains replaced (excl. escalation)",X43:X43) -> 0 | Y48: 0 | Z48: 0 | AA48: 0 | AB48: 0 | AC48: 0 | AD48: 0 | AE48: 0 | AF48: 0 | AG48: 0 | AH48: 0 | AI48: 0 | AJ48: 0 | AR48: =SUMIF(#REF!,"Direct material expenditure (excl. escalation)",AS43:AS43) ->  | AS48: =SUMIF(#REF!,"Direct material expenditure (excl. escalation)",AS43:AS43) ->  | AT48: =SUMIF(#REF!,"Direct material expenditure (excl. escalation)",AT43:AT43) ->  | AU48: =SUMIF(#REF!,"Direct material expenditure (excl. escalation)",AU43:AU43) -> 
F49: Total direct expenditure (excl escalation) | G49: =SUM(G46:G48) -> 0 | H49: =SUM(H46:H48) -> 0 | I49: =SUM(I46:I48) -> 0 | J49: =SUM(J46:J48) -> 0 | K49: =SUM(K46:K48) -> 0 | L49: =SUM(L46:L48) -> 0 | M49: =SUM(M46:M48) -> 0 | N49: =SUM(N46:N48) -> 0 | O49: =SUM(O46:O48) -> 0 | P49: =SUM(P46:P48) -> 0 | Q49: =SUM(Q46:Q48) -> 0 | R49: =SUM(R46:R48) -> 0 | S49: =SUM(S46:S48) -> 0 | T49: =SUM(T46:T48) -> 0 | U49: =SUM(U46:U48) -> 0 | V49: =SUM(V46:V48) -> 0 | X49: =SUMIF($F$43:$AJ$43,"Total direct expenditure on mains replaced (excl. escalation)",X43:X43) -> 0 | Y49: 0 | Z49: 0 | AA49: 0 | AB49: 0 | AC49: 0 | AD49: 0 | AE49: 0 | AF49: 0 | AG49: 0 | AH49: 0 | AI49: 0 | AJ49: 0 | AR49: =SUMIF(#REF!,"Total direct expenditure (excl. escalation)",AS43:AS43) ->  | AS49: =SUMIF(#REF!,"Total direct expenditure (excl. escalation)",AS43:AS43) ->  | AT49: =SUMIF(#REF!,"Total direct expenditure (excl. escalation)",AT43:AT43) ->  | AU49: =SUMIF(#REF!,"Total direct expenditure (excl. escalation)",AU43:AU43) -> 
F50: Escalation
F51: Total direct expenditure (inc escalation) | G51: =SUM(G49:G50) -> 0 | H51: =SUM(H49:H50) -> 0 | I51: =SUM(I49:I50) -> 0 | J51: =SUM(J49:J50) -> 0 | K51: =SUM(K49:K50) -> 0 | L51: =SUM(L49:L50) -> 0 | M51: =SUM(M49:M50) -> 0 | N51: =SUM(N49:N50) -> 0 | O51: =SUM(O49:O50) -> 0 | P51: =SUM(P49:P50) -> 0 | Q51: =SUM(Q49:Q50) -> 0 | R51: =SUM(R49:R50) -> 0 | S51: =SUM(S49:S50) -> 0 | T51: =SUM(T49:T50) -> 0 | U51: =SUM(U49:U50) -> 0 | V51: =SUM(V49:V50) -> 0
F52: Total overhead expenditure | X52: =SUMIF($F$43:$AJ$43,"Total overhead expenditure on mains replaced",X43:X43) -> 0 | Y52: 0 | Z52: 0 | AA52: 0 | AB52: 0 | AC52: 0 | AD52: 0 | AE52: 0 | AF52: 0 | AG52: 0 | AH52: 0 | AI52: 0 | AJ52: 0 | AM52: =SUMIF(#REF!,"Total overhead expenditure",AN43:AN43) ->  | AN52: =SUMIF(#REF!,"Total overhead expenditure",AO43:AO43) ->  | AO52: =SUMIF(#REF!,"Total overhead expenditure",AP43:AP43) ->  | AP52: =SUMIF(#REF!,"Total overhead expenditure",AQ43:AQ43) ->  | AQ52: =SUMIF(#REF!,"Total overhead expenditure",AR43:AR43) ->  | AR52: =SUMIF(#REF!,"Total overhead expenditure",AS43:AS43) ->  | AS52: =SUMIF(#REF!,"Total overhead expenditure",AS43:AS43) ->  | AT52: =SUMIF(#REF!,"Total overhead expenditure",AT43:AT43) ->  | AU52: =SUMIF(#REF!,"Total overhead expenditure",AU43:AU43) -> 
F53: Related party margin expenditure | X53: =SUMIF($F$43:$AJ$43,"Related party margin expenditure",X43:X43) -> 0 | Y53: 0 | Z53: 0 | AA53: 0 | AB53: 0 | AC53: 0 | AD53: 0 | AE53: 0 | AF53: 0 | AG53: 0 | AH53: 0 | AI53: 0 | AJ53: 0 | AM53: =SUMIF(#REF!,"Related party margin",AN43:AN43) ->  | AN53: =SUMIF(#REF!,"Related party margin",AO43:AO43) ->  | AO53: =SUMIF(#REF!,"Related party margin",AP43:AP43) ->  | AP53: =SUMIF(#REF!,"Related party margin",AQ43:AQ43) ->  | AQ53: =SUMIF(#REF!,"Related party margin",AR43:AR43) ->  | AR53: =SUMIF(#REF!,"Related party margin",AS43:AS43) ->  | AS53: =SUMIF(#REF!,"Related party margin",AS43:AS43) ->  | AT53: =SUMIF(#REF!,"Related party margin",AT43:AT43) ->  | AU53: =SUMIF(#REF!,"Related party margin",AU43:AU43) -> 
F54: Total gross expenditure | G54: =SUM(G51:G53) -> 0 | H54: =SUM(H51:H53) -> 0 | I54: =SUM(I51:I53) -> 0 | J54: =SUM(J51:J53) -> 0 | K54: =SUM(K51:K53) -> 0 | L54: =SUM(L51:L53) -> 0 | M54: =SUM(M51:M53) -> 0 | N54: =SUM(N51:N53) -> 0 | O54: =SUM(O51:O53) -> 0 | P54: =SUM(P51:P53) -> 0 | Q54: =SUM(Q51:Q53) -> 0 | R54: =SUM(R51:R53) -> 0 | S54: =SUM(S51:S53) -> 0 | T54: =SUM(T51:T53) -> 0 | U54: =SUM(U51:U53) -> 0 | V54: =SUM(V51:V53) -> 0 | X54: =SUM(X52:X53) -> 0 | Y54: 0 | Z54: 0 | AA54: 0 | AB54: 0 | AC54: 0 | AD54: 0 | AE54: 0 | AF54: 0 | AG54: 0 | AH54: 0 | AI54: 0 | AJ54: 0 | AM54: =SUM(AM52:AM53) ->  | AN54: =SUM(AN52:AN53) ->  | AO54: =SUMIF(#REF!,"Gross total expenditure (incl. escalation)",AP43:AP43) ->  | AP54: =SUMIF(#REF!,"Gross total expenditure (incl. escalation)",AQ43:AQ43) ->  | AQ54: =SUMIF(#REF!,"Gross total expenditure (incl. escalation)",AR43:AR43) ->  | AR54: =SUMIF(#REF!,"Gross total expenditure (incl. escalation)",AS43:AS43) ->  | AS54: =SUMIF(#REF!,"Gross total expenditure (incl. escalation)",AS43:AS43) ->  | AT54: =SUMIF(#REF!,"Gross total expenditure (incl. escalation)",AT43:AT43) ->  | AU54: =SUMIF(#REF!,"Gross total expenditure (incl. escalation)",AU43:AU43) -> 
F55: Less customer contributions | X55: =SUMIF($F$43:$AJ$43,"Less customer contributions",X43:X43) -> 0 | Y55: 0 | Z55: 0 | AA55: 0 | AB55: 0 | AC55: 0 | AD55: 0 | AE55: 0 | AF55: 0 | AG55: 0 | AH55: 0 | AI55: 0 | AJ55: 0 | AM55: =SUMIF(#REF!,"Less customer contributions",AN43:AN43) ->  | AN55: =SUMIF(#REF!,"Less customer contributions",AO43:AO43) ->  | AO55: =SUMIF(#REF!,"Less customer contributions",AP43:AP43) ->  | AP55: =SUMIF(#REF!,"Less customer contributions",AQ43:AQ43) ->  | AQ55: =SUMIF(#REF!,"Less customer contributions",AR43:AR43) ->  | AR55: =SUMIF(#REF!,"Less customer contributions",AS43:AS43) ->  | AS55: =SUMIF(#REF!,"Less customer contributions",AS43:AS43) ->  | AT55: =SUMIF(#REF!,"Less customer contributions",AT43:AT43) ->  | AU55: =SUMIF(#REF!,"Less customer contributions",AU43:AU43) -> 
F56: Total net expenditure | G56: =G54-G55 -> 0 | H56: =H54-H55 -> 0 | I56: =I54-I55 -> 0 | J56: =J54-J55 -> 0 | K56: =K54-K55 -> 0 | L56: =L54-L55 -> 0 | M56: =M54-M55 -> 0 | N56: =N54-N55 -> 0 | O56: =O54-O55 -> 0 | P56: =P54-P55 -> 0 | Q56: =Q54-Q55 -> 0 | R56: =R54-R55 -> 0 | S56: =S54-S55 -> 0 | T56: =T54-T55 -> 0 | U56: =U54-U55 -> 0 | V56: =V54-V55 -> 0 | X56: =SUMIF($F$43:$AJ$43,"Net total expenditure on mains replaced (incl. escalation)",X43:X43) -> 0 | Y56: 0 | Z56: 0 | AA56: 0 | AB56: 0 | AC56: 0 | AD56: 0 | AE56: 0 | AF56: 0 | AG56: 0 | AH56: 0 | AI56: 0 | AJ56: 0 | AM56: =AM54-AM55 ->  | AN56: =AN54-AN55 ->  | AO56: =SUMIF(#REF!,"Net total expenditure (incl. escalation)",AP43:AP43) ->  | AP56: =SUMIF(#REF!,"Net total expenditure (incl. escalation)",AQ43:AQ43) ->  | AQ56: =SUMIF(#REF!,"Net total expenditure (incl. escalation)",AR43:AR43) ->  | AR56: =SUMIF(#REF!,"Net total expenditure (incl. escalation)",AS43:AS43) ->  | AS56: =SUMIF(#REF!,"Net total expenditure (incl. escalation)",AS43:AS43) ->  | AT56: =SUMIF(#REF!,"Net total expenditure (incl. escalation)",AT43:AT43) ->  | AU56: =SUMIF(#REF!,"Net total expenditure (incl. escalation)",AU43:AU43) -> 
E57: Source(s) of data:
G58: 0 | H58: 0 | I58: 0 | J58: 0 | K58: 0 | L58: 0 | M58: 0 | N58: 0 | O58: 0 | P58: 0
E59: Table 6.1.2 - Ad hoc/reactive mains and services replacement
G60: Previous access arrangement period | L60: Current access arrangement period | R60: Next access arrangement period | X60: Previous access arrangement period | AD60: Current access arrangement period | AM60: Previous access arrangement period | AR60: Current access arrangement period
G61: $0's, nominal | P61: =CONCATENATE("$0's, real ",dms_DollarReal) -> $0's, real June 2016 | X61: $0's, nominal | AC61: Variance | AD61: $0's, nominal | AJ61: Variance | AM61: =CONCATENATE("$0's, real ",dms_DollarReal) -> $0's, real June 2016
G62: Actual | P62: Forecast | X62: Approved | AC62: Actual v approved | AD62: Approved | AJ62: Actual v approved | AM62: Actual
G63: =PRCP -> 2005-06 | H63: 2006-07 | I63: 2007-08 | J63: 2008-09 | K63: 2009-10 | L63: =CRCP_y1 -> 2010-11 | M63: =CRCP_y2 -> 2011-12 | N63: =CRCP_y3 -> 2012-13 | O63: =CRCP_y4 -> 2013-14 | P63: =CRCP_y5 -> 2014-15 | Q63: =CRCP_y6 -> 2015-16 | R63: =FRCP -> 2016-17 | S63: 2017-18 | T63: 2018-19 | U63: 2019-20 | V63: 2020-21 | X63: =PRCP -> 2005-06 | Y63: 2006-07 | Z63: 2007-08 | AA63: 2008-09 | AB63: 2009-10 | AC63: % | AD63: =CRCP_y1 -> 2010-11 | AE63: =CRCP_y2 -> 2011-12 | AF63: =CRCP_y3 -> 2012-13 | AG63: =CRCP_y4 -> 2013-14 | AH63: =CRCP_y5 -> 2014-15 | AI63: =CRCP_y6 -> 2015-16 | AJ63: % | AM63: =PRCP -> 2005-06 | AN63: 2006-07 | AO63: 2007-08 | AP63: 2008-09 | AQ63: 2009-10 | AR63: =CRCP_y1 -> 2010-11 | AS63: =CRCP_y2 -> 2011-12 | AT63: =CRCP_y3 -> 2012-13 | AU63: =CRCP_y4 -> 2013-14
E64: 150634 - Relocate steel gas-Coranderrk St-City | F64: Length of mains replaced (metres) | AC64: =SUM(G64:K64)/SUM(X64:AB64)-1 ->  | AJ64: =SUM(L64:Q64)/SUM(AD64:AI64)-1 -> 
F65: Direct expenditure
F66: Direct internal labour expenditure | G66: 0 | H66: 0 | I66: 0 | J66: 0 | K66: 0 | L66: 0 | M66: 0 | N66: 0 | O66: 0
F67: Direct contractor expenditure | G67: 0 | H67: 0 | I67: 20728 | J67: 0 | K67: 0 | L67: 0 | M67: 0 | N67: 0 | O67: 0
F68: Other internal direct expenditure | G68: 0 | H68: 0 | I68: 0 | J68: 0 | K68: 0 | L68: 0 | M68: 0 | N68: 0 | O68: 0
F69: Total direct expenditure (excl escalation) | G69: =SUM(G66:G68) -> 0 | H69: =SUM(H66:H68) -> 0 | I69: 20728 | J69: 0 | K69: 0 | L69: 0 | M69: 0 | N69: 0 | O69: 0 | R69: =SUM(R66:R68) -> 0 | S69: 0 | T69: 0 | U69: 0 | V69: 0 | X69: 0 | Y69: 0 | Z69: 0 | AA69: 0 | AB69: 0 | AC69: =SUM(G69:K69)/SUM(X69:AB69)-1 ->  | AD69: 0 | AE69: 0 | AF69: 0 | AH69: 0 | AI69: 0 | AJ69: =SUM(L69:Q69)/SUM(AD69:AI69)-1 ->  | AR69: =SUM(AR66:AR68) -> 0 | AS69: =SUM(AS66:AS68) -> 0 | AT69: 0 | AU69: =SUM(AU66:AU68) -> 0
F70: Escalation
F71: Total direct expenditure (inc escalation) | G71: =SUM(G69:G70) -> 0 | H71: =SUM(H69:H70) -> 0 | I71: 20728 | J71: 0 | K71: 0 | L71: 0 | M71: 0 | N71: 0 | O71: 0
F72: Total overhead expenditure | AC72: =SUM(G72:K72)/SUM(X72:AB72)-1 ->  | AJ72: =SUM(L72:Q72)/SUM(AD72:AI72)-1 -> 
F73: Related party margin expenditure | G73: =$G15*G$67 -> 0 | H73: 0 | I73: 0 | J73: 0 | K73: 0 | L73: 0 | M73: 0 | N73: 0 | O73: 0
F74: Total gross expenditure | G74: =SUM(G71:G73) -> 0 | H74: =SUM(H71:H73) -> 0 | I74: 20728 | J74: 0 | K74: 0 | L74: 0 | M74: 0 | N74: 0 | O74: 0 | R74: =SUM(R72:R72) -> 0 | S74: 0 | T74: 0 | U74: 0 | V74: 0 | X74: 0 | Y74: 0 | Z74: 0 | AA74: 0 | AB74: 0 | AD74: =SUM(AD72:AD73) -> 0 | AE74: =SUM(AE72:AE73) -> 0 | AF74: =SUM(AF72:AF73) -> 0 | AH74: =SUM(AH72:AH73) -> 0 | AI74: =SUM(AI72:AI73) -> 0 | AM74: =SUM(AM72:AM73) -> 0 | AN74: =SUM(AN72:AN73) -> 0 | AO74: 0 | AP74: 0 | AQ74: 0 | AR74: 0 | AS74: 0 | AT74: 0 | AU74: =SUM(AU72:AU73) -> 0
F75: Less customer contributions | R75: =SUMIF($F$43:$AJ$43,"Less customer contributions",Q44:Q59) -> 0 | S75: =SUMIF($F$43:$AJ$43,"Less customer contributions",R44:R59) -> 0 | T75: =SUMIF($F$43:$AJ$43,"Less customer contributions",S44:S59) -> 0 | U75: =SUMIF($F$43:$AJ$43,"Less customer contributions",T44:T59) -> 0 | V75: =SUMIF($F$43:$AJ$43,"Less customer contributions",U44:U59) -> 0
F76: Total net expenditure | G76: =G74-G75 -> 0 | H76: =H74-H75 -> 0 | I76: 20728 | J76: 0 | K76: 0 | L76: 0 | M76: 0 | N76: 0 | O76: 0 | R76: =R74-R75 -> 0 | S76: 0 | T76: 0 | U76: 0 | V76: 0 | X76: =X74-X75 -> 0 | Y76: =Y74-Y75 -> 0 | Z76: =Z74-Z75 -> 0 | AA76: =AA74-AA75 -> 0 | AB76: =AB74-AB75 -> 0 | AD76: =AD74-AD75 -> 0 | AE76: =AE74-AE75 -> 0 | AF76: =AF74-AF75 -> 0 | AH76: =AH74-AH75 -> 0 | AI76: =AI74-AI75 -> 0 | AM76: =AM74-AM75 -> 0 | AN76: 0 | AO76: 0 | AP76: 0 | AQ76: 0 | AR76: 0 | AS76: 0 | AT76: 0 | AU76: =AU74-AU75 -> 0
E77: 160358 - DR48 Relocation - Watson ACT | F77: Length of mains replaced (metres)
F78: Direct expenditure
F79: Direct internal labour expenditure | G79: 0 | H79: 0 | I79: 0 | J79: 0 | K79: 0 | L79: 0 | M79: 0 | N79: 0 | O79: 0
F80: Direct contractor expenditure | G80: 0 | H80: 0 | I80: 0 | J80: 0 | K80: 15453.1 | L80: 0 | M80: 0 | N80: 0 | O80: 0
F81: Other internal direct expenditure | G81: 0 | H81: 0 | I81: 0 | J81: 0 | K81: 0 | L81: 0 | M81: 0 | N81: 0 | O81: 0
F82: Total direct expenditure (excl escalation) | G82: =SUM(G79:G81) -> 0 | H82: 0 | I82: 0 | J82: 0 | K82: 15453.1 | L82: 0 | M82: 0 | N82: 0 | O82: 0 | R82: =SUM(R79:R81) -> 0 | S82: 0 | T82: 0 | U82: 0 | V82: 0 | X82: 0 | Y82: 0 | Z82: 0 | AA82: 0 | AB82: 0 | AC82: =SUM(G82:K82)/SUM(X82:AB82)-1 ->  | AD82: 0 | AE82: 0 | AF82: 0 | AH82: 0 | AI82: 0 | AJ82: =SUM(L82:Q82)/SUM(AD82:AI82)-1 ->  | AR82: =SUM(AR79:AR81) -> 0 | AS82: =SUM(AS79:AS81) -> 0 | AT82: 0 | AU82: =SUM(AU79:AU81) -> 0
F83: Escalation
F84: Total direct expenditure (inc escalation) | G84: =SUM(G82:G83) -> 0 | H84: 0 | I84: 0 | J84: 0 | K84: 15453.1 | L84: 0 | M84: 0 | N84: 0 | O84: 0
F85: Total overhead expenditure | AC85: =SUM(G85:K85)/SUM(X85:AB85)-1 -> 
F86: Related party margin expenditure | G86: =$G28*G$67 -> 0 | H86: 0 | I86: 0 | J86: 0 | K86: 0 | L86: 0 | M86: 0 | N86: 0 | O86: 0
F87: Total gross expenditure | G87: =SUM(G84:G86) -> 0 | H87: 0 | I87: 0 | J87: 0 | K87: 15453.1 | L87: 0 | M87: 0 | N87: 0 | O87: 0 | R87: =SUM(R85:R85) -> 0 | S87: 0 | T87: 0 | U87: 0 | V87: 0 | X87: 0 | Y87: 0 | Z87: 0 | AA87: 0 | AB87: 0 | AD87: =SUM(AD85:AD86) -> 0 | AE87: =SUM(AE85:AE86) -> 0 | AF87: =SUM(AF85:AF86) -> 0 | AH87: =SUM(AH85:AH86) -> 0 | AI87: =SUM(AI85:AI86) -> 0 | AM87: =SUM(AM85:AM86) -> 0 | AN87: =SUM(AN85:AN86) -> 0 | AO87: 0 | AP87: 0 | AQ87: 0 | AR87: 0 | AS87: 0 | AT87: 0 | AU87: =SUM(AU85:AU86) -> 0
F88: Less customer contributions | R88: =SUMIF($F$43:$AJ$43,"Less customer contributions",Q44:Q75) -> 0 | S88: =SUMIF($F$43:$AJ$43,"Less customer contributions",R44:R75) -> 0 | T88: =SUMIF($F$43:$AJ$43,"Less customer contributions",S44:S75) -> 0 | U88: =SUMIF($F$43:$AJ$43,"Less customer contributions",T44:T75) -> 0 | V88: =SUMIF($F$43:$AJ$43,"Less customer contributions",U44:U75) -> 0
F89: Total net expenditure | G89: =G87-G88 -> 0 | H89: 0 | I89: 0 | J89: 0 | K89: 15453.1 | L89: 0 | M89: 0 | N89: 0 | O89: 0 | R89: =R87-R88 -> 0 | S89: 0 | T89: 0 | U89: 0 | V89: 0 | X89: =X87-X88 -> 0 | Y89: =Y87-Y88 -> 0 | Z89: =Z87-Z88 -> 0 | AA89: =AA87-AA88 -> 0 | AB89: =AB87-AB88 -> 0 | AD89: =AD87-AD88 -> 0 | AE89: =AE87-AE88 -> 0 | AF89: =AF87-AF88 -> 0 | AH89: =AH87-AH88 -> 0 | AI89: =AI87-AI88 -> 0 | AM89: =AM87-AM88 -> 0 | AN89: 0 | AO89: 0 | AP89: 0 | AQ89: 0 | AR89: 0 | AS89: 0 | AT89: 0 | AU89: =AU87-AU88 -> 0
E90: ActewAGL Funded Relocation Projects | F90: Length of mains replaced (metres) | AC90: =SUM(G90:K90)/SUM(X90:AB90)-1 ->  | AJ90: =SUM(L90:Q90)/SUM(AD90:AI90)-1 -> 
F91: Direct expenditure (excl escalation)
F92: Direct internal labour expenditure (excl escalation) | P92: 0 | Q92: 0 | R92: 0 | S92: 0 | T92: 0 | U92: 0 | V92: 0
F93: Direct contractor expenditure (excl escalation) | P93: 0 | Q93: 15341.12408 | R93: 0 | S93: 15352.97484 | T93: 0 | U93: 15160.85584 | V93: 0
F94: Other internal direct expenditure (excl escalation) | P94: 0 | Q94: 0 | R94: 0 | S94: 0 | T94: 0 | U94: 0 | V94: 0
F95: Total direct expenditure (excl escalation) | L95: =SUM(L92:L94) -> 0 | M95: =SUM(M92:M94) -> 0 | N95: 0 | O95: 0 | P95: 0 | Q95: 15341.12408 | R95: 0 | S95: 15352.97484 | T95: 0 | U95: 15160.85584 | V95: 0 | X95: 0 | Y95: 0 | Z95: 0 | AA95: 0 | AB95: 0 | AC95: =SUM(G95:K95)/SUM(X95:AB95)-1 ->  | AD95: 0 | AE95: 0 | AF95: 0 | AH95: 0 | AI95: 0 | AJ95: =SUM(L95:Q95)/SUM(AD95:AI95)-1 ->  | AR95: =SUM(AR92:AR94) -> 0 | AS95: =SUM(AS92:AS94) -> 0 | AT95: 0 | AU95: 0
F96: Escalation | P96: 0 | Q96: -254.1886889 | R96: 0 | S96: 71.82336369 | T96: 0 | U96: 477.9834663 | V96: 0
F97: Total direct expenditure (inc escalation)
F98: Total overhead expenditure | P98: 0 | Q98: 905.2161234 | R98: 0 | S98: 925.487892 | T98: 0 | U98: 938.3303584 | V98: 0 | AC98: =SUM(G98:K98)/SUM(X98:AB98)-1 ->  | AJ98: =SUM(L98:Q98)/SUM(AD98:AI98)-1 -> 
F99: Related party margin expenditure | G99: =G$58*G93 -> 0 | H99: =H$58*H93 -> 0 | I99: 0 | J99: 0 | K99: 0 | L99: 0 | M99: 0 | N99: 0 | O99: 0 | P99: 0 | Q99: 0 | R99: 0 | S99: 0 | T99: 0 | U99: 0 | V99: 0
F100: Total gross expenditure | G100: =SUM(G98:G98) -> 0 | H100: =SUM(H98:H98) -> 0 | I100: 0 | J100: 0 | K100: 0 | L100: 0 | M100: 0 | N100: 0 | O100: 0 | P100: =SUM(P95:P99) -> 0 | Q100: =SUM(Q95:Q99) -> 15992.15151 | R100: 0 | S100: 16350.28609 | T100: 0 | U100: 16577.16966 | V100: 0 | X100: 0 | Y100: 0 | Z100: 0 | AA100: 0 | AB100: 0 | AD100: =SUM(AD98:AD99) -> 0 | AE100: =SUM(AE98:AE99) -> 0 | AF100: =SUM(AF98:AF99) -> 0 | AH100: =SUM(AH98:AH99) -> 0 | AI100: =SUM(AI98:AI99) -> 0 | AM100: =SUM(AM98:AM99) -> 0 | AN100: =SUM(AN98:AN99) -> 0 | AO100: 0 | AP100: 0 | AQ100: 0 | AR100: 0 | AS100: 0 | AT100: 0 | AU100: 0
F101: Less customer contributions | P101: 0 | Q101: 0 | R101: 0 | S101: 0 | T101: 0 | U101: 0 | V101: 0
F102: Total net expenditure | G102: =G100-G101 -> 0 | H102: 0 | I102: 0 | J102: 0 | K102: 0 | L102: 0 | M102: 0 | N102: 0 | O102: 0 | P102: 0 | Q102: 15992.15151 | R102: 0 | S102: 16350.28609 | T102: 0 | U102: 16577.16966 | V102: 0 | X102: =X100-X101 -> 0 | Y102: =Y100-Y101 -> 0 | Z102: =Z100-Z101 -> 0 | AA102: =AA100-AA101 -> 0 | AB102: =AB100-AB101 -> 0 | AD102: =AD100-AD101 -> 0 | AE102: =AE100-AE101 -> 0 | AF102: =AF100-AF101 -> 0 | AH102: =AH100-AH101 -> 0 | AI102: =AI100-AI101 -> 0 | AM102: =AM100-AM101 -> 0 | AN102: 0 | AO102: 0 | AP102: 0 | AQ102: 0 | AR102: 0 | AS102: 0 | AT102: 0 | AU102: 0
E103: Molonglo Mall, Newcastle St & Fyshwick | F103: Services replaced (number)
F104: Direct expenditure (excl escalation)
F105: Direct internal labour expenditure (excl escalation) | P105: 0 | Q105: 0 | R105: 0 | S105: 0 | T105: 0 | U105: 0 | V105: 0
F106: Direct contractor expenditure (excl escalation) | P106: 4751.653322 | Q106: 0 | R106: 0 | S106: 0 | T106: 0 | U106: 0 | V106: 0
F107: Other internal direct expenditure (excl escalation) | P107: 0 | Q107: 0 | R107: 0 | S107: 0 | T107: 0 | U107: 0 | V107: 0
F108: Total direct expenditure (excl escalation) | L108: =SUM(L105:L107) -> 0 | M108: =SUM(M105:M107) -> 0 | N108: 0 | O108: 0 | P108: 4751.653322 | Q108: 0 | R108: 0 | S108: 0 | T108: 0 | U108: 0 | V108: 0 | X108: 0 | Y108: 0 | Z108: 0 | AA108: 0 | AB108: 0 | AC108: =SUM(G108:K108)/SUM(X108:AB108)-1 ->  | AD108: 0 | AE108: 0 | AF108: 0 | AH108: 0 | AI108: 0 | AJ108: =SUM(L108:Q108)/SUM(AD108:AI108)-1 ->  | AR108: =SUM(AR105:AR107) -> 0 | AS108: =SUM(AS105:AS107) -> 0 | AT108: 0 | AU108: 0
F109: Escalation | P109: -43.65923659 | Q109: 0 | R109: 0 | S109: 0 | T109: 0 | U109: 0 | V109: 0
F110: Total direct expenditure (inc escalation)
F111: Total overhead expenditure | P111: 0 | Q111: 0 | R111: 0 | S111: 0 | T111: 0 | U111: 0 | V111: 0 | AC111: =SUM(G111:K111)/SUM(X111:AB111)-1 -> 
F112: Related party margin expenditure | G112: =G$58*G106 -> 0 | H112: =H$58*H106 -> 0 | I112: 0 | J112: 0 | K112: 0 | L112: 0 | M112: 0 | N112: 0 | O112: 0 | P112: 0 | Q112: 0 | R112: 0 | S112: 0 | T112: 0 | U112: 0 | V112: 0
F113: Total gross expenditure | G113: =SUM(G111:G111) -> 0 | H113: =SUM(H111:H111) -> 0 | I113: 0 | J113: 0 | K113: 0 | L113: 0 | M113: 0 | N113: 0 | O113: 0 | P113: =SUM(P108:P112) -> 4707.994085 | Q113: =SUM(Q108:Q112) -> 0 | R113: 0 | S113: 0 | T113: 0 | U113: 0 | V113: 0 | X113: 0 | Y113: 0 | Z113: 0 | AA113: 0 | AB113: 0 | AD113: =SUM(AD111:AD112) -> 0 | AE113: =SUM(AE111:AE112) -> 0 | AF113: =SUM(AF111:AF112) -> 0 | AH113: =SUM(AH111:AH112) -> 0 | AI113: =SUM(AI111:AI112) -> 0 | AM113: =SUM(AM111:AM112) -> 0 | AN113: =SUM(AN111:AN112) -> 0 | AO113: 0 | AP113: 0 | AQ113: 0 | AR113: 0 | AS113: 0 | AT113: 0 | AU113: 0
F114: Less customer contributions | P114: 0 | Q114: 0 | R114: 0 | S114: 0 | T114: 0 | U114: 0 | V114: 0
F115: Total net expenditure | G115: =G113-G114 -> 0 | H115: 0 | I115: 0 | J115: 0 | K115: 0 | L115: 0 | M115: 0 | N115: 0 | O115: 0 | P115: 4707.994085 | Q115: 0 | R115: 0 | S115: 0 | T115: 0 | U115: 0 | V115: 0 | X115: =X113-X114 -> 0 | Y115: =Y113-Y114 -> 0 | Z115: =Z113-Z114 -> 0 | AA115: =AA113-AA114 -> 0 | AB115: =AB113-AB114 -> 0 | AD115: =AD113-AD114 -> 0 | AE115: =AE113-AE114 -> 0 | AF115: =AF113-AF114 -> 0 | AH115: =AH113-AH114 -> 0 | AI115: =AI113-AI114 -> 0 | AM115: =AM113-AM114 -> 0 | AN115: 0 | AO115: 0 | AP115: 0 | AQ115: 0 | AR115: 0 | AS115: 0 | AT115: 0 | AU115: 0
E116: Total | F116: Direct expenditure
F117: Direct internal labour expenditure | G117: =SUM(G66,G79) -> 0 | H117: =SUM(H66,H79) -> 0 | I117: =SUM(I66,I79) -> 0 | J117: =SUM(J66,J79) -> 0 | K117: =SUM(K66,K79) -> 0 | R117: =SUM(R66,R79) -> 0 | S117: =SUM(S66,S79) -> 0 | T117: =SUM(T66,T79) -> 0 | U117: =SUM(U66,U79) -> 0 | V117: =SUM(V66,V79) -> 0 | X117: =SUM(X66,X79) -> 0 | Y117: 0 | Z117: 0 | AA117: 0 | AB117: 0 | AC117: =SUM(G117:K117)/SUM(X117:AB117)-1 ->  | AD117: =SUM(AD66,AD79) -> 0 | AE117: 0 | AF117: 0 | AH117: =SUM(AH66,AH79) -> 0 | AI117: 0 | AJ117: =SUM(L117:Q117)/SUM(AD117:AI117)-1 ->  | AR117: =SUM(AR66,AR79) -> 0 | AS117: 0 | AT117: 0 | AU117: 0
F118: Direct contractor expenditure | G118: =SUM(G67,G80,G93,G106) -> 0 | H118: 0 | I118: =SUM(I67,I80,I93,I106) -> 20728 | J118: =SUM(J67,J80,J93,J106) -> 0 | K118: 15453.1 | L118: 0 | M118: 0 | N118: 0 | O118: 0 | P118: 4751.653322 | Q118: 15341.12408 | R118: 0 | S118: 15352.97484 | T118: 0 | U118: 15160.85584 | V118: 0 | X118: 0 | Y118: 0 | Z118: 0 | AA118: 0 | AB118: 0 | AD118: 0 | AE118: 0 | AF118: 0 | AH118: 0 | AI118: 0 | AR118: 0 | AS118: 0 | AT118: 0 | AU118: 0
F119: Other internal direct expenditure | G119: =SUM(G68,G81,G94,G107) -> 0 | H119: 0 | I119: 0 | J119: 0 | K119: 0 | L119: 0 | M119: 0 | N119: 0 | O119: 0 | P119: 0 | Q119: 0 | R119: 0 | S119: 0 | T119: 0 | U119: 0 | V119: 0 | X119: 0 | Y119: 0 | Z119: 0 | AA119: 0 | AB119: 0 | AD119: 0 | AE119: 0 | AF119: 0 | AH119: 0 | AI119: 0 | AR119: 0 | AS119: 0 | AT119: 0 | AU119: 0
F120: Total direct expenditure (excl escalation) | G120: =SUM(G69,G82,G95,G108) -> 0 | H120: 0 | I120: 20728 | J120: 0 | K120: 15453.1 | L120: 0 | M120: 0 | N120: 0 | O120: 0 | P120: 4751.653322 | Q120: 15341.12408 | R120: 0 | S120: 15352.97484 | T120: 0 | U120: 15160.85584 | V120: 0 | X120: 0 | Y120: 0 | Z120: 0 | AA120: 0 | AB120: 0 | AD120: 0 | AE120: 0 | AF120: 0 | AH120: 0 | AI120: 0 | AR120: 0 | AS120: 0 | AT120: 0 | AU120: 0
F121: Escalation | G121: =SUM(G70,G83,G96,G109) -> 0 | H121: 0 | I121: 0 | J121: 0 | K121: 0 | L121: 0 | M121: 0 | N121: 0 | O121: 0 | P121: -43.65923659 | Q121: -254.1886889 | R121: 0 | S121: 71.82336369 | T121: 0 | U121: 477.9834663 | V121: 0
F122: Total direct expenditure (inc escalation) | G122: =SUM(G71,G84,G97,G110) -> 0 | H122: 0 | I122: 20728 | J122: 0 | K122: 15453.1 | L122: 0 | M122: 0 | N122: 0 | O122: 0 | P122: 0 | Q122: 0 | R122: 0 | S122: 0 | T122: 0 | U122: 0 | V122: 0
F123: Total overhead expenditure | G123: =SUM(G72,G85,G98,G111) -> 0 | H123: 0 | I123: 0 | J123: 0 | K123: 0 | L123: 0 | M123: 0 | N123: 0 | O123: 0 | P123: 0 | Q123: 905.2161234 | R123: 0 | S123: 925.487892 | T123: 0 | U123: 938.3303584 | V123: 0 | X123: =SUM(X72,X85) -> 0 | Y123: =SUM(Y72,Y85) -> 0 | Z123: =SUM(Z72,Z85) -> 0 | AA123: =SUM(AA72,AA85) -> 0 | AB123: =SUM(AB72,AB85) -> 0 | AD123: =SUM(AD72,AD85) -> 0 | AE123: 0 | AF123: 0 | AH123: =SUM(AH72,AH85) -> 0 | AI123: 0 | AM123: =SUM(AM72,AM85) -> 0 | AN123: 0 | AO123: 0 | AP123: 0 | AQ123: 0 | AR123: 0 | AS123: 0 | AT123: 0 | AU123: 0
F124: Related party margin | G124: =SUM(G73,G86,G99,G112) -> 0 | H124: 0 | I124: 0 | J124: 0 | K124: 0 | L124: 0 | M124: 0 | N124: 0 | O124: 0 | P124: 0 | Q124: 0 | R124: 0 | S124: 0 | T124: 0 | U124: 0 | V124: 0 | X124: =SUMIF($F$43:$AJ$43,"Related party margin expenditure",V44:V82) -> 0 | Y124: =SUMIF($F$43:$AJ$43,"Related party margin expenditure",X44:X82) -> 0 | Z124: =SUMIF($F$43:$AJ$43,"Related party margin expenditure",Y44:Y82) -> 0 | AA124: =SUMIF($F$43:$AJ$43,"Related party margin expenditure",Z44:Z82) -> 0 | AB124: =SUMIF($F$43:$AJ$43,"Related party margin expenditure",AA44:AA82) -> 0 | AD124: 0 | AE124: 0 | AF124: 0 | AH124: 0 | AI124: 0 | AM124: =SUM(AM73,AM86) -> 0 | AN124: 0 | AO124: 0 | AP124: 0 | AQ124: 0 | AR124: 0 | AS124: 0 | AT124: 0 | AU124: 0
F125: Total gross expenditure | G125: =SUM(G74,G87,G100,G113) -> 0 | H125: 0 | I125: =SUM(I74,I87,I100,I113) -> 20728 | J125: =SUM(J74,J87,J100,J113) -> 0 | K125: 15453.1 | L125: 0 | M125: 0 | N125: 0 | O125: 0 | P125: 4707.994085 | Q125: 15992.15151 | R125: 0 | S125: 16350.28609 | T125: 0 | U125: 16577.16966 | V125: 0 | X125: =SUM(X74,X87) -> 0 | Y125: =SUM(Y74,Y87) -> 0 | Z125: =SUM(Z74,Z87) -> 0 | AA125: =SUM(AA74,AA87) -> 0 | AB125: =SUM(AB74,AB87) -> 0 | AD125: 0 | AE125: 0 | AF125: 0 | AH125: 0 | AI125: 0 | AM125: =SUM(AM74,AM87) -> 0 | AN125: 0 | AO125: 0 | AP125: 0 | AQ125: 0 | AR125: 0 | AS125: 0 | AT125: 0 | AU125: 0
F126: Less customer contributions | G126: =SUM(G75,G88,G101,G114) -> 0 | H126: 0 | I126: 0 | J126: 0 | K126: 0 | L126: 0 | M126: 0 | N126: 0 | O126: 0 | P126: 0 | Q126: 0 | R126: 0 | S126: 0 | T126: 0 | U126: 0 | V126: 0 | X126: =SUM(X75,X88) -> 0 | Y126: =SUMIF($F$43:$AJ$43,"Less customer contributions",X44:X86) -> 0 | Z126: =SUMIF($F$43:$AJ$43,"Less customer contributions",Y44:Y86) -> 0 | AA126: =SUMIF($F$43:$AJ$43,"Less customer contributions",Z44:Z86) -> 0 | AB126: =SUMIF($F$43:$AJ$43,"Less customer contributions",AA44:AA86) -> 0 | AD126: =SUMIF($F$43:$AJ$43,"Less customer contributions",AC44:AC86) -> 0 | AE126: =SUMIF($F$43:$AJ$43,"Less customer contributions",AD44:AD86) -> 0 | AF126: =SUMIF($F$43:$AJ$43,"Less customer contributions",AE44:AE86) -> 0 | AH126: =SUMIF($F$43:$AJ$43,"Less customer contributions",AG44:AG86) -> 0 | AI126: =SUMIF($F$43:$AJ$43,"Less customer contributions",AH44:AH86) -> 0 | AM126: =SUMIF(#REF!,"Less customer contributions",AM44:AM86) ->  | AN126: =SUMIF(#REF!,"Less customer contributions",AN44:AN86) ->  | AO126: =SUM(AO75,AO88) -> 0 | AP126: 0 | AQ126: 0 | AR126: 0 | AS126: 0 | AT126: 0 | AU126: 0
F127: Total net expenditure | G127: =SUM(G76,G89,G102,G115) -> 0 | H127: 0 | I127: 20728 | J127: 0 | K127: 15453.1 | L127: 0 | M127: 0 | N127: 0 | O127: 0 | P127: 4707.994085 | Q127: 15992.15151 | R127: 0 | S127: 16350.28609 | T127: 0 | U127: 16577.16966 | V127: 0 | X127: =SUMIF($F$43:$AJ$43,"Net total expenditure on mains replaced (incl. escalation)",V44:V86) -> 0 | Y127: =SUMIF($F$43:$AJ$43,"Net total expenditure on mains replaced (incl. escalation)",X44:X86) -> 0 | Z127: =SUMIF($F$43:$AJ$43,"Net total expenditure on mains replaced (incl. escalation)",Y44:Y86) -> 0 | AA127: =SUMIF($F$43:$AJ$43,"Net total expenditure on mains replaced (incl. escalation)",Z44:Z86) -> 0 | AB127: =SUMIF($F$43:$AJ$43,"Net total expenditure on mains replaced (incl. escalation)",AA44:AA86) -> 0 | AD127: =SUMIF($F$43:$AJ$43,"Net total expenditure on mains replaced (incl. escalation)",AC44:AC86) -> 0 | AE127: =SUMIF($F$43:$AJ$43,"Net total expenditure on mains replaced (incl. escalation)",AD44:AD86) -> 0 | AF127: =SUMIF($F$43:$AJ$43,"Net total expenditure on mains replaced (incl. escalation)",AE44:AE86) -> 0 | AH127: =SUMIF($F$43:$AJ$43,"Net total expenditure on mains replaced (incl. escalation)",AG44:AG86) -> 0 | AI127: =SUMIF($F$43:$AJ$43,"Net total expenditure on mains replaced (incl. escalation)",AH44:AH86) -> 0 | AM127: =AM125-AM126 ->  | AO127: 0 | AP127: 0 | AQ127: 0 | AR127: =AR125-AR126 -> 0 | AS127: =AS125-AS126 -> 0 | AT127: 0 | AU127: =AU125-AU126 -> 0
E128: Source(s) of data:
E130: Table 6.1.3 - Total mains replacement expenditure
F131: Total direct expenditure (excl escalation) | G131: =SUM(G49,G120) -> 0 | H131: 0 | I131: 20728 | J131: 0 | K131: 15453.1 | L131: 0 | M131: 0 | N131: 0 | O131: 0 | P131: 4751.653322 | Q131: 15341.12408 | R131: 0 | S131: 15352.97484 | T131: 0 | U131: 15160.85584 | V131: =SUM(V49,V120) -> 0 | X131: =SUM(X49,X120) -> 0 | Y131: =SUM(Y49,Y120) -> 0 | Z131: =SUM(Z49,Z120) -> 0 | AA131: =SUM(AA49,AA120) -> 0 | AB131: =SUM(AB49,AB120) -> 0 | AC131: =SUM(G131:K131)/SUM(X131:AB131)-1 ->  | AD131: =SUM(AD49,AD120) -> 0 | AE131: =SUM(AE49,AE120) -> 0 | AF131: =SUM(AG49,AF120) -> 0 | AH131: =SUM(AH49,AH120) -> 0 | AI131: =SUM(AI49,AI120) -> 0 | AJ131: =SUM(#REF!,AJ124) ->  | AR131: =SUM(AR49,AR120) ->  | AS131: =SUM(AT49,AS120) ->  | AT131: =SUM(AT49,AT120) ->  | AU131: =SUM(AU49,AU120) -> 
F132: Escalation | G132: =SUM(G50,G121) -> 0 | H132: 0 | I132: 0 | J132: 0 | K132: 0 | L132: 0 | M132: 0 | N132: 0 | O132: 0 | P132: -43.65923659 | Q132: -254.1886889 | R132: 0 | S132: 71.82336369 | T132: 0 | U132: 477.9834663
F133: Total direct expenditure (inc escalation) | G133: =SUM(G51,G122) -> 0 | H133: 0 | I133: 20728 | J133: 0 | K133: 15453.1 | L133: 0 | M133: 0 | N133: 0 | O133: 0
F134: Total overhead cost | G134: =SUM(G52,G123) -> 0 | H134: 0 | I134: 0 | J134: 0 | K134: 0 | L134: 0 | M134: 0 | N134: 0 | O134: 0 | P134: 0 | Q134: 905.2161234 | R134: 0 | S134: 925.487892 | T134: 0 | U134: 938.3303584 | V134: =SUM(V52,V123) -> 0 | X134: =SUM(X52,X123) -> 0 | Y134: =SUM(Y52,Y123) -> 0 | Z134: =SUM(Z52,Z123) -> 0 | AA134: =SUM(AA52,AA123) -> 0 | AB134: =SUM(AB52,AB123) -> 0 | AD134: =SUM(AD52,AD123) -> 0 | AE134: =SUM(AE52,AE123) -> 0 | AF134: =SUM(AG52,AF123) -> 0 | AH134: =SUM(AH52,AH123) -> 0 | AI134: =SUM(AI52,AI123) -> 0 | AJ134: =SUM(AJ87,AJ127) ->  | AM134: =SUM(AM52,AM123) ->  | AS134: =SUM(AT52,AS123) ->  | AT134: =SUM(AT52,AT123) ->  | AU134: =SUM(AU52,AU123) -> 
F135: Total related party margin | G135: =SUM(G53,G124) -> 0 | H135: 0 | I135: 0 | J135: 0 | K135: 0 | L135: 0 | M135: 0 | N135: 0 | O135: 0 | P135: =SUM(P124) -> 0 | Q135: 0 | R135: =SUMIF($F$43:$AJ$43,"Related party margin expenditure",Q44:Q130) -> 0 | S135: =SUMIF($F$43:$AJ$43,"Related party margin expenditure",R44:R130) -> 0 | T135: =SUMIF($F$43:$AJ$43,"Related party margin expenditure",S44:S130) -> 0 | U135: =SUMIF($F$43:$AJ$43,"Related party margin expenditure",T44:T130) -> 0 | V135: =SUMIF($F$43:$AJ$43,"Related party margin expenditure",U44:U130) -> 0 | X135: =SUMIF($F$43:$AJ$43,"Related party margin expenditure",V44:V130) -> 0 | Y135: =SUMIF($F$43:$AJ$43,"Related party margin expenditure",X44:X130) -> 0 | Z135: =SUMIF($F$43:$AJ$43,"Related party margin expenditure",Y44:Y130) -> 0 | AA135: =SUMIF($F$43:$AJ$43,"Related party margin expenditure",Z44:Z130) -> 0 | AB135: =SUMIF($F$43:$AJ$43,"Related party margin expenditure",AA44:AA130) -> 0 | AD135: =SUMIF($F$43:$AJ$43,"Related party margin expenditure",AC44:AC130) -> 0 | AE135: =SUMIF($F$43:$AJ$43,"Related party margin expenditure",AD44:AD130) -> 0 | AF135: =SUMIF($F$43:$AJ$43,"Related party margin expenditure",AE44:AE130) -> 0 | AH135: =SUMIF($F$43:$AJ$43,"Related party margin expenditure",AG44:AG130) -> 0 | AI135: =SUMIF($F$43:$AJ$43,"Related party margin expenditure",AH44:AH130) -> 0 | AJ135: =SUM(AJ88,AJ128) ->  | AM135: =SUMIF(#REF!,"Related party margin",AM44:AM130) ->  | AN135: =SUMIF(#REF!,"Related party margin",AN44:AN130) ->  | AO135: =SUMIF(#REF!,"Related party margin",AO44:AO130) ->  | AP135: =SUMIF(#REF!,"Related party margin",AP44:AP130) ->  | AQ135: =SUMIF(#REF!,"Related party margin",AQ44:AQ130) ->  | AR135: =SUMIF(#REF!,"Related party margin",AR44:AR130) ->  | AS135: =SUMIF(#REF!,"Related party margin",AS44:AS130) ->  | AT135: =SUMIF(#REF!,"Related party margin",AS44:AS130) ->  | AU135: =SUMIF(#REF!,"Related party margin",AT44:AT130) -> 
F136: Total gross expenditure | G136: =SUM(G54,G125) -> 0 | H136: 0 | I136: 20728 | J136: 0 | K136: 15453.1 | L136: 0 | M136: 0 | N136: 0 | O136: 0 | P136: =SUM(P131:P135) -> 4707.994085 | Q136: 15992.15151 | R136: =SUM(R131:R135) -> 0 | S136: =SUM(S131:S135) -> 16350.28609 | T136: =SUM(T131:T135) -> 0 | U136: =SUM(U131:U135) -> 16577.16966 | V136: =SUM(V131:V135) -> 0 | X136: =SUM(X54,X125) -> 0 | Y136: =SUM(Y54,Y125) -> 0 | Z136: =SUM(Z54,Z125) -> 0 | AA136: =SUM(AA54,AA125) -> 0 | AB136: =SUM(AB54,AB125) -> 0 | AD136: =SUM(AD54,AD125) -> 0 | AE136: =SUM(AE54,AE125) -> 0 | AF136: =SUM(AG54,AF125) -> 0 | AH136: =SUM(AH54,AH125) -> 0 | AI136: =SUM(AI54,AI125) -> 0 | AM136: =SUM(AM54,AM125) ->  | AS136: =SUM(AT54,AS125) ->  | AT136: =SUM(AT54,AT125) ->  | AU136: =SUM(AU54,AU125) -> 
F137: Less total customer contributions | G137: =SUM(G55,G126) -> 0 | H137: 0 | I137: 0 | J137: 0 | K137: 0 | L137: 0 | M137: 0 | N137: 0 | O137: 0 | P137: =SUMIF($F$43:$AJ$43,"Less customer contributions",P44:P130) -> 0 | Q137: 0 | R137: 0 | S137: 0 | T137: 0 | U137: 0 | V137: 0 | X137: =SUMIF($F$43:$AJ$43,"Less customer contributions",V44:V130) -> 0 | Y137: =SUMIF($F$43:$AJ$43,"Less customer contributions",X44:X130) -> 0 | Z137: =SUMIF($F$43:$AJ$43,"Less customer contributions",Y44:Y130) -> 0 | AA137: =SUMIF($F$43:$AJ$43,"Less customer contributions",Z44:Z130) -> 0 | AB137: =SUMIF($F$43:$AJ$43,"Less customer contributions",AA44:AA130) -> 0 | AD137: =SUMIF($F$43:$AJ$43,"Less customer contributions",AC44:AC130) -> 0 | AE137: =SUMIF($F$43:$AJ$43,"Less customer contributions",AD44:AD130) -> 0 | AF137: =SUMIF($F$43:$AJ$43,"Less customer contributions",AE44:AE130) -> 0 | AH137: =SUMIF($F$43:$AJ$43,"Less customer contributions",AG44:AG130) -> 0 | AI137: =SUMIF($F$43:$AJ$43,"Less customer contributions",AH44:AH130) -> 0 | AM137: =SUMIF(#REF!,"Less customer contributions",AM44:AM130) ->  | AN137: =SUMIF(#REF!,"Less customer contributions",AN44:AN130) ->  | AO137: =SUMIF(#REF!,"Less customer contributions",AO44:AO130) ->  | AP137: =SUMIF(#REF!,"Less customer contributions",AP44:AP130) ->  | AQ137: =SUMIF(#REF!,"Less customer contributions",AQ44:AQ130) ->  | AR137: =SUMIF(#REF!,"Less customer contributions",AR44:AR130) ->  | AS137: =SUMIF(#REF!,"Less customer contributions",AS44:AS130) ->  | AT137: =SUMIF(#REF!,"Less customer contributions",AS44:AS130) ->  | AU137: =SUMIF(#REF!,"Less customer contributions",AT44:AT130) -> 
F138: Total net expenditure | G138: =SUM(G56,G127) -> 0 | H138: 0 | I138: 20728 | J138: 0 | K138: 15453.1 | L138: 0 | M138: 0 | N138: 0 | O138: 0 | P138: =P136-P137 -> 4707.994085 | Q138: 15992.15151 | R138: =R136-R137 -> 0 | S138: =S136-S137 -> 16350.28609 | T138: =T136-T137 -> 0 | U138: =U136-U137 -> 16577.16966 | V138: =V136-V137 -> 0 | X138: =X136-X137 -> 0 | Y138: 0 | Z138: 0 | AA138: 0 | AB138: 0 | AD138: =AD136-AD137 -> 0 | AE138: =AE136-AE137 -> 0 | AF138: =AF136-AF137 -> 0 | AH138: =AH136-AH137 -> 0 | AI138: =AI136-AI137 -> 0 | AM138: =AM136-AM137 ->  | AU138: =AU136-AU137 -> 
E139: Source(s) of data:
G140: =G119 -> 0 | H140: =H119 -> 0 | I140: 0 | J140: 0 | K140: 0 | L140: 0 | M140: 0 | N140: 0 | O140: 0

Sheet 7. Facilities renewal & upgrade
E1: =SheetHeader -> REGULATORY REPORTING STATEMENT
E2: =dms_TradingName -> ActewAGL Distribution
E3: =CONCATENATE(FRCP_y1," to ",FRCP_y5) -> 2016-17 to 2020-21 | H3: =CONCATENATE(LEFT(FRCP_y1,4),"-",LEFT(FRCP_y5,2),RIGHT(FRCP_y5,2)) -> 2016-2021
E4: 7. FACILITIES RENEWAL AND UPGRADE CAPITAL EXPENDITURE
A7: HPM | B7: HP mains | E7: Instructions
A8: HPS | B8: HP services | E8: This template asks for information relating to facilities renewal and upgrade capital expenditure
A9: MPM | B9: MP mains | E9: =CONCATENATE("As set out in cl.6.1 of the ",dms_TradingName," RIN, for tables 8.1 to 8.2, where the requested data is captured in the ",dms_TradingName," capex model it is not required to be reentered in the RIN template tables. If the requested data has not been provided in the ",dms_TradingName," capex model, please enter into the tables below. This may require the insertion of new lines in each table.") -> As set out in cl.6.1 of the ActewAGL Distribution RIN, for tables 8.1 to 8.2, where the requested data is captured in the ActewAGL Distribution capex model it is not required to be reentered in the RIN template tables. If the requested data has not been provided in the ActewAGL Distribution capex model, please enter into the tables below. This may require the insertion of new lines in each table.
A10: MPS | B10: MP services | E10: Reported expenditure is to be entered EXCLUSIVE of any profit margins or management fees paid pursuant to arrangements or contracts with any related parties. Include any related party margins or management fees in the separate 'Related party margin' line item.
A11: TRS | B11: TRS & DRS - valves & regulators | E11: =CONCATENATE("Subject to cl.6.1 of the ",dms_TradingName," RIN, where linked/adjustable escalation is not provided in the ",dms_TradingName," capex model, escalation should be linked to allocations derived in tab '2.Escalators'.") -> Subject to cl.6.1 of the ActewAGL Distribution RIN, where linked/adjustable escalation is not provided in the ActewAGL Distribution capex model, escalation should be linked to allocations derived in tab '2.Escalators'.
A12: CM | B12: Contract meters | E12: Subject to cl.6.1 of the ActewAGL RIN, where linked/adjustable overhead expenditure and related party margin expenditure is not provided in the ActewAGL capex model, overhead expenditure and related party margin expenditure should be linked to allocations derived in tabs '14. Overheads' and '15. Related party transactions'.
A13: TM | B13: Tariff meters | E13: Capital expenditure amounts entered should be GROSS of customer contributions. There is a separate line item for customer contributions from which net capital expenditure is derived.
A14: ITS | B14: IT System | E14: Capital expenditure amounts entered should be GROSS of customer contributions. There is a separate line item for customer contributions from which net capital expenditure is derived.
G15: 0.1381630185 | H15: 0.00834639265 | I15: 0.3095906788 | J15: 0.38986706 | K15: 0.1594906938 | L15: 0.1564776719 | M15: 0.07154563481 | N15: 0 | O15: 0 | P15: 0
E16: Table 7 - FACILITIES RENEWAL AND UPGRADE CAPITAL EXPENDITURE | AB16: REAL $ CONVERSION OF HISTORICAL DATA
E17: Table 7.1 - Facilities renewal and upgrade expenditure (actual / forecast)
G18: Previous access arrangement period | L18: Current access arrangement period | S18: Next access arrangement period | X18: Supporting documentation (business case, costing spreadsheet, contracts) | AB18: Previous access arrangement period | AG18: Current access arrangement period
G19: $0's, nominal | P19: $0's, real June 2016 | AB19: =CONCATENATE("$0's, real ",dms_DollarReal) -> $0's, real June 2016
A20: Internal identification code | B20: Asset category | C20: Percent allocation | G20: Actual | P20: Forecast | AB20: Actual
G21: =PRCP -> 2005-06 | H21: 2006-07 | I21: 2007-08 | J21: 2008-09 | K21: 2009-10 | L21: =CRCP_y1 -> 2010-11 | M21: =CRCP_y2 -> 2011-12 | N21: =CRCP_y3 -> 2012-13 | O21: =CRCP_y4 -> 2013-14 | P21: =CRCP_y5 -> 2014-15 | Q21: =CRCP_y6 -> 2015-16 | R21: Variance (actual vs approved) % | S21: =FRCP -> 2016-17 | T21: 2017-18 | U21: 2018-19 | V21: 2019-20 | W21: 2020-21 | AB21: =PRCP -> 2005-06 | AC21: 2006-07 | AD21: 2007-08 | AE21: 2008-09 | AF21: 2009-10 | AG21: =CRCP_y1 -> 2010-11 | AH21: =CRCP_y2 -> 2011-12 | AI21: =CRCP_y3 -> 2012-13 | AJ21: =CRCP_y4 -> 2013-14
E22: Facilities
E23: 160346 - Gas Meter Set Vent Line Installations | F23: Direct expenditure
F24: Direct internal labour expenditure | G24: 0 | H24: 0 | I24: 0 | J24: 0 | K24: 0 | L24: 0 | M24: 0 | N24: 0 | O24: 0
F25: Direct contractor expenditure | G25: 0 | H25: 0 | I25: 0 | J25: 0 | K25: 0 | L25: 0 | M25: 0 | N25: 0 | O25: 0
F26: Other internal direct expenditure | G26: 0 | H26: 0 | I26: 0 | J26: 3780 | K26: 0 | L26: 0 | M26: 0 | N26: 0 | O26: 0
F27: Total direct expenditure (excl escalation) | G27: =SUM(G24:G26) -> 0 | H27: 0 | I27: 0 | J27: 3780 | K27: 0 | L27: 0 | M27: 0 | N27: 0 | O27: 0 | S27: =SUM(S24:S26) -> 0 | T27: =SUM(T24:T26) -> 0 | U27: =SUM(U24:U26) -> 0 | V27: =SUM(V24:V26) -> 0 | W27: =SUM(W24:W26) -> 0 | AG27: 0 | AH27: 0 | AI27: 0 | AJ27: 0
F28: Escalation
F29: Total direct expenditure (inc escalation) | G29: =SUM(G27:G28) -> 0 | H29: 0 | I29: 0 | J29: 3780 | K29: 0 | L29: 0 | M29: 0 | N29: 0 | O29: 0
F30: Total overhead expenditure | AG30: 0 | AH30: 0 | AI30: 0 | AJ30: 0
F31: Related party margin expenditure | G31: =G$15*G25 -> 0 | H31: =H$15*H25 -> 0 | I31: 0 | J31: =J$15*J25 -> 0 | K31: 0 | L31: 0 | M31: 0 | N31: 0 | O31: 0 | AG31: 0 | AH31: 0 | AI31: 0 | AJ31: 0
F32: Total gross expenditure | G32: =SUM(G29:G31) -> 0 | H32: 0 | I32: 0 | J32: 3780 | K32: 0 | L32: 0 | M32: 0 | N32: 0 | O32: 0 | S32: =SUM(S30:S31) -> 0 | T32: =SUM(T30:T31) -> 0 | U32: =SUM(U30:U31) -> 0 | V32: =SUM(V30:V31) -> 0 | W32: =SUM(W30:W31) -> 0 | AB32: 0 | AC32: 0 | AD32: 0 | AE32: 0 | AF32: 0 | AG32: 0 | AH32: 0 | AI32: 0 | AJ32: 0
F33: Less customer contributions
F34: Total net expenditure | G34: =G32-G33 -> 0 | H34: 0 | I34: 0 | J34: 3780 | K34: 0 | L34: 0 | M34: 0 | N34: 0 | O34: 0 | S34: =S32-S33 -> 0 | T34: =T32-T33 -> 0 | U34: =U32-U33 -> 0 | V34: =V32-V33 -> 0 | W34: =W32-W33 -> 0 | AB34: 0 | AC34: 0 | AD34: 0 | AE34: 0 | AF34: 0 | AG34: 0 | AH34: 0 | AI34: 0 | AJ34: 0
E35: 150235 - SIB HPFacilities-WatsonTRS Rd Grates | F35: Direct expenditure
F36: Direct internal labour expenditure | G36: 0 | H36: 0 | I36: 0 | J36: 0 | K36: 0 | L36: 0 | M36: 0 | N36: 0 | O36: 0
F37: Direct contractor expenditure | G37: 0 | H37: 0 | J37: 0 | K37: 0 | L37: 0 | M37: 0 | N37: 0 | O37: 0
F38: Other internal direct expenditure | G38: 0 | H38: 0 | J38: 0 | K38: 0 | L38: 0 | M38: 0 | N38: 0 | O38: 0
F39: Total direct expenditure (excl escalation) | G39: =SUM(G36:G38) -> 0 | H39: 0 | J39: 0 | K39: 0 | L39: 0 | M39: 0 | N39: 0 | O39: 0 | S39: =SUM(S36:S38) -> 0 | T39: =SUM(T36:T38) -> 0 | U39: =SUM(U36:U38) -> 0 | V39: =SUM(V36:V38) -> 0 | W39: =SUM(W36:W38) -> 0 | AG39: 0 | AH39: 0 | AI39: 0 | AJ39: 0
F40: Escalation
F41: Total direct expenditure (inc escalation) | G41: =SUM(G39:G40) -> 0 | H41: 0 | J41: 0 | K41: 0 | L41: 0 | M41: 0 | N41: 0 | O41: 0
F42: Total overhead expenditure | AG42: 0 | AH42: 0 | AI42: 0 | AJ42: 0
F43: Related party margin expenditure | G43: =G$15*G37 -> 0 | H43: =H$15*H37 -> 0 | J43: 0 | K43: 0 | L43: 0 | M43: 0 | N43: 0 | O43: 0 | AG43: 0 | AH43: 0 | AI43: 0 | AJ43: 0
F44: Total gross expenditure | G44: =SUM(G41:G43) -> 0 | H44: 0 | J44: 0 | K44: 0 | L44: 0 | M44: 0 | N44: 0 | O44: 0 | S44: =SUM(S42:S43) -> 0 | T44: =SUM(T42:T43) -> 0 | U44: =SUM(U42:U43) -> 0 | V44: =SUM(V42:V43) -> 0 | W44: =SUM(W42:W43) -> 0 | AB44: 0 | AC44: 0 | AD44: 0 | AE44: 0 | AF44: 0 | AG44: 0 | AH44: 0 | AI44: 0 | AJ44: 0
F45: Less customer contributions
F46: Total net expenditure | G46: =G44-G45 -> 0 | H46: 0 | I46: 0 | J46: 0 | K46: 0 | L46: 0 | M46: 0 | N46: 0 | O46: 0 | S46: =S44-S45 -> 0 | T46: =T44-T45 -> 0 | U46: =U44-U45 -> 0 | V46: =V44-V45 -> 0 | W46: =W44-W45 -> 0 | AB46: 0 | AC46: 0 | AD46: 0 | AE46: 0 | AF46: 0 | AG46: 0 | AH46: 0 | AI46: 0 | AJ46: 0
E47: 150300 - Fyshwick-Filter Upgrd-SIB-Facility HP | F47: Direct expenditure
F48: Direct internal labour expenditure | G48: 0 | H48: 0 | I48: 0 | J48: 0 | K48: 0 | L48: 0 | M48: 0 | N48: 0 | O48: 0
F49: Direct contractor expenditure | H49: 0 | I49: 0 | J49: 0 | K49: 0 | L49: 0 | M49: 0 | N49: 0 | O49: 0
F50: Other internal direct expenditure | H50: 0 | I50: 0 | J50: 0 | K50: 0 | L50: 0 | M50: 0 | N50: 0 | O50: 0
F51: Total direct expenditure (excl escalation) | H51: =SUM(H48:H50) -> 0 | I51: 0 | J51: 0 | K51: 0 | L51: 0 | M51: 0 | N51: 0 | O51: 0 | S51: =SUM(S48:S50) -> 0 | T51: =SUM(T48:T50) -> 0 | U51: =SUM(U48:U50) -> 0 | V51: =SUM(V48:V50) -> 0 | W51: =SUM(W48:W50) -> 0 | AG51: 0 | AH51: 0 | AI51: 0 | AJ51: 0
F52: Escalation
F53: Total direct expenditure (inc escalation) | H53: =SUM(H51:H52) -> 0 | I53: 0 | J53: 0 | K53: 0 | L53: 0 | M53: 0 | N53: 0 | O53: 0
F54: Total overhead expenditure | AG54: 0 | AH54: 0 | AI54: 0 | AJ54: 0
F55: Related party margin expenditure | H55: =H$15*H49 -> 0 | I55: 0 | J55: 0 | K55: 0 | L55: 0 | M55: 0 | N55: 0 | O55: 0 | AG55: 0 | AH55: 0 | AI55: 0 | AJ55: 0
F56: Total gross expenditure | H56: =SUM(H53:H55) -> 0 | I56: 0 | J56: 0 | K56: 0 | L56: 0 | M56: 0 | N56: 0 | O56: 0 | S56: =SUM(S54:S55) -> 0 | T56: =SUM(T54:T55) -> 0 | U56: =SUM(U54:U55) -> 0 | V56: =SUM(V54:V55) -> 0 | W56: =SUM(W54:W55) -> 0 | AB56: 0 | AC56: 0 | AD56: 0 | AE56: 0 | AF56: 0 | AG56: 0 | AH56: 0 | AI56: 0 | AJ56: 0
F57: Less customer contributions
F58: Total net expenditure | G58: =G56-G57 -> 0 | H58: 0 | I58: 0 | J58: 0 | K58: 0 | L58: 0 | M58: 0 | N58: 0 | O58: 0 | S58: =S56-S57 -> 0 | T58: =T56-T57 -> 0 | U58: =U56-U57 -> 0 | V58: =V56-V57 -> 0 | W58: =W56-W57 -> 0 | AB58: 0 | AC58: 0 | AD58: 0 | AE58: 0 | AF58: 0 | AG58: 0 | AH58: 0 | AI58: 0 | AJ58: 0
E59: 150301 - Fyshwick-Tertiary DDN to GPRS Telemetry-SIB Facilities HP | F59: Direct expenditure
F60: Direct internal labour expenditure | G60: 0 | H60: 0 | I60: 0 | J60: 0 | K60: 0 | L60: 0 | M60: 0 | N60: 0 | O60: 0
F61: Direct contractor expenditure | H61: 0 | I61: 0 | J61: 0 | K61: 0 | L61: 0 | M61: 0 | N61: 0 | O61: 0
F62: Other internal direct expenditure | H62: 0 | I62: 0 | J62: 0 | K62: 0 | L62: 0 | M62: 0 | N62: 0 | O62: 0
F63: Total direct expenditure (excl escalation) | H63: =SUM(H60:H62) -> 0 | I63: 0 | J63: 0 | K63: 0 | L63: 0 | M63: 0 | N63: 0 | O63: 0 | S63: =SUM(S60:S62) -> 0 | T63: =SUM(T60:T62) -> 0 | U63: =SUM(U60:U62) -> 0 | V63: =SUM(V60:V62) -> 0 | W63: =SUM(W60:W62) -> 0 | AG63: 0 | AH63: 0 | AI63: 0 | AJ63: 0
F64: Escalation
F65: Total direct expenditure (inc escalation) | H65: =SUM(H63:H64) -> 0 | I65: 0 | J65: 0 | K65: 0 | L65: 0 | M65: 0 | N65: 0 | O65: 0
F66: Total overhead expenditure | AG66: 0 | AH66: 0 | AI66: 0 | AJ66: 0
F67: Related party margin expenditure | H67: =H$15*H61 -> 0 | I67: 0 | J67: 0 | K67: 0 | L67: 0 | M67: 0 | N67: 0 | O67: 0 | AG67: 0 | AH67: 0 | AI67: 0 | AJ67: 0
F68: Total gross expenditure | H68: =SUM(H65:H67) -> 0 | I68: 0 | J68: 0 | K68: 0 | L68: 0 | M68: 0 | N68: 0 | O68: 0 | S68: =SUM(S66:S67) -> 0 | T68: =SUM(T66:T67) -> 0 | U68: =SUM(U66:U67) -> 0 | V68: =SUM(V66:V67) -> 0 | W68: =SUM(W66:W67) -> 0 | AB68: 0 | AC68: 0 | AD68: 0 | AE68: 0 | AF68: 0 | AG68: 0 | AH68: 0 | AI68: 0 | AJ68: 0
F69: Less customer contributions
F70: Total net expenditure | H70: =H68-H69 -> 0 | I70: 0 | J70: 0 | K70: 0 | L70: 0 | M70: 0 | N70: 0 | O70: 0 | S70: =S68-S69 -> 0 | T70: =T68-T69 -> 0 | U70: =U68-U69 -> 0 | V70: =V68-V69 -> 0 | W70: =W68-W69 -> 0 | AB70: 0 | AC70: 0 | AD70: 0 | AE70: 0 | AF70: 0 | AG70: 0 | AH70: 0 | AI70: 0 | AJ70: 0
E71: 150302 - Acton&Hoskinstown-CP Telemetry-SIB Facilities HP | F71: Direct expenditure
F72: Direct internal labour expenditure | G72: 0 | H72: 0 | I72: 0 | J72: 0 | K72: 0 | L72: 0 | M72: 0 | N72: 0 | O72: 0
F73: Direct contractor expenditure | H73: 0 | I73: 0 | J73: 0 | K73: 0 | L73: 0 | M73: 0 | N73: 0 | O73: 0
F74: Other internal direct expenditure | H74: 0 | I74: 0 | J74: 0 | K74: 0 | L74: 0 | M74: 0 | N74: 0 | O74: 0
F75: Total direct expenditure (excl escalation) | H75: =SUM(H72:H74) -> 0 | I75: 0 | J75: 0 | K75: 0 | L75: 0 | M75: 0 | N75: 0 | O75: 0 | S75: =SUM(S72:S74) -> 0 | T75: =SUM(T72:T74) -> 0 | U75: =SUM(U72:U74) -> 0 | V75: =SUM(V72:V74) -> 0 | W75: =SUM(W72:W74) -> 0 | AG75: 0 | AH75: 0 | AI75: 0 | AJ75: 0
F76: Escalation
F77: Total direct expenditure (inc escalation) | H77: =SUM(H75:H76) -> 0 | I77: 0 | J77: 0 | K77: 0 | L77: 0 | M77: 0 | N77: 0 | O77: 0
F78: Total overhead expenditure | AG78: 0 | AH78: 0 | AI78: 0 | AJ78: 0
F79: Related party margin expenditure | H79: =H$15*H73 -> 0 | I79: 0 | J79: 0 | K79: 0 | L79: 0 | M79: 0 | N79: 0 | O79: 0 | AG79: 0 | AH79: 0 | AI79: 0 | AJ79: 0
F80: Total gross expenditure | H80: =SUM(H77:H79) -> 0 | I80: 0 | J80: 0 | K80: 0 | L80: 0 | M80: 0 | N80: 0 | O80: 0 | S80: =SUM(S78:S79) -> 0 | T80: =SUM(T78:T79) -> 0 | U80: =SUM(U78:U79) -> 0 | V80: =SUM(V78:V79) -> 0 | W80: =SUM(W78:W79) -> 0 | AB80: 0 | AC80: 0 | AD80: 0 | AE80: 0 | AF80: 0 | AG80: 0 | AH80: 0 | AI80: 0 | AJ80: 0
F81: Less customer contributions
F82: Total net expenditure | H82: =H80-H81 -> 0 | I82: 0 | J82: 0 | K82: 0 | L82: 0 | M82: 0 | N82: 0 | O82: 0 | S82: =S80-S81 -> 0 | T82: =T80-T81 -> 0 | U82: =U80-U81 -> 0 | V82: =V80-V81 -> 0 | W82: =W80-W81 -> 0 | AB82: 0 | AC82: 0 | AD82: 0 | AE82: 0 | AF82: 0 | AG82: 0 | AH82: 0 | AI82: 0 | AJ82: 0
E83: 150306 - Phillip-Jerrabombera-Hoskinstown & Fyshwick RTU Upgrade | F83: Direct expenditure
F84: Direct internal labour expenditure | G84: 0 | H84: 0 | I84: 0 | J84: 0 | K84: 0 | L84: 0 | M84: 0 | N84: 0 | O84: 0
F85: Direct contractor expenditure | H85: 0 | I85: 0 | J85: 0 | K85: 0 | L85: 0 | M85: 0 | N85: 0 | O85: 0
F86: Other internal direct expenditure | H86: 0 | I86: 0 | J86: 0 | K86: 0 | L86: 0 | M86: 0 | N86: 0 | O86: 0
F87: Total direct expenditure (excl escalation) | H87: =SUM(H84:H86) -> 0 | I87: 0 | J87: 0 | K87: 0 | L87: 0 | M87: 0 | N87: 0 | O87: 0 | S87: =SUM(S84:S86) -> 0 | T87: =SUM(T84:T86) -> 0 | U87: =SUM(U84:U86) -> 0 | V87: =SUM(V84:V86) -> 0 | W87: =SUM(W84:W86) -> 0 | AG87: 0 | AH87: 0 | AI87: 0 | AJ87: 0
F88: Escalation
F89: Total direct expenditure (inc escalation) | H89: =SUM(H87:H88) -> 0 | I89: 0 | J89: 0 | K89: 0 | L89: 0 | M89: 0 | N89: 0 | O89: 0
F90: Total overhead expenditure | AG90: 0 | AH90: 0 | AI90: 0 | AJ90: 0
F91: Related party margin expenditure | H91: =H$15*H85 -> 0 | I91: 0 | J91: 0 | K91: 0 | L91: 0 | M91: 0 | N91: 0 | O91: 0 | AG91: 0 | AH91: 0 | AI91: 0 | AJ91: 0
F92: Total gross expenditure | H92: =SUM(H89:H91) -> 0 | I92: 0 | J92: 0 | K92: 0 | L92: 0 | M92: 0 | N92: 0 | O92: 0 | S92: =SUM(S90:S91) -> 0 | T92: =SUM(T90:T91) -> 0 | U92: =SUM(U90:U91) -> 0 | V92: =SUM(V90:V91) -> 0 | W92: =SUM(W90:W91) -> 0 | AB92: 0 | AC92: 0 | AD92: 0 | AE92: 0 | AF92: 0 | AG92: 0 | AH92: 0 | AI92: 0 | AJ92: 0
F93: Less customer contributions
F94: Total net expenditure | G94: =G92-G93 -> 0 | H94: 0 | I94: 0 | J94: 0 | K94: 0 | L94: 0 | M94: 0 | N94: 0 | O94: 0 | S94: =S92-S93 -> 0 | T94: =T92-T93 -> 0 | U94: =U92-U93 -> 0 | V94: =V92-V93 -> 0 | W94: =W92-W93 -> 0 | AB94: 0 | AC94: 0 | AD94: 0 | AE94: 0 | AF94: 0 | AG94: 0 | AH94: 0 | AI94: 0 | AJ94: 0
E95: 150309 - Deakin, ACT - Grove Regulator Set | F95: Direct expenditure
F96: Direct internal labour expenditure | G96: 0 | H96: 0 | I96: 0 | J96: 0 | K96: 0 | L96: 0 | M96: 0 | N96: 0 | O96: 0
F97: Direct contractor expenditure | H97: 0 | I97: 0 | J97: 0 | K97: 0 | L97: 0 | M97: 0 | N97: 0 | O97: 0
F98: Other internal direct expenditure | H98: 0 | I98: 0 | J98: 0 | K98: 0 | L98: 0 | M98: 0 | N98: 0 | O98: 0
F99: Total direct expenditure (excl escalation) | H99: =SUM(H96:H98) -> 0 | I99: 0 | J99: 0 | K99: 0 | L99: 0 | M99: 0 | N99: 0 | O99: 0 | S99: =SUM(S96:S98) -> 0 | T99: =SUM(T96:T98) -> 0 | U99: =SUM(U96:U98) -> 0 | V99: =SUM(V96:V98) -> 0 | W99: =SUM(W96:W98) -> 0 | AG99: 0 | AH99: 0 | AI99: 0 | AJ99: 0
F100: Escalation
F101: Total direct expenditure (inc escalation) | H101: =SUM(H99:H100) -> 0 | I101: 0 | J101: 0 | K101: 0 | L101: 0 | M101: 0 | N101: 0 | O101: 0
F102: Total overhead expenditure | AG102: 0 | AH102: 0 | AI102: 0 | AJ102: 0
F103: Related party margin expenditure | H103: =H$15*H97 -> 0 | I103: 0 | J103: 0 | K103: 0 | L103: 0 | M103: 0 | N103: 0 | O103: 0 | AG103: 0 | AH103: 0 | AI103: 0 | AJ103: 0
F104: Total gross expenditure | H104: =SUM(H101:H103) -> 0 | I104: 0 | J104: 0 | K104: 0 | L104: 0 | M104: 0 | N104: 0 | O104: 0 | S104: =SUM(S102:S103) -> 0 | T104: =SUM(T102:T103) -> 0 | U104: =SUM(U102:U103) -> 0 | V104: =SUM(V102:V103) -> 0 | W104: =SUM(W102:W103) -> 0 | AB104: 0 | AC104: 0 | AD104: 0 | AE104: 0 | AF104: 0 | AG104: 0 | AH104: 0 | AI104: 0 | AJ104: 0
F105: Less customer contributions
F106: Total net expenditure | H106: =H104-H105 -> 0 | I106: 0 | J106: 0 | K106: 0 | L106: 0 | M106: 0 | N106: 0 | O106: 0 | S106: =S104-S105 -> 0 | T106: =T104-T105 -> 0 | U106: =U104-U105 -> 0 | V106: =V104-V105 -> 0 | W106: =W104-W105 -> 0 | AB106: 0 | AC106: 0 | AD106: 0 | AE106: 0 | AF106: 0 | AG106: 0 | AH106: 0 | AI106: 0 | AJ106: 0
E107: 150310 - Turner-Bruce-Belconnen and Fyshwick-Twin Sense Lines on SDRS | F107: Direct expenditure
F108: Direct internal labour expenditure | G108: 0 | H108: 0 | I108: 0 | J108: 0 | K108: 0 | L108: 0 | M108: 0 | N108: 0 | O108: 0
F109: Direct contractor expenditure | H109: 0 | I109: 0 | J109: 0 | K109: 0 | L109: 0 | M109: 0 | N109: 0 | O109: 0
F110: Other internal direct expenditure | H110: 0 | I110: 0 | J110: 0 | K110: 0 | L110: 0 | M110: 0 | N110: 0 | O110: 0
F111: Total direct expenditure (excl escalation) | H111: =SUM(H108:H110) -> 0 | I111: 0 | J111: 0 | K111: 0 | L111: 0 | M111: 0 | N111: 0 | O111: 0 | S111: =SUM(S108:S110) -> 0 | T111: =SUM(T108:T110) -> 0 | U111: =SUM(U108:U110) -> 0 | V111: =SUM(V108:V110) -> 0 | W111: =SUM(W108:W110) -> 0 | AG111: 0 | AH111: 0 | AI111: 0 | AJ111: 0
F112: Escalation
F113: Total direct expenditure (inc escalation) | H113: =SUM(H111:H112) -> 0 | I113: 0 | J113: 0 | K113: 0 | L113: 0 | M113: 0 | N113: 0 | O113: 0
F114: Total overhead expenditure | AG114: 0 | AH114: 0 | AI114: 0 | AJ114: 0
F115: Related party margin expenditure | H115: =H$15*H109 -> 0 | I115: 0 | J115: 0 | K115: 0 | L115: 0 | M115: 0 | N115: 0 | O115: 0 | AG115: 0 | AH115: 0 | AI115: 0 | AJ115: 0
F116: Total gross expenditure | H116: =SUM(H113:H115) -> 0 | I116: 0 | J116: 0 | K116: 0 | L116: 0 | M116: 0 | N116: 0 | O116: 0 | S116: =SUM(S114:S115) -> 0 | T116: =SUM(T114:T115) -> 0 | U116: =SUM(U114:U115) -> 0 | V116: =SUM(V114:V115) -> 0 | W116: =SUM(W114:W115) -> 0 | AB116: 0 | AC116: 0 | AD116: 0 | AE116: 0 | AF116: 0 | AG116: 0 | AH116: 0 | AI116: 0 | AJ116: 0
F117: Less customer contributions
F118: Total net expenditure | H118: =H116-H117 -> 0 | I118: 0 | J118: 0 | K118: 0 | L118: 0 | M118: 0 | N118: 0 | O118: 0 | S118: =S116-S117 -> 0 | T118: =T116-T117 -> 0 | U118: =U116-U117 -> 0 | V118: =V116-V117 -> 0 | W118: =W116-W117 -> 0 | AB118: 0 | AC118: 0 | AD118: 0 | AE118: 0 | AF118: 0 | AG118: 0 | AH118: 0 | AI118: 0 | AJ118: 0
E119: 150311 - Queanbeyan NSW - Qbn Meter Set Protection | F119: Direct expenditure
F120: Direct internal labour expenditure | G120: 0 | H120: 0 | I120: 0 | J120: 0 | K120: 0 | L120: 0 | M120: 0 | N120: 0 | O120: 0
F121: Direct contractor expenditure | G121: 0 | H121: 0 | J121: 0 | K121: 0 | L121: 0 | M121: 0 | N121: 0 | O121: 0
F122: Other internal direct expenditure | G122: 0 | H122: 0 | J122: 0 | K122: 0 | L122: 0 | M122: 0 | N122: 0 | O122: 0
F123: Total direct expenditure (excl escalation) | G123: =SUM(G120:G122) -> 0 | H123: 0 | J123: 0 | K123: 0 | L123: 0 | M123: 0 | N123: 0 | O123: 0 | S123: =SUM(S120:S122) -> 0 | T123: =SUM(T120:T122) -> 0 | U123: =SUM(U120:U122) -> 0 | V123: =SUM(V120:V122) -> 0 | W123: =SUM(W120:W122) -> 0 | AG123: 0 | AH123: 0 | AI123: 0 | AJ123: 0
F124: Escalation
F125: Total direct expenditure (inc escalation) | G125: =SUM(G123:G124) -> 0 | H125: 0 | J125: 0 | K125: 0 | L125: 0 | M125: 0 | N125: 0 | O125: 0
F126: Total overhead expenditure | AG126: 0 | AH126: 0 | AI126: 0 | AJ126: 0
F127: Related party margin expenditure | G127: =G$15*G121 -> 0 | H127: =H$15*H121 -> 0 | J127: 0 | K127: 0 | L127: 0 | M127: 0 | N127: 0 | O127: 0 | AG127: 0 | AH127: 0 | AI127: 0 | AJ127: 0
F128: Total gross expenditure | G128: =SUM(G125:G127) -> 0 | H128: 0 | J128: 0 | K128: 0 | L128: 0 | M128: 0 | N128: 0 | O128: 0 | S128: =SUM(S126:S127) -> 0 | T128: =SUM(T126:T127) -> 0 | U128: =SUM(U126:U127) -> 0 | V128: =SUM(V126:V127) -> 0 | W128: =SUM(W126:W127) -> 0 | AB128: 0 | AC128: 0 | AD128: 0 | AE128: 0 | AF128: 0 | AG128: 0 | AH128: 0 | AI128: 0 | AJ128: 0
F129: Less customer contributions
F130: Total net expenditure | G130: =G128-G129 -> 0 | H130: 0 | J130: 0 | K130: 0 | L130: 0 | M130: 0 | N130: 0 | O130: 0 | S130: =S128-S129 -> 0 | T130: =T128-T129 -> 0 | U130: =U128-U129 -> 0 | V130: =V128-V129 -> 0 | W130: =W128-W129 -> 0 | AB130: 0 | AC130: 0 | AD130: 0 | AE130: 0 | AF130: 0 | AG130: 0 | AH130: 0 | AI130: 0 | AJ130: 0
E131: 150312 - VariousSites, ACT-05-06 SDRS Upgrade program | F131: Direct expenditure
F132: Direct internal labour expenditure | G132: 0 | H132: 0 | I132: 0 | J132: 0 | K132: 0 | L132: 0 | M132: 0 | N132: 0 | O132: 0
F133: Direct contractor expenditure | G133: 0 | H133: 0 | J133: 0 | K133: 0 | L133: 0 | M133: 0 | N133: 0 | O133: 0
F134: Other internal direct expenditure | G134: 0 | H134: 0 | J134: 0 | K134: 0 | L134: 0 | M134: 0 | N134: 0 | O134: 0
F135: Total direct expenditure (excl escalation) | G135: =SUM(G132:G134) -> 0 | H135: 0 | J135: 0 | K135: 0 | L135: 0 | M135: 0 | N135: 0 | O135: 0 | S135: =SUM(S132:S134) -> 0 | T135: =SUM(T132:T134) -> 0 | U135: =SUM(U132:U134) -> 0 | V135: =SUM(V132:V134) -> 0 | W135: =SUM(W132:W134) -> 0 | AG135: 0 | AH135: 0 | AI135: 0 | AJ135: 0
F136: Escalation
F137: Total direct expenditure (inc escalation) | G137: =SUM(G135:G136) -> 0 | H137: 0 | J137: 0 | K137: 0 | L137: 0 | M137: 0 | N137: 0 | O137: 0
F138: Total overhead expenditure | AG138: 0 | AH138: 0 | AI138: 0 | AJ138: 0
F139: Related party margin expenditure | G139: =G$15*G133 -> 0 | H139: =H$15*H133 -> 0 | J139: 0 | K139: 0 | L139: 0 | M139: 0 | N139: 0 | O139: 0 | AG139: 0 | AH139: 0 | AI139: 0 | AJ139: 0
F140: Total gross expenditure | G140: =SUM(G137:G139) -> 0 | H140: 0 | J140: 0 | K140: 0 | L140: 0 | M140: 0 | N140: 0 | O140: 0 | S140: =SUM(S138:S139) -> 0 | T140: =SUM(T138:T139) -> 0 | U140: =SUM(U138:U139) -> 0 | V140: =SUM(V138:V139) -> 0 | W140: =SUM(W138:W139) -> 0 | AB140: 0 | AC140: 0 | AD140: 0 | AE140: 0 | AF140: 0 | AG140: 0 | AH140: 0 | AI140: 0 | AJ140: 0
F141: Less customer contributions
F142: Total net expenditure | G142: =G140-G141 -> 0 | H142: 0 | J142: 0 | K142: 0 | L142: 0 | M142: 0 | N142: 0 | O142: 0 | S142: =S140-S141 -> 0 | T142: =T140-T141 -> 0 | U142: =U140-U141 -> 0 | V142: =V140-V141 -> 0 | W142: =W140-W141 -> 0 | AB142: 0 | AC142: 0 | AD142: 0 | AE142: 0 | AF142: 0 | AG142: 0 | AH142: 0 | AI142: 0 | AJ142: 0
E143: 150313 - Watson-Upgrade Control and Monitoring Equipment | F143: Direct expenditure
F144: Direct internal labour expenditure | G144: 0 | H144: 0 | I144: 0 | J144: 0 | K144: 0 | L144: 0 | M144: 0 | N144: 0 | O144: 0
F145: Direct contractor expenditure | G145: 0 | H145: 0 | J145: 0 | K145: 0 | L145: 0 | M145: 0 | N145: 0 | O145: 0
F146: Other internal direct expenditure | G146: 0 | H146: 0 | J146: 0 | K146: 0 | L146: 0 | M146: 0 | N146: 0 | O146: 0
F147: Total direct expenditure (excl escalation) | G147: =SUM(G144:G146) -> 0 | H147: 0 | J147: 0 | K147: 0 | L147: 0 | M147: 0 | N147: 0 | O147: 0 | S147: =SUM(S144:S146) -> 0 | T147: =SUM(T144:T146) -> 0 | U147: =SUM(U144:U146) -> 0 | V147: =SUM(V144:V146) -> 0 | W147: =SUM(W144:W146) -> 0 | AG147: 0 | AH147: 0 | AI147: 0 | AJ147: 0
F148: Escalation
F149: Total direct expenditure (inc escalation) | G149: =SUM(G147:G148) -> 0 | H149: 0 | J149: 0 | K149: 0 | L149: 0 | M149: 0 | N149: 0 | O149: 0
F150: Total overhead expenditure | AG150: 0 | AH150: 0 | AI150: 0 | AJ150: 0
F151: Related party margin expenditure | G151: =G$15*G145 -> 0 | H151: =H$15*H145 -> 0 | J151: 0 | K151: 0 | L151: 0 | M151: 0 | N151: 0 | O151: 0 | AG151: 0 | AH151: 0 | AI151: 0 | AJ151: 0
F152: Total gross expenditure | G152: =SUM(G149:G151) -> 0 | H152: 0 | J152: 0 | K152: 0 | L152: 0 | M152: 0 | N152: 0 | O152: 0 | S152: =SUM(S150:S151) -> 0 | T152: =SUM(T150:T151) -> 0 | U152: =SUM(U150:U151) -> 0 | V152: =SUM(V150:V151) -> 0 | W152: =SUM(W150:W151) -> 0 | AB152: 0 | AC152: 0 | AD152: 0 | AE152: 0 | AF152: 0 | AG152: 0 | AH152: 0 | AI152: 0 | AJ152: 0
F153: Less customer contributions
F154: Total net expenditure | G154: =G152-G153 -> 0 | H154: 0 | I154: 0 | J154: 0 | K154: 0 | L154: 0 | M154: 0 | N154: 0 | O154: 0 | S154: =S152-S153 -> 0 | T154: =T152-T153 -> 0 | U154: =U152-U153 -> 0 | V154: =V152-V153 -> 0 | W154: =W152-W153 -> 0 | AB154: 0 | AC154: 0 | AD154: 0 | AE154: 0 | AF154: 0 | AG154: 0 | AH154: 0 | AI154: 0 | AJ154: 0
E155: 150315 - Hoskinstown MS-Spare Soleniod Valves | F155: Direct expenditure
F156: Direct internal labour expenditure | G156: 0 | H156: 0 | I156: 0 | J156: 0 | K156: 0 | L156: 0 | M156: 0 | N156: 0 | O156: 0
F157: Direct contractor expenditure | G157: 0 | I157: 0 | J157: 0 | K157: 0 | L157: 0 | M157: 0 | N157: 0 | O157: 0
F158: Other internal direct expenditure | G158: 0 | I158: 0 | J158: 0 | K158: 0 | L158: 0 | M158: 0 | N158: 0 | O158: 0
F159: Total direct expenditure (excl escalation) | G159: =SUM(G156:G158) -> 0 | I159: 0 | J159: 0 | K159: 0 | L159: 0 | M159: 0 | N159: 0 | O159: 0 | S159: =SUM(S156:S158) -> 0 | T159: =SUM(T156:T158) -> 0 | U159: =SUM(U156:U158) -> 0 | V159: =SUM(V156:V158) -> 0 | W159: =SUM(W156:W158) -> 0 | AG159: 0 | AH159: 0 | AI159: 0 | AJ159: 0
F160: Escalation
F161: Total direct expenditure (inc escalation) | G161: =SUM(G159:G160) -> 0 | I161: 0 | J161: 0 | K161: 0 | L161: 0 | M161: 0 | N161: 0 | O161: 0
F162: Total overhead expenditure | AG162: 0 | AH162: 0 | AI162: 0 | AJ162: 0
F163: Related party margin expenditure | G163: =G$15*G157 -> 0 | I163: =I$15*I157 -> 0 | J163: 0 | K163: 0 | L163: 0 | M163: 0 | N163: 0 | O163: 0 | AG163: 0 | AH163: 0 | AI163: 0 | AJ163: 0
F164: Total gross expenditure | G164: =SUM(G161:G163) -> 0 | I164: 0 | J164: 0 | K164: 0 | L164: 0 | M164: 0 | N164: 0 | O164: 0 | S164: =SUM(S162:S163) -> 0 | T164: =SUM(T162:T163) -> 0 | U164: =SUM(U162:U163) -> 0 | V164: =SUM(V162:V163) -> 0 | W164: =SUM(W162:W163) -> 0 | AB164: 0 | AC164: 0 | AD164: 0 | AE164: 0 | AF164: 0 | AG164: 0 | AH164: 0 | AI164: 0 | AJ164: 0
F165: Less customer contributions
F166: Total net expenditure | G166: =G164-G165 -> 0 | I166: 0 | J166: 0 | K166: 0 | L166: 0 | M166: 0 | N166: 0 | O166: 0 | S166: =S164-S165 -> 0 | T166: =T164-T165 -> 0 | U166: =U164-U165 -> 0 | V166: =V164-V165 -> 0 | W166: =W164-W165 -> 0 | AB166: 0 | AC166: 0 | AD166: 0 | AE166: 0 | AF166: 0 | AG166: 0 | AH166: 0 | AI166: 0 | AJ166: 0
E167: 150631 - Oct 07, Duntroon SDRS Replacement prj-SRDS5 | F167: Direct expenditure
F168: Direct internal labour expenditure | G168: 0 | H168: 0 | I168: 0 | J168: 0 | K168: 0 | L168: 0 | M168: 0 | N168: 0 | O168: 0
F169: Direct contractor expenditure | G169: 0 | H169: 0 | J169: 0 | K169: 0 | L169: 0 | M169: 0 | N169: 0 | O169: 0
F170: Other internal direct expenditure | G170: 0 | H170: 0 | J170: 0 | K170: 0 | L170: 0 | M170: 0 | N170: 0 | O170: 0
F171: Total direct expenditure (excl escalation) | G171: =SUM(G168:G170) -> 0 | H171: 0 | J171: 0 | K171: 0 | L171: 0 | M171: 0 | N171: 0 | O171: 0 | S171: =SUM(S168:S170) -> 0 | T171: =SUM(T168:T170) -> 0 | U171: =SUM(U168:U170) -> 0 | V171: =SUM(V168:V170) -> 0 | W171: =SUM(W168:W170) -> 0 | AG171: 0 | AH171: 0 | AI171: 0 | AJ171: 0
F172: Escalation
F173: Total direct expenditure (inc escalation) | G173: =SUM(G171:G172) -> 0 | H173: 0 | J173: 0 | K173: 0 | L173: 0 | M173: 0 | N173: 0 | O173: 0
F174: Total overhead expenditure | AG174: 0 | AH174: 0 | AI174: 0 | AJ174: 0
F175: Related party margin expenditure | G175: =G$15*G169 -> 0 | H175: =H$15*H169 -> 0 | J175: 0 | K175: 0 | L175: 0 | M175: 0 | N175: 0 | O175: 0 | AG175: 0 | AH175: 0 | AI175: 0 | AJ175: 0
F176: Total gross expenditure | G176: =SUM(G173:G175) -> 0 | H176: 0 | J176: 0 | K176: 0 | L176: 0 | M176: 0 | N176: 0 | O176: 0 | S176: =SUM(S174:S175) -> 0 | T176: =SUM(T174:T175) -> 0 | U176: =SUM(U174:U175) -> 0 | V176: =SUM(V174:V175) -> 0 | W176: =SUM(W174:W175) -> 0 | AB176: 0 | AC176: 0 | AD176: 0 | AE176: 0 | AF176: 0 | AG176: 0 | AH176: 0 | AI176: 0 | AJ176: 0
F177: Less customer contributions
F178: Total net expenditure | G178: =G176-G177 -> 0 | H178: 0 | J178: 0 | K178: 0 | L178: 0 | M178: 0 | N178: 0 | O178: 0 | S178: =S176-S177 -> 0 | T178: =T176-T177 -> 0 | U178: =U176-U177 -> 0 | V178: =V176-V177 -> 0 | W178: =W176-W177 -> 0 | AB178: 0 | AC178: 0 | AD178: 0 | AE178: 0 | AF178: 0 | AG178: 0 | AH178: 0 | AI178: 0 | AJ178: 0
E179: 150632 - Oct 07, SDRS Updg-Lids n Concrete Aprons at various site in ACT | F179: Direct expenditure
F180: Direct internal labour expenditure | G180: 0 | H180: 0 | I180: 0 | J180: 0 | K180: 0 | L180: 0 | M180: 0 | N180: 0 | O180: 0
F181: Direct contractor expenditure | G181: 0 | H181: 0 | J181: 0 | K181: 0 | L181: 0 | M181: 0 | N181: 0 | O181: 0
F182: Other internal direct expenditure | G182: 0 | H182: 0 | J182: 0 | K182: 0 | L182: 0 | M182: 0 | N182: 0 | O182: 0
F183: Total direct expenditure (excl escalation) | G183: =SUM(G180:G182) -> 0 | H183: 0 | J183: 0 | K183: 0 | L183: 0 | M183: 0 | N183: 0 | O183: 0 | S183: =SUM(S180:S182) -> 0 | T183: =SUM(T180:T182) -> 0 | U183: =SUM(U180:U182) -> 0 | V183: =SUM(V180:V182) -> 0 | W183: =SUM(W180:W182) -> 0 | AG183: 0 | AH183: 0 | AI183: 0 | AJ183: 0
F184: Escalation
F185: Total direct expenditure (inc escalation) | G185: =SUM(G183:G184) -> 0 | H185: 0 | J185: 0 | K185: 0 | L185: 0 | M185: 0 | N185: 0 | O185: 0
F186: Total overhead expenditure | AG186: 0 | AH186: 0 | AI186: 0 | AJ186: 0
F187: Related party margin expenditure | G187: =G$15*G181 -> 0 | H187: =H$15*H181 -> 0 | J187: 0 | K187: 0 | L187: 0 | M187: 0 | N187: 0 | O187: 0 | AG187: 0 | AH187: 0 | AI187: 0 | AJ187: 0
F188: Total gross expenditure | G188: =SUM(G185:G187) -> 0 | H188: 0 | J188: 0 | K188: 0 | L188: 0 | M188: 0 | N188: 0 | O188: 0 | S188: =SUM(S186:S187) -> 0 | T188: =SUM(T186:T187) -> 0 | U188: =SUM(U186:U187) -> 0 | V188: =SUM(V186:V187) -> 0 | W188: =SUM(W186:W187) -> 0 | AB188: 0 | AC188: 0 | AD188: 0 | AE188: 0 | AF188: 0 | AG188: 0 | AH188: 0 | AI188: 0 | AJ188: 0
F189: Less customer contributions
F190: Total net expenditure | G190: =G188-G189 -> 0 | H190: 0 | J190: 0 | K190: 0 | L190: 0 | M190: 0 | N190: 0 | O190: 0 | S190: =S188-S189 -> 0 | T190: =T188-T189 -> 0 | U190: =U188-U189 -> 0 | V190: =V188-V189 -> 0 | W190: =W188-W189 -> 0 | AB190: 0 | AC190: 0 | AD190: 0 | AE190: 0 | AF190: 0 | AG190: 0 | AH190: 0 | AI190: 0 | AJ190: 0
E191: 160333 - Vadalism to Gungalin TRS Station | F191: Direct expenditure
F192: Direct internal labour expenditure | G192: 0 | H192: 0 | I192: 0 | J192: 0 | K192: 0 | L192: 0 | M192: 0 | N192: 0 | O192: 0
F193: Direct contractor expenditure | G193: 0 | H193: 0 | K193: 0 | L193: 0 | M193: 0 | N193: 0 | O193: 0
F194: Other internal direct expenditure | G194: 0 | H194: 0 | K194: 0 | L194: 0 | M194: 0 | N194: 0 | O194: 0
F195: Total direct expenditure (excl escalation) | G195: =SUM(G192:G194) -> 0 | H195: 0 | K195: 0 | L195: 0 | M195: 0 | N195: 0 | O195: 0 | S195: =SUM(S192:S194) -> 0 | T195: =SUM(T192:T194) -> 0 | U195: =SUM(U192:U194) -> 0 | V195: =SUM(V192:V194) -> 0 | W195: =SUM(W192:W194) -> 0 | AG195: 0 | AH195: 0 | AI195: 0 | AJ195: 0
F196: Escalation
F197: Total direct expenditure (inc escalation) | G197: =SUM(G195:G196) -> 0 | H197: 0 | K197: 0 | L197: 0 | M197: 0 | N197: 0 | O197: 0
F198: Total overhead expenditure | AG198: 0 | AH198: 0 | AI198: 0 | AJ198: 0
F199: Related party margin expenditure | G199: =G$15*G193 -> 0 | H199: =H$15*H193 -> 0 | K199: 0 | L199: 0 | M199: 0 | N199: 0 | O199: 0 | AG199: 0 | AH199: 0 | AI199: 0 | AJ199: 0
F200: Total gross expenditure | G200: =SUM(G197:G199) -> 0 | H200: 0 | K200: 0 | L200: 0 | M200: 0 | N200: 0 | O200: 0 | S200: =SUM(S198:S199) -> 0 | T200: =SUM(T198:T199) -> 0 | U200: =SUM(U198:U199) -> 0 | V200: =SUM(V198:V199) -> 0 | W200: =SUM(W198:W199) -> 0 | AB200: 0 | AC200: 0 | AD200: 0 | AE200: 0 | AF200: 0 | AG200: 0 | AH200: 0 | AI200: 0 | AJ200: 0
F201: Less customer contributions
F202: Total net expenditure | G202: =G200-G201 -> 0 | H202: 0 | K202: 0 | L202: 0 | M202: 0 | N202: 0 | O202: 0 | S202: =S200-S201 -> 0 | T202: =T200-T201 -> 0 | U202: =U200-U201 -> 0 | V202: =V200-V201 -> 0 | W202: =W200-W201 -> 0 | AB202: 0 | AC202: 0 | AD202: 0 | AE202: 0 | AF202: 0 | AG202: 0 | AH202: 0 | AI202: 0 | AJ202: 0
... 726 more rows

Sheet 8. Meter renewal & upgrade
B1: =SheetHeader -> REGULATORY REPORTING STATEMENT
B2: =dms_TradingName -> ActewAGL Distribution
B3: =CONCATENATE(FRCP_y1," to ",FRCP_y5) -> 2016-17 to 2020-21 | E3: =CONCATENATE(LEFT(FRCP_y1,4),"-",LEFT(FRCP_y5,2),RIGHT(FRCP_y5,2)) -> 2016-2021
B4: 8. METER RENEWAL & UPGRADE CAPITAL EXPENDITURE
B7: Instructions
B8: This template asks for information relating to meter replacement
B9: Record data on the meters removed from service as part of the service provider's meter replacement program in Table 8.1. The data should be INCLUSIVE of meters removed through providing ancillary services.
B10: Record data on the expenditure and volume of meters refurbished and procured for the service provider's meter replacement program in Table 8.6. These data are to be exclusive of meters procured for new connections.
B11: Record Other internal expenditure attributable to the service provider's meter replacement program in tables 8.7.
B12: =CONCATENATE("As set out in cl.6.1 of the ",dms_TradingName," RIN, for tables 8.2 to 8.7, where the requested data is captured in the ",dms_TradingName," capex model it is not required to be reentered in the RIN template tables. If the requested data has not been provided in the ",dms_TradingName," capex model, please enter into the tables. This may require the insertion of new lines in each table.") -> As set out in cl.6.1 of the ActewAGL Distribution RIN, for tables 8.2 to 8.7, where the requested data is captured in the ActewAGL Distribution capex model it is not required to be reentered in the RIN template tables. If the requested data has not been provided in the ActewAGL Distribution capex model, please enter into the tables. This may require the insertion of new lines in each table.
B13: Reported expenditure is to be entered EXCLUSIVE of any profit margins or management fees paid directly or indirectly to related party contractors (which is not an actual incurred expense of the related party contractor). Include any related party margins or management fees in the separate 'Related party margin' line item.
B14: =CONCATENATE("Subject to cl.6.1 of the ",dms_TradingName," RIN, where linked/adjustable overhead expenditure and related party margin expenditure is not provided in the ",dms_TradingName," capex model, overhead expenditure and related party margin expenditure should be linked to allocations derived in tabs '14. Overheads' and '15. Related party transactions'.") -> Subject to cl.6.1 of the ActewAGL Distribution RIN, where linked/adjustable overhead expenditure and related party margin expenditure is not provided in the ActewAGL Distribution capex model, overhead expenditure and related party margin expenditure should be linked to allocations derived in tabs '14. Overheads' and '15. Related party transactions'.
B15: Capital expenditure amounts entered should be GROSS of customer contributions. There is a separate line item for customer contributions from which net capital expenditure is derived.
B18: Table 8 - METER RENEWAL & UPGRADE CAPITAL EXPENDITURE
B19: Table 8.1 - Number of meters removed (actual/forecast)
D20: Previous access arrangement period | I20: Current access arrangement period | O20: Next access arrangement period
D21: 0's
D22: Actual | M22: Forecast
D23: =PRCP -> 2005-06 | E23: 2006-07 | F23: 2007-08 | G23: 2008-09 | H23: 2009-10 | I23: =CRCP_y1 -> 2010-11 | J23: =CRCP_y2 -> 2011-12 | K23: =CRCP_y3 -> 2012-13 | L23: =CRCP_y4 -> 2013-14 | M23: =CRCP_y5 -> 2014-15 | N23: =CRCP_y6 -> 2015-16 | O23: =FRCP -> 2016-17 | P23: 2017-18 | Q23: 2018-19 | R23: 2019-20 | S23: 2020-21
B24: Domestic Meters | C24: Refurbishable meters | D24: 0 | E24: 0 | F24: 0 | G24: 0 | H24: 0 | I24: 0 | J24: 0 | K24: 0 | L24: 0 | M24: 0 | N24: 0 | O24: 0 | P24: 0 | Q24: 0 | R24: 0 | S24: 0
C25: Meters decommissioned | D25: 672 | E25: 640 | F25: 549 | G25: 795 | H25: 984 | I25: 2089 | J25: 2893 | K25: 4206 | L25: 4877 | M25: 4555 | N25: 5114 | O25: 6308 | P25: 5799 | Q25: 6462 | R25: 6715 | S25: 5849
C26: Total meters removed | D26: =D24+D25 -> 672 | E26: =E24+E25 -> 640 | F26: 549 | G26: 795 | H26: 984 | I26: 2089 | J26: =J24+J25 -> 2893 | K26: 4206 | L26: 4877 | M26: 4555 | N26: 5114 | O26: 6308 | P26: 5799 | Q26: 6462 | R26: 6715 | S26: 5849
B27: I&C Meters | C27: Refurbishable meters | D27: 0 | E27: 0 | F27: 0 | G27: 0 | H27: 0 | I27: 0 | J27: 0 | K27: 0 | L27: 0 | M27: 0 | N27: 0 | O27: 0 | P27: 0 | Q27: 0 | R27: 0 | S27: 0
C28: Meters decommissioned | D28: 229 | E28: 114 | F28: 109 | G28: 156 | H28: 73 | I28: 120 | J28: 127 | K28: 284 | L28: 251 | M28: 204 | N28: 238 | O28: 242 | P28: 263 | Q28: 371 | R28: 372 | S28: 470
C29: Total meters removed | D29: =D27+D28 -> 229 | E29: =E27+E28 -> 114 | F29: 109 | G29: 156 | H29: 73 | I29: 120 | J29: 127 | K29: 284 | L29: 251 | M29: 204 | N29: 238 | O29: 242 | P29: 263 | Q29: 371 | R29: 372 | S29: 470
B30: Water Meters | C30: Refurbishable meters | D30: 0 | E30: 0 | F30: 0 | G30: 0 | H30: 0 | I30: 0 | J30: 0 | K30: 0 | L30: 0 | M30: 0 | N30: 0 | O30: 0 | P30: 0 | Q30: 0 | R30: 0 | S30: 0
C31: Meters decommissioned | D31: 32 | E31: 21 | F31: 30 | G31: 29 | H31: 26 | I31: 26 | J31: 89 | K31: 169 | L31: 151 | M31: 337 | N31: 466 | O31: 625 | P31: 706 | Q31: 1113 | R31: 1338 | S31: 795
C32: Total meters removed | D32: =D30+D31 -> 32 | E32: =E30+E31 -> 21 | F32: 30 | G32: 29 | H32: 26 | I32: 26 | J32: 89 | K32: 169 | L32: 151 | M32: 337 | N32: 466 | O32: 625 | P32: 706 | Q32: 1113 | R32: 1338 | S32: 795
B33: <insert meter family> | C33: Refurbishable meters
C34: Meters decommissioned
C35: Total meters removed | D35: =D33+D34 -> 0 | E35: =E33+E34 -> 0 | F35: 0 | G35: 0 | H35: 0 | I35: 0 | J35: 0 | K35: 0 | L35: 0 | M35: 0 | N35: 0 | O35: 0 | P35: 0 | Q35: 0 | R35: 0 | S35: 0
B36: <insert meter family> | C36: Refurbishable meters
C37: Meters decommissioned
C38: Total meters removed | D38: =D36+D37 -> 0 | E38: =E36+E37 -> 0 | F38: 0 | G38: 0 | H38: 0 | I38: 0 | J38: 0 | K38: 0 | L38: 0 | M38: 0 | N38: 0 | O38: 0 | P38: 0 | Q38: 0 | R38: 0 | S38: 0
B39: <insert meter family> | C39: Refurbishable meters
C40: Meters decommissioned
C41: Total meters removed | D41: =D39+D40 -> 0 | E41: =E39+E40 -> 0 | F41: 0 | G41: 0 | H41: 0 | I41: 0 | J41: 0 | K41: 0 | L41: 0 | M41: 0 | N41: 0 | O41: 0 | P41: 0 | Q41: 0 | R41: 0 | S41: 0
B42: Total meterS removed expenditure | D42: =SUMIF($C$24:$C$41,"Total meters removed",D24:D41) -> 933 | E42: =SUMIF($C$24:$C$41,"Total meters removed",E24:E41) -> 775 | F42: 688 | G42: 980 | H42: 1083 | I42: 2235 | J42: 3109 | K42: 4659 | L42: 5279 | M42: 5096 | N42: 5818 | O42: 7175 | P42: 6768 | Q42: 7946 | R42: 8425 | S42: 7114
B43: Source(s) of data:
D45: 0.1381630185 | E45: 0.00834639265 | F45: 0.3095906788 | G45: 0.38986706 | H45: 0.1594906938 | I45: 0.1564776719 | J45: 0.07154563481 | K45: 0 | L45: 0 | M45: 0 | Y45: REAL $ CONVERSION OF HISTORICAL DATA
B46: Table 8.2 - Meter replacement expenditure (actual/forecast)
D47: Previous access arrangement period | I47: Current access arrangement period | O47: Next access arrangement period | Y47: Previous access arrangement period | AD47: Current access arrangement period
D48: $0's, nominal | M48: =CONCATENATE("$0's, real ",dms_DollarReal) -> $0's, real June 2016 | Y48: =CONCATENATE("$0's, real ",dms_DollarReal) -> $0's, real June 2016
D49: Actual | M49: Forecast | Y49: Actual
D50: =PRCP -> 2005-06 | E50: 2006-07 | F50: 2007-08 | G50: 2008-09 | H50: 2009-10 | I50: =CRCP_y1 -> 2010-11 | J50: =CRCP_y2 -> 2011-12 | K50: =CRCP_y3 -> 2012-13 | L50: =CRCP_y4 -> 2013-14 | M50: =CRCP_y5 -> 2014-15 | N50: =CRCP_y6 -> 2015-16 | O50: =FRCP -> 2016-17 | P50: 2017-18 | Q50: 2018-19 | R50: 2019-20 | S50: 2020-21 | Y50: =PRCP -> 2005-06 | Z50: 2006-07 | AA50: 2007-08 | AB50: 2008-09 | AC50: 2009-10 | AD50: =CRCP_y1 -> 2010-11 | AE50: =CRCP_y2 -> 2011-12 | AF50: =CRCP_y3 -> 2012-13 | AG50: =CRCP_y4 -> 2013-14
B51: Volume | C51: Volume
B52: Direct internal labour expenditure | C52: Direct internal labour expenditure
B53: Direct contractor expenditure | C53: Direct contractor expenditure
B54: Other internal direct expenditure | C54: Other internal direct expenditure
B55: Total direct expenditure (excl escalation) | C55: Total direct expenditure (excl escalation) | Y55: =SUM(Y52:Y54) -> 0 | Z55: 0 | AA55: 0 | AB55: 0 | AC55: 0 | AD55: 0 | AE55: 0 | AF55: 0 | AG55: =SUM(AG52:AG54) -> 0
B56: Escalation | C56: Escalation
B57: Total direct expenditure (inc escalation) | C57: Total direct expenditure (inc escalation)
B58: Total overhead expenditure | C58: Total overhead expenditure
B59: Related party margin expenditure | C59: Related party margin expenditure
B60: Total gross expenditure | C60: Total gross expenditure | Y60: =SUM(Y55:Y59) -> 0 | Z60: =SUM(Z55:Z59) -> 0 | AA60: 0 | AB60: 0 | AC60: 0 | AD60: 0 | AE60: 0 | AF60: 0 | AG60: =SUM(AG55:AG59) -> 0
B61: Less customer contributions | C61: Less customer contributions
B62: Total net expenditure | C62: Total net expenditure | Y62: =Y60-Y61 -> 0 | Z62: 0 | AA62: 0 | AB62: 0 | AC62: 0 | AD62: 0 | AE62: 0 | AF62: 0 | AG62: =AG60-AG61 -> 0
B63: Source(s) of data: | D63: Refer to BOP
D64: 0.1381630185 | E64: 0.00834639265 | F64: 0.3095906788 | G64: 0.38986706 | H64: 0.1594906938 | I64: 0.1564776719 | J64: 0.07154563481 | K64: 0 | L64: 0 | M64: 0
B65: Table 8.3 - Replacement meter installation expenditure (actual/forecast)
D66: Previous access arrangement period | I66: Current access arrangement period | O66: Next access arrangement period | Y66: Previous access arrangement period | AD66: Current access arrangement period
D67: $0's, nominal | M67: =CONCATENATE("$0's, real ",dms_DollarReal) -> $0's, real June 2016 | Y67: =CONCATENATE("$0's, real ",dms_DollarReal) -> $0's, real June 2016
D68: Actual | M68: Forecast | Y68: Actual
D69: =PRCP -> 2005-06 | E69: 2006-07 | F69: 2007-08 | G69: 2008-09 | H69: 2009-10 | I69: =CRCP_y1 -> 2010-11 | J69: =CRCP_y2 -> 2011-12 | K69: =CRCP_y3 -> 2012-13 | L69: =CRCP_y4 -> 2013-14 | M69: =CRCP_y5 -> 2014-15 | N69: =CRCP_y6 -> 2015-16 | O69: =FRCP -> 2016-17 | P69: 2017-18 | Q69: 2018-19 | R69: 2019-20 | S69: 2020-21 | Y69: =PRCP -> 2005-06 | Z69: 2006-07 | AA69: 2007-08 | AB69: 2008-09 | AC69: 2009-10 | AD69: =CRCP_y1 -> 2010-11 | AE69: =CRCP_y2 -> 2011-12 | AF69: =CRCP_y3 -> 2012-13 | AG69: =CRCP_y4 -> 2013-14
B70: Table 8.3.1 - Residential meter replacement installation expenditure
B71: Volume of meter replacements
B72: Direct internal labour expenditure
B73: Direct contractor expenditure
B74: Other internal direct expenditure
B75: Total direct expenditure (excl escalation) | Y75: =Y72+Y73+Y74 -> 0 | Z75: =Z72+Z73+Z74 -> 0 | AA75: 0 | AB75: 0 | AC75: 0 | AD75: 0 | AE75: 0 | AF75: 0 | AG75: =AG72+AG73+AG74 -> 0
B76: Escalation
B77: Total direct expenditure (inc escalation)
B78: Total overhead expenditure
B79: Related party margin expenditure
B80: Total gross expenditure | Y80: =Y75+Y78+Y79 -> 0 | Z80: =Z75+Z78+Z79 -> 0 | AA80: 0 | AB80: 0 | AC80: 0 | AD80: 0 | AE80: 0 | AF80: 0 | AG80: =AG75+AG78+AG79 -> 0
B81: Less customer contributions
B82: Total net expenditure | Y82: =Y80-Y81 -> 0 | Z82: =Z80-Z81 -> 0 | AA82: 0 | AB82: 0 | AC82: 0 | AD82: 0 | AE82: 0 | AF82: 0 | AG82: =AG80-AG81 -> 0
B83: Table 8.3.2 - Industrial and commercial meter replacement installation expenditure
B84: Volume of meter replacements
B85: Direct internal labour expenditure
B86: Direct contractor expenditure
B87: Other internal direct expenditure
B88: Total direct expenditure (excl escalation) | Y88: =Y85+Y86+Y87 -> 0 | Z88: =Z85+Z86+Z87 -> 0 | AA88: 0 | AB88: 0 | AC88: 0 | AD88: 0 | AE88: 0 | AF88: 0 | AG88: =AG85+AG86+AG87 -> 0
B89: Escalation
B90: Total direct expenditure (inc escalation)
B91: Total overhead expenditure
B92: Related party margin expenditure
B93: Total gross expenditure | Y93: =Y88+Y91+Y92 -> 0 | Z93: =Z88+Z91+Z92 -> 0 | AA93: 0 | AB93: 0 | AC93: 0 | AD93: 0 | AE93: 0 | AF93: 0 | AG93: =AG88+AG91+AG92 -> 0
B94: Less customer contributions
B95: Total net expenditure | Y95: =Y93-Y94 -> 0 | Z95: =Z93-Z94 -> 0 | AA95: 0 | AB95: 0 | AC95: 0 | AD95: 0 | AE95: 0 | AF95: 0 | AG95: =AG93-AG94 -> 0
B96: Table 8.3.3 - Water meter replacement installation expenditure
B97: Volume of meter replacements
B98: Direct internal labour expenditure
B99: Direct contractor expenditure
B100: Other internal direct expenditure
B101: Total direct expenditure (excl escalation) | D101: =D98+D99+D100 -> 0 | E101: =E98+E99+E100 -> 0 | F101: 0 | G101: 0 | H101: 0 | I101: 0 | J101: 0 | K101: 0 | L101: 0 | Y101: =Y98+Y99+Y100 -> 0 | Z101: =Z98+Z99+Z100 -> 0 | AA101: 0 | AB101: 0 | AC101: 0 | AD101: 0 | AE101: 0 | AF101: 0 | AG101: =AG98+AG99+AG100 -> 0
B102: Escalation
B103: Total direct expenditure (inc escalation) | D103: =SUM(D101:D102) -> 0 | E103: =SUM(E101:E102) -> 0 | F103: 0 | G103: 0 | H103: 0 | I103: 0 | J103: 0 | K103: 0 | L103: 0
B104: Total overhead expenditure
B105: Related party margin expenditure
B106: Total gross expenditure | D106: =D103+D104+D105 -> 0 | E106: =E103+E104+E105 -> 0 | F106: 0 | G106: 0 | H106: 0 | I106: 0 | J106: 0 | K106: 0 | L106: 0 | Y106: =Y101+Y104+Y105 -> 0 | Z106: =Z101+Z104+Z105 -> 0 | AA106: 0 | AB106: 0 | AC106: 0 | AD106: 0 | AE106: 0 | AF106: 0 | AG106: =AG101+AG104+AG105 -> 0
B107: Less customer contributions
B108: Total net expenditure | D108: =D106-D107 -> 0 | E108: =E106-E107 -> 0 | F108: 0 | G108: 0 | H108: 0 | I108: 0 | J108: 0 | K108: 0 | L108: 0 | M108: 0 | N108: 0 | O108: 0 | P108: 0 | Q108: 0 | R108: 0 | S108: =S106-S107 -> 0 | Y108: =Y106-Y107 -> 0 | Z108: =Z106-Z107 -> 0 | AA108: 0 | AB108: 0 | AC108: 0 | AD108: 0 | AE108: 0 | AF108: 0 | AG108: =AG106-AG107 -> 0
B109: Table 8.3.4 - Total meter replacement installation expenditure
B110: Volume of meter replacements | D110: =D71+D84+D97 -> 0 | E110: =E71+E84+E97 -> 0 | F110: 0 | G110: 0 | H110: 0 | I110: 0 | J110: 0 | K110: 0 | L110: 0 | M110: 0 | N110: 0 | O110: 0 | P110: 0 | Q110: 0 | R110: 0 | S110: 0 | Y110: =Y71+Y84+Y97 -> 0 | Z110: 0 | AA110: 0 | AB110: 0 | AC110: 0 | AD110: 0 | AE110: 0 | AF110: 0 | AG110: =AG71+AG84+AG97 -> 0
B111: Direct internal labour expenditure | D111: =D72+D85+D98 -> 0 | E111: =E72+E85+E98 -> 0 | F111: 0 | G111: 0 | H111: 0 | I111: 0 | J111: 0 | K111: 0 | L111: 0 | M111: 0 | N111: 0 | O111: 0 | P111: 0 | Q111: 0 | R111: 0 | S111: 0 | Y111: 0 | Z111: 0 | AA111: 0 | AB111: 0 | AC111: 0 | AD111: 0 | AE111: 0 | AF111: 0 | AG111: =AG72+AG85+AG98 -> 0
B112: Direct contractor expenditure | D112: =D73+D86+D99 -> 0 | E112: =E73+E86+E99 -> 0 | F112: 0 | G112: 0 | H112: 0 | I112: 0 | J112: 0 | K112: 0 | L112: 0 | M112: 0 | N112: 0 | O112: 0 | P112: 0 | Q112: 0 | R112: 0 | S112: 0 | Y112: 0 | Z112: 0 | AA112: 0 | AB112: 0 | AC112: 0 | AD112: 0 | AE112: 0 | AF112: 0 | AG112: =AG73+AG86+AG99 -> 0
B113: Other internal direct expenditure | D113: =D74+D87+D100 -> 0 | E113: =E74+E87+E100 -> 0 | F113: 0 | G113: 0 | H113: 0 | I113: 0 | J113: 0 | K113: 0 | L113: 0 | M113: 0 | N113: 0 | O113: 0 | P113: 0 | Q113: 0 | R113: 0 | S113: 0 | Y113: 0 | Z113: 0 | AA113: 0 | AB113: 0 | AC113: 0 | AD113: 0 | AE113: 0 | AF113: 0 | AG113: =AG74+AG87+AG100 -> 0
B114: Total direct expenditure (excl escalation) | D114: =D75+D88+D101 -> 0 | E114: =E75+E88+E101 -> 0 | F114: 0 | G114: 0 | H114: 0 | I114: 0 | J114: 0 | K114: 0 | L114: 0 | M114: 0 | N114: 0 | O114: 0 | P114: 0 | Q114: 0 | R114: 0 | S114: 0 | Y114: 0 | Z114: 0 | AA114: 0 | AB114: 0 | AC114: 0 | AD114: 0 | AE114: 0 | AF114: 0 | AG114: =AG75+AG88+AG101 -> 0
B115: Escalation | D115: =D76+D89+D102 -> 0 | E115: 0 | F115: 0 | G115: 0 | H115: 0 | I115: 0 | J115: 0 | K115: 0 | L115: 0 | M115: 0 | N115: 0 | O115: 0 | P115: 0 | Q115: 0 | R115: 0 | S115: 0
B116: Total direct expenditure (inc escalation) | D116: 0 | E116: 0 | F116: 0 | G116: 0 | H116: 0 | I116: 0 | J116: 0 | K116: 0 | L116: 0 | M116: 0 | N116: 0 | O116: 0 | P116: 0 | Q116: 0 | R116: 0 | S116: 0
B117: Total overhead expenditure | D117: 0 | E117: 0 | F117: 0 | G117: 0 | H117: 0 | I117: 0 | J117: 0 | K117: 0 | L117: 0 | M117: =M78+M91+M104 -> 0 | N117: 0 | O117: 0 | P117: 0 | Q117: 0 | R117: 0 | S117: 0 | Y117: =Y78+Y91+Y104 -> 0 | Z117: 0 | AA117: 0 | AB117: 0 | AC117: 0 | AD117: 0 | AE117: 0 | AF117: 0 | AG117: =AG78+AG91+AG104 -> 0
B118: Related party margin expenditure | D118: 0 | E118: 0 | F118: 0 | G118: 0 | H118: 0 | I118: 0 | J118: 0 | K118: 0 | L118: 0 | M118: 0 | N118: 0 | O118: 0 | P118: 0 | Q118: 0 | R118: 0 | S118: 0 | Y118: 0 | Z118: 0 | AA118: 0 | AB118: 0 | AC118: 0 | AD118: 0 | AE118: 0 | AF118: 0 | AG118: =AG79+AG92+AG105 -> 0
B119: Total gross expenditure | D119: 0 | E119: 0 | F119: 0 | G119: 0 | H119: 0 | I119: 0 | J119: 0 | K119: 0 | L119: 0 | M119: 0 | N119: 0 | O119: 0 | P119: 0 | Q119: 0 | R119: 0 | S119: 0 | Y119: 0 | Z119: 0 | AA119: 0 | AB119: 0 | AC119: 0 | AD119: 0 | AE119: 0 | AF119: 0 | AG119: =AG80+AG93+AG106 -> 0
B120: Less customer contributions | D120: 0 | E120: 0 | F120: 0 | G120: 0 | H120: 0 | I120: 0 | J120: 0 | K120: 0 | L120: 0 | M120: 0 | N120: 0 | O120: 0 | P120: 0 | Q120: 0 | R120: 0 | S120: 0 | Y120: 0 | Z120: 0 | AA120: 0 | AB120: 0 | AC120: 0 | AD120: 0 | AE120: 0 | AF120: 0 | AG120: =AG81+AG94+AG107 -> 0
B121: Total net expenditure | D121: 0 | E121: 0 | F121: 0 | G121: 0 | H121: 0 | I121: 0 | J121: 0 | K121: 0 | L121: 0 | M121: 0 | N121: 0 | O121: 0 | P121: 0 | Q121: 0 | R121: 0 | S121: 0 | Y121: 0 | Z121: 0 | AA121: 0 | AB121: 0 | AC121: 0 | AD121: 0 | AE121: 0 | AF121: 0 | AG121: =AG82+AG95+AG108 -> 0
B122: Source(s) of data: | D122: Refer to BOP
B124: Table 8.4 - Meter replacement expenditure (approved) | Y124: Previous access arrangement period | AD124: Current access arrangement period
D125: Previous access arrangement period | I125: Current access arrangement period | Y125: $0's, nominal
D126: $0's, nominal | Y126: Approved
D127: Approved | Y127: =PRCP -> 2005-06 | Z127: 2006-07 | AA127: 2007-08 | AB127: 2008-09 | AC127: 2009-10 | AD127: =CRCP_y1 -> 2010-11 | AE127: =CRCP_y2 -> 2011-12 | AF127: =CRCP_y3 -> 2012-13 | AG127: =CRCP_y4 -> 2013-14
D128: =PRCP -> 2005-06 | E128: 2006-07 | F128: 2007-08 | G128: 2008-09 | H128: 2009-10 | I128: =CRCP_y1 -> 2010-11 | J128: =CRCP_y2 -> 2011-12 | K128: =CRCP_y3 -> 2012-13 | L128: =CRCP_y4 -> 2013-14 | M128: =CRCP_y5 -> 2014-15 | N128: =CRCP_y6 -> 2015-16
B129: <insert category/project name> | C129: Direct internal labour expenditure
C130: Direct contractor expenditure
C131: Other internal direct expenditure | AD131: =SUM(AD128:AD130) -> 0 | AE131: 0 | AF131: 0 | AG131: =SUM(AG128:AG130) -> 0
C132: Total direct expenditure | I132: =SUM(I129:I131) -> 0 | J132: 0 | K132: 0 | L132: 0 | M132: 0 | N132: 0
C133: Total overhead expenditure
C134: Related party margin expenditure | Y134: =Y132+Y133 -> 0 | Z134: =Z132+Z133 -> 0 | AA134: 0 | AB134: 0 | AC134: 0 | AD134: 0 | AE134: 0 | AF134: 0 | AG134: =AG132+AG133 -> 0
C135: Total gross expenditure | D135: =D133+D134 -> 0 | E135: =E133+E134 -> 0 | F135: 0 | G135: 0 | H135: 0 | I135: 0 | J135: 0 | K135: 0 | L135: 0 | M135: 0 | N135: 0
C136: Less contributions | Y136: =Y134-Y135 -> 0 | Z136: 0 | AA136: 0 | AB136: 0 | AC136: 0 | AD136: 0 | AE136: 0 | AF136: 0 | AG136: =AG134-AG135 -> 0
C137: Total net expenditure | D137: =D135-D136 -> 0 | E137: 0 | F137: 0 | G137: 0 | H137: 0 | I137: 0 | J137: =J135-J136 -> 0 | K137: 0 | L137: 0 | M137: 0 | N137: 0
B138: <insert category/project name> | C138: Direct internal labour expenditure
C139: Direct contractor expenditure
C140: Other internal direct expenditure | AD140: =SUM(AD137:AD139) -> 0 | AE140: 0 | AF140: 0 | AG140: =SUM(AG137:AG139) -> 0
C141: Total direct expenditure | I141: =SUM(I138:I140) -> 0 | J141: 0 | K141: 0 | L141: 0 | M141: 0 | N141: 0
C142: Total overhead expenditure
C143: Related party margin expenditure | Y143: =Y141+Y142 -> 0 | Z143: 0 | AA143: 0 | AB143: 0 | AC143: 0 | AD143: 0 | AE143: 0 | AF143: 0 | AG143: =AG141+AG142 -> 0
C144: Total gross expenditure | D144: =D142+D143 -> 0 | E144: 0 | F144: 0 | G144: 0 | H144: 0 | I144: 0 | J144: 0 | K144: 0 | L144: 0 | M144: 0 | N144: 0
C145: Less contributions | Y145: =Y143-Y144 -> 0 | Z145: 0 | AA145: 0 | AB145: 0 | AC145: 0 | AD145: 0 | AE145: 0 | AF145: 0 | AG145: =AG143-AG144 -> 0
C146: Total net expenditure | D146: =D144-D145 -> 0 | E146: 0 | F146: 0 | G146: 0 | H146: 0 | I146: 0 | J146: 0 | K146: 0 | L146: 0 | M146: 0 | N146: 0
B147: <insert category/project name> | C147: Direct internal labour expenditure
C148: Direct contractor expenditure
C149: Other internal direct expenditure | AD149: =SUM(AD146:AD148) -> 0 | AE149: 0 | AF149: 0 | AG149: =SUM(AG146:AG148) -> 0
C150: Total direct expenditure | I150: =SUM(I147:I149) -> 0 | J150: 0 | K150: 0 | L150: 0 | M150: 0 | N150: 0
C151: Total overhead expenditure
C152: Related party margin expenditure | Y152: =Y150+Y151 -> 0 | Z152: 0 | AA152: 0 | AB152: 0 | AC152: 0 | AD152: 0 | AE152: 0 | AF152: 0 | AG152: =AG150+AG151 -> 0
C153: Total gross expenditure | D153: =D151+D152 -> 0 | E153: 0 | F153: 0 | G153: 0 | H153: 0 | I153: 0 | J153: 0 | K153: 0 | L153: 0 | M153: 0 | N153: 0
C154: Less contributions | Y154: =Y152-Y153 -> 0 | Z154: 0 | AA154: 0 | AB154: 0 | AC154: 0 | AD154: 0 | AE154: 0 | AF154: 0 | AG154: =AG152-AG153 -> 0
C155: Total net expenditure | D155: =D153-D154 -> 0 | E155: 0 | F155: 0 | G155: 0 | H155: 0 | I155: 0 | J155: 0 | K155: 0 | L155: 0 | M155: 0 | N155: 0
B156: <insert category/project name> | C156: Direct internal labour expenditure
C157: Direct contractor expenditure
C158: Other internal direct expenditure | AD158: =SUM(AD155:AD157) -> 0 | AE158: 0 | AF158: 0 | AG158: =SUM(AG155:AG157) -> 0
C159: Total direct expenditure | I159: =SUM(I156:I158) -> 0 | J159: 0 | K159: 0 | L159: 0 | M159: 0 | N159: 0
C160: Total overhead expenditure
C161: Related party margin expenditure | Y161: =Y159+Y160 -> 0 | Z161: 0 | AA161: 0 | AB161: 0 | AC161: 0 | AD161: 0 | AE161: 0 | AF161: 0 | AG161: =AG159+AG160 -> 0
C162: Total gross expenditure | D162: =D160+D161 -> 0 | E162: 0 | F162: 0 | G162: 0 | H162: 0 | I162: 0 | J162: 0 | K162: 0 | L162: 0 | M162: 0 | N162: 0
C163: Less contributions | Y163: =Y161-Y162 -> 0 | Z163: 0 | AA163: 0 | AB163: 0 | AC163: 0 | AD163: 0 | AE163: 0 | AF163: 0 | AG163: =AG161-AG162 -> 0
C164: Total net expenditure | D164: =D162-D163 -> 0 | E164: 0 | F164: 0 | G164: 0 | H164: 0 | I164: 0 | J164: 0 | K164: 0 | L164: 0 | M164: 0 | N164: 0 | Y164: =SUMIF($D$129:$N$164,"Direct internal labour",Y$129:Y$164) -> 0 | Z164: 0 | AA164: 0 | AB164: 0 | AC164: 0 | AD164: 0 | AE164: 0 | AF164: 0 | AG164: 0
B165: TOTALS | C165: Direct internal labour | D165: =SUMIF($D$129:$N$164,"Direct internal labour",D$129:D$164) -> 0 | E165: 0 | F165: 0 | G165: 0 | H165: 0 | I165: 0 | J165: 0 | K165: 0 | L165: 0 | M165: 0 | N165: 0 | Y165: =SUMIF($D$129:$N$164,"Direct contractor expenditure",Y$129:Y$164) -> 0 | Z165: 0 | AA165: 0 | AB165: 0 | AC165: 0 | AD165: 0 | AE165: 0 | AF165: 0 | AG165: 0
C166: Direct contractor expenditure | D166: =SUMIF($D$129:$N$164,"Direct contractor expenditure",D$129:D$164) -> 0 | E166: 0 | F166: 0 | G166: 0 | H166: 0 | I166: 0 | J166: 0 | K166: 0 | L166: 0 | M166: 0 | N166: 0 | Y166: =SUMIF($D$129:$N$164,"Other internal direct expenditure",Y$129:Y$164) -> 0 | Z166: 0 | AA166: 0 | AB166: 0 | AC166: 0 | AD166: 0 | AE166: 0 | AF166: 0 | AG166: 0
C167: Other internal direct expenditure | D167: =SUMIF($D$129:$N$164,"Other internal direct expenditure",D$129:D$164) -> 0 | E167: 0 | F167: 0 | G167: 0 | H167: 0 | I167: 0 | J167: 0 | K167: 0 | L167: 0 | M167: 0 | N167: 0 | Y167: =SUMIF($D$129:$N$164,"Total direct cost",Y$129:Y$164) -> 0 | Z167: 0 | AA167: 0 | AB167: 0 | AC167: 0 | AD167: 0 | AE167: 0 | AF167: 0 | AG167: 0
C168: Total direct expenditure | D168: =SUMIF($D$129:$N$164,"Total direct cost",D$129:D$164) -> 0 | E168: 0 | F168: 0 | G168: 0 | H168: 0 | I168: 0 | J168: 0 | K168: 0 | L168: 0 | M168: 0 | N168: 0 | Y168: =SUMIF($D$129:$N$164,"Total overhead expenditure",Y$129:Y$164) -> 0 | Z168: 0 | AA168: 0 | AB168: 0 | AC168: 0 | AD168: 0 | AE168: 0 | AF168: 0 | AG168: 0
C169: Total overhead expenditure | D169: =SUMIF($D$129:$N$164,"Total overhead expenditure",D$129:D$164) -> 0 | E169: 0 | F169: 0 | G169: 0 | H169: 0 | I169: 0 | J169: 0 | K169: 0 | L169: 0 | M169: 0 | N169: 0 | Y169: =SUMIF($D$129:$N$164,"Related party margin",Y$129:Y$164) -> 0 | Z169: 0 | AA169: 0 | AB169: 0 | AC169: 0 | AD169: 0 | AE169: 0 | AF169: 0 | AG169: 0
C170: Related party margin expenditure | D170: =SUMIF($D$129:$N$164,"Related party margin",D$129:D$164) -> 0 | E170: 0 | F170: 0 | G170: 0 | H170: 0 | I170: 0 | J170: 0 | K170: 0 | L170: 0 | M170: 0 | N170: 0 | Y170: =SUMIF($D$129:$N$164,"Total gross expenditure",Y$129:Y$164) -> 0 | Z170: 0 | AA170: 0 | AB170: 0 | AC170: 0 | AD170: 0 | AE170: 0 | AF170: 0 | AG170: 0
C171: Total gross expenditure | D171: =SUMIF($D$129:$N$164,"Total gross expenditure",D$129:D$164) -> 0 | E171: 0 | F171: 0 | G171: 0 | H171: 0 | I171: 0 | J171: 0 | K171: 0 | L171: 0 | M171: 0 | N171: 0 | Y171: =SUMIF($D$129:$N$164,"Less: contributions",Y$129:Y$164) -> 0 | Z171: 0 | AA171: 0 | AB171: 0 | AC171: 0 | AD171: 0 | AE171: 0 | AF171: 0 | AG171: 0
C172: Less contributions | D172: =SUMIF($D$129:$N$164,"Less: contributions",D$129:D$164) -> 0 | E172: 0 | F172: 0 | G172: 0 | H172: 0 | I172: 0 | J172: 0 | K172: 0 | L172: 0 | M172: 0 | N172: 0 | Y172: =SUMIF($D$129:$N$164,"Total net expenditure",Y$129:Y$164) -> 0 | Z172: 0 | AA172: 0 | AB172: 0 | AC172: 0 | AD172: 0 | AE172: 0 | AF172: 0 | AG172: 0
C173: Total net expenditure | D173: 1217846 | E173: 1334680.414 | F173: 1316894.484 | G173: 1481222.237 | H173: 1173768.39 | I173: 3161570.665 | J173: 1650962.946 | K173: 3399426.971 | L173: 3410054.191 | M173: 3051617.4 | N173: =SUMIF($D$129:$N$164,"Total net expenditure",N$129:N$164) -> 0
B174: Source(s) of data: | D174: Refer to BOP
B176: Table 8.5 - Meter replacement expenditure (actual/forecast)
D177: Previous access arrangement period | I177: Current access arrangement period | O177: Next access arrangement period | Y177: Previous access arrangement period | AD177: Current access arrangement period
D178: $0's, nominal | M178: =CONCATENATE("$0's, real ",dms_DollarReal) -> $0's, real June 2016 | Y178: =CONCATENATE("$0's, real ",dms_DollarReal) -> $0's, real June 2016
D179: Actual | M179: Forecast | Y179: Actual
D180: =PRCP -> 2005-06 | E180: 2006-07 | F180: 2007-08 | G180: 2008-09 | H180: 2009-10 | I180: =CRCP_y1 -> 2010-11 | J180: =CRCP_y2 -> 2011-12 | K180: =CRCP_y3 -> 2012-13 | L180: =CRCP_y4 -> 2013-14 | M180: =CRCP_y5 -> 2014-15 | N180: =CRCP_y6 -> 2015-16 | O180: =FRCP -> 2016-17 | P180: 2017-18 | Q180: 2018-19 | R180: 2019-20 | S180: 2020-21 | Y180: =PRCP -> 2005-06 | Z180: 2006-07 | AA180: 2007-08 | AB180: 2008-09 | AC180: 2009-10 | AD180: =CRCP_y1 -> 2010-11 | AE180: =CRCP_y2 -> 2011-12 | AF180: =CRCP_y3 -> 2012-13 | AG180: =CRCP_y4 -> 2013-14
B181: Table 8.5.1 - New meters acquired
B182: Residential gas meter | C182: Volume
C183: Direct internal labour expenditure
C184: Direct contractor expenditure
C185: Other internal direct expenditure
C186: Total direct expenditure (excl escalation)
C187: Escalation
C188: Total direct expenditure (inc escalation)
C189: Total overhead expenditure
C190: Related party margin expenditure
C191: Total gross expenditure | Y191: =Y186+Y189+Y190 -> 0 | Z191: =Z186+Z189+Z190 -> 0 | AA191: 0 | AB191: 0 | AC191: 0 | AD191: 0 | AE191: 0 | AF191: 0 | AG191: =AG186+AG189+AG190 -> 0
C192: Less contributions
C193: Total net expenditure | Y193: =Y191-Y192 -> 0 | Z193: =Z191-Z192 -> 0 | AA193: 0 | AB193: 0 | AC193: 0 | AD193: 0 | AE193: 0 | AF193: 0 | AG193: =AG191-AG192 -> 0
C194: Unit cost | D194: =D186/D182 ->  | M194: =M186/M182 ->  | Y194: =Y186/Y182 -> 
B195: Water meter | C195: Volume
C196: Direct internal labour expenditure
C197: Direct contractor expenditure
C198: Other internal direct expenditure
C199: Total direct expenditure (excl escalation)
C200: Escalation
C201: Total direct expenditure (inc escalation)
C202: Total overhead expenditure
C203: Related party margin expenditure
C204: Total gross expenditure | D204: =SUM(D199:D203) -> 0 | E204: =SUM(E199:E203) -> 0 | F204: 0 | G204: 0 | H204: 0 | I204: 0 | J204: 0 | K204: 0 | L204: 0 | Y204: =Y199+Y202+Y203 -> 0 | Z204: =Z199+Z202+Z203 -> 0 | AA204: 0 | AB204: 0 | AC204: 0 | AD204: 0 | AE204: 0 | AF204: 0 | AG204: =AG199+AG202+AG203 -> 0
C205: Less contributions
C206: Total net expenditure | D206: =D204-D205 -> 0 | E206: =E204-E205 -> 0 | F206: 0 | G206: 0 | H206: 0 | I206: 0 | J206: 0 | K206: 0 | L206: 0 | Y206: =Y204-Y205 -> 0 | Z206: =Z204-Z205 -> 0 | AA206: 0 | AB206: 0 | AC206: 0 | AD206: 0 | AE206: 0 | AF206: 0 | AG206: =AG204-AG205 -> 0
C207: Unit cost | D207: =D199/D195 ->  | Y207: =Y199/Y195 ->  | AG207: =AG199/AG195 -> 
... 419 more rows

Sheet 9. Captlised regulatory exp.
E1: =SheetHeader -> REGULATORY REPORTING STATEMENT
E2: =dms_TradingName -> ActewAGL Distribution
E3: =CONCATENATE(FRCP_y1," to ",FRCP_y5) -> 2016-17 to 2020-21 | K3: =CONCATENATE(LEFT(FRCP_y1,4),"-",LEFT(FRCP_y5,2),RIGHT(FRCP_y5,2)) -> 2016-2021
E4: 9. CAPITALISED REGULATORY EXPENDITURE
E7: Instructions
E8: This template asks for information relating to other (non-distribution) capital expenditure
A9: HPS | B9: HP services | E9: =CONCATENATE("As set out in cl.6.1 of the ",dms_TradingName," RIN, for tables 9.1 to 9.2, where the requested data is captured in the ",dms_TradingName," capex model it is not required to be reentered in the RIN template tables. If the requested data has not been provided in the ",dms_TradingName," capex model, please enter into the tables. This may require the insertion of new lines in each table.") -> As set out in cl.6.1 of the ActewAGL Distribution RIN, for tables 9.1 to 9.2, where the requested data is captured in the ActewAGL Distribution capex model it is not required to be reentered in the RIN template tables. If the requested data has not been provided in the ActewAGL Distribution capex model, please enter into the tables. This may require the insertion of new lines in each table.
A10: MPM | B10: MP mains | E10: Reported expenditure is to be entered EXCLUSIVE of any profit margin expenditures or management fees paid pursuant to arrangements or contracts with any related parties. Include any related party margin expenditures or management fees in the separate 'Related party margin expenditure' line item.
A11: TRS | B11: TRS & DRS - valves & regulators | E11: =CONCATENATE("Subject to cl.6.1 of the ",dms_TradingName," RIN, where linked/adjustable escalation is not provided in the ",dms_TradingName," capex model, escalation should be linked to allocations derived in tab '2. Escalators'.") -> Subject to cl.6.1 of the ActewAGL Distribution RIN, where linked/adjustable escalation is not provided in the ActewAGL Distribution capex model, escalation should be linked to allocations derived in tab '2. Escalators'.
A12: CM | B12: Contract meters | E12: =CONCATENATE("Subject to cl.6.1 of the ",dms_TradingName," RIN, where linked/adjustable overhead expenditure and related party margin expenditure expenditure is not provided in the ",dms_TradingName," capex model, overhead expenditure and related party margin expenditure expenditure should be linked to allocations derived in tabs '14. Overheads' and '15. Related party transactions'.") -> Subject to cl.6.1 of the ActewAGL Distribution RIN, where linked/adjustable overhead expenditure and related party margin expenditure expenditure is not provided in the ActewAGL Distribution capex model, overhead expenditure and related party margin expenditure expenditure should be linked to allocations derived in tabs '14. Overheads' and '15. Related party transactions'.
A13: TM | B13: Tariff meters | E13: Capital expenditure amounts entered should be GROSS of customer contributions. There is a separate line item for customer contributions from which net capital expenditure is derived.
A14: ERC | B14: Equity raising expenditure
G15: 0 | H15: 0 | I15: 0 | J15: 0 | K15: 0 | L15: 0 | M15: 0 | N15: 0 | O15: 0
A16: Internal identification code | B16: Asset category | C16: Percent allocation | E16: Table 9 - CAPITALISED REGULATORY EXPENDITURE | AA16: REAL $ CONVERSION OF HISTORICAL DATA
A17: Internal identification code | B17: Asset category | C17: Percent allocation | E17: Table 9.1 - Capitalised regulatory expenditure (actual / estimate )
G18: Previous access arrangement period | L18: Current access arrangement period | R18: Next access arrangement period | W18: Supporting documentation (business case, expenditureing spreadsheet, contracts) | AA18: Previous access arrangement period | AF18: Current access arrangement period
G19: $0's, nominal | P19: =CONCATENATE("$0's, real ",dms_DollarReal) -> $0's, real June 2016 | AA19: =CONCATENATE("$0's, real ",dms_DollarReal) -> $0's, real June 2016
G20: Actual | P20: Forecast | AA20: Actual
G21: =PRCP -> 2005-06 | H21: 2006-07 | I21: 2007-08 | J21: 2008-09 | K21: 2009-10 | L21: =CRCP_y1 -> 2010-11 | M21: =CRCP_y2 -> 2011-12 | N21: =CRCP_y3 -> 2012-13 | O21: =CRCP_y4 -> 2013-14 | P21: =CRCP_y5 -> 2014-15 | Q21: =CRCP_y6 -> 2015-16 | R21: =FRCP -> 2016-17 | S21: 2017-18 | T21: 2018-19 | U21: 2019-20 | V21: 2020-21 | AA21: =PRCP -> 2005-06 | AB21: 2006-07 | AC21: 2007-08 | AD21: 2008-09 | AE21: 2009-10 | AF21: =CRCP_y1 -> 2010-11 | AG21: =CRCP_y2 -> 2011-12 | AH21: =CRCP_y3 -> 2012-13 | AI21: =CRCP_y4 -> 2013-14
E22: 151503 - Gas Network Reg Review 2010 | F22: Direct expenditure
F23: Direct internal labour expenditure | G23: 0 | H23: 0 | I23: 0 | J23: 0 | K23: 0 | L23: 0 | M23: 0 | N23: 0 | O23: 0
F24: Direct contractor expenditure | G24: 0 | H24: 0 | I24: 0 | J24: 418629.07 | K24: 0 | L24: 0 | M24: 0 | N24: 0 | O24: 0
F25: Other internal direct expenditure | G25: 0 | H25: 0 | I25: 0 | J25: 39545.18 | K25: 584712.29 | L25: 0 | M25: 0 | N25: 0 | O25: 0
F26: Total direct expenditure (excl escalation) | G26: =SUM(G23:G25) -> 0 | H26: =SUM(H23:H25) -> 0 | I26: 0 | J26: 458174.25 | K26: 584712.29 | L26: 0 | M26: 0 | N26: 0 | O26: 0 | R26: =SUM(R23:R25) -> 0 | S26: 0 | T26: 0 | U26: 0 | V26: 0 | AF26: =SUM(AF23:AF25) -> 0 | AG26: 0 | AH26: 0 | AI26: =SUM(AI23:AI25) -> 0
F27: Escalation
F28: Total direct expenditure (inc escalation) | G28: =SUM(G26:G27) -> 0 | H28: =SUM(H26:H27) -> 0 | I28: 0 | J28: 458174.25 | K28: 584712.29 | L28: 0 | M28: 0 | N28: 0 | O28: 0
F29: Total overhead expenditure
F30: Related party margin expenditure | G30: =G$15*G24 -> 0 | H30: =H$15*H24 -> 0 | I30: 0 | J30: 0 | K30: 0 | L30: 0 | M30: 0 | N30: 0 | O30: 0
F31: Total gross expenditure | G31: =SUM(G28:G30) -> 0 | H31: =SUM(H28:H30) -> 0 | I31: 0 | J31: 458174.25 | K31: 584712.29 | L31: 0 | M31: 0 | N31: 0 | O31: 0 | R31: =SUM(R29:R30) -> 0 | S31: 0 | T31: 0 | U31: 0 | V31: 0 | AA31: =SUM(AA29:AA30) -> 0 | AB31: 0 | AC31: 0 | AD31: 0 | AE31: 0 | AF31: 0 | AG31: 0 | AH31: 0 | AI31: =SUM(AI29:AI30) -> 0
F32: Less customer contributions
F33: Total net expenditure | G33: =G31-G32 -> 0 | H33: =H31-H32 -> 0 | I33: 0 | J33: 458174.25 | K33: 584712.29 | L33: 0 | M33: 0 | N33: 0 | O33: 0 | R33: =R31-R32 -> 0 | S33: =S31-S32 -> 0 | T33: =T31-T32 -> 0 | U33: =U31-U32 -> 0 | V33: =V31-V32 -> 0 | AA33: =AA31-AA32 -> 0 | AB33: 0 | AC33: 0 | AD33: 0 | AE33: 0 | AF33: =AF31-AF32 -> 0 | AG33: =AG31-AG32 -> 0 | AH33: =AH31-AH32 -> 0 | AI33: 0
E34: <insert project name> | F34: Direct expenditure
F35: Direct internal labour expenditure
F36: Direct contractor expenditure
F37: Other internal direct expenditure
F38: Total direct expenditure | L38: =SUM(L35:L37) -> 0 | M38: 0 | N38: 0 | O38: 0 | R38: 0 | S38: 0 | T38: 0 | U38: 0 | V38: 0 | AF38: =SUM(AF35:AF37) -> 0 | AG38: 0 | AH38: 0 | AI38: =SUM(AI35:AI37) -> 0
F39: Total overhead expenditure
F40: Related party margin expenditure
F41: Total gross expenditure | G41: =SUM(G39:G40) -> 0 | H41: 0 | I41: 0 | J41: 0 | K41: 0 | L41: 0 | M41: 0 | N41: 0 | O41: 0 | R41: 0 | S41: 0 | T41: 0 | U41: 0 | V41: 0 | AA41: =SUM(AA39:AA40) -> 0 | AB41: 0 | AC41: 0 | AD41: 0 | AE41: 0 | AF41: 0 | AG41: 0 | AH41: 0 | AI41: =SUM(AI39:AI40) -> 0
F42: Less customer contributions
F43: Total net expenditure | G43: =G41-G42 -> 0 | H43: 0 | I43: 0 | J43: 0 | K43: 0 | L43: =L41-L42 -> 0 | M43: =M41-M42 -> 0 | N43: =N41-N42 -> 0 | O43: 0 | R43: =R41-R42 -> 0 | S43: =S41-S42 -> 0 | T43: =T41-T42 -> 0 | U43: =U41-U42 -> 0 | V43: =V41-V42 -> 0 | AA43: =AA41-AA42 -> 0 | AB43: 0 | AC43: 0 | AD43: 0 | AE43: 0 | AF43: =AF41-AF42 -> 0 | AG43: =AG41-AG42 -> 0 | AH43: =AH41-AH42 -> 0 | AI43: 0
E44: <insert project name> | F44: Direct expenditure
F45: Direct internal labour expenditure
F46: Direct contractor expenditure
F47: Other internal direct expenditure
F48: Total direct expenditure | L48: =SUM(L45:L47) -> 0 | M48: =SUM(M45:M47) -> 0 | N48: 0 | O48: 0 | R48: 0 | S48: 0 | T48: 0 | U48: 0 | V48: 0 | AF48: =SUM(AF45:AF47) -> 0 | AG48: 0 | AH48: 0 | AI48: =SUM(AI45:AI47) -> 0
F49: Total overhead expenditure
F50: Related party margin expenditure
F51: Total gross expenditure | G51: =SUM(G49:G50) -> 0 | H51: 0 | I51: 0 | J51: 0 | K51: 0 | L51: 0 | M51: 0 | N51: 0 | O51: 0 | R51: 0 | S51: 0 | T51: 0 | U51: 0 | V51: 0 | AA51: =SUM(AA48:AA50) -> 0 | AB51: =SUM(AB48:AB50) -> 0 | AC51: 0 | AD51: 0 | AE51: 0 | AF51: 0 | AG51: 0 | AH51: 0 | AI51: =SUM(AI48:AI50) -> 0
F52: Less customer contributions
F53: Total net expenditure | G53: =G51-G52 -> 0 | H53: 0 | I53: 0 | J53: 0 | K53: 0 | L53: =L51-L52 -> 0 | M53: =M51-M52 -> 0 | N53: 0 | O53: 0 | R53: =R51-R52 -> 0 | S53: =S51-S52 -> 0 | T53: =T51-T52 -> 0 | U53: =U51-U52 -> 0 | V53: =V51-V52 -> 0 | AA53: =AA51-AA52 -> 0 | AB53: =AB51-AB52 -> 0 | AC53: 0 | AD53: 0 | AE53: 0 | AF53: =AF51-AF52 -> 0 | AG53: =AG51-AG52 -> 0 | AH53: =AH51-AH52 -> 0 | AI53: 0
E54: TOTALS | F54: Total direct expenditure (excl escalation) | G54: =SUMIF($F$22:$F$53,"Total direct expenditure (inc escalation)",G$22:G$53) -> 0 | H54: =SUMIF($F$22:$F$53,"Total direct expenditure (inc escalation)",H$22:H$53) -> 0 | I54: 0 | J54: 458174.25 | K54: 584712.29 | L54: 0 | M54: 0 | N54: 0 | O54: 0 | R54: =SUMIF($E$22:$V$53,"Total direct expenditure ",R$22:R$53) -> 0 | S54: 0 | T54: 0 | U54: 0 | V54: 0 | AA54: =SUMIF($F$21:$F$52,"Total direct expenditure ",AA$22:AA$53) -> 0 | AB54: 0 | AC54: 0 | AD54: 0 | AE54: 0 | AF54: 0 | AG54: 0 | AH54: 0 | AI54: 0
F55: Escalation | G55: =SUMIF($F$22:$F$53,"Escalation",G$22:G$53) -> 0 | H55: =SUMIF($F$22:$F$53,"Escalation",H$22:H$53) -> 0 | I55: 0 | J55: 0 | K55: 0 | L55: 0 | M55: 0 | N55: 0 | O55: 0
F56: Total direct expenditure (inc escalation) | G56: =SUM(G54:G55) -> 0 | H56: =SUM(H54:H55) -> 0 | I56: 0 | J56: 458174.25 | K56: 584712.29 | L56: 0 | M56: 0 | N56: 0 | O56: 0
F57: Total overhead cost | G57: =SUMIF($F$22:$F$53,"Total overhead expenditure",G$22:G$53) -> 0 | H57: =SUMIF($F$22:$F$53,"Total overhead expenditure",H$22:H$53) -> 0 | I57: 0 | J57: 0 | K57: 0 | L57: 0 | M57: 0 | N57: 0 | O57: 0 | R57: =SUMIF($E$22:$V$53,"Total overhead expenditure",R$22:R$53) -> 0 | S57: 0 | T57: 0 | U57: 0 | V57: 0 | AA57: =SUMIF($F$21:$F$52,"Total overhead expenditure",AA$22:AA$53) -> 0 | AB57: 0 | AC57: 0 | AD57: 0 | AE57: 0 | AF57: 0 | AG57: 0 | AH57: 0 | AI57: 0
F58: Total related party margin | G58: =SUMIF($F$22:$F$53,"Related party margin expenditure",G$22:G$53) -> 0 | H58: =SUMIF($F$22:$F$53,"Related party margin expenditure",H$22:H$53) -> 0 | I58: 0 | J58: 0 | K58: 0 | L58: 0 | M58: 0 | N58: 0 | O58: 0 | R58: =SUMIF($E$22:$V$53,"Related party margin expenditure",R$22:R$53) -> 0 | S58: 0 | T58: 0 | U58: 0 | V58: 0 | AA58: =SUMIF($F$21:$F$52,"Related party margin expenditure",AA$22:AA$53) -> 0 | AB58: 0 | AC58: 0 | AD58: 0 | AE58: 0 | AF58: 0 | AG58: 0 | AH58: 0 | AI58: 0
F59: Total gross expenditure | G59: =SUMIF($F$22:$F$53,"Total gross expenditure",G$22:G$53) -> 0 | H59: =SUMIF($F$22:$F$53,"Total gross expenditure",H$22:H$53) -> 0 | I59: 0 | J59: 458174.25 | K59: 584712.29 | L59: 0 | M59: 0 | N59: 0 | O59: 0 | R59: =SUMIF($E$22:$V$53,"Total gross expenditure",R$22:R$53) -> 0 | S59: 0 | T59: 0 | U59: 0 | V59: 0 | AA59: =SUMIF($F$21:$F$52,"Total gross expenditure",AA$22:AA$53) -> 0 | AB59: 0 | AC59: 0 | AD59: 0 | AE59: 0 | AF59: 0 | AG59: 0 | AH59: 0 | AI59: 0
F60: Less total customer contributions | G60: =SUMIF($F$22:$F$53,"Less customer contributions",G$22:G$53) -> 0 | H60: =SUMIF($F$22:$F$53,"Less customer contributions",H$22:H$53) -> 0 | I60: 0 | J60: 0 | K60: 0 | L60: 0 | M60: 0 | N60: 0 | O60: 0 | R60: =SUMIF($E$22:$V$53,"Less customer contributions",R$22:R$53) -> 0 | S60: 0 | T60: 0 | U60: 0 | V60: 0 | AA60: =SUMIF($F$21:$F$52,"Less customer contributions",AA$22:AA$53) -> 0 | AB60: 0 | AC60: 0 | AD60: 0 | AE60: 0 | AF60: 0 | AG60: 0 | AH60: 0 | AI60: 0
F61: Total net expenditure | G61: =SUMIF($F$22:$F$53,"Total net expenditure",G$22:G$53) -> 0 | H61: =SUMIF($F$22:$F$53,"Total net expenditure",H$22:H$53) -> 0 | I61: 0 | J61: 458174.25 | K61: 584712.29 | L61: 0 | M61: 0 | N61: 0 | O61: 0 | R61: =SUMIF($E$22:$V$53,"Total net expenditure",R$22:R$53) -> 0 | S61: 0 | T61: 0 | U61: 0 | V61: 0 | AA61: =SUMIF($F$21:$F$52,"Total net expenditure",AA$22:AA$53) -> 0 | AB61: 0 | AC61: 0 | AD61: 0 | AE61: 0 | AF61: 0 | AG61: 0 | AH61: 0 | AI61: 0
E62: Source(s) of data:
E64: Table 9.2 - Capitalised regulatory expenditure (approved)
G65: Previous access arrangement period | L65: Current access arrangement period | AA65: Previous access arrangement period | AF65: Current access arrangement period
G66: $0's, nominal | AA66: =CONCATENATE("$0's, real ",dms_DollarReal) -> $0's, real June 2016
G67: Approved | AA67: Approved
G68: =PRCP -> 2005-06 | H68: 2006-07 | I68: 2007-08 | J68: 2008-09 | K68: 2009-10 | L68: =CRCP_y1 -> 2010-11 | M68: =CRCP_y2 -> 2011-12 | N68: =CRCP_y3 -> 2012-13 | O68: =CRCP_y4 -> 2013-14 | P68: =CRCP_y5 -> 2014-15 | Q68: =CRCP_y6 -> 2015-16 | AA68: =PRCP -> 2005-06 | AB68: 2006-07 | AC68: 2007-08 | AD68: 2008-09 | AE68: 2009-10 | AF68: =CRCP_y1 -> 2010-11 | AG68: =CRCP_y2 -> 2011-12 | AH68: =CRCP_y3 -> 2012-13 | AI68: =CRCP_y4 -> 2013-14
E69: <insert project name> | F69: Direct expenditure
F70: Direct internal labour expenditure
F71: Direct contractor expenditure
F72: Other internal direct expenditure
F73: Total direct expenditure | L73: =SUM(L70:L72) -> 0 | M73: 0 | N73: 0 | O73: 0 | P73: 0 | Q73: 0 | AF73: =SUM(AF70:AF72) -> 0 | AG73: 0 | AH73: 0 | AI73: 0
F74: Total overhead expenditure
F75: Related party margin expenditure
F76: Total gross expenditure | G76: =SUM(G74:G75) -> 0 | H76: 0 | I76: 0 | J76: 0 | K76: 0 | L76: 0 | M76: 0 | N76: 0 | O76: 0 | P76: 0 | Q76: 0 | AA76: =SUM(AA74:AA75) -> 0 | AB76: 0 | AC76: 0 | AD76: 0 | AE76: 0 | AF76: 0 | AG76: 0 | AH76: 0 | AI76: 0
F77: Less customer contributions
F78: Total net expenditure | G78: =G76-G77 -> 0 | H78: 0 | I78: 0 | J78: 0 | K78: 0 | L78: =L76-L77 -> 0 | M78: 0 | N78: 0 | O78: 0 | P78: 0 | Q78: 0 | AA78: =AA76-AA77 -> 0 | AB78: 0 | AC78: 0 | AD78: 0 | AE78: 0 | AF78: =AF76-AF77 -> 0 | AG78: =AG76-AG77 -> 0 | AH78: =AH76-AH77 -> 0 | AI78: 0
E79: <insert project name> | F79: Direct expenditure
F80: Direct internal labour expenditure
F81: Direct contractor expenditure
F82: Other internal direct expenditure
F83: Total direct expenditure | L83: =SUM(L80:L82) -> 0 | M83: 0 | N83: 0 | O83: 0 | P83: 0 | Q83: 0 | AF83: =SUM(AF80:AF82) -> 0 | AG83: 0 | AH83: 0 | AI83: 0
F84: Total overhead expenditure
F85: Related party margin expenditure
F86: Total gross expenditure | G86: =SUM(G84:G85) -> 0 | H86: 0 | I86: 0 | J86: 0 | K86: 0 | L86: 0 | M86: 0 | N86: 0 | O86: 0 | P86: 0 | Q86: 0 | AA86: =SUM(AA84:AA85) -> 0 | AB86: 0 | AC86: 0 | AD86: 0 | AE86: 0 | AF86: 0 | AG86: 0 | AH86: 0 | AI86: 0
F87: Less customer contributions
F88: Total net expenditure | G88: =G86-G87 -> 0 | H88: 0 | I88: 0 | J88: 0 | K88: 0 | L88: =L86-L87 -> 0 | M88: 0 | N88: 0 | O88: 0 | P88: 0 | Q88: 0 | AA88: =AA86-AA87 -> 0 | AB88: 0 | AC88: 0 | AD88: 0 | AE88: 0 | AF88: =AF86-AF87 -> 0 | AG88: =AG86-AG87 -> 0 | AH88: =AH86-AH87 -> 0 | AI88: 0
E89: TOTALS | F89: Total direct expenditure | G89: =SUMIF($E$69:$Q$88,"Total direct expenditure ",G$69:G$88) -> 0 | H89: 0 | I89: 0 | J89: 0 | K89: 0 | L89: 0 | M89: 0 | N89: 0 | O89: 0 | P89: 0 | Q89: 0 | AA89: =SUMIF($F$21:$F$52,"Total direct expenditure ",AA$22:AA$53) -> 0 | AB89: 0 | AC89: 0 | AD89: 0 | AE89: 0 | AF89: 0 | AG89: 0 | AH89: 0 | AI89: 0
F90: Total overhead expenditure | G90: =SUMIF($E$69:$Q$88,"Total overhead expenditure",G$69:G$88) -> 0 | H90: 0 | I90: 0 | J90: 0 | K90: 0 | L90: 0 | M90: 0 | N90: 0 | O90: 0 | P90: 0 | Q90: 0 | AA90: =SUMIF($F$21:$F$52,"Total overhead expenditure",AA$22:AA$53) -> 0 | AB90: 0 | AC90: 0 | AD90: 0 | AE90: 0 | AF90: 0 | AG90: 0 | AH90: 0 | AI90: 0
F91: Related party margin expenditure | G91: =SUMIF($E$69:$Q$88,"Related party margin expenditure",G$69:G$88) -> 0 | H91: 0 | I91: 0 | J91: 0 | K91: 0 | L91: 0 | M91: 0 | N91: 0 | O91: 0 | P91: 0 | Q91: 0 | AA91: =SUMIF($F$21:$F$52,"Related party margin expenditure",AA$22:AA$53) -> 0 | AB91: 0 | AC91: 0 | AD91: 0 | AE91: 0 | AF91: 0 | AG91: 0 | AH91: 0 | AI91: 0
F92: Total gross expenditure of augmentation | G92: =SUMIF($E$69:$Q$88,"Total gross expenditure",G$69:G$88) -> 0 | H92: 0 | I92: 0 | J92: 0 | K92: 0 | L92: 0 | M92: 0 | N92: 0 | O92: 0 | P92: 0 | Q92: 0 | AA92: =SUMIF($F$21:$F$52,"Total gross expenditure",AA$22:AA$53) -> 0 | AB92: 0 | AC92: 0 | AD92: 0 | AE92: 0 | AF92: 0 | AG92: 0 | AH92: 0 | AI92: 0
F93: Less customer contributions | G93: =SUMIF($E$69:$Q$88,"Less customer contributions",G$69:G$88) -> 0 | H93: 0 | I93: 0 | J93: 0 | K93: 0 | L93: 0 | M93: 0 | N93: 0 | O93: 0 | P93: 0 | Q93: 0 | AA93: =SUMIF($F$21:$F$52,"Less customer contributions",AA$22:AA$53) -> 0 | AB93: 0 | AC93: 0 | AD93: 0 | AE93: 0 | AF93: 0 | AG93: 0 | AH93: 0 | AI93: 0
F94: Total Net expenditure of augmentation | G94: =SUMIF($E$69:$Q$88,"Total net expenditure",G$69:G$88) -> 0 | H94: 0 | I94: 0 | J94: 0 | K94: 0 | L94: 0 | M94: 0 | N94: 0 | O94: 0 | P94: 0 | Q94: 0 | AA94: =SUMIF($F$21:$F$52,"Total net expenditure",AA$22:AA$53) -> 0 | AB94: 0 | AC94: 0 | AD94: 0 | AE94: 0 | AF94: 0 | AG94: 0 | AH94: 0 | AI94: 0
E95: Source(s) of data:

Sheet 11. Other non-distb
E1: =SheetHeader -> REGULATORY REPORTING STATEMENT
E2: =dms_TradingName -> ActewAGL Distribution
E3: =CONCATENATE(FRCP_y1," to ",FRCP_y5) -> 2016-17 to 2020-21 | J3: =CONCATENATE(LEFT(FRCP_y1,4),"-",LEFT(FRCP_y5,2),RIGHT(FRCP_y5,2)) -> 2016-2021
E4: 11. OTHER (NON-DISTRIBUTION) CAPITAL EXPENDITURE
E7: Instructions
E8: This template asks for information relating to other (non-distribution) capital expenditure
A9: HPS | B9: HP services | E9: As set out in cl.6.1 of the ActewAGL RIN, for tables 11.1 to 11.2, where the requested data is captured in the ActewAGL capex model it is not required to be reentered in the RIN template tables. If the requested data has not been provided in the ActewAGL RIN please enter into the tables. This may require the insertion of new lines in each table.
A10: MPM | B10: MP mains | E10: Reported expenditure is to be entered EXCLUSIVE of any profit margins or management fees paid pursuant to arrangements or contracts with any related parties. Include any related party margins or management fees in the separate 'Related party margin' line item.
A11: CM | B11: Contract meters | E11: Subject to cl.6.1 of the ActewAGL RIN, where linked/adjustable overhead expenditure and related party margin expenditure is not provided in the ActewAGL capex model, overhead expenditure and related party margin expenditure should be linked to allocations derived in tabs '12 - Overheads' and '13 - Related party transactions'.
A12: TM | B12: Tariff meters | E12: Capital expenditure amounts entered should be GROSS of customer contributions. There is a separate line item for customer contributions from which net capital expenditure is derived.
A13: ERC | B13: Equity raising expenditure
E15: Table 11 - OTHER (NON-DISTRIBUTION) CAPITAL EXPENDITURE | AB15: REAL $ CONVERSION OF HISTORICAL DATA
E16: Table 11.1 - Other non-distribution capital expenditure (actual / forecast)
G17: Previous access arrangement period | L17: Current access arrangement period | S17: Next access arrangement period | X17: Supporting documentation (business case, costing spreadsheet, contracts) | AB17: Previous access arrangement period | AG17: Current access arrangement period
G18: $0's, nominal | P18: =CONCATENATE("$0's, real ",dms_DollarReal) -> $0's, real June 2016 | AB18: =CONCATENATE("$0's, real ",dms_DollarReal) -> $0's, real June 2016
A19: Internal identification code | B19: Asset category | C19: Percent allocation | G19: Actual | P19: Forecast | AB19: Actual
G20: =PRCP -> 2005-06 | H20: 2006-07 | I20: 2007-08 | J20: 2008-09 | K20: 2009-10 | L20: =CRCP_y1 -> 2010-11 | M20: =CRCP_y2 -> 2011-12 | N20: =CRCP_y3 -> 2012-13 | O20: =CRCP_y4 -> 2013-14 | P20: =CRCP_y5 -> 2014-15 | Q20: =CRCP_y6 -> 2015-16 | R20: Variance (actual vs approved) % | S20: =FRCP -> 2016-17 | T20: 2017-18 | U20: 2018-19 | V20: 2019-20 | W20: 2020-21 | AB20: =PRCP -> 2005-06 | AC20: 2006-07 | AD20: 2007-08 | AE20: 2008-09 | AF20: 2009-10 | AG20: =CRCP_y1 -> 2010-11 | AH20: =CRCP_y2 -> 2011-12 | AI20: =CRCP_y3 -> 2012-13 | AJ20: =CRCP_y4 -> 2013-14
E21: < insert sub-category >
E22: < insert project name > | F22: Direct expenditure
F23: Direct internal labour expenditure
F24: Direct contractor expenditure
F25: Other internal direct expenditure
F26: Total direct expenditure | M26: =SUM(M23:M25) -> 0 | N26: 0 | O26: 0 | P26: 0 | Q26: 0 | R26: 0 | S26: 0 | T26: 0 | U26: 0 | V26: 0 | AH26: =SUM(AH23:AH25) -> 0 | AI26: 0 | AJ26: =SUM(AJ23:AJ25) -> 0
F27: Total overhead expenditure
F28: Related party margin expenditure
F29: Total gross expenditure | G29: =SUM(G26:G28) -> 0 | H29: =SUM(H26:H28) -> 0 | I29: 0 | J29: 0 | K29: 0 | L29: 0 | M29: 0 | N29: 0 | O29: 0 | P29: 0 | Q29: 0 | R29: 0 | S29: 0 | T29: 0 | U29: 0 | V29: 0 | W29: 0 | AB29: =SUM(AB26:AB28) -> 0 | AC29: =SUM(AC26:AC28) -> 0 | AD29: 0 | AE29: 0 | AF29: 0 | AG29: 0 | AH29: 0 | AI29: 0 | AJ29: =SUM(AJ26:AJ28) -> 0
F30: Less customer contributions
F31: Total net expenditure | G31: =G29-G30 -> 0 | H31: =H29-H30 -> 0 | I31: 0 | J31: 0 | K31: 0 | L31: 0 | M31: =M29-M30 -> 0 | N31: 0 | O31: 0 | P31: 0 | Q31: 0 | R31: =R29-R30 -> 0 | S31: =S29-S30 -> 0 | T31: =T29-T30 -> 0 | U31: =U29-U30 -> 0 | V31: =V29-V30 -> 0 | AB31: =AB29-AB30 -> 0 | AC31: 0 | AD31: 0 | AE31: 0 | AF31: 0 | AG31: 0 | AH31: =AH29-AH30 -> 0 | AI31: =AI29-AI30 -> 0 | AJ31: 0
E32: < insert project name > | F32: Direct expenditure
F33: Direct internal labour expenditure
F34: Direct contractor expenditure
F35: Other internal direct expenditure
F36: Total direct expenditure | M36: =SUM(M33:M35) -> 0 | N36: 0 | O36: 0 | P36: 0 | Q36: 0 | R36: 0 | S36: 0 | T36: 0 | U36: 0 | V36: 0 | AH36: =SUM(AH33:AH35) -> 0 | AI36: 0 | AJ36: =SUM(AJ33:AJ35) -> 0
F37: Total overhead expenditure
F38: Related party margin expenditure
F39: Total gross expenditure | G39: =SUM(G36:G38) -> 0 | H39: =SUM(H36:H38) -> 0 | I39: =SUM(I36:I38) -> 0 | J39: =SUM(J36:J38) -> 0 | K39: =SUM(K36:K38) -> 0 | L39: =SUM(L36:L38) -> 0 | M39: =SUM(M36:M38) -> 0 | N39: =SUM(N36:N38) -> 0 | O39: =SUM(O36:O38) -> 0 | P39: =SUM(P36:P38) -> 0 | Q39: =SUM(Q36:Q38) -> 0 | R39: =SUM(R36:R38) -> 0 | S39: =SUM(S36:S38) -> 0 | T39: =SUM(T36:T38) -> 0 | U39: =SUM(U36:U38) -> 0 | V39: =SUM(V36:V38) -> 0 | W39: =SUM(W36:W38) -> 0 | AB39: =SUM(AB36:AB38) -> 0 | AC39: =SUM(AC36:AC38) -> 0 | AD39: 0 | AE39: 0 | AF39: 0 | AG39: 0 | AH39: 0 | AI39: 0 | AJ39: =SUM(AJ36:AJ38) -> 0
F40: Less customer contributions
F41: Total net expenditure | G41: =G39-G40 -> 0 | H41: 0 | I41: 0 | J41: 0 | K41: 0 | L41: 0 | M41: 0 | N41: 0 | O41: 0 | P41: 0 | Q41: 0 | R41: 0 | S41: 0 | T41: 0 | U41: 0 | V41: 0 | AB41: =AB39-AB40 -> 0 | AC41: 0 | AD41: 0 | AE41: 0 | AF41: 0 | AG41: 0 | AH41: =AH39-AH40 -> 0 | AI41: =AI39-AI40 -> 0 | AJ41: 0
E42: < insert project name > | F42: Direct expenditure
F43: Direct internal labour expenditure
F44: Direct contractor expenditure
F45: Other internal direct expenditure
F46: Total direct expenditure | M46: =SUM(M43:M45) -> 0 | N46: 0 | O46: 0 | P46: 0 | Q46: 0 | R46: 0 | S46: 0 | T46: 0 | U46: 0 | V46: 0 | AH46: =SUM(AH43:AH45) -> 0 | AI46: 0 | AJ46: =SUM(AJ43:AJ45) -> 0
F47: Total overhead expenditure
F48: Related party margin expenditure
F49: Total gross expenditure | G49: =SUM(G46:G48) -> 0 | H49: =SUM(H46:H48) -> 0 | I49: =SUM(I46:I48) -> 0 | J49: =SUM(J46:J48) -> 0 | K49: =SUM(K46:K48) -> 0 | L49: =SUM(L46:L48) -> 0 | M49: =SUM(M46:M48) -> 0 | N49: =SUM(N46:N48) -> 0 | O49: =SUM(O46:O48) -> 0 | P49: =SUM(P46:P48) -> 0 | Q49: =SUM(Q46:Q48) -> 0 | R49: =SUM(R46:R48) -> 0 | S49: =SUM(S46:S48) -> 0 | T49: =SUM(T46:T48) -> 0 | U49: =SUM(U46:U48) -> 0 | V49: =SUM(V46:V48) -> 0 | W49: =SUM(W46:W48) -> 0 | AB49: =SUM(AB46:AB48) -> 0 | AC49: =SUM(AC46:AC48) -> 0 | AD49: 0 | AE49: 0 | AF49: 0 | AG49: 0 | AH49: 0 | AI49: 0 | AJ49: =SUM(AJ46:AJ48) -> 0
F50: Less customer contributions
F51: Total net expenditure | G51: =G49-G50 -> 0 | H51: =H49-H50 -> 0 | I51: 0 | J51: 0 | K51: 0 | L51: 0 | M51: 0 | N51: 0 | O51: 0 | P51: 0 | Q51: 0 | R51: 0 | S51: 0 | T51: 0 | U51: 0 | V51: 0 | AB51: =AB49-AB50 -> 0 | AC51: 0 | AD51: 0 | AE51: 0 | AF51: 0 | AG51: 0 | AH51: =AH49-AH50 -> 0 | AI51: =AI49-AI50 -> 0 | AJ51: 0
E52: < insert sub-category >
E53: <insert project name> | F53: Direct expenditure
F54: Direct internal labour expenditure
F55: Direct contractor expenditure
F56: Other internal direct expenditure
F57: Total direct expenditure | M57: =SUM(M54:M56) -> 0 | N57: 0 | O57: 0 | P57: 0 | Q57: 0 | R57: 0 | S57: 0 | T57: 0 | U57: 0 | V57: 0 | AH57: =SUM(AH54:AH56) -> 0 | AI57: 0 | AJ57: =SUM(AJ54:AJ56) -> 0
F58: Total overhead expenditure
F59: Related party margin expenditure
F60: Total gross expenditure | G60: =SUM(G57:G59) -> 0 | H60: =SUM(H57:H59) -> 0 | I60: =SUM(I57:I59) -> 0 | J60: =SUM(J57:J59) -> 0 | K60: =SUM(K57:K59) -> 0 | L60: =SUM(L57:L59) -> 0 | M60: =SUM(M57:M59) -> 0 | N60: =SUM(N57:N59) -> 0 | O60: =SUM(O57:O59) -> 0 | P60: =SUM(P57:P59) -> 0 | Q60: =SUM(Q57:Q59) -> 0 | R60: =SUM(R57:R59) -> 0 | S60: =SUM(S57:S59) -> 0 | T60: =SUM(T57:T59) -> 0 | U60: =SUM(U57:U59) -> 0 | V60: =SUM(V57:V59) -> 0 | W60: =SUM(W57:W59) -> 0 | AB60: =SUM(AB57:AB59) -> 0 | AC60: =SUM(AC57:AC59) -> 0 | AD60: 0 | AE60: 0 | AF60: 0 | AG60: 0 | AH60: 0 | AI60: 0 | AJ60: =SUM(AJ57:AJ59) -> 0
F61: Less customer contributions
F62: Total net expenditure | G62: =G60-G61 -> 0 | H62: =H60-H61 -> 0 | I62: 0 | J62: 0 | K62: 0 | L62: 0 | M62: 0 | N62: 0 | O62: 0 | P62: 0 | Q62: 0 | R62: 0 | S62: 0 | T62: 0 | U62: 0 | V62: 0 | AB62: =AB60-AB61 -> 0 | AC62: 0 | AD62: 0 | AE62: 0 | AF62: 0 | AG62: 0 | AH62: =AH60-AH61 -> 0 | AI62: =AI60-AI61 -> 0 | AJ62: 0
E63: <insert project name> | F63: Direct expenditure
F64: Direct internal labour expenditure
F65: Direct contractor expenditure
F66: Other internal direct expenditure
F67: Total direct expenditure | M67: =SUM(M64:M66) -> 0 | N67: 0 | O67: 0 | P67: 0 | Q67: 0 | R67: 0 | S67: 0 | T67: 0 | U67: 0 | V67: 0 | AH67: =SUM(AH64:AH66) -> 0 | AI67: 0 | AJ67: =SUM(AJ64:AJ66) -> 0
F68: Total overhead expenditure
F69: Related party margin expenditure
F70: Total gross expenditure | G70: =SUM(G67:G69) -> 0 | H70: =SUM(H67:H69) -> 0 | I70: =SUM(I67:I69) -> 0 | J70: =SUM(J67:J69) -> 0 | K70: =SUM(K67:K69) -> 0 | L70: =SUM(L67:L69) -> 0 | M70: =SUM(M67:M69) -> 0 | N70: =SUM(N67:N69) -> 0 | O70: =SUM(O67:O69) -> 0 | P70: =SUM(P67:P69) -> 0 | Q70: =SUM(Q67:Q69) -> 0 | R70: =SUM(R67:R69) -> 0 | S70: =SUM(S67:S69) -> 0 | T70: =SUM(T67:T69) -> 0 | U70: =SUM(U67:U69) -> 0 | V70: =SUM(V67:V69) -> 0 | W70: =SUM(W67:W69) -> 0 | AB70: =SUM(AB67:AB69) -> 0 | AC70: =SUM(AC67:AC69) -> 0 | AD70: 0 | AE70: 0 | AF70: 0 | AG70: 0 | AH70: 0 | AI70: 0 | AJ70: =SUM(AJ67:AJ69) -> 0
F71: Less customer contributions
F72: Total net expenditure | G72: =G70-G71 -> 0 | H72: =H70-H71 -> 0 | I72: 0 | J72: 0 | K72: 0 | L72: 0 | M72: 0 | N72: 0 | O72: 0 | P72: 0 | Q72: 0 | R72: 0 | S72: 0 | T72: 0 | U72: 0 | V72: 0 | AB72: =AB70-AB71 -> 0 | AC72: 0 | AD72: 0 | AE72: 0 | AF72: 0 | AG72: 0 | AH72: =AH70-AH71 -> 0 | AI72: =AI70-AI71 -> 0 | AJ72: 0
E73: <insert project name> | F73: Direct expenditure
F74: Direct internal labour expenditure
F75: Direct contractor expenditure
F76: Other internal direct expenditure
F77: Total direct expenditure | M77: =SUM(M74:M76) -> 0 | N77: 0 | O77: 0 | P77: 0 | Q77: 0 | R77: 0 | S77: 0 | T77: 0 | U77: 0 | V77: 0 | AH77: =SUM(AH74:AH76) -> 0 | AI77: 0 | AJ77: =SUM(AJ74:AJ76) -> 0
F78: Total overhead expenditure
F79: Related party margin expenditure
F80: Total gross expenditure | G80: =SUM(G77:G79) -> 0 | H80: =SUM(H77:H79) -> 0 | I80: =SUM(I77:I79) -> 0 | J80: =SUM(J77:J79) -> 0 | K80: =SUM(K77:K79) -> 0 | L80: =SUM(L77:L79) -> 0 | M80: =SUM(M77:M79) -> 0 | N80: =SUM(N77:N79) -> 0 | O80: =SUM(O77:O79) -> 0 | P80: =SUM(P77:P79) -> 0 | Q80: =SUM(Q77:Q79) -> 0 | R80: =SUM(R77:R79) -> 0 | S80: =SUM(S77:S79) -> 0 | T80: =SUM(T77:T79) -> 0 | U80: =SUM(U77:U79) -> 0 | V80: =SUM(V77:V79) -> 0 | W80: =SUM(W77:W79) -> 0 | AB80: =SUM(AB77:AB79) -> 0 | AC80: =SUM(AC77:AC79) -> 0 | AD80: 0 | AE80: 0 | AF80: 0 | AG80: 0 | AH80: 0 | AI80: 0 | AJ80: =SUM(AJ77:AJ79) -> 0
F81: Less customer contributions
F82: Total net expenditure | G82: =G80-G81 -> 0 | H82: =H80-H81 -> 0 | I82: 0 | J82: 0 | K82: 0 | L82: 0 | M82: 0 | N82: 0 | O82: 0 | P82: 0 | Q82: 0 | R82: 0 | S82: 0 | T82: 0 | U82: 0 | V82: 0 | AB82: =AB80-AB81 -> 0 | AC82: 0 | AD82: 0 | AE82: 0 | AF82: 0 | AG82: 0 | AH82: =AH80-AH81 -> 0 | AI82: =AI80-AI81 -> 0 | AJ82: 0
E83: < insert sub-category >
E84: <insert project name> | F84: Direct expenditure
F85: Direct internal labour expenditure
F86: Direct contractor expenditure
F87: Other internal direct expenditure
F88: Total direct expenditure | M88: =SUM(M85:M87) -> 0 | N88: 0 | O88: 0 | P88: 0 | Q88: 0 | R88: 0 | S88: 0 | T88: 0 | U88: 0 | V88: 0 | AH88: =SUM(AH85:AH87) -> 0 | AI88: 0 | AJ88: =SUM(AJ85:AJ87) -> 0
F89: Total overhead expenditure
F90: Related party margin expenditure
F91: Total gross expenditure | G91: =SUM(G88:G90) -> 0 | H91: =SUM(H88:H90) -> 0 | I91: =SUM(I88:I90) -> 0 | J91: =SUM(J88:J90) -> 0 | K91: =SUM(K88:K90) -> 0 | L91: =SUM(L88:L90) -> 0 | M91: =SUM(M88:M90) -> 0 | N91: =SUM(N88:N90) -> 0 | O91: =SUM(O88:O90) -> 0 | P91: =SUM(P88:P90) -> 0 | Q91: =SUM(Q88:Q90) -> 0 | R91: =SUM(R88:R90) -> 0 | S91: =SUM(S88:S90) -> 0 | T91: =SUM(T88:T90) -> 0 | U91: =SUM(U88:U90) -> 0 | V91: =SUM(V88:V90) -> 0 | W91: =SUM(W88:W90) -> 0 | AB91: =SUM(AB88:AB90) -> 0 | AC91: =SUM(AC88:AC90) -> 0 | AD91: 0 | AE91: 0 | AF91: 0 | AG91: 0 | AH91: 0 | AI91: 0 | AJ91: =SUM(AJ88:AJ90) -> 0
F92: Less customer contributions
F93: Total net expenditure | G93: =G91-G92 -> 0 | H93: =H91-H92 -> 0 | I93: 0 | J93: 0 | K93: 0 | L93: 0 | M93: 0 | N93: 0 | O93: 0 | P93: 0 | Q93: 0 | R93: 0 | S93: 0 | T93: 0 | U93: 0 | V93: 0 | AB93: =AB91-AB92 -> 0 | AC93: 0 | AD93: 0 | AE93: 0 | AF93: 0 | AG93: 0 | AH93: =AH91-AH92 -> 0 | AI93: =AI91-AI92 -> 0 | AJ93: 0
E94: <insert project name> | F94: Direct expenditure
F95: Direct internal labour expenditure
F96: Direct contractor expenditure
F97: Other internal direct expenditure
F98: Total direct expenditure | M98: =SUM(M95:M97) -> 0 | N98: 0 | O98: 0 | P98: 0 | Q98: 0 | R98: 0 | S98: 0 | T98: 0 | U98: 0 | V98: 0 | AH98: =SUM(AH95:AH97) -> 0 | AI98: 0 | AJ98: =SUM(AJ95:AJ97) -> 0
F99: Total overhead expenditure
F100: Related party margin expenditure
F101: Total gross expenditure | G101: =SUM(G98:G100) -> 0 | H101: =SUM(H98:H100) -> 0 | I101: =SUM(I98:I100) -> 0 | J101: =SUM(J98:J100) -> 0 | K101: =SUM(K98:K100) -> 0 | L101: =SUM(L98:L100) -> 0 | M101: =SUM(M98:M100) -> 0 | N101: =SUM(N98:N100) -> 0 | O101: =SUM(O98:O100) -> 0 | P101: =SUM(P98:P100) -> 0 | Q101: =SUM(Q98:Q100) -> 0 | R101: =SUM(R98:R100) -> 0 | S101: =SUM(S98:S100) -> 0 | T101: =SUM(T98:T100) -> 0 | U101: =SUM(U98:U100) -> 0 | V101: =SUM(V98:V100) -> 0 | W101: =SUM(W98:W100) -> 0 | AB101: =SUM(AB98:AB100) -> 0 | AC101: =SUM(AC98:AC100) -> 0 | AD101: 0 | AE101: 0 | AF101: 0 | AG101: 0 | AH101: 0 | AI101: 0 | AJ101: =SUM(AJ98:AJ100) -> 0
F102: Less customer contributions
F103: Total net expenditure | G103: =G101-G102 -> 0 | H103: =H101-H102 -> 0 | I103: 0 | J103: 0 | K103: 0 | L103: 0 | M103: 0 | N103: 0 | O103: 0 | P103: 0 | Q103: 0 | R103: 0 | S103: 0 | T103: 0 | U103: 0 | V103: 0 | AB103: =AB101-AB102 -> 0 | AC103: 0 | AD103: 0 | AE103: 0 | AF103: 0 | AG103: 0 | AH103: =AH101-AH102 -> 0 | AI103: =AI101-AI102 -> 0 | AJ103: 0
E104: <insert project name> | F104: Direct expenditure
F105: Direct internal labour expenditure
F106: Direct contractor expenditure
F107: Other internal direct expenditure
F108: Total direct expenditure | M108: =SUM(M105:M107) -> 0 | N108: 0 | O108: 0 | P108: 0 | Q108: 0 | R108: 0 | S108: 0 | T108: 0 | U108: 0 | V108: 0 | AH108: =SUM(AH105:AH107) -> 0 | AI108: 0 | AJ108: =SUM(AJ105:AJ107) -> 0
F109: Total overhead expenditure
F110: Related party margin expenditure
F111: Total gross expenditure | G111: =SUM(G108:G110) -> 0 | H111: =SUM(H108:H110) -> 0 | I111: =SUM(I108:I110) -> 0 | J111: =SUM(J108:J110) -> 0 | K111: =SUM(K108:K110) -> 0 | L111: =SUM(L108:L110) -> 0 | M111: =SUM(M108:M110) -> 0 | N111: =SUM(N108:N110) -> 0 | O111: =SUM(O108:O110) -> 0 | P111: =SUM(P108:P110) -> 0 | Q111: =SUM(Q108:Q110) -> 0 | R111: =SUM(R108:R110) -> 0 | S111: =SUM(S108:S110) -> 0 | T111: =SUM(T108:T110) -> 0 | U111: =SUM(U108:U110) -> 0 | V111: =SUM(V108:V110) -> 0 | W111: =SUM(W108:W110) -> 0 | AB111: =SUM(AB108:AB110) -> 0 | AC111: =SUM(AC108:AC110) -> 0 | AD111: 0 | AE111: 0 | AF111: 0 | AG111: 0 | AH111: 0 | AI111: 0 | AJ111: =SUM(AJ108:AJ110) -> 0
F112: Less customer contributions
F113: Total net expenditure | G113: =G111-G112 -> 0 | H113: =H111-H112 -> 0 | I113: 0 | J113: 0 | K113: 0 | L113: 0 | M113: 0 | N113: 0 | O113: 0 | P113: 0 | Q113: 0 | R113: 0 | S113: 0 | T113: 0 | U113: 0 | V113: 0 | AB113: =AB111-AB112 -> 0 | AC113: 0 | AD113: 0 | AE113: 0 | AF113: 0 | AG113: 0 | AH113: =AH111-AH112 -> 0 | AI113: =AI111-AI112 -> 0 | AJ113: 0
E114: TOTALS | F114: Total direct expenditure | G114: =SUMIF($E$21:$V$113,"Total direct expenditure (excl escalation)",G$21:G$113) -> 0 | H114: 0 | I114: 0 | J114: 0 | K114: 0 | L114: 0 | M114: 0 | N114: 0 | O114: 0 | P114: 0 | Q114: 0 | R114: 0 | S114: 0 | T114: 0 | U114: 0 | V114: 0 | AB114: =SUMIF($F$84:$F$114,"Total direct expenditure ",AB$83:AB$113) -> 0 | AC114: 0 | AD114: 0 | AE114: 0 | AF114: 0 | AG114: 0 | AH114: 0 | AI114: 0 | AJ114: 0
F115: Total overhead expenditure | G115: =SUMIF($E$21:$V$113,"Total overhead expenditure",G$21:G$113) -> 0 | H115: 0 | I115: 0 | J115: 0 | K115: 0 | L115: 0 | M115: 0 | N115: 0 | O115: 0 | P115: 0 | Q115: 0 | R115: 0 | S115: 0 | T115: 0 | U115: 0 | V115: 0 | AB115: =SUMIF($F$84:$F$114,"Total overhead expenditure",AB$83:AB$113) -> 0 | AC115: 0 | AD115: 0 | AE115: 0 | AF115: 0 | AG115: 0 | AH115: 0 | AI115: 0 | AJ115: 0
F116: Total related party margin expenditure | G116: =SUMIF($E$21:$V$113,"Related party margin",G$21:G$113) -> 0 | H116: 0 | I116: 0 | J116: 0 | K116: 0 | L116: 0 | M116: 0 | N116: 0 | O116: 0 | P116: 0 | Q116: 0 | R116: 0 | S116: 0 | T116: 0 | U116: 0 | V116: 0 | AB116: =SUMIF($F$84:$F$114,"Related party margin expenditure",AB$83:AB$113) -> 0 | AC116: 0 | AD116: 0 | AE116: 0 | AF116: 0 | AG116: 0 | AH116: 0 | AI116: 0 | AJ116: 0
F117: Total gross expenditure | G117: =SUMIF($E$21:$V$113,"Total gross expenditure",G$21:G$113) -> 0 | H117: 0 | I117: 0 | J117: 0 | K117: 0 | L117: 0 | M117: 0 | N117: 0 | O117: 0 | P117: 0 | Q117: 0 | R117: 0 | S117: 0 | T117: 0 | U117: 0 | V117: 0 | AB117: =SUMIF($F$84:$F$114,"Total gross expenditure",AB$83:AB$113) -> 0 | AC117: 0 | AD117: 0 | AE117: 0 | AF117: 0 | AG117: 0 | AH117: 0 | AI117: 0 | AJ117: 0
F118: Less total customer contributions | G118: =SUMIF($E$21:$V$113,"Less customer contributions",G$21:G$113) -> 0 | H118: 0 | I118: 0 | J118: 0 | K118: 0 | L118: 0 | M118: 0 | N118: 0 | O118: 0 | P118: 0 | Q118: 0 | R118: 0 | S118: 0 | T118: 0 | U118: 0 | V118: 0 | AB118: =SUMIF($F$84:$F$114,"Less customer contributions",AB$83:AB$113) -> 0 | AC118: 0 | AD118: 0 | AE118: 0 | AF118: 0 | AG118: 0 | AH118: 0 | AI118: 0 | AJ118: 0
F119: Total net 'other' expenditure | G119: =SUMIF($E$21:$V$113,"Total net expenditure",G$21:G$113) -> 0 | H119: 0 | I119: 0 | J119: 0 | K119: 0 | L119: 0 | M119: 0 | N119: 0 | O119: 0 | P119: 0 | Q119: 0 | R119: 0 | S119: 0 | T119: 0 | U119: 0 | V119: 0 | AB119: =SUMIF($F$84:$F$114,"Total net expenditure",AB$83:AB$113) -> 0 | AC119: 0 | AD119: 0 | AE119: 0 | AF119: 0 | AG119: 0 | AH119: 0 | AI119: 0 | AJ119: 0
E120: Source(s) of data:
E122: Table 11.2 - Other non-distribution capital expenditure (approved)
G123: Previous access arrangement period | L123: Current access arrangement period | AB123: Previous access arrangement period | AG123: Current access arrangement period
G124: $0's, nominal | AB124: =CONCATENATE("$0's, real ",dms_DollarReal) -> $0's, real June 2016
G125: Approved | AB125: Actual
G126: =PRCP -> 2005-06 | H126: 2006-07 | I126: 2007-08 | J126: 2008-09 | K126: 2009-10 | L126: =CRCP_y1 -> 2010-11 | M126: =CRCP_y2 -> 2011-12 | N126: =CRCP_y3 -> 2012-13 | O126: =CRCP_y4 -> 2013-14 | P126: =CRCP_y5 -> 2014-15 | Q126: =CRCP_y6 -> 2015-16 | AB126: =PRCP -> 2005-06 | AC126: 2006-07 | AD126: 2007-08 | AE126: 2008-09 | AF126: 2009-10 | AG126: =CRCP_y1 -> 2010-11 | AH126: =CRCP_y2 -> 2011-12 | AI126: =CRCP_y3 -> 2012-13 | AJ126: =CRCP_y4 -> 2013-14
E127: < insert sub-category >
E128: <insert project name> | F128: Direct expenditure
F129: Direct internal labour expenditure
F130: Direct contractor expenditure
F131: Other internal direct expenditure
F132: Total direct expenditure | L132: =SUM(L129:L131) -> 0 | M132: 0 | N132: 0 | O132: 0 | P132: 0 | Q132: 0 | AG132: =SUM(AG129:AG131) -> 0 | AH132: 0 | AI132: 0 | AJ132: 0
F133: Total overhead expenditure
F134: Related party margin expenditure
F135: Total gross expenditure | G135: =SUM(G132:G134) -> 0 | H135: =SUM(H132:H134) -> 0 | I135: 0 | J135: 0 | K135: 0 | L135: 0 | M135: 0 | N135: 0 | O135: 0 | P135: 0 | Q135: 0 | AB135: =SUM(AB132:AB134) -> 0 | AC135: =SUM(AC132:AC134) -> 0 | AD135: 0 | AE135: 0 | AF135: 0 | AG135: 0 | AH135: 0 | AI135: 0 | AJ135: 0
F136: Less customer contributions
F137: Total net expenditure | G137: =G135-G136 -> 0 | H137: 0 | I137: 0 | J137: 0 | K137: 0 | L137: 0 | M137: =M135-M136 -> 0 | N137: 0 | O137: 0 | P137: 0 | Q137: 0 | AB137: =AB135-AB136 -> 0 | AC137: 0 | AD137: 0 | AE137: 0 | AF137: 0 | AG137: 0 | AH137: 0 | AI137: 0 | AJ137: 0
E138: <insert project name> | F138: Direct expenditure
F139: Direct internal labour expenditure
F140: Direct contractor expenditure
F141: Other internal direct expenditure
F142: Total direct expenditure | L142: =SUM(L139:L141) -> 0 | M142: 0 | N142: 0 | O142: 0 | P142: 0 | Q142: 0 | AG142: =SUM(AG139:AG141) -> 0 | AH142: 0 | AI142: 0 | AJ142: 0
F143: Total overhead expenditure
F144: Related party margin expenditure
F145: Total gross expenditure | G145: =SUM(G142:G144) -> 0 | H145: =SUM(H142:H144) -> 0 | I145: =SUM(I142:I144) -> 0 | J145: =SUM(J142:J144) -> 0 | K145: =SUM(K142:K144) -> 0 | L145: =SUM(L142:L144) -> 0 | M145: =SUM(M142:M144) -> 0 | N145: =SUM(N142:N144) -> 0 | O145: =SUM(O142:O144) -> 0 | P145: =SUM(P142:P144) -> 0 | Q145: =SUM(Q142:Q144) -> 0 | AB145: =SUM(AB142:AB144) -> 0 | AC145: =SUM(AC142:AC144) -> 0 | AD145: 0 | AE145: 0 | AF145: 0 | AG145: 0 | AH145: 0 | AI145: 0 | AJ145: 0
F146: Less customer contributions
F147: Total net expenditure | G147: =G145-G146 -> 0 | H147: 0 | I147: 0 | J147: 0 | K147: 0 | L147: 0 | M147: =M145-M146 -> 0 | N147: 0 | O147: 0 | P147: 0 | Q147: 0 | AB147: =AB145-AB146 -> 0 | AC147: 0 | AD147: 0 | AE147: 0 | AF147: 0 | AG147: 0 | AH147: 0 | AI147: 0 | AJ147: 0
E148: < insert sub-category >
E149: <insert project name> | F149: Direct expenditure
F150: Direct internal labour expenditure
F151: Direct contractor expenditure
F152: Other internal direct expenditure
F153: Total direct expenditure | L153: =SUM(L150:L152) -> 0 | M153: 0 | N153: 0 | O153: 0 | P153: 0 | Q153: 0 | AG153: =SUM(AG150:AG152) -> 0 | AH153: 0 | AI153: 0 | AJ153: 0
F154: Total overhead expenditure
F155: Related party margin expenditure
F156: Total gross expenditure | G156: =SUM(G153:G155) -> 0 | H156: =SUM(H153:H155) -> 0 | I156: =SUM(I153:I155) -> 0 | J156: =SUM(J153:J155) -> 0 | K156: =SUM(K153:K155) -> 0 | L156: =SUM(L153:L155) -> 0 | M156: =SUM(M153:M155) -> 0 | N156: =SUM(N153:N155) -> 0 | O156: =SUM(O153:O155) -> 0 | P156: =SUM(P153:P155) -> 0 | Q156: =SUM(Q153:Q155) -> 0 | AB156: =SUM(AB153:AB155) -> 0 | AC156: =SUM(AC153:AC155) -> 0 | AD156: 0 | AE156: 0 | AF156: 0 | AG156: 0 | AH156: 0 | AI156: 0 | AJ156: 0
F157: Less customer contributions
F158: Total net expenditure | G158: =G156-G157 -> 0 | H158: 0 | I158: 0 | J158: 0 | K158: 0 | L158: 0 | M158: 0 | N158: 0 | O158: 0 | P158: 0 | Q158: 0 | AB158: =AB156-AB157 -> 0 | AC158: 0 | AD158: 0 | AE158: 0 | AF158: 0 | AG158: 0 | AH158: 0 | AI158: 0 | AJ158: 0
E159: <insert project name> | F159: Direct expenditure
F160: Direct internal labour expenditure
F161: Direct contractor expenditure
F162: Other internal direct expenditure
F163: Total direct expenditure | L163: =SUM(L160:L162) -> 0 | M163: 0 | N163: 0 | O163: 0 | P163: 0 | Q163: 0 | AG163: =SUM(AG160:AG162) -> 0 | AH163: 0 | AI163: 0 | AJ163: 0
F164: Total overhead expenditure
F165: Related party margin expenditure
F166: Total gross expenditure | G166: =SUM(G163:G165) -> 0 | H166: =SUM(H163:H165) -> 0 | I166: =SUM(I163:I165) -> 0 | J166: =SUM(J163:J165) -> 0 | K166: =SUM(K163:K165) -> 0 | L166: =SUM(L163:L165) -> 0 | M166: =SUM(M163:M165) -> 0 | N166: =SUM(N163:N165) -> 0 | O166: =SUM(O163:O165) -> 0 | P166: =SUM(P163:P165) -> 0 | Q166: =SUM(Q163:Q165) -> 0 | AB166: =SUM(AB163:AB165) -> 0 | AC166: =SUM(AC163:AC165) -> 0 | AD166: 0 | AE166: 0 | AF166: 0 | AG166: 0 | AH166: 0 | AI166: 0 | AJ166: 0
F167: Less customer contributions
F168: Total net expenditure | G168: =G166-G167 -> 0 | H168: 0 | I168: 0 | J168: 0 | K168: 0 | L168: 0 | M168: 0 | N168: 0 | O168: 0 | P168: 0 | Q168: 0 | AB168: =AB166-AB167 -> 0 | AC168: 0 | AD168: 0 | AE168: 0 | AF168: 0 | AG168: 0 | AH168: 0 | AI168: 0 | AJ168: 0
E169: < insert sub-category >
E170: <insert project name> | F170: Direct expenditure
F171: Direct internal labour expenditure
F172: Direct contractor expenditure
F173: Other internal direct expenditure
F174: Total direct expenditure | L174: =SUM(L171:L173) -> 0 | M174: 0 | N174: 0 | O174: 0 | P174: 0 | Q174: 0 | AG174: =SUM(AG171:AG173) -> 0 | AH174: 0 | AI174: 0 | AJ174: 0
F175: Total overhead expenditure
F176: Related party margin expenditure
F177: Total gross expenditure | G177: =SUM(G174:G176) -> 0 | H177: =SUM(H174:H176) -> 0 | I177: =SUM(I174:I176) -> 0 | J177: =SUM(J174:J176) -> 0 | K177: =SUM(K174:K176) -> 0 | L177: =SUM(L174:L176) -> 0 | M177: =SUM(M174:M176) -> 0 | N177: =SUM(N174:N176) -> 0 | O177: =SUM(O174:O176) -> 0 | P177: =SUM(P174:P176) -> 0 | Q177: =SUM(Q174:Q176) -> 0 | AB177: =SUM(AB174:AB176) -> 0 | AC177: =SUM(AC174:AC176) -> 0 | AD177: 0 | AE177: 0 | AF177: 0 | AG177: 0 | AH177: 0 | AI177: 0 | AJ177: 0
F178: Less customer contributions
F179: Total net expenditure | G179: =G177-G178 -> 0 | H179: 0 | I179: 0 | J179: 0 | K179: 0 | L179: 0 | M179: =M177-M178 -> 0 | N179: 0 | O179: 0 | P179: 0 | Q179: 0 | AB179: =AB177-AB178 -> 0 | AC179: 0 | AD179: 0 | AE179: 0 | AF179: 0 | AG179: 0 | AH179: 0 | AI179: 0 | AJ179: 0
E180: <insert project name> | F180: Direct expenditure
F181: Direct internal labour expenditure
F182: Direct contractor expenditure
F183: Other internal direct expenditure
F184: Total direct expenditure | L184: =SUM(L181:L183) -> 0 | M184: 0 | N184: 0 | O184: 0 | P184: 0 | Q184: 0 | AG184: =SUM(AG181:AG183) -> 0 | AH184: 0 | AI184: 0 | AJ184: 0
F185: Total overhead expenditure
F186: Related party margin expenditure
F187: Total gross expenditure | G187: =SUM(G184:G186) -> 0 | H187: =SUM(H184:H186) -> 0 | I187: =SUM(I184:I186) -> 0 | J187: =SUM(J184:J186) -> 0 | K187: =SUM(K184:K186) -> 0 | L187: =SUM(L184:L186) -> 0 | M187: =SUM(M184:M186) -> 0 | N187: =SUM(N184:N186) -> 0 | O187: =SUM(O184:O186) -> 0 | P187: =SUM(P184:P186) -> 0 | Q187: =SUM(Q184:Q186) -> 0 | AB187: =SUM(AB184:AB186) -> 0 | AC187: =SUM(AC184:AC186) -> 0 | AD187: 0 | AE187: 0 | AF187: 0 | AG187: 0 | AH187: 0 | AI187: 0 | AJ187: 0
F188: Less customer contributions
F189: Total net expenditure | G189: =G187-G188 -> 0 | H189: 0 | I189: 0 | J189: 0 | K189: 0 | L189: 0 | M189: =M187-M188 -> 0 | N189: 0 | O189: 0 | P189: 0 | Q189: 0 | AB189: =AB187-AB188 -> 0 | AC189: 0 | AD189: 0 | AE189: 0 | AF189: 0 | AG189: 0 | AH189: 0 | AI189: 0 | AJ189: 0
E190: TOTALS | F190: Total direct expenditure | G190: =SUMIF($E$128:$Q$189,"Total direct expenditure (excl escalation)",G$128:G$189) -> 0 | H190: =SUMIF($E$128:$Q$189,"Total direct expenditure (excl escalation)",H$128:H$189) -> 0 | I190: =SUMIF($E$128:$Q$189,"Total direct expenditure (excl escalation)",I$128:I$189) -> 0 | J190: =SUMIF($E$128:$Q$189,"Total direct expenditure (excl escalation)",J$128:J$189) -> 0 | K190: =SUMIF($E$128:$Q$189,"Total direct expenditure (excl escalation)",K$128:K$189) -> 0 | L190: =SUMIF($E$128:$Q$189,"Total direct expenditure (excl escalation)",$L$128:$L$189) -> 0 | M190: =SUMIF($E$128:$Q$189,"Total direct expenditure (excl escalation)",$N$128:$N$189) -> 0 | N190: =SUMIF($E$128:$Q$189,"Total direct expenditure (excl escalation)",$N$128:$N$189) -> 0 | O190: =SUMIF($E$128:$Q$189,"Total direct expenditure (excl escalation)",$O$128:$O$189) -> 0 | P190: =SUMIF($E$128:$Q$189,"Total direct expenditure (excl escalation)",$P$128:$P$189) -> 0 | Q190: =SUMIF($E$128:$Q$189,"Total direct expenditure (excl escalation)",$Q$128:$Q$189) -> 0 | AB190: =SUMIF($E$128:$Q$189,"Total direct expenditure (excl escalation)",AB$128:AB$189) -> 0 | AC190: =SUMIF($E$128:$Q$189,"Total direct expenditure (excl escalation)",AC$128:AC$189) -> 0 | AD190: =SUMIF($E$128:$Q$189,"Total direct expenditure (excl escalation)",AD$128:AD$189) -> 0 | AE190: =SUMIF($E$128:$Q$189,"Total direct expenditure (excl escalation)",AE$128:AE$189) -> 0 | AF190: =SUMIF($E$128:$Q$189,"Total direct expenditure (excl escalation)",AF$128:AF$189) -> 0 | AG190: =SUMIF($E$128:$Q$189,"Total direct expenditure (excl escalation)",$L$128:$L$189) -> 0 | AH190: =SUMIF($E$128:$Q$189,"Total direct expenditure (excl escalation)",$N$128:$N$189) -> 0 | AI190: =SUMIF($E$128:$Q$189,"Total direct expenditure (excl escalation)",$N$128:$N$189) -> 0 | AJ190: =SUMIF($E$128:$Q$189,"Total direct expenditure (excl escalation)",$O$128:$O$189) -> 0
F191: Total overhead expenditure | G191: =SUMIF($E$128:$Q$189,"Total overhead expenditure",G$128:G$189) -> 0 | H191: =SUMIF($E$128:$Q$189,"Total overhead expenditure",H$128:H$189) -> 0 | I191: =SUMIF($E$128:$Q$189,"Total overhead expenditure",I$128:I$189) -> 0 | J191: =SUMIF($E$128:$Q$189,"Total overhead expenditure",J$128:J$189) -> 0 | K191: =SUMIF($E$128:$Q$189,"Total overhead expenditure",K$128:K$189) -> 0 | L191: =SUMIF($E$128:$Q$189,"Total overhead expenditure",$L$128:$L$189) -> 0 | M191: =SUMIF($E$128:$Q$189,"Total overhead expenditure",$N$128:$N$189) -> 0 | N191: =SUMIF($E$128:$Q$189,"Total overhead expenditure",$N$128:$N$189) -> 0 | O191: =SUMIF($E$128:$Q$189,"Total overhead expenditure",$O$128:$O$189) -> 0 | P191: =SUMIF($E$128:$Q$189,"Total overhead expenditure",$P$128:$P$189) -> 0 | Q191: =SUMIF($E$128:$Q$189,"Total overhead expenditure",$Q$128:$Q$189) -> 0 | AB191: =SUMIF($E$128:$Q$189,"Total overhead expenditure",AB$128:AB$189) -> 0 | AC191: =SUMIF($E$128:$Q$189,"Total overhead expenditure",AC$128:AC$189) -> 0 | AD191: =SUMIF($E$128:$Q$189,"Total overhead expenditure",AD$128:AD$189) -> 0 | AE191: =SUMIF($E$128:$Q$189,"Total overhead expenditure",AE$128:AE$189) -> 0 | AF191: =SUMIF($E$128:$Q$189,"Total overhead expenditure",AF$128:AF$189) -> 0 | AG191: =SUMIF($E$128:$Q$189,"Total overhead expenditure",$L$128:$L$189) -> 0 | AH191: =SUMIF($E$128:$Q$189,"Total overhead expenditure",$N$128:$N$189) -> 0 | AI191: =SUMIF($E$128:$Q$189,"Total overhead expenditure",$N$128:$N$189) -> 0 | AJ191: =SUMIF($E$128:$Q$189,"Total overhead expenditure",$O$128:$O$189) -> 0
F192: Total related party margin expenditure | G192: =SUMIF($E$128:$Q$189,"Related party margin",G$128:G$189) -> 0 | H192: =SUMIF($E$128:$Q$189,"Related party margin",H$128:H$189) -> 0 | I192: =SUMIF($E$128:$Q$189,"Related party margin",I$128:I$189) -> 0 | J192: =SUMIF($E$128:$Q$189,"Related party margin",J$128:J$189) -> 0 | K192: =SUMIF($E$128:$Q$189,"Related party margin",K$128:K$189) -> 0 | L192: =SUMIF($E$128:$Q$189,"Related party margin",$L$128:$L$189) -> 0 | M192: =SUMIF($E$128:$Q$189,"Related party margin",$N$128:$N$189) -> 0 | N192: =SUMIF($E$128:$Q$189,"Related party margin",$N$128:$N$189) -> 0 | O192: =SUMIF($E$128:$Q$189,"Related party margin",$O$128:$O$189) -> 0 | P192: =SUMIF($E$128:$Q$189,"Related party margin",$P$128:$P$189) -> 0 | Q192: =SUMIF($E$128:$Q$189,"Related party margin",$Q$128:$Q$189) -> 0 | AB192: =SUMIF($E$128:$Q$189,"Related party margin",AB$128:AB$189) -> 0 | AC192: =SUMIF($E$128:$Q$189,"Related party margin",AC$128:AC$189) -> 0 | AD192: =SUMIF($E$128:$Q$189,"Related party margin",AD$128:AD$189) -> 0 | AE192: =SUMIF($E$128:$Q$189,"Related party margin",AE$128:AE$189) -> 0 | AF192: =SUMIF($E$128:$Q$189,"Related party margin",AF$128:AF$189) -> 0 | AG192: =SUMIF($E$128:$Q$189,"Related party margin",$L$128:$L$189) -> 0 | AH192: =SUMIF($E$128:$Q$189,"Related party margin",$N$128:$N$189) -> 0 | AI192: =SUMIF($E$128:$Q$189,"Related party margin",$N$128:$N$189) -> 0 | AJ192: =SUMIF($E$128:$Q$189,"Related party margin",$O$128:$O$189) -> 0
F193: Total gross expenditure | G193: =SUMIF($E$128:$Q$189,"Total gross expenditure",G$128:G$189) -> 0 | H193: =SUMIF($E$128:$Q$189,"Total gross expenditure",H$128:H$189) -> 0 | I193: =SUMIF($E$128:$Q$189,"Total gross expenditure",I$128:I$189) -> 0 | J193: =SUMIF($E$128:$Q$189,"Total gross expenditure",J$128:J$189) -> 0 | K193: =SUMIF($E$128:$Q$189,"Total gross expenditure",K$128:K$189) -> 0 | L193: =SUMIF($E$128:$Q$189,"Total gross expenditure",$L$128:$L$189) -> 0 | M193: =SUMIF($E$128:$Q$189,"Total gross expenditure",$N$128:$N$189) -> 0 | N193: =SUMIF($E$128:$Q$189,"Total gross expenditure",$N$128:$N$189) -> 0 | O193: =SUMIF($E$128:$Q$189,"Total gross expenditure",$O$128:$O$189) -> 0 | P193: =SUMIF($E$128:$Q$189,"Total gross expenditure",$P$128:$P$189) -> 0 | Q193: =SUMIF($E$128:$Q$189,"Total gross expenditure",$Q$128:$Q$189) -> 0 | AB193: =SUMIF($E$128:$Q$189,"Total gross expenditure",AB$128:AB$189) -> 0 | AC193: =SUMIF($E$128:$Q$189,"Total gross expenditure",AC$128:AC$189) -> 0 | AD193: =SUMIF($E$128:$Q$189,"Total gross expenditure",AD$128:AD$189) -> 0 | AE193: =SUMIF($E$128:$Q$189,"Total gross expenditure",AE$128:AE$189) -> 0 | AF193: =SUMIF($E$128:$Q$189,"Total gross expenditure",AF$128:AF$189) -> 0 | AG193: =SUMIF($E$128:$Q$189,"Total gross expenditure",$L$128:$L$189) -> 0 | AH193: =SUMIF($E$128:$Q$189,"Total gross expenditure",$N$128:$N$189) -> 0 | AI193: =SUMIF($E$128:$Q$189,"Total gross expenditure",$N$128:$N$189) -> 0 | AJ193: =SUMIF($E$128:$Q$189,"Total gross expenditure",$O$128:$O$189) -> 0
F194: Less total customer contributions | G194: =SUMIF($E$128:$Q$189,"Less customer contributions",G$128:G$189) -> 0 | H194: =SUMIF($E$128:$Q$189,"Less customer contributions",H$128:H$189) -> 0 | I194: =SUMIF($E$128:$Q$189,"Less customer contributions",I$128:I$189) -> 0 | J194: =SUMIF($E$128:$Q$189,"Less customer contributions",J$128:J$189) -> 0 | K194: =SUMIF($E$128:$Q$189,"Less customer contributions",K$128:K$189) -> 0 | L194: =SUMIF($E$128:$Q$189,"Less customer contributions",$L$128:$L$189) -> 0 | M194: =SUMIF($E$128:$Q$189,"Less customer contributions",$N$128:$N$189) -> 0 | N194: =SUMIF($E$128:$Q$189,"Less customer contributions",$N$128:$N$189) -> 0 | O194: =SUMIF($E$128:$Q$189,"Less customer contributions",$O$128:$O$189) -> 0 | P194: =SUMIF($E$128:$Q$189,"Less customer contributions",$P$128:$P$189) -> 0 | Q194: =SUMIF($E$128:$Q$189,"Less customer contributions",$Q$128:$Q$189) -> 0 | AB194: =SUMIF($E$128:$Q$189,"Less customer contributions",AB$128:AB$189) -> 0 | AC194: =SUMIF($E$128:$Q$189,"Less customer contributions",AC$128:AC$189) -> 0 | AD194: =SUMIF($E$128:$Q$189,"Less customer contributions",AD$128:AD$189) -> 0 | AE194: =SUMIF($E$128:$Q$189,"Less customer contributions",AE$128:AE$189) -> 0 | AF194: =SUMIF($E$128:$Q$189,"Less customer contributions",AF$128:AF$189) -> 0 | AG194: =SUMIF($E$128:$Q$189,"Less customer contributions",$L$128:$L$189) -> 0 | AH194: =SUMIF($E$128:$Q$189,"Less customer contributions",$N$128:$N$189) -> 0 | AI194: =SUMIF($E$128:$Q$189,"Less customer contributions",$N$128:$N$189) -> 0 | AJ194: =SUMIF($E$128:$Q$189,"Less customer contributions",$O$128:$O$189) -> 0
F195: Total net expenditure | G195: =SUMIF($E$128:$Q$189,"Total net expenditure",G$128:G$189) -> 0 | H195: =SUMIF($E$128:$Q$189,"Total net expenditure",H$128:H$189) -> 0 | I195: =SUMIF($E$128:$Q$189,"Total net expenditure",I$128:I$189) -> 0 | J195: =SUMIF($E$128:$Q$189,"Total net expenditure",J$128:J$189) -> 0 | K195: =SUMIF($E$128:$Q$189,"Total net expenditure",K$128:K$189) -> 0 | L195: =SUMIF($E$128:$Q$189,"Total net expenditure",$L$128:$L$189) -> 0 | M195: =SUMIF($E$128:$Q$189,"Total net expenditure",$N$128:$N$189) -> 0 | N195: =SUMIF($E$128:$Q$189,"Total net expenditure",$N$128:$N$189) -> 0 | O195: =SUMIF($E$128:$Q$189,"Total net expenditure",$O$128:$O$189) -> 0 | P195: =SUMIF($E$128:$Q$189,"Total net expenditure",$P$128:$P$189) -> 0 | Q195: =SUMIF($E$128:$Q$189,"Total net expenditure",$Q$128:$Q$189) -> 0 | AB195: =SUMIF($E$128:$Q$189,"Total net expenditure",AB$128:AB$189) -> 0 | AC195: =SUMIF($E$128:$Q$189,"Total net expenditure",AC$128:AC$189) -> 0 | AD195: =SUMIF($E$128:$Q$189,"Total net expenditure",AD$128:AD$189) -> 0 | AE195: =SUMIF($E$128:$Q$189,"Total net expenditure",AE$128:AE$189) -> 0 | AF195: =SUMIF($E$128:$Q$189,"Total net expenditure",AF$128:AF$189) -> 0 | AG195: =SUMIF($E$128:$Q$189,"Total net expenditure",$L$128:$L$189) -> 0 | AH195: =SUMIF($E$128:$Q$189,"Total net expenditure",$N$128:$N$189) -> 0 | AI195: =SUMIF($E$128:$Q$189,"Total net expenditure",$N$128:$N$189) -> 0 | AJ195: =SUMIF($E$128:$Q$189,"Total net expenditure",$O$128:$O$189) -> 0
E196: Source(s) of data:

Sheet 12. IT & Communications
E1: =SheetHeader -> REGULATORY REPORTING STATEMENT
E2: =dms_TradingName -> ActewAGL Distribution
E3: =CONCATENATE(FRCP_y1," to ",FRCP_y5) -> 2016-17 to 2020-21 | K3: =CONCATENATE(LEFT(FRCP_y1,4),"-",LEFT(FRCP_y5,2),RIGHT(FRCP_y5,2)) -> 2016-2021 | AE3: =CONCATENATE(LEFT(FRCP_y1,4),"-",LEFT(FRCP_y5,2),RIGHT(FRCP_y5,2)) -> 2016-2021
E4: 12. IT & COMMUNICATIONS CAPITAL EXPENDITURE
A8: Asset category | E8: Instructions
A9: HPM | B9: HP mains | E9: This template asks for information relating to IT & Communications capital expenditure
A10: MPS | B10: MP services | E10: =CONCATENATE("As set out in cl.6.1 of the ",dms_TradingName," RIN, for tables 12.1 to 12.2, where the requested data is captured in the ",dms_TradingName," capex model it is not required to be reentered in the RIN template tables. If the requested data has not been provided in the ",dms_TradingName," capex model, please enter into the tables below. This may require the insertion of new lines in each table.") -> As set out in cl.6.1 of the ActewAGL Distribution RIN, for tables 12.1 to 12.2, where the requested data is captured in the ActewAGL Distribution capex model it is not required to be reentered in the RIN template tables. If the requested data has not been provided in the ActewAGL Distribution capex model, please enter into the tables below. This may require the insertion of new lines in each table.
A11: TRS | B11: TRS & DRS - valves & regulators | E11: Reported expenditure is to be entered EXCLUSIVE of any profit margins or management fees paid pursuant to arrangements or contracts with any related parties. Include any related party margins or management fees in the separate 'Related party margin' line item.
A12: TM | B12: Tariff meters | E12: =CONCATENATE("Subject to cl.6.1 of the ",dms_TradingName," RIN, where linked/adjustable escalation is not provided in the ",dms_TradingName," capex model, escalation should be linked to allocations derived in tab '2. Escalators'.") -> Subject to cl.6.1 of the ActewAGL Distribution RIN, where linked/adjustable escalation is not provided in the ActewAGL Distribution capex model, escalation should be linked to allocations derived in tab '2. Escalators'.
A13: RC | B13: Regulatory expenditure | E13: =CONCATENATE("Subject to cl.6.1 of the ",dms_TradingName," RIN, where linked/adjustable overhead expenditure and related party margin expenditure is not provided in the ",dms_TradingName," capex model, overhead expenditure and related party margin expenditure should be linked to allocations derived in tabs '14. Overheads' and '15. Related party transactions'.") -> Subject to cl.6.1 of the ActewAGL Distribution RIN, where linked/adjustable overhead expenditure and related party margin expenditure is not provided in the ActewAGL Distribution capex model, overhead expenditure and related party margin expenditure should be linked to allocations derived in tabs '14. Overheads' and '15. Related party transactions'.
A14: ITS | B14: IT System | E14: Capital expenditure amounts entered should be GROSS of customer contributions. There is a separate line item for customer contributions from which net capital expenditure is derived.
A15: ERC | B15: Equity raising expenditure | E15: For the conversion to real $ check the accuracy of the CPI escalation used.
G17: 0 | H17: 0 | I17: 0 | J17: 0 | K17: 0 | L17: 0 | M17: 0 | N17: 0 | O17: 0
A18: Internal identification code | B18: Asset category | C18: Percent allocation | E18: Table 12 - IT & COMMUNICATIONS CAPITAL EXPENDITURE | AA18: REAL $ CONVERSION OF HISTORICAL DATA
A19: Internal identification code | B19: Asset category | C19: Percent allocation | E19: Table 12.1 - IT & communications expenditure (actual/forecast)
G20: Previous access arrangement period | L20: Current access arrangement period | R20: Next access arrangement period | W20: Supporting documentation (business case, expenditureing spreadsheet, contracts) | AA20: Previous access arrangement period | AF20: Current access arrangement period
G21: $0's, nominal | P21: =CONCATENATE("$0's, real ",dms_DollarReal) -> $0's, real June 2016 | AA21: =CONCATENATE("$0's, real ",dms_DollarReal) -> $0's, real June 2016
G22: Actual | P22: Forecast | AA22: Actual
G23: =PRCP -> 2005-06 | H23: 2006-07 | I23: 2007-08 | J23: 2008-09 | K23: 2009-10 | L23: =CRCP_y1 -> 2010-11 | M23: =CRCP_y2 -> 2011-12 | N23: =CRCP_y3 -> 2012-13 | O23: =CRCP_y4 -> 2013-14 | P23: =CRCP_y5 -> 2014-15 | Q23: =CRCP_y6 -> 2015-16 | R23: =FRCP -> 2016-17 | S23: 2017-18 | T23: 2018-19 | U23: 2019-20 | V23: 2020-21 | AA23: =PRCP -> 2005-06 | AB23: 2006-07 | AC23: 2007-08 | AD23: 2008-09 | AE23: 2009-10 | AF23: =CRCP_y1 -> 2010-11 | AG23: =CRCP_y2 -> 2011-12 | AH23: =CRCP_y3 -> 2012-13 | AI23: =CRCP_y4 -> 2013-14
E24: 150200 - GIS Implementation | F24: Direct expenditure | G24: 0 | H24: 0 | I24: 0 | J24: 0 | K24: 0 | L24: 0 | M24: 0 | N24: 0 | O24: 0
F25: Direct internal labour expenditure | G25: 0 | H25: 0 | I25: 0 | J25: 0 | K25: 0 | L25: 0 | M25: 0 | N25: 0 | O25: 0
F26: Direct contractor expenditure | J26: 0 | K26: 0 | L26: 0 | M26: 0 | N26: 0 | O26: 0
F27: Other internal direct expenditure | G27: 93680 | H27: 71596.75 | J27: 0 | K27: 0 | L27: 0 | M27: 0 | N27: 0 | O27: 0
F28: Total direct expenditure (excl escalation) | G28: =SUM(G25:G27) -> 93680 | H28: =SUM(H25:H27) -> 71596.75 | I28: 0 | J28: 0 | K28: 0 | L28: 0 | M28: 0 | N28: 0 | O28: 0 | U28: =SUM(U25:U27) -> 0 | V28: 0 | AF28: =SUM(AF25:AF27) -> 0 | AG28: 0 | AH28: 0 | AI28: =SUM(AI25:AI27) -> 0
F29: Escalation
F30: Total direct expenditure (inc escalation) | G30: =SUM(G28:G29) -> 93680 | H30: =SUM(H28:H29) -> 71596.75 | I30: 0 | J30: 0 | K30: 0 | L30: 0 | M30: 0 | N30: 0 | O30: 0
F31: Total overhead expenditure
F32: Related party margin expenditure | G32: =G26*G$17 -> 0 | H32: =H26*H$17 -> 0 | I32: 0 | J32: 0 | K32: 0 | L32: 0 | M32: 0 | N32: 0 | O32: 0
F33: Total gross expenditure | G33: =SUM(G30,G31:G32) -> 93680 | H33: =SUM(H30,H31:H32) -> 71596.75 | I33: 0 | J33: 0 | K33: 0 | L33: 0 | M33: 0 | N33: 0 | O33: 0 | U33: =SUM(U28:U32) -> 0 | V33: 0 | AA33: =SUM(AA28:AA32) -> 0 | AB33: =SUM(AB28:AB32) -> 0 | AC33: 0 | AD33: 0 | AE33: 0 | AF33: 0 | AG33: 0 | AH33: 0 | AI33: =SUM(AI28:AI32) -> 0
F34: Less customer contributions
F35: Total net expenditure | G35: =G33-G34 -> 93680 | H35: =H33-H34 -> 71596.75 | I35: 0 | J35: 0 | K35: 0 | L35: 0 | M35: 0 | N35: 0 | O35: 0 | U35: =U33-U34 -> 0 | V35: =V33-V34 -> 0 | AA35: =AA33-AA34 -> 0 | AB35: 0 | AC35: 0 | AD35: 0 | AE35: 0 | AF35: =AF33-AF34 -> 0 | AG35: =AG33-AG34 -> 0 | AH35: =AH33-AH34 -> 0 | AI35: 0
E36: 160326 - Gas Maps Project | F36: Direct expenditure | G36: 0 | H36: 0 | I36: 0 | J36: 0 | K36: 0 | L36: 0 | M36: 0 | N36: 0 | O36: 0
F37: Direct internal labour expenditure | G37: 0 | H37: 0 | I37: 0 | J37: 0 | K37: 0 | L37: 0 | M37: 0 | N37: 0 | O37: 0
F38: Direct contractor expenditure | G38: 0 | H38: 0 | I38: 0 | J38: 0 | K38: 0 | L38: 0 | M38: 0 | N38: 0 | O38: 0
F39: Other internal direct expenditure | G39: 0 | H39: 4050 | I39: 0 | J39: 0 | K39: 0 | L39: 0 | M39: 0 | N39: 0 | O39: 0
F40: Total direct expenditure (excl escalation) | G40: =SUM(G37:G39) -> 0 | H40: =SUM(H37:H39) -> 4050 | I40: =SUM(I37:I39) -> 0 | J40: =SUM(J37:J39) -> 0 | K40: =SUM(K37:K39) -> 0 | L40: =SUM(L37:L39) -> 0 | M40: =SUM(M37:M39) -> 0 | N40: =SUM(N37:N39) -> 0 | O40: =SUM(O37:O39) -> 0 | R40: =SUM(R37:R39) -> 0 | S40: 0 | T40: 0 | U40: 0 | V40: 0 | AF40: =SUM(AF37:AF39) -> 0 | AG40: 0 | AH40: 0 | AI40: 0
F41: Escalation
F42: Total direct expenditure (inc escalation) | G42: =SUM(G40:G41) -> 0 | H42: =SUM(H40:H41) -> 4050 | I42: =SUM(I40:I41) -> 0 | J42: =SUM(J40:J41) -> 0 | K42: =SUM(K40:K41) -> 0 | L42: =SUM(L40:L41) -> 0 | M42: =SUM(M40:M41) -> 0 | N42: =SUM(N40:N41) -> 0 | O42: =SUM(O40:O41) -> 0
F43: Total overhead expenditure
F44: Related party margin expenditure | G44: =G38*G$17 -> 0 | H44: =H38*H$17 -> 0 | I44: 0 | J44: 0 | K44: 0 | L44: 0 | M44: 0 | N44: 0 | O44: 0
F45: Total gross expenditure | G45: =SUM(G42,G43:G44) -> 0 | H45: =SUM(H42,H43:H44) -> 4050 | I45: =SUM(I42,I43:I44) -> 0 | J45: =SUM(J42,J43:J44) -> 0 | K45: =SUM(K42,K43:K44) -> 0 | L45: =SUM(L42,L43:L44) -> 0 | M45: =SUM(M42,M43:M44) -> 0 | N45: =SUM(N42,N43:N44) -> 0 | O45: =SUM(O42,O43:O44) -> 0 | R45: =SUM(R40:R44) -> 0 | S45: 0 | T45: 0 | U45: 0 | V45: 0 | AA45: =SUM(AA40:AA44) -> 0 | AB45: =SUM(AB40:AB44) -> 0 | AC45: 0 | AD45: 0 | AE45: 0 | AF45: 0 | AG45: 0 | AH45: 0 | AI45: 0
F46: Less customer contributions
F47: Total net expenditure | G47: =G45-G46 -> 0 | H47: =H45-H46 -> 4050 | I47: =I45-I46 -> 0 | J47: =J45-J46 -> 0 | K47: =K45-K46 -> 0 | L47: =L45-L46 -> 0 | M47: =M45-M46 -> 0 | N47: =N45-N46 -> 0 | O47: =O45-O46 -> 0 | R47: =R45-R46 -> 0 | S47: =S45-S46 -> 0 | T47: =T45-T46 -> 0 | U47: =U45-U46 -> 0 | V47: =V45-V46 -> 0 | AA47: =AA45-AA46 -> 0 | AB47: 0 | AC47: 0 | AD47: 0 | AE47: 0 | AF47: =AF45-AF46 -> 0 | AG47: =AG45-AG46 -> 0 | AH47: =AH45-AH46 -> 0 | AI47: 0
E48: 170310 - Spatial Accuracy Improvement of Gas Pipes | F48: Direct expenditure | G48: 0 | H48: 0 | I48: 0 | J48: 0 | K48: 0 | L48: 0 | M48: 0 | N48: 0 | O48: 0
F49: Direct internal labour expenditure | G49: 0 | H49: 0 | I49: 0 | J49: 0 | K49: 0 | L49: 0 | M49: 0 | N49: 0 | O49: 0
F50: Direct contractor expenditure | G50: 0 | H50: 0 | I50: 0 | J50: 0 | K50: 0 | L50: 0 | M50: 0 | N50: 0 | O50: 0
F51: Other internal direct expenditure | G51: 0 | H51: 0 | I51: 0 | J51: 0 | K51: 224026.55 | L51: 0 | M51: 0 | N51: 0 | O51: 0
F52: Total direct expenditure (excl escalation) | G52: =SUM(G49:G51) -> 0 | H52: =SUM(H49:H51) -> 0 | I52: =SUM(I49:I51) -> 0 | J52: =SUM(J49:J51) -> 0 | K52: =SUM(K49:K51) -> 224026.55 | L52: =SUM(L49:L51) -> 0 | M52: =SUM(M49:M51) -> 0 | N52: =SUM(N49:N51) -> 0 | O52: =SUM(O49:O51) -> 0 | R52: =SUM(R49:R51) -> 0 | S52: 0 | T52: 0 | U52: 0 | V52: 0 | AF52: =SUM(AF49:AF51) -> 0 | AG52: 0 | AH52: 0 | AI52: 0
F53: Escalation
F54: Total direct expenditure (inc escalation) | G54: =SUM(G52:G53) -> 0 | H54: =SUM(H52:H53) -> 0 | I54: =SUM(I52:I53) -> 0 | J54: =SUM(J52:J53) -> 0 | K54: =SUM(K52:K53) -> 224026.55 | L54: =SUM(L52:L53) -> 0 | M54: =SUM(M52:M53) -> 0 | N54: =SUM(N52:N53) -> 0 | O54: =SUM(O52:O53) -> 0
F55: Total overhead expenditure
F56: Related party margin expenditure | G56: =G50*G$17 -> 0 | H56: =H50*H$17 -> 0 | I56: 0 | J56: 0 | K56: 0 | L56: 0 | M56: 0 | N56: 0 | O56: 0
F57: Total gross expenditure | G57: =SUM(G54,G55:G56) -> 0 | H57: =SUM(H54,H55:H56) -> 0 | I57: =SUM(I54,I55:I56) -> 0 | J57: =SUM(J54,J55:J56) -> 0 | K57: =SUM(K54,K55:K56) -> 224026.55 | L57: =SUM(L54,L55:L56) -> 0 | M57: =SUM(M54,M55:M56) -> 0 | N57: =SUM(N54,N55:N56) -> 0 | O57: =SUM(O54,O55:O56) -> 0 | R57: =SUM(R52:R56) -> 0 | S57: 0 | T57: 0 | U57: 0 | V57: 0 | AA57: =SUM(AA52:AA56) -> 0 | AB57: =SUM(AB52:AB56) -> 0 | AC57: 0 | AD57: 0 | AE57: 0 | AF57: 0 | AG57: 0 | AH57: 0 | AI57: 0
F58: Less customer contributions
F59: Total net expenditure | G59: =G57-G58 -> 0 | H59: =H57-H58 -> 0 | I59: =I57-I58 -> 0 | J59: =J57-J58 -> 0 | K59: =K57-K58 -> 224026.55 | L59: =L57-L58 -> 0 | M59: =M57-M58 -> 0 | N59: =N57-N58 -> 0 | O59: =O57-O58 -> 0 | R59: =R57-R58 -> 0 | S59: =S57-S58 -> 0 | T59: =T57-T58 -> 0 | U59: =U57-U58 -> 0 | V59: =V57-V58 -> 0 | AA59: =AA57-AA58 -> 0 | AB59: 0 | AC59: 0 | AD59: 0 | AE59: 0 | AF59: =AF57-AF58 -> 0 | AG59: =AG57-AG58 -> 0 | AH59: =AH57-AH58 -> 0 | AI59: 0
E60: 170311 - Automated Asset Information Request System (AIRS) for DBYD Implementation | F60: Direct expenditure | G60: 0 | H60: 0 | I60: 0 | J60: 0 | K60: 0 | L60: 0 | M60: 0 | N60: 0 | O60: 0
F61: Direct internal labour expenditure | G61: 0 | H61: 0 | I61: 0 | J61: 0 | K61: 0 | L61: 0 | M61: 0 | N61: 0 | O61: 0
F62: Direct contractor expenditure | G62: 0 | H62: 0 | I62: 0 | J62: 0 | K62: 0 | L62: 941.2 | M62: -941.2 | N62: 0 | O62: 0
F63: Other internal direct expenditure | G63: 0 | H63: 0 | I63: 0 | J63: 0 | K63: 15650.26 | L63: 50133.5 | M63: 0 | N63: 0 | O63: 0
F64: Total direct expenditure (excl escalation) | G64: =SUM(G61:G63) -> 0 | H64: =SUM(H61:H63) -> 0 | I64: =SUM(I61:I63) -> 0 | J64: =SUM(J61:J63) -> 0 | K64: =SUM(K61:K63) -> 15650.26 | L64: =SUM(L61:L63) -> 51074.7 | M64: =SUM(M61:M63) -> -941.2 | N64: =SUM(N61:N63) -> 0 | O64: =SUM(O61:O63) -> 0 | R64: =SUM(R61:R63) -> 0 | S64: 0 | T64: 0 | U64: 0 | V64: 0 | AF64: =SUM(AF61:AF63) -> 0 | AG64: 0 | AH64: 0 | AI64: 0
F65: Escalation
F66: Total direct expenditure (inc escalation) | G66: =SUM(G64:G65) -> 0 | H66: =SUM(H64:H65) -> 0 | I66: =SUM(I64:I65) -> 0 | J66: =SUM(J64:J65) -> 0 | K66: =SUM(K64:K65) -> 15650.26 | L66: =SUM(L64:L65) -> 51074.7 | M66: =SUM(M64:M65) -> -941.2 | N66: =SUM(N64:N65) -> 0 | O66: =SUM(O64:O65) -> 0
F67: Total overhead expenditure
F68: Related party margin expenditure | G68: =G62*G$17 -> 0 | H68: =H62*H$17 -> 0 | I68: 0 | J68: 0 | K68: 0 | L68: 0 | M68: 0 | N68: 0 | O68: 0
F69: Total gross expenditure | G69: =SUM(G66,G67:G68) -> 0 | H69: =SUM(H66,H67:H68) -> 0 | I69: =SUM(I66,I67:I68) -> 0 | J69: =SUM(J66,J67:J68) -> 0 | K69: =SUM(K66,K67:K68) -> 15650.26 | L69: =SUM(L66,L67:L68) -> 51074.7 | M69: =SUM(M66,M67:M68) -> -941.2 | N69: =SUM(N66,N67:N68) -> 0 | O69: =SUM(O66,O67:O68) -> 0 | R69: =SUM(R64:R68) -> 0 | S69: 0 | T69: 0 | U69: 0 | V69: 0 | AA69: =SUM(AA64:AA68) -> 0 | AB69: =SUM(AB64:AB68) -> 0 | AC69: 0 | AD69: 0 | AE69: 0 | AF69: 0 | AG69: 0 | AH69: 0 | AI69: 0
F70: Less customer contributions
F71: Total net expenditure | G71: =G69-G70 -> 0 | H71: =H69-H70 -> 0 | I71: =I69-I70 -> 0 | J71: =J69-J70 -> 0 | K71: =K69-K70 -> 15650.26 | L71: =L69-L70 -> 51074.7 | M71: =M69-M70 -> -941.2 | N71: =N69-N70 -> 0 | O71: =O69-O70 -> 0 | R71: =R69-R70 -> 0 | S71: =S69-S70 -> 0 | T71: =T69-T70 -> 0 | U71: =U69-U70 -> 0 | V71: =V69-V70 -> 0 | AA71: =AA69-AA70 -> 0 | AB71: 0 | AC71: 0 | AD71: 0 | AE71: 0 | AF71: =AF69-AF70 -> 0 | AG71: =AG69-AG70 -> 0 | AH71: =AH69-AH70 -> 0 | AI71: 0
E72: 170312 - Gas Major Facilities Project - Jun10 | F72: Direct expenditure | G72: 0 | H72: 0 | I72: 0 | J72: 0 | K72: 0 | L72: 0 | M72: 0 | N72: 0 | O72: 0
F73: Direct internal labour expenditure | G73: 0 | H73: 0 | I73: 0 | J73: 0 | K73: 0 | L73: 0 | M73: 0 | N73: 0 | O73: 0
F74: Direct contractor expenditure | G74: 0 | H74: 0 | I74: 0 | J74: 0 | K74: 0 | L74: 1.455191523e-11 | M74: 0 | N74: 0 | O74: 0
F75: Other internal direct expenditure | G75: 0 | H75: 0 | I75: 0 | J75: 0 | K75: 8823.22 | L75: 101945.58 | M75: 0 | N75: 0 | O75: 0
F76: Total direct expenditure (excl escalation) | G76: =SUM(G73:G75) -> 0 | H76: =SUM(H73:H75) -> 0 | I76: =SUM(I73:I75) -> 0 | J76: =SUM(J73:J75) -> 0 | K76: =SUM(K73:K75) -> 8823.22 | L76: =SUM(L73:L75) -> 101945.58 | M76: =SUM(M73:M75) -> 0 | N76: =SUM(N73:N75) -> 0 | O76: =SUM(O73:O75) -> 0 | R76: =SUM(R73:R75) -> 0 | S76: 0 | T76: 0 | U76: 0 | V76: 0 | AF76: =SUM(AF73:AF75) -> 0 | AG76: 0 | AH76: 0 | AI76: =SUM(AI73:AI75) -> 0
F77: Escalation
F78: Total direct expenditure (inc escalation) | G78: =SUM(G76:G77) -> 0 | H78: =SUM(H76:H77) -> 0 | I78: =SUM(I76:I77) -> 0 | J78: =SUM(J76:J77) -> 0 | K78: =SUM(K76:K77) -> 8823.22 | L78: =SUM(L76:L77) -> 101945.58 | M78: =SUM(M76:M77) -> 0 | N78: =SUM(N76:N77) -> 0 | O78: =SUM(O76:O77) -> 0
F79: Total overhead expenditure
